Workbook

Sheet Table of Content
C3: Sheet Tab | D3: Description | E3: Author
B4: 1 | C4: Table of Content
B5: 2 | C5: Summary
B6: 3 | C6: Master Scenario Page
B7: 4 | C7: Financial Model
B8: 5 | C8: Acquisition Model
B9: 6 | C9: Verification
B10: 7 | C10: Long-term Analysis
B11: 8 | C11: Cash Flow Graph
B12: 9 | C12: Margins
B13: 10 | C13: Simple LBO
B14: 11 | C14: Tornado Chart
B15: 12 | C15: Regression Analysis
B16: 13 | C16: Stock Price Read
B17: 14 | C17: Offset Formula
B18: 15 | C18: Stock Price Chart
B19: 16 | C19: Stock Price
B20: 17 | C20: Premium and Synergy Chart
B21: 18 | C21: Accretion and Dilution
B22: 19 | C22: Backup
B23: 20 | C23: GOOG
B25: File Name: | D25: C:\Users\Elvis Presley\Documents\Courses\Chapter 1. Models and Analysis\3 M&A Templates and Exercises\M&A Examples\Refinery Acquisition Model.xlsm
B27: Colour Codes
B29: Last Save Date | D29: 2012-11-12T11:17:29
B30: Last Save By | D30: Usain Bolt

Sheet Summary
A1: Valuation Date | E1: ='Financial Model'!H262 -> 2011
A2: Exit/Terminal Date | E2: ='Financial Model'!H263 -> 2017
A3: Current Stock Price | E3: ='Acquisition Model'!F6 -> 11.46346313
A5: Key Assumptions
B6: Margin
B7: Synergies | E7: ='Master Scenario Page'!H12 -> 1500000
A8: Valuation from DCF | E8: EV | F8: Equity Value | G8: Equity/share | H8: Implied EV/EBITDA
B9: Perpetuity Method | E9: ='Financial Model'!H446 -> 102767257.5 | F9: ='Financial Model'!H457 -> 64654755.52 | G9: ='Financial Model'!H461 -> 17.53241885 | H9: ='Financial Model'!H452 -> 13.70752249
B10: Terminal EV/EBITDA Method | E10: ='Financial Model'!H476 -> 79467411.99 | F10: ='Financial Model'!H481 -> 41354909.99 | G10: ='Financial Model'!H483 -> 11.21420377 | H10: ='Financial Model'!H478 -> 10.59969258
B11: Value Driver Formula | E11: ='Financial Model'!$H$498 -> 90925725.42 | F11: ='Financial Model'!H501 -> 49570815.43 | G11: ='Financial Model'!H502 -> 13.44210943 | H11: ='Financial Model'!H504 -> 12.12804989
A13: Valuation from LBO/Private Equity
B14: Purchase Price Premium | E14: ='Acquisition Model'!F8 -> 0.169 | F14: Implied EV/EBITDA | H14: ='Acquisition Model'!F24 -> 19.20801773
B15: Debt Financing | E15: ='Acquisition Model'!F44 -> 68000000
B16: Holding Period | E16: ='Acquisition Model'!F33 -> 8 | F16: Equity Issued | H16: ='Acquisition Model'!F76 -> 21539305.48
B17: Exit Multiple | E17: ='Acquisition Model'!F31 -> 9.7
B18: Entry Multiple | E18: ='Acquisition Model'!F24 -> 19.20801773
B19: Equity IRR | E19: ='Acquisition Model'!F214 -> 0.13438215
A21: Valuation from Accretion/Dillution
A22: Year | F22: =E1+1 -> 2012 | G22: =F22+1 -> 2013 | H22: =G22+1 -> 2014 | I22: =H22+1 -> 2015 | J22: =I22+1 -> 2016
B23: Earnings Per Share - Standalone | F23: ='Acquisition Model'!G39 -> 2.83 | G23: ='Acquisition Model'!H39 -> 3.0847 | H23: ='Acquisition Model'!I39 -> 3.362323 | I23: ='Acquisition Model'!J39 -> 3.66493207 | J23: ='Acquisition Model'!K39 -> 3.994775956
B24: Earnings Per Share - Consolidated | F24: ='Acquisition Model'!G228 -> 2.346252423 | G24: ='Acquisition Model'!H228 -> 2.852274737 | H24: ='Acquisition Model'!I228 -> 3.689408442 | I24: ='Acquisition Model'!J228 -> 4.065209406
B25: Accretion in Earnings Per Share | F25: =F24-F23 -> -0.4837475768 | G25: =G24-G23 -> -0.2324252629 | H25: =H24-H23 -> 0.3270854424 | I25: =I24-I23 -> 0.4002773358

Sheet Master Scenario Page
D2: Scenario number | F2: 1
N3: Value using Growth rate | O3: Value using terminal | P3: Value using driver formula
D4: Utilisation rate | E4: Refining margin | F4: SGNA Increase | G4: Capital Expenditures | H4: Synergies | I4: A/R to Revenues | J4: inventories to CGS | K4: A/P to Expenses | L4: WACC | N4: =Summary!E9 -> 102767257.5 | O4: =Summary!E10 -> 79467411.99 | P4: =Summary!E11 -> 90925725.42
C5: Custom case | D5: =D37/100 -> 0.7 | E5: 1 | F5: =F37/1000 -> 0.01 | G5: =G37*1000 -> 500000 | H5: =H37*1000 -> 1500000 | I5: 0.0271 | J5: 0.11 | K5: 0.02 | L5: 0.09 | M5: 1 | N5: 102767257.5 | O5: 79467411.99 | P5: 90925725.42
C6: Base case | D6: 0.75 | E6: 1 | F6: 0.01 | G6: 500000 | H6: 0 | I6: 0.0271 | J6: 0.11 | K6: 0.02 | L6: 0.09 | M6: 2 | N6: 96111345.82 | O6: 74571661.62 | P6: 85253806.48
C7: Low case | D7: 0.65 | E7: 2 | F7: 0.02 | G7: 750000 | H7: 0 | I7: 0.0295 | J7: 0.14 | K7: 0.014 | L7: 0.1 | M7: 3 | N7: 14201539.5 | O7: 16887943.06 | P7: 14576005.79
C8: High case | D8: 0.8 | E8: 3 | F8: 0 | G8: 400000 | H8: 0 | I8: 0.026 | J8: 0.1 | K8: 0.03 | L8: 0.08 | M8: 4 | N8: 170807580.6 | O8: 115625780.5 | P8: 147480332.1
C9: Worst case | D9: 0.6 | E9: 2 | F9: 0.03 | G9: 800000 | H9: 0 | I9: 0.03 | J9: 0.14 | K9: 0.012 | L9: 0.07 | M9: 5 | N9: 13554446.41 | O9: 13874661.52 | P9: 15307500.23
C12: =INDEX(C5:C9,$F$2) -> Custom case | D12: 0.7 | E12: 1 | F12: 0.01 | G12: =INDEX(G5:G9,$F$2) -> 500000 | H12: 1500000 | I12: =INDEX(I5:I9,$F$2) -> 0.0271 | J12: =INDEX(J5:J9,$F$2) -> 0.11 | K12: =INDEX(K5:K9,$F$2) -> 0.02 | L12: =INDEX(L5:L9,$F$2) -> 0.09
E13: =INDEX('Financial Model'!E273:E276,'Master Scenario Page'!E12) -> Base case margin
C37: Custom Case | D37: 70 | F37: 10 | G37: 500 | H37: 1500

Sheet Financial Model
H1: 2007 | I1: 2008 | J1: 2009 | K1: 2010 | L1: 2011 | M1: 2012 | N1: 2013 | O1: 2014 | P1: 2015 | Q1: 2016 | R1: 2017 | S1: 2018 | T1: 2019 | U1: 2020 | V1: 2021 | W1: 2022 | X1: 2023 | Y1: 2024 | Z1: 2025
B2: Historic switch | H2: =H1<=$H$261 -> TRUE | I2: =I1<=$H$261 -> TRUE | J2: TRUE | K2: TRUE | L2: TRUE | M2: FALSE | N2: FALSE | O2: FALSE | P2: FALSE | Q2: FALSE | R2: FALSE | S2: FALSE | T2: FALSE | U2: FALSE | V2: FALSE | W2: FALSE | X2: FALSE | Y2: FALSE | Z2: FALSE
B3: Explicit period | H3: =AND(H1>$H$262,H1<=$H$263) -> FALSE | I3: =AND(I1>$H$262,I1<=$H$263) -> FALSE | J3: FALSE | K3: FALSE | L3: FALSE | M3: TRUE | N3: TRUE | O3: TRUE | P3: TRUE | Q3: TRUE | R3: TRUE | S3: FALSE | T3: FALSE | U3: FALSE | V3: FALSE | W3: FALSE | X3: FALSE | Y3: FALSE | Z3: FALSE
B4: Terminal period | H4: =H1=$H$263 -> FALSE | I4: =I1=$H$263 -> FALSE | J4: FALSE | K4: FALSE | L4: FALSE | M4: FALSE | N4: FALSE | O4: FALSE | P4: FALSE | Q4: FALSE | R4: TRUE | S4: FALSE | T4: FALSE | U4: FALSE | V4: FALSE | W4: FALSE | X4: FALSE | Y4: FALSE | Z4: FALSE
A6: Esso (Thailand) Public Company Limited
A7: Statement of financial position
A8: As at 31 December 2011 and 2010
A9: (All amounts in Baht thousand unless otherwise stated)
A11: Historic Financials
B12: Balance Sheet
C13: Assets
C15: Current assets
D16: Cash and cash equivalents | H16: 1238649 | I16: 641866.198 | J16: 1167821 | K16: 1302692 | L16: 668221
D17: Short-term investments | H17: 170908 | I17: 66098.673
D18: Trade receivables, net | H18: 9770411 | I18: 3490571.944 | J18: 4729137 | K18: 5269498 | L18: 5576562
D19: Amounts due from related parties | H19: 10376 | I19: 41729.762 | J19: 38006 | K19: 691 | L19: 138
D20: Short-term loans to related parties | H20: 416559 | I20: 194109.945
D21: Inventories, net | H21: 20869317 | I21: 12724110.28 | J21: 18383631 | K21: 20711338 | L21: 26014648
D22: Tax claim receivable, net | H22: 3012334 | I22: 681803.272 | J22: 1044756 | K22: =687841+19517 -> 707358 | L22: 1731196
D23: Other current assets | H23: 993439 | I23: 593352.726 | J23: 1008343 | K23: 1080327 | L23: 720288
F24: Total Current Assets | H24: =SUM(H16:H23) -> 36481993 | I24: =SUM(I16:I23) -> 18433642.8 | J24: =SUM(J16:J23) -> 26371694 | K24: =SUM(K16:K23) -> 29071904 | L24: =SUM(L16:L23) -> 34711053
C26: Non-current assets
D27: Investments in subsidiaries and | H27: 0 | I27: 193223.557 | J27: 454771
E28: an associate | K28: 718530 | L28: 1006559
D29: Available-for-sale financial assets | H29: 406036 | I29: 193635.769 | J29: 291600 | K29: 385200 | L29: 410400
D30: Long-term loans to related parties | H30: - | I30: - | J30: - | K30: - | L30: -
D31: Deferred income tax assets, net | H31: 3880939 | I31: 7120200.446 | J31: 5364730 | K31: 4778068 | L31: 2831542
D32: Intangible assets, net | H32: 594953 | I32: 542154.911 | J32: 472679 | K32: 403817 | L32: 342430
D33: Property, plant and equipment, net | H33: 27940061 | I33: 27129188.02 | J33: 27961963 | K33: 30576499 | L33: 33411828
D34: Prepaid rental and deferred charges | H34: 1446385 | I34: 1334543.363 | J34: 981355 | K34: 759496 | L34: 1090384
D35: Other non-current assets | H35: 63968 | I35: 123621.151 | J35: 116011 | K35: =111062-19517-27418 -> 64127 | L35: 39516
E36: Total Non-Current Assets | H36: =SUM(H27:H35) -> 34332342 | I36: =SUM(I27:I35) -> 36636567.22 | J36: =SUM(J27:J35) -> 35643109 | K36: =SUM(K27:K35) -> 37685737 | L36: =SUM(L27:L35) -> 39132659
D38: Total assets | H38: =+H24+H36 -> 70814335 | I38: =+I24+I36 -> 55070210.02 | J38: =+J24+J36 -> 62014803 | K38: =ROUND(+K24+K36,0) -> 66757641 | L38: =L24+L36 -> 73843712
D40: Liabilities and shareholders’ equity
D42: Current liabilities
D43: Borrowings | H43: 23710000 | I43: 27971499 | J43: 22363173 | K43: 11978757 | L43: 25206966
D44: Trade and other payables | H44: 3409895 | I44: 2338196 | J44: 2844281 | K44: =4231697-310 -> 4231387 | L44: 3910606
D45: Short-term loans from related parties | H45: 0 | I45: 0 | J45: 240993 | K45: 13779 | L45: 176304
D46: Amounts due to related parties | H46: 7288376 | I46: 3372949 | J46: 5621653 | K46: 8295803 | L46: 5201139
D47: Short-term provisions for employee | J47: 10943
E48: benefits | J48: 300015 | K48: =34926+339493 -> 374419 | L48: =46506+384831 -> 431337
F49: Total Current Liabilities | H49: =SUM(H43:H46) -> 34408271 | I49: =SUM(I43:I46) -> 33682644 | J49: =SUM(J43:J48) -> 31381058 | K49: =SUM(K43:K48) -> 24894145 | L49: =SUM(L43:L48) -> 34926352
D51: Non-current liabilities
D52: Net liabilities in an associate | H52: 24837 | I52: 0
D53: Long-term loans from related parties | H53: 0 | I53: 0 | J53: 0 | K53: 0 | L53: 0
D54: Borrowings | H54: 11000000 | I54: 0 | J54: 5500000 | K54: 15750000 | L54: 13084144
D55: Long-term provisions for employee
E56: benefits | H56: 680968 | I56: 736126 | J56: 815459 | K56: =251701+920794 -> 1172495 | L56: =269778+1021721 -> 1291499
J57: 203685
D58: Other non-current liabilities | H58: =305545 -> 305545 | I58: 231600 | J58: 39673 | K58: =39908-27418 -> 12490 | L58: 2723
F59: Total Non-Current Liabilites | H59: =SUM(H52:H58) -> 12011350 | I59: =SUM(I52:I58) -> 967726 | J59: =SUM(J53:J58) -> 6558817 | K59: =SUM(K53:K58) -> 16934985 | L59: =SUM(L53:L58) -> 14378366
D61: Total liabilities | H61: =H49+H59 -> 46419621 | I61: =I49+I59 -> 34650370 | J61: =J49+J59 -> 37939875 | K61: =K49+K59 -> 41829130 | L61: =L49+L59 -> 49304718
D63: Shareholders’ equity
D64: Share capital
E65: Authorised share capital
D66: 3,467,916,666 ordinary shares with
D67: par value of Baht 4.9338 each | H67: =17110007246.71/1000 -> 17110007.25 | I67: =17110007246.71/1000 -> 17110007.25 | J67: =17110007246.71/1000 -> 17110007.25 | K67: 17110007 | L67: 17110007
E68: Issued and paid-up share capital
D69: 3,460,858,000 ordinary shares with
D70: paid-up value of Baht 4.9338 each | H70: 12877218 | I70: 17075181.2 | J70: 17075181 | K70: 17075181 | L70: 17075181
D71: Share premium | H71: - | I71: 4031711.255 | J71: 4031711 | K71: 4031711 | L71: 4031711
D72: Retained earnings
F73: Legal reserve | H73: 343997 | I73: 343996.927 | J73: 549010 | K73: 618368 | L73: 653243
E74: Unappropriated | H74: 10909026 | I74: -1146842.369 | J74: 2232673 | K74: 2951378 | L74: 2471907
D75: Other components of equity | H75: 257040 | I75: 108360 | J75: 178920 | K75: 244440 | L75: 299520
D76: Equity attributable to owners of the parent | H76: =SUM(H69:H75) -> 24387281 | I76: =SUM(I69:I75) -> 20412407.01 | J76: =SUM(J69:J75) -> 24067495 | K76: =SUM(K69:K75) -> 24921078 | L76: =SUM(L69:L75) -> 24531562
D78: Non-controlling interests | H78: 7433 | I78: 7433.402 | J78: 7433 | K78: 7433 | L78: 7432
D80: Total shareholders’ equity | H80: =SUM(H76:H78) -> 24394714 | I80: =SUM(I76:I78) -> 20419840.41 | J80: =SUM(J76:J78) -> 24074928 | K80: =SUM(K76:K78) -> 24928511 | L80: =SUM(L76:L78) -> 24538994
D82: Total liabilities and shareholders’ equity | H82: =H61+H80 -> 70814335 | I82: =(I61+I80) -> 55070210.41 | J82: =J61+J80 -> 62014803 | K82: =ROUND(K61+K80,0) -> 66757641 | L82: =L61+L80 -> 73843712
H83: =H82-H38 -> 0 | I83: =I82-I38 -> 0.3950000033 | J83: =J38-J82 -> 0 | K83: 0 | L83: 0
D84: Test | H84: =ROUND(H83,0)=0 -> TRUE | I84: =ROUND(I83,0)=0 -> TRUE | J84: =ROUND(J83,0)=0 -> TRUE | K84: TRUE | L84: TRUE
E85: Aggregate test | H85: =AND(H84:L84) -> TRUE
B87: Profit and Loss
D88: Sales | H88: 199903772 | I88: 222233538 | J88: 162909983 | K88: 179304969 | L88: 205710376
D89: Cost of sales | H89: -184855547 | I89: -226485371 | J89: =-151775533-60776 -> -151836309 | K89: -172434351 | L89: -197773416
D90: Gross profit | H90: =SUM(H88:H89) -> 15048225 | I90: =SUM(I88:I89) -> -4251833 | J90: =SUM(J88:J89) -> 11073674 | K90: =SUM(K88:K89) -> 6870618 | L90: =SUM(L88:L89) -> 7936960
D92: Selling expenses | H92: -4425307 | I92: =-4338580+35652 -> -4302928 | J92: =-4291901+23373+60776 -> -4207752 | K92: =-4329794+16471 -> -4313323 | L92: -4301322
D93: Administrative expenses | I93: =-442845+44049 -> -398796 | J93: =-432262+48227 -> -384035 | K93: =-392861+43308 -> -349553 | L93: -375269
D94: Management benefit expenses | I94: =-35652-44049 -> -79701 | J94: =-23373-48227 -> -71600 | K94: =-16471-43308 -> -59779
D96: Operating Income | H96: =SUM(H90:H94) -> 10622918 | I96: =SUM(I90:I94) -> -9033258 | J96: =SUM(J90:J94) -> 6410287 | K96: =SUM(K90:K94) -> 2147963 | L96: =SUM(L90:L93) -> 3260369
D97: Other income | H97: 110626 | I97: 87585 | J97: 59007 | K97: 67761 | L97: 70138
D98: Profit before Financing Costs | H98: =SUM(H96:H97) -> 10733544 | I98: =SUM(I96:I97) -> -8945673 | J98: =SUM(J96:J97) -> 6469294 | K98: =SUM(K96:K97) -> 2215724 | L98: =SUM(L96:L97) -> 3330507
D99: Finance costs, net | H99: -3301503 | I99: -1188868 | J99: -536477 | K99: =13042-379242 -> -366200 | L99: -752787
D101: Share of profit from an associate | H101: 183880 | I101: 218061 | J101: 261547 | K101: 263759 | L101: 288029
D102: Other non-operating income | H102: 430581 | I102: 0 | J102: 0 | K102: =107147+443 -> 107590 | L102: 72296
D103: Other income
D105: Profit before income tax | H105: =SUM(H98:H102) -> 8046502 | I105: =SUM(I98:I102) -> -9916480 | J105: =SUM(J98:J102) -> 6194364 | K105: =SUM(K98:K102) -> 2220873 | L105: =SUM(L98:L103) -> 2938045
D106: Income tax expense | H106: -992464 | I106: 3052728 | J106: -1743800 | K106: -566848 | L106: -1997439
D108: Profit for the year | H108: =H105+H106 -> 7054038 | I108: =I105+I106 -> -6863752 | J108: =J105+J106 -> 4450564 | K108: =K105+K106 -> 1654025 | L108: =L105+L106 -> 940606
D109: Other comprehensive income, | K109: 65520 | L109: 55080
D110: Total comprehensive income | H110: =H108+H109 -> 7054038 | I110: =I108+I109 -> -6863752 | J110: =J108+J109 -> 4450564 | K110: =K108+K109 -> 1719545 | L110: =L108+L109 -> 995686
D112: Profit attributable to:
D113: Owners of the parent | H113: 7053133 | I113: -6864581 | J113: 4449743 | K113: =K115-K114 -> 1718798 | L113: =L115-L114 -> 994827
D114: Non-controlling interests | H114: 905 | I114: 829 | J114: 821 | K114: 747 | L114: 859
D115: Total Earnings | H115: =H113+H114 -> 7054038 | I115: =I113+I114 -> -6863752 | J115: =J113+J114 -> 4450564 | K115: =K108+K109 -> 1719545 | L115: =L108+L109 -> 995686
D117: Basic/diluted | H117: 6.57 | I117: -2.16 | J117: 1.29 | K117: 0.48 | L117: 0.27
D118: Implied Shares | H118: =H115/H117 -> 1073673.973 | I118: =I115/I117 -> 3177662.963 | J118: =J115/J117 -> 3450049.612 | K118: =K115/K117 -> 3582385.417 | L118: =L115/L117 -> 3687725.926
D120: Operating Income | H120: =H96 -> 10622918 | I120: =I96 -> -9033258 | J120: =J96 -> 6410287 | K120: =K96 -> 2147963 | L120: =L96 -> 3260369
D121: EBITDA | H121: 12603000 | I121: =Backup!C12*1000 -> -7058000 | J121: =Backup!D12*1000 -> 8417000 | K121: =Backup!E12*1000 -> 4170000 | L121: =Backup!F12*1000 -> 4557000
D122: Depreciation | H122: =H121-H120 -> 1980082 | I122: =I121-I120 -> 1975258 | J122: =J121-J120 -> 2006713 | K122: =K121-K120 -> 2022037 | L122: =L121-L120 -> 1296631
D123: Cash Expenses Cost of Goods Sold | H123: =-H89-H122 -> 182875465 | I123: =-I89-I122 -> 224510113 | J123: 149829596 | K123: 170412314 | L123: 196476785
D124: Cash Gross Profits | H124: =H90+H122 -> 17028307 | I124: =I90+I122 -> -2276575 | J124: 13080387 | K124: 8892655 | L124: 9233591
D125: Total Cash Expenses | H125: =H123-H92-H93-H94 -> 187300772 | I125: =I123-I92-I93-I94 -> 229291538 | J125: =J123-J92-J93-J94 -> 154492983 | K125: =K123-K92-K93-K94 -> 175134969 | L125: =L123-L92-L93-L94 -> 201153376
D127: Capacity (BBLs per Day 000's) | H127: 177000 | I127: 177000 | J127: 177000 | K127: 177000 | L127: 177000
D129: Crude Intake (BBLs per Day 000's) | H129: 144300 | I129: 138100 | J129: 134500 | K129: 121300 | L129: 107700
D131: Exchange Rate Baht US | H131: 36.4 | I131: 33.4 | J131: 34.3 | K131: 31.7 | L131: 30.5
D132: Exchange Rate US/Euro | H132: 1.3709 | I132: 1.47045 | J132: 1.393258333 | K132: 1.3276 | L132: 1.392041667
D133: Exchange Rate Baht Euro | H133: =H131*H132 -> 49.90076 | I133: =I131*I132 -> 49.11303 | J133: =J131*J132 -> 47.78876083 | K133: =K131*K132 -> 42.08492 | L133: =L131*L132 -> 42.45727083
D135: Margin Before Depreciation | H135: =H90+H122 -> 17028307 | I135: =I90+I122 -> -2276575 | J135: =J90+J122 -> 13080387 | K135: =K90+K122 -> 8892655 | L135: =L90+L122 -> 9233591
D136: Margin - Baht | H136: =H135/H129 -> 118.0062855 | I136: =I135/I129 -> -16.48497466 | J136: =J135/J129 -> 97.25194796 | K136: =K135/K129 -> 73.31125309 | L136: =L135/L129 -> 85.73436397
D137: Margin - USD | H137: =H136/H131 -> 3.241930921 | I137: =I136/I131 -> -0.4935621155 | J137: =J136/J131 -> 2.83533376 | K137: =K136/K131 -> 2.312657826 | L137: =L136/L131 -> 2.810962753
B139: Cash flows from operating activities
B141: Cash generated from operations | H141: 6554437 | I141: 5359160 | J141: 4520705 | K141: -5157808 | L141: 6317822
C142: Interest paid | H142: -18883967 | I142: -1246309 | J142: -578950 | K142: -980864 | L142: -476668
C143: Income tax paid | H143: -25074 | I143: -40233 | J143: -2459 | K143: -8641 | L143: -21507
C145: Net cash generated from/(used in) operating activities | H145: =SUM(H141:H143) -> -12354604 | I145: =SUM(I141:I143) -> 4072618 | J145: =SUM(J141:J143) -> 3939296 | K145: =SUM(K141:K143) -> -6147313 | L145: =SUM(L141:L144) -> 5819647
B147: Cash flows from investing activities
C149: Net proceeds from short-term loans to related parties | H149: 383430 | I149: 222449 | J149: 194110
C150: Net payments of long-term loans to subsidiaries | H150: - | I150: -
C151: Purchase of intangible assets | H151: -69319 | I151: - | J151: - | K151: - | L151: -
C152: Purchase of property, plant and equipment | H152: -698776 | I152: -1163925 | J152: -2914665 | K152: -3989018 | L152: -4554139
C153: Payment for investment in subsidiaries | H153: -15823 | I153: - | J153: 13680
C154: Dividend received from subsidiaries | H154: - | I154: - | K154: 9346 | L154: 13042
C155: Interest received | H155: 150537 | I155: 54952 | J155: 9461 | K155: 21960 | L155: 17280
C156: Proceeds from disposals of property, plant and equipment | H156: 41875 | I156: 37596 | J156: 17442 | K156: 130879 | L156: 66633
C157: Proceeds from disposals of intangible assets | H157: 1744 | I157: - | J157: - | K157: - | L157: -
C158: Net cash acquired from business transfer | H158: 158261 | I158: - | J158: - | K158: - | L158: -
C160: Net cash used in investing activities | H160: =SUM(H149:H159) -> -48071 | I160: =SUM(I149:I158) -> -848928 | J160: =SUM(J149:J156) -> -2679972 | K160: =SUM(K150:K156) -> -3826833 | L160: =SUM(L150:L156) -> -4457184
B162: Cash flows from financing activities
C164: Net proceeds from issuance of ordinary shares | H164: 17318549 | I164: 8110144 | J164: - | K164: 13255679 | L164: -10364904
C165: Net (repayments of)/proceeds from borrowings | H165: 26550000 | I165: -6745000 | J165: 2600009 | K165: -2750000 | L165: -2750000
K166: 84144 | L166: 13000000
C167: Net proceeds from/(repayments of) short-term loans
H168: 173348 | I168: - | J168: -2750000 | K168: 162525 | L168: -227214
C169: Repayments of long-term loans from related parties | H169: -36064768 | I169: - | J169: 240993
C170: Proceeds from borrowings | H170: - | I170: - | J170: - | K170: - | L170: 0
C171: Repayments of obligations under finance lease | H171: -460570 | I171: -
C172: Dividends paid to equity holders of the Company | H172: 0 | I172: -5191287 | J172: -865215 | K172: -1384343 | L172: -865215
C173: Dividends paid to minority interests | H173: -850 | I173: -829 | J173: -821 | K173: -860 | L173: -747
C175: Net cash (used in)/generated from financing activities | H175: =SUM(H164:H174) -> 7515709 | I175: =SUM(I164:I173) -> -3826972 | J175: =SUM(J165:J173) -> -775034 | K175: =SUM(K164:K173) -> 9367145 | L175: =SUM(L164:L173) -> -1208080
B178: Net decrease in cash and cash equivalents and bank overdrafts | H178: =H145+H160+H175 -> -4886966 | I178: =I145+I160+I175 -> -603282 | J178: =J145+J160+J175 -> 484290 | K178: =K145+K160+K175 -> -607001 | L178: =L145+L160+L175 -> 154383
B179: Cash and cash equivalents and bank overdrafts
C180: at the beginning of the year | H180: 6125614.775 | I180: =H183 -> 1238648.775 | J180: =I183 -> 635366.775 | K180: 1274040 | L180: 1119657
B182: Cash and cash equivalents and bank overdrafts
C183: at the end of the year | H183: =SUM(H178:H180) -> 1238648.775 | I183: =SUM(I178:I180) -> 635366.775 | J183: =SUM(J178:J180) -> 1119656.775 | K183: =SUM(K178:K180) -> 667039 | L183: =SUM(L178:L180) -> 1274040
A186: Historic Analysis
C188: Profitability
D189: Return on Equity
E190: Net Income | H190: =H113 -> 7053133 | I190: =I113 -> -6864581 | J190: 4449743 | K190: 1718798 | L190: 994827
E191: Average Equity Investment | H191: =AVERAGE(H76,G76) -> 24387281 | I191: =AVERAGE(I76,H76) -> 22399844.01 | J191: 22239951.01 | K191: 24494286.5 | L191: 24726320
F192: ROE | H192: =H190/H191 -> 0.2892135864 | I192: =I190/I191 -> -0.3064566431 | J192: 0.2000788131 | K192: 0.07017138466 | L192: 0.04023352444
D194: ROIC
E195: Invested Capital
F196: Equity Capital | H196: =H76 -> 24387281 | I196: =I76 -> 20412407.01 | J196: 24067495 | K196: 24921078 | L196: 24531562
F197: Debt Capital | H197: =H43+H45+H53+H54 -> 34710000 | I197: =I43+I45+I53+I54 -> 27971499 | J197: 28104166 | K197: 27742536 | L197: 38467414
F198: Minority Interests | H198: =H78 -> 7433 | I198: =I78 -> 7433.402 | J198: 7433 | K198: 7433 | L198: 7432
F199: Unfunded Pension Obligations | H199: =H47+H48+H56 -> 680968 | I199: =I47+I48+I56 -> 736126 | J199: =J47+J48+J56+J57 -> 1330102 | K199: 1546914 | L199: 1722836
F200: Less Cash | H200: =-H16-H17-H20 -> -1826116 | I200: =-I16-I17-I20 -> -902074.816 | J200: -1167821 | K200: -1302692 | L200: -668221
F201: Less Long TermInvestments | H201: =-H29 -> -406036 | I201: =-I29 -> -193635.769 | J201: -291600 | K201: -385200 | L201: -410400
F202: Less Investments in Associates | H202: =-H27 -> 0 | I202: =-I27 -> -193223.557 | J202: -454771 | K202: =-K27-K28 -> -718530 | L202: =-L27-L28 -> -1006559
G203: Total Invested Capital | H203: =SUM(H196:H202) -> 57553530 | I203: =SUM(I196:I202) -> 47838531.27 | J203: 51595004 | K203: 51811539 | L203: 62644064
D205: Invested Capital - Assets
E206: Current Assets less cash | H206: =H24-H16-H17-H20 -> 34655877 | I206: =I24-I16-I17-I20 -> 17531567.99 | J206: 25203873 | K206: 27769212 | L206: 34042832
E207: Less Current Liabilities | H207: =-(H49-H43-H47-H48-H45) -> -10698271 | I207: =-(I49-I43-I47-I48-I45) -> -5711145 | J207: -8465934 | K207: -12527190 | L207: -9111745
E208: Net Plant Assets | H208: =H33 -> 27940061 | I208: =I33 -> 27129188.02 | J208: 27961963 | K208: 30576499 | L208: 33411828
E209: Other Assets | H209: =H32+H34+H35 -> 2105306 | I209: =I32+I34+I35 -> 2000319.425 | J209: 1570045 | K209: 1227440 | L209: 1472330
E210: Less Other Liabilities | H210: =-(H52+H58) -> -330382 | I210: =-(I52+I58) -> -231600 | J210: -39673 | K210: -12490 | L210: -2723
E211: Net Deferred Taxes | H211: =H31 -> 3880939 | I211: =I31 -> 7120200.446 | J211: 5364730 | K211: 4778068 | L211: 2831542
G212: Total Invested Capital | H212: =SUM(H206:H211) -> 57553530 | I212: =SUM(I206:I211) -> 47838530.88 | J212: 51595004 | K212: 51811539 | L212: 62644064
H213: =H212=H203 -> TRUE | I213: =I212=I203 -> FALSE | J213: TRUE | K213: TRUE | L213: TRUE
H214: =H212-H203 -> 0 | I214: =I212-I203 -> -0.3950000033 | J214: =J212-J203 -> 0 | K214: =K212-K203 -> 0 | L214: =L212-L203 -> 0
D215: Effected tax rate | H215: =-H106/H105 -> 0.1233410493 | I215: =-I106/I105 -> 0.3078439124 | J215: 0.2815139698 | K215: 0.2552365669 | L215: 0.6798530996
D216: Statutory tax rate | H216: 0.3 | I216: 0.3 | J216: 0.3 | K216: 0.3 | L216: 0.3
D217: EBITx(1-TAX) = NOPLAT | H217: =H96*(1-H216) -> 7436042.6 | I217: =I96*(1-I216) -> -6323280.6 | J217: =J96*(1-J216) -> 4487200.9 | K217: =K96*(1-K216) -> 1503574.1 | L217: =L96*(1-L216) -> 2282258.3
D218: ROIC = NOPLAT/AVERAGE INVESTED CAPITAL | H218: =H217/H212 -> 0.1292021984 | I218: =I217/I212 -> -0.1321796569 | J218: 0.0869696783 | K218: 0.0290200625 | L218: 0.03643215581
D220: EBITDA MARGIN = EBITDA/SALES | H220: =H121/H88 -> 0.06304533363 | I220: =I121/I88 -> -0.03175938278 | J220: 0.05166656975 | K220: 0.02325646647 | L220: 0.02215250435
B222: VALUATION RATIOS
C223: P/E
D224: Share Price | H224: ='Stock Price'!J20*H133 -> 10.4791596 | I224: ='Stock Price'!K20*I133 -> 4.911303 | J224: ='Stock Price'!L20*J133 -> 6.212538908 | K224: ='Stock Price'!M20*K133 -> 7.9961348 | L224: ='Stock Price'!N20*L133 -> 11.03889042
D225: EPS | H225: =H117 -> 6.57 | I225: =I117 -> -2.16 | J225: 1.29 | K225: 0.48 | L225: 0.27
E226: P/E Ratio | H226: =H224/H225 -> 1.595001461 | I226: =I224/I225 -> -2.273751389 | J226: 4.815921634 | K226: 16.65861417 | L226: 40.88477932
D228: Shares | H228: =H118 -> 1073673.973 | I228: =I118 -> 3177662.963 | J228: 3450049.612 | K228: 3582385.417 | L228: 3687725.926
D229: Market Capitalisation | H229: =H228*H224 -> 11251200.92 | I229: =I228*I224 -> 15606465.64 | J229: 21433567.45 | K229: 28645236.7 | L229: 40708402.38
C231: EV/EBITDA
D233: Enterprise Value
E234: Market Capitalisation | H234: =H229 -> 11251200.92 | I234: =I229 -> 15606465.64 | J234: 21433567.45 | K234: 28645236.7 | L234: 40708402.38
E235: Add: Net Debt | H235: =SUM(H197:H202) -> 33166249 | I235: =SUM(I197:I202) -> 27426124.26 | J235: 27527509 | K235: 26890461 | L235: 38112502
H236: =SUM(H234:H235) -> 44417449.92 | I236: =SUM(I234:I235) -> 43032589.9 | J236: 48961076.45 | K236: 55535697.7 | L236: 78820904.38
D238: EBITDA | H238: =H121 -> 12603000 | I238: =I121 -> -7058000 | J238: 8417000 | K238: 4170000 | L238: 4557000
D239: EV/EBITDA | H239: =H236/H238 -> 3.524355306 | I239: =I236/I238 -> -6.096994886 | J239: =J236/J238 -> 5.816927225 | K239: =K236/K238 -> 13.31791312 | L239: =L236/L238 -> 17.29666543
D241: Price to Book Ratio
E242: Book Value per Share | H242: =H76/H228 -> 22.71386065 | I242: =I76/I228 -> 6.423716817 | J242: 6.97598519 | K242: 6.956559695 | L242: 6.652219415
E243: Market Value per Share | H243: =H224 -> 10.4791596 | I243: =I224 -> 4.911303 | J243: 6.212538908 | K243: 7.9961348 | L243: 11.03889042
F244: Price to Book Ratio | H244: =H243/H242 -> 0.4613552826 | I244: =I243/I242 -> 0.7645578316 | J244: 0.8905607938 | K244: 1.149438106 | L244: 1.659429692
B246: CREDIT RATIOS
D248: DEBT/EBITDA
E249: Total Debt | H249: =H197 -> 34710000 | I249: =I197 -> 27971499 | J249: =J197 -> 28104166 | K249: =K197 -> 27742536 | L249: =L197 -> 38467414
E250: EBITDA | H250: =H238 -> 12603000 | I250: =I238 -> -7058000 | J250: =J238 -> 8417000 | K250: =K238 -> 4170000 | L250: =L238 -> 4557000
F251: Debt to EBITDA | H251: =H249/H250 -> 2.754106165 | I251: =I249/I250 -> -3.963091386 | J251: =J249/J250 -> 3.338976595 | K251: =K249/K250 -> 6.652886331 | L251: =L249/L250 -> 8.44138995
D253: Debt to Capital Ratio
... 212 more rows

Sheet Acquisition Model
A2: Transaction assumptions
B4: Current stock price | F4: ='Stock Price'!M11 -> 0.27
B5: Exchange rate | F5: ='Financial Model'!L133 -> 42.45727083
B6: Stock price (Baht) | F6: =F5*F4 -> 11.46346313
B8: Premium | F8: =G8/1000 -> 0.169 | G8: 169
B9: Offer price | F9: =F6*(1+F8) -> 13.40078839
B11: Transaction date | F11: 2011
B12: Column number | F12: =MATCH(F11,'Financial Model'!1:1) -> 12
B13: No. of shares | F13: =INDEX('Financial Model'!118:118,'Acquisition Model'!F12) -> 3687725.926
B15: Consideration | F15: =F13*F9 -> 49418434.79
B17: Repayment of existing debt | F17: =INDEX('Financial Model'!197:197,'Acquisition Model'!F12) -> 38467414
B19: Existing net debt | F19: =INDEX('Financial Model'!235:235,'Acquisition Model'!F12) -> 38112502
B20: Enterprise value | F20: =F19+F15 -> 87530936.79
B22: Existing EBITDA | F22: =INDEX('Financial Model'!238:238,'Acquisition Model'!F12) -> 4557000
B24: Implied EV/EBITDA | F24: =F20/F22 -> 19.20801773
B26: Existing net income | F26: =INDEX('Financial Model'!190:190,'Acquisition Model'!F12) -> 994827
B27: Implied PER | F27: =F15/F26 -> 49.67540566
A29: Valuation Parameters
B31: Exit EV/EBITDA | F31: =G31/10 -> 9.7 | G31: 97
B33: Holding Period | F33: 8
B34: Exit year | F34: =F33+F11 -> 2019
B35: Tax Rate | F35: 0.2
B36: Share Price of Acquiring Company | F36: 20
B37: Existing Shares | F37: 1960000
G38: 1 | H38: 2 | I38: 3 | J38: 4 | K38: 5
B39: Projected EPS | G39: 2.83 | H39: =G39*1.09 -> 3.0847 | I39: =H39*1.09 -> 3.362323 | J39: =I39*1.09 -> 3.66493207 | K39: =J39*1.09 -> 3.994775956
B40: Projected Net Income for Acquiring Co Standalone | G40: =G39*$F$37 -> 5546800 | H40: =H39*$F$37 -> 6046012 | I40: 6590153.08 | J40: 7183266.857 | K40: 7829760.874
A43: Financing assumptions
B44: New debt | F44: =G44*1000000 -> 68000000 | G44: 68
B46: Interest rate | F46: Debt/EBITDA | G46: Credit spread
F47: 0 | G47: 0.02
F48: 2 | G48: 0.03
F49: 3.5 | G49: 0.035
F50: 5 | G50: 0.04
B51: Base interest rate | F51: 0.03
B53: Fees paid on debt | F53: 0.015
B54: Advisory fees | F54: 0.02
A57: Accounting assumptions
B58: Inventory write-up | F58: 500000
B59: Plant write up | F59: 10000000
B60: Intangible assets | F60: 5000000
B61: Accounts receivable write down | F61: 700000
B62: Other liabilities write up | F62: 200000
B63: Depreciation rate on write-up | F63: 0.05
A65: Sources and uses of funds
B66: Uses of funds
C67: Consideration | F67: =F15 -> 49418434.79
C68: Payment of exisiting debt | F68: =F19 -> 38112502
C69: Payment of advisory fees | F69: =F54*F67 -> 988368.6957
C70: Payment of debt fees | F70: =F44*F53 -> 1020000
B71: Total | F71: =SUM(F67:F70) -> 89539305.48
B73: Sources of funds
C74: Debt issued | F74: =F44 -> 68000000
C75: Subordinated debt
C76: Equity financing | F76: =F71-F74 -> 21539305.48
B77: Total | F77: =SUM(F74:F76) -> 89539305.48
B79: Share Price of Acquiring Company | F79: 30
B80: Number of Shares Issued | F80: =F76/F79 -> 717976.8494
A82: Goodwill analysis
B83: Consideration | F83: =F67 -> 49418434.79
B84: Less: Existing equity | F84: =INDEX('Financial Model'!196:196,'Acquisition Model'!F12) -> 24531562
B85: Net | F85: =F83-F84 -> 24886872.79
B86: Less:
C87: =B58 -> Inventory write-up | F87: =F58 -> 500000
C88: =B59 -> Plant write up | F88: =F59 -> 10000000
C89: Intangible assets | F89: 5000000
C90: Accounts receivable write down | F90: 700000
C91: Other liabilities write up | F91: 200000
B93: Total goodwill | F93: =F85-F87-F88-F89+F90+F91 -> 10286872.79
F96: Open Balance | G96: Write-ups | H96: Goodwill | I96: Repayment of Existing Debt | J96: Issuance of New Debt | K96: Elimination of existing Equity | L96: Write-off of Fees | M96: New Equity | N96: Total Adjustments | O96: Pro-forma
B97: Current assets
C98: Cash and cash equivalents | F98: =INDEX('Financial Model'!16:16,'Acquisition Model'!$F$12) -> 668221 | N98: =SUM(G98:M98) -> 0 | O98: =N98+F98 -> 668221
C99: Short-term investments | F99: =INDEX('Financial Model'!17:17,'Acquisition Model'!$F$12) -> 0 | N99: 0 | O99: =N99+F99 -> 0
C100: Trade receivables, net | F100: =INDEX('Financial Model'!18:18,'Acquisition Model'!$F$12) -> 5576562 | G100: =-F90 -> -700000 | N100: -700000 | O100: 4876562
C101: Amounts due from related parties | F101: =INDEX('Financial Model'!19:19,'Acquisition Model'!$F$12) -> 138 | N101: 0 | O101: 138
C102: Short-term loans to related parties | F102: =INDEX('Financial Model'!20:20,'Acquisition Model'!$F$12) -> 0 | N102: 0 | O102: 0
C103: Inventories, net | F103: =INDEX('Financial Model'!21:21,'Acquisition Model'!$F$12) -> 26014648 | G103: =F87 -> 500000 | N103: 500000 | O103: 26514648
C104: Tax claim receivable, net | F104: =INDEX('Financial Model'!22:22,'Acquisition Model'!$F$12) -> 1731196 | N104: 0 | O104: 1731196
C105: Other current assets | F105: =INDEX('Financial Model'!23:23,'Acquisition Model'!$F$12) -> 720288 | N105: 0 | O105: 720288
E106: Total Current Assets | F106: =INDEX('Financial Model'!24:24,'Acquisition Model'!$F$12) -> 34711053 | N106: 0 | O106: 34711053
N107: 0 | O107: 0
B108: Non-current assets | N108: 0 | O108: 0
C109: Investments in subsidiaries and | F109: =INDEX('Financial Model'!27:27,'Acquisition Model'!$F$12) -> 0 | N109: 0 | O109: 0
D110: an associate | F110: =INDEX('Financial Model'!28:28,'Acquisition Model'!$F$12) -> 1006559 | N110: 0 | O110: 1006559
C111: Available-for-sale financial assets | F111: =INDEX('Financial Model'!29:29,'Acquisition Model'!$F$12) -> 410400 | N111: 0 | O111: 410400
C112: Long-term loans to related parties | F112: 0 | N112: =SUM(G112:M112) -> 0 | O112: 0
C113: Deferred income tax assets, net | F113: =INDEX('Financial Model'!31:31,'Acquisition Model'!$F$12) -> 2831542 | N113: 0 | O113: 2831542
C114: Intangible assets, net | F114: =INDEX('Financial Model'!32:32,'Acquisition Model'!$F$12) -> 342430 | G114: =F59 -> 10000000 | N114: 10000000 | O114: 10342430
C115: Property, plant and equipment, net | F115: =INDEX('Financial Model'!33:33,'Acquisition Model'!$F$12) -> 33411828 | G115: =F60 -> 5000000 | N115: 5000000 | O115: 38411828
C116: Prepaid rental and deferred charges | F116: =INDEX('Financial Model'!34:34,'Acquisition Model'!$F$12) -> 1090384 | N116: 0 | O116: 1090384
C117: Other non-current assets | F117: =INDEX('Financial Model'!35:35,'Acquisition Model'!$F$12) -> 39516 | N117: 0 | O117: 39516
C118: Debt Issue Costs | J118: =F70 -> 1020000 | N118: 1020000 | O118: 1020000
C119: Goodwill | H119: =F93 -> 10286872.79 | N119: 10286872.79 | O119: 10286872.79
D120: Total Non-Current Assets | F120: =INDEX('Financial Model'!36:36,'Acquisition Model'!$F$12) -> 39132659 | N120: 0 | O120: 39132659
O121: 0
D122: Total Assets | F122: =INDEX('Financial Model'!38:38,'Acquisition Model'!$F$12) -> 73843712 | N122: =SUM(N98:N121) -> 26106872.79 | O122: 99950584.79
O123: 0
B124: Liabilities and shareholders’ equity | O124: 0
O125: 0
B126: Current liabilities | N126: =SUM(G126:M126) -> 0 | O126: 0
B127: Borrowings | F127: =INDEX('Financial Model'!43:43,'Acquisition Model'!$F$12) -> 25206966 | I127: =-F68 -> -38112502 | J127: =F74 -> 68000000 | N127: 29887498 | O127: 55094464
B128: Trade and other payables | F128: =INDEX('Financial Model'!44:44,'Acquisition Model'!$F$12) -> 3910606 | N128: 0 | O128: 3910606
B129: Short-term loans from related parties | F129: =INDEX('Financial Model'!45:45,'Acquisition Model'!$F$12) -> 176304 | N129: 0 | O129: 176304
B130: Amounts due to related parties | F130: =INDEX('Financial Model'!46:46,'Acquisition Model'!$F$12) -> 5201139 | N130: 0 | O130: 5201139
B131: Short-term provisions for employee | F131: =INDEX('Financial Model'!47:47,'Acquisition Model'!$F$12) -> 0 | N131: 0 | O131: 0
C132: benefits | F132: =INDEX('Financial Model'!48:48,'Acquisition Model'!$F$12) -> 431337 | N132: 0 | O132: 431337
D133: Total Current Liabilities | F133: =INDEX('Financial Model'!49:49,'Acquisition Model'!$F$12) -> 34926352 | N133: 0 | O133: 34926352
N134: 0 | O134: 0
B135: Non-current liabilities | N135: 0 | O135: 0
B136: Net liabilities in an associate | F136: =INDEX('Financial Model'!52:52,'Acquisition Model'!$F$12) -> 0 | N136: 0 | O136: 0
B137: Long-term loans from related parties | F137: =INDEX('Financial Model'!53:53,'Acquisition Model'!$F$12) -> 0 | N137: 0 | O137: 0
B138: Borrowings | F138: =INDEX('Financial Model'!54:54,'Acquisition Model'!$F$12) -> 13084144 | N138: 0 | O138: 13084144
B139: Long-term provisions for employee | F139: =INDEX('Financial Model'!55:55,'Acquisition Model'!$F$12) -> 0 | N139: 0 | O139: 0
C140: benefits | F140: =INDEX('Financial Model'!56:56,'Acquisition Model'!$F$12) -> 1291499 | N140: 0 | O140: 1291499
F141: =INDEX('Financial Model'!57:57,'Acquisition Model'!$F$12) -> 0 | N141: 0 | O141: 0
B142: Other non-current liabilities | F142: =INDEX('Financial Model'!58:58,'Acquisition Model'!$F$12) -> 2723 | G142: =F91 -> 200000 | N142: 200000 | O142: 202723
D143: Total Non-Current Liabilites | F143: =INDEX('Financial Model'!59:59,'Acquisition Model'!$F$12) -> 14378366 | N143: 0 | O143: 14378366
N144: 0 | O144: 0
B145: Total liabilities | F145: =INDEX('Financial Model'!61:61,'Acquisition Model'!$F$12) -> 49304718 | N145: 0 | O145: 49304718
N146: 0 | O146: 0
B147: Shareholders’ equity | N147: 0 | O147: 0
B148: Equity attributable to owners of the parent | F148: =INDEX('Financial Model'!76:76,'Acquisition Model'!$F$12) -> 24531562 | K148: =-F84 -> -24531562 | L148: =-F69 -> -988368.6957 | M148: =F76 -> 21539305.48 | N148: -3980625.215 | O148: 20550936.79
B150: Non-controlling interests | F150: =INDEX('Financial Model'!78:78,'Acquisition Model'!$F$12) -> 7432
B152: Total shareholders’ equity | F152: =INDEX('Financial Model'!80:80,'Acquisition Model'!$F$12) -> 24538994
B154: Total liabilities and shareholders’ equity | F154: =INDEX('Financial Model'!82:82,'Acquisition Model'!$F$12) -> 73843712 | N154: =SUM(N126:N153) -> 26106872.79
F156: =F154=F122 -> TRUE | N156: =N154=N122 -> TRUE
F159: =F11 -> 2011 | G159: =F159+1 -> 2012 | H159: =G159+1 -> 2013 | I159: 2014 | J159: 2015 | K159: 2016 | L159: 2017 | M159: 2018 | N159: 2019 | O159: 2020 | P159: 2021 | Q159: 2022
A160: Holding Period | G160: =G159<=$F$34 -> TRUE | H160: =H159<=$F$34 -> TRUE | I160: TRUE | J160: TRUE | K160: TRUE | L160: TRUE | M160: TRUE | N160: TRUE | O160: FALSE | P160: FALSE | Q160: FALSE
A161: Terminal Period | G161: =G159=$F$34 -> FALSE | H161: =H159=$F$34 -> FALSE | I161: FALSE | J161: FALSE | K161: FALSE | L161: FALSE | M161: FALSE | N161: TRUE | O161: FALSE | P161: FALSE | Q161: FALSE
A162: Operating Analysis
B163: column No | F163: =F12 -> 12 | G163: =F163+1 -> 13 | H163: =G163+1 -> 14 | I163: 15 | J163: 16 | K163: 17 | L163: 18 | M163: 19 | N163: 20 | O163: 21 | P163: 22 | Q163: 23
B165: EBITDA | F165: =INDEX('Financial Model'!359:359,F163) -> 4557000 | G165: =INDEX('Financial Model'!359:359,G163) -> 7497143.09 | H165: =INDEX('Financial Model'!359:359,H163) -> 8369409.521 | I165: =INDEX('Financial Model'!359:359,I163) -> 10310703.62 | J165: =INDEX('Financial Model'!359:359,J163) -> 10535100.65 | K165: =INDEX('Financial Model'!359:359,K163) -> 10764467.46 | L165: =INDEX('Financial Model'!359:359,L163) -> 10998908.25 | M165: =INDEX('Financial Model'!359:359,M163) -> 9738529.37 | N165: =INDEX('Financial Model'!359:359,N163) -> 9983439.343 | O165: =INDEX('Financial Model'!359:359,O163) -> 10233748.91 | P165: =INDEX('Financial Model'!359:359,P163) -> 10489571.07 | Q165: =INDEX('Financial Model'!359:359,Q163) -> 10751021.15
B166: CAPEX | F166: =INDEX('Financial Model'!361:361,F163) -> 4554139 | G166: =INDEX('Financial Model'!361:361,G163) -> 500000 | H166: =INDEX('Financial Model'!361:361,H163) -> 500000 | I166: =INDEX('Financial Model'!361:361,I163) -> 500000 | J166: =INDEX('Financial Model'!361:361,J163) -> 500000 | K166: =INDEX('Financial Model'!361:361,K163) -> 500000 | L166: =INDEX('Financial Model'!361:361,L163) -> 500000 | M166: =INDEX('Financial Model'!361:361,M163) -> 500000 | N166: =INDEX('Financial Model'!361:361,N163) -> 500000 | O166: =INDEX('Financial Model'!361:361,O163) -> 500000 | P166: =INDEX('Financial Model'!361:361,P163) -> 500000 | Q166: =INDEX('Financial Model'!361:361,Q163) -> 500000
B168: EV/EBITDA | F168: =$F$31 -> 9.7
B169: Terminal proceeds | F169: =$F$168*F165*F161 -> 0 | G169: =$F$168*G165*G161 -> 0 | H169: 0 | I169: 0 | J169: 0 | K169: 0 | L169: 0 | M169: 0 | N169: 96839361.63 | O169: 0 | P169: 0 | Q169: 0
A171: Working Capital Analysis
B172: Change in Working Capital | F172: =INDEX('Financial Model'!382:382,F163) -> 6594401 | G172: =INDEX('Financial Model'!382:382,G163) -> -194024.4217 | H172: =INDEX('Financial Model'!382:382,H163) -> 833709.9036 | I172: =INDEX('Financial Model'!382:382,I163) -> 875024.8906 | J172: =INDEX('Financial Model'!382:382,J163) -> 874097.4307 | K172: =INDEX('Financial Model'!382:382,K163) -> 900265.7577 | L172: =INDEX('Financial Model'!382:382,L163) -> 927217.8497 | M172: =INDEX('Financial Model'!382:382,M163) -> 954977.1923 | N172: =INDEX('Financial Model'!382:382,N163) -> 983567.9747 | O172: =INDEX('Financial Model'!382:382,O163) -> 1013015.111 | P172: =INDEX('Financial Model'!382:382,P163) -> 1043344.263 | Q172: =INDEX('Financial Model'!382:382,Q163) -> 1074581.862
A174: Depreciation Analysis
B175: Depreciation with write-up | F175: =INDEX('Financial Model'!406:406,F163) -> 1186598.844 | G175: =INDEX('Financial Model'!406:406,G163) -> 1316631 | H175: =INDEX('Financial Model'!406:406,H163) -> 1276311.935 | I175: =INDEX('Financial Model'!406:406,I163) -> 1237945.629 | J175: =INDEX('Financial Model'!406:406,J163) -> 1201456.301 | K175: =INDEX('Financial Model'!406:406,K163) -> 1166771.109 | L175: =INDEX('Financial Model'!406:406,L163) -> 1133820.04 | M175: =INDEX('Financial Model'!406:406,M163) -> 1082535.797 | N175: =INDEX('Financial Model'!406:406,N163) -> 1042853.693 | O175: =INDEX('Financial Model'!406:406,O163) -> 1004711.555 | P175: =INDEX('Financial Model'!406:406,P163) -> 968049.6193 | Q175: =INDEX('Financial Model'!406:406,Q163) -> 932810.4434
B176: New Plant Balance | F176: =$F$59 -> 10000000 | G176: =$F$59 -> 10000000 | H176: 10000000 | I176: 10000000 | J176: 10000000 | K176: 10000000 | L176: 10000000 | M176: 10000000 | N176: 10000000 | O176: 10000000 | P176: 10000000 | Q176: 10000000
B177: Depreciation on New plant | F177: =F176*$F$63 -> 500000 | G177: =G176*$F$63 -> 500000 | H177: 500000 | I177: 500000 | J177: 500000 | K177: 500000 | L177: 500000 | M177: 500000 | N177: 500000 | O177: 500000 | P177: 500000 | Q177: 500000
A179: Debt Analysis
B180: Opening Balance | G180: =F182 -> 68000000 | H180: =G182 -> 65752934.91 | I180: 63718019.16 | J180: 60065101.11 | K180: 56034472.42 | L180: 51627740.44 | M180: 46613710.19 | N180: 42385269.65 | O180: 0 | P180: 0 | Q180: 0
B181: Less Repayment | G181: =G210 -> 2247065.094 | H181: =H210 -> 2034915.745 | I181: 3652918.055 | J181: 4030628.689 | K181: 4406731.976 | L181: 5014030.255 | M181: 4228440.534 | N181: 42385269.65 | O181: 0 | P181: 0 | Q181: 0
B182: Closing Balance | F182: =F74 -> 68000000 | G182: =G180-G181 -> 65752934.91 | H182: =H180-H181 -> 63718019.16 | I182: 60065101.11 | J182: 56034472.42 | K182: 51627740.44 | L182: 46613710.19 | M182: 42385269.65 | N182: 0 | O182: 0 | P182: 0 | Q182: 0
B184: Base Interest Rate | G184: =$F$51 -> 0.03 | H184: =$F$51 -> 0.03 | I184: 0.03 | J184: 0.03 | K184: 0.03 | L184: 0.03 | M184: 0.03 | N184: 0.03 | O184: 0.03 | P184: 0.03 | Q184: 0.03
B185: Credit spread | G185: =LOOKUP(G189,$F$47:$G$50) -> 0.04 | H185: =LOOKUP(H189,$F$47:$G$50) -> 0.04 | I185: 0.04 | J185: 0.04 | K185: 0.04 | L185: 0.035 | M185: 0.035 | N185: 0.035 | O185: 0.02 | P185: 0.02 | Q185: 0.02
B186: Total Interest Rate | G186: =SUM(G184:G185) -> 0.07 | H186: =SUM(H184:H185) -> 0.07 | I186: 0.07 | J186: 0.07 | K186: 0.07 | L186: 0.065 | M186: 0.065 | N186: 0.065 | O186: 0.05 | P186: 0.05 | Q186: 0.05
B188: Interest Expense | G188: =G180*G186 -> 4760000 | H188: =H180*H186 -> 4602705.443 | I188: 4460261.341 | J188: 4204557.077 | K188: 3922413.069 | L188: 3355803.129 | M188: 3029891.162 | N188: 2755042.527 | O188: 0 | P188: 0 | Q188: 0
B189: Debt/EBITDA | G189: =G180/G165 -> 9.07012167 | H189: =H180/H165 -> 7.856340969 | I189: 6.179793497 | J189: 5.701426411 | K189: 5.205503443 | L189: 4.693896819 | M189: 4.786524578 | N189: 4.245557888 | O189: 0 | P189: 0 | Q189: 0
A191: Profit & Loss Statement
B192: EBITDA | G192: =G165*G160 -> 7497143.09 | H192: =H165*H160 -> 8369409.521 | I192: 10310703.62 | J192: 10535100.65 | K192: 10764467.46 | L192: 10998908.25 | M192: 9738529.37 | N192: 9983439.343 | O192: 0 | P192: 0 | Q192: 0
B193: Less DA | G193: =(G175+G177)*G160 -> 1816631 | H193: =(H175+H177)*H160 -> 1776311.935 | I193: 1737945.629 | J193: 1701456.301 | K193: 1666771.109 | L193: 1633820.04 | M193: 1582535.797 | N193: 1542853.693 | O193: 0 | P193: 0 | Q193: 0
B194: EBIT | G194: =G192-G193 -> 5680512.09 | H194: =H192-H193 -> 6593097.586 | I194: 8572757.987 | J194: 8833644.351 | K194: 9097696.35 | L194: 9365088.209 | M194: 8155993.573 | N194: 8440585.65 | O194: 0 | P194: 0 | Q194: 0
B195: Less Interest | G195: =G188 -> 4760000 | H195: =H188 -> 4602705.443 | I195: 4460261.341 | J195: 4204557.077 | K195: 3922413.069 | L195: 3355803.129 | M195: 3029891.162 | N195: 2755042.527 | O195: 0 | P195: 0 | Q195: 0
B196: EBT | G196: =G194-G195 -> 920512.09 | H196: =H194-H195 -> 1990392.143 | I196: 4112496.646 | J196: 4629087.274 | K196: 5175283.28 | L196: 6009285.081 | M196: 5126102.411 | N196: 5685543.122 | O196: 0 | P196: 0 | Q196: 0
B197: Less Taxes | G197: =G196*$F$35 -> 184102.418 | H197: =H196*$F$35 -> 398078.4285 | I197: 822499.3292 | J197: 925817.4548 | K197: 1035056.656 | L197: 1201857.016 | M197: 1025220.482 | N197: 1137108.624 | O197: 0 | P197: 0 | Q197: 0
B198: Income | G198: =G196-G197 -> 736409.672 | H198: =H196-H197 -> 1592313.714 | I198: 3289997.317 | J198: 3703269.819 | K198: 4140226.624 | L198: 4807428.064 | M198: 4100881.929 | N198: 4548434.498 | O198: 0 | P198: 0 | Q198: 0
A200: Cash Flow Statement
B201: EBITDA | G201: =G192 -> 7497143.09 | H201: =H192 -> 8369409.521 | I201: 10310703.62 | J201: 10535100.65 | K201: 10764467.46 | L201: 10998908.25 | M201: 9738529.37 | N201: 9983439.343 | O201: 0 | P201: 0 | Q201: 0
B202: Less Working capital changes | G202: =G172*G160 -> -194024.4217 | H202: =H172*H160 -> 833709.9036 | I202: 875024.8906 | J202: 874097.4307 | K202: 900265.7577 | L202: 927217.8497 | M202: 954977.1923 | N202: 983567.9747 | O202: 0 | P202: 0 | Q202: 0
B203: Less CAPEX | G203: =G166*G160 -> 500000 | H203: =H166*H160 -> 500000 | I203: 500000 | J203: 500000 | K203: 500000 | L203: 500000 | M203: 500000 | N203: 500000 | O203: 0 | P203: 0 | Q203: 0
B204: Less Taxes | G204: =G197 -> 184102.418 | H204: =H197 -> 398078.4285 | I204: 822499.3292 | J204: 925817.4548 | K204: 1035056.656 | L204: 1201857.016 | M204: 1025220.482 | N204: 1137108.624 | O204: 0 | P204: 0 | Q204: 0
B205: Cash Flow before financing | G205: =G201-G202-G203-G204 -> 7007065.094 | H205: =H201-H202-H203-H204 -> 6637621.189 | I205: 8113179.396 | J205: 8235185.767 | K205: 8329145.045 | L205: 8369833.384 | M205: 7258331.696 | N205: 7362762.744 | O205: 0 | P205: 0 | Q205: 0
B206: +Exit Proceeds | G206: =G169 -> 0 | H206: =H169 -> 0 | I206: 0 | J206: 0 | K206: 0 | L206: 0 | M206: 0 | N206: 96839361.63 | O206: 0 | P206: 0 | Q206: 0
B207: CF After Exit Proceeds | G207: =G205+G206 -> 7007065.094 | H207: =H205+H206 -> 6637621.189 | I207: 8113179.396 | J207: 8235185.767 | K207: 8329145.045 | L207: 8369833.384 | M207: 7258331.696 | N207: 104202124.4 | O207: 0 | P207: 0 | Q207: 0
B208: Less interest | G208: =G195 -> 4760000 | H208: =H195 -> 4602705.443 | I208: 4460261.341 | J208: 4204557.077 | K208: 3922413.069 | L208: 3355803.129 | M208: 3029891.162 | N208: 2755042.527 | O208: 0 | P208: 0 | Q208: 0
B209: Cash flow before debt repayment | G209: =G207-G208 -> 2247065.094 | H209: =H207-H208 -> 2034915.745 | I209: 3652918.055 | J209: 4030628.689 | K209: 4406731.976 | L209: 5014030.255 | M209: 4228440.534 | N209: 101447081.8 | O209: 0 | P209: 0 | Q209: 0
B210: Repayment | G210: =MIN(G209,G180) -> 2247065.094 | H210: =MIN(H209,H180) -> 2034915.745 | I210: 3652918.055 | J210: 4030628.689 | K210: 4406731.976 | L210: 5014030.255 | M210: 4228440.534 | N210: 42385269.65 | O210: 0 | P210: 0 | Q210: 0
B211: Dividend | G211: =G209-G210 -> 0 | H211: =H209-H210 -> 0 | I211: 0 | J211: 0 | K211: 0 | L211: 0 | M211: 0 | N211: 59061812.19 | O211: 0 | P211: 0 | Q211: 0
B213: Equity Cash Flow | F213: =-F76 -> -21539305.48 | G213: =G211 -> 0 | H213: =H211 -> 0 | I213: 0 | J213: 0 | K213: 0 | L213: 0 | M213: 0 | N213: 59061812.19 | O213: 0 | P213: 0 | Q213: 0
B214: Equity IRR | F214: =IRR(213:213) -> 0.13438215
A216: Balance Sheet
B219: Net Income of Target Company with Synergies | G219: =G198 -> 736409.672 | H219: =H198 -> 1592313.714 | I219: 3289997.317 | J219: 3703269.819 | K219: 4140226.624 | L219: 4807428.064 | M219: 4100881.929 | N219: 4548434.498 | O219: 0 | P219: 0 | Q219: 0
B220: Net Income of Acquiring Company | G220: =G40 -> 5546800 | H220: =H40 -> 6046012 | I220: 6590153.08 | J220: 7183266.857 | K220: 7829760.874 | L220: 0 | M220: 0 | N220: 0 | O220: 0 | P220: 0 | Q220: 0
C221: Total Net Income | G221: =SUM(G219:G220) -> 6283209.672 | H221: =SUM(H219:H220) -> 7638325.714 | I221: 9880150.397 | J221: 10886536.68 | K221: 11969987.5 | L221: 4807428.064 | M221: 4100881.929 | N221: 4548434.498 | O221: 0 | P221: 0 | Q221: 0
B223: Exiting Shares of Acquiring Company | F223: =$F$37 -> 1960000 | G223: =F223 -> 1960000 | H223: =G223 -> 1960000 | I223: 1960000 | J223: 1960000 | K223: 1960000 | L223: 1960000 | M223: 1960000 | N223: 1960000 | O223: 1960000 | P223: 1960000 | Q223: 1960000
B224: New Shares | F224: =$F$80 -> 717976.8494 | G224: =F224 -> 717976.8494 | H224: =G224 -> 717976.8494 | I224: 717976.8494 | J224: 717976.8494 | K224: 717976.8494 | L224: 717976.8494 | M224: 717976.8494 | N224: 717976.8494 | O224: 717976.8494 | P224: 717976.8494 | Q224: 717976.8494
C225: Total Shares | F225: =SUM(F223:F224) -> 2677976.849 | G225: =SUM(G223:G224) -> 2677976.849 | H225: =SUM(H223:H224) -> 2677976.849 | I225: 2677976.849 | J225: 2677976.849 | K225: 2677976.849 | L225: 2677976.849 | M225: 2677976.849 | N225: 2677976.849 | O225: 2677976.849 | P225: 2677976.849 | Q225: 2677976.849
B227: EPS without Acquisition | G227: =G39 -> 2.83 | H227: =H39 -> 3.0847 | I227: 3.362323 | J227: 3.66493207 | K227: 3.994775956 | L227: 0 | M227: 0 | N227: 0 | O227: 0 | P227: 0 | Q227: 0
B228: EPS with the Acquistion | G228: =G221/G225 -> 2.346252423 | H228: =H221/H225 -> 2.852274737 | I228: 3.689408442 | J228: 4.065209406 | K228: 4.469787519 | L228: 1.795171629 | M228: 1.53133584 | N228: 1.69845923 | O228: 0 | P228: 0 | Q228: 0

Sheet Verification
C5: Historic Balance Sheet | D5: ='Financial Model'!H85 -> TRUE | E5: =IF(D5,"",C5) -> 
C6: Proforma BS | D6: FALSE | E6: =IF(D6,"",C6) -> Proforma BS
C7: Proforma Adjustment | D7: ='Acquisition Model'!N156 -> TRUE
C8: Future BS | D8: FALSE | E8: Future BS
C11: Agregate Test | D11: =AND(D5:D8) -> FALSE | E11: =add_text(E5:E8) -> Proforma BS Future BS

Sheet Long-term Analysis
A1: Equity Cash Flow
D2: 2012 | E2: =D2+1 -> 2013 | F2: =E2+1 -> 2014 | G2: 2015 | H2: 2016
C3: Share price | D3: -88.52
C4: EPS | H4: 7.5
C5: PE Ratio | H5: 16
C6: Terminal Value | H6: =H5*H4 -> 120
P7: COE | Q7: ='Long-term Analysis'!$D$23
C8: Growth rate | H8: =H6/-D3-1 -> 0.3556258473 | P8: Difference | Q8: ='Long-term Analysis'!$F$29
C9: CAGR | H9: =(H6/-D3)^(1/4)-1 -> 0.07903357968 | P9: FCF | Q9: =OFFSET('Historic Financials'!$H$393;'Historic Financials'!$H$895;'Historic Financials'!$H$896;'Historic Financials'!$H$897;'Historic Financials'!$H$898)
C10: Dividend | E10: 3.05 | F10: =E10*$J$10 -> 3.267460269 | G10: =F10*$J$10 -> 3.500425118 | H10: 3.75 | J10: =(H10/E10)^(1/3) -> 1.071298449 | P10: Growth_Rate_Long_Term | Q10: ='Long-term Analysis'!$D$25
P11: Growth_Rate_Short_Term | Q11: ='Long-term Analysis'!$D$24
C12: Total Equity Cash Flow | D12: =D3 -> -88.52 | E12: =E10 -> 3.05 | F12: =F10 -> 3.267460269 | G12: 3.500425118 | H12: =H6+H10 -> 123.75 | I12: IRR | J12: =IRR(D12:H12) -> 0.1131298765 | P12: JAN | Q12: =OFFSET('Offset Formula '!$D$5;'Offset Formula '!$E$14;'Offset Formula '!$E$15;'Offset Formula '!$E$16;'Offset Formula '!$E$17)
P13: ROE_Long_Term | Q13: ='Long-term Analysis'!$D$22
D14: =D12 -> -88.52 | E14: 0 | F14: 0 | G14: 0 | H14: =H6 -> 120 | I14: IRR | J14: =IRR(D14:H14) -> 0.07903357968 | P14: ROE_Short_Term | Q14: ='Long-term Analysis'!$D$21
P15: year1 | Q15: =OFFSET('Historic Financials'!$H$1;'Historic Financials'!$H$895;'Historic Financials'!$H$896;'Historic Financials'!$H$897;'Historic Financials'!$H$898)
A16: P/E Analysis
C17: ROE Short Term | D17: =E17/100 -> 0.12 | E17: 12 | F17: PE Ratio | H17: =H20/E36 -> 8.961412363 | J17: G=ROE*(1-Dividend pay out ratio)
C18: ROE Long Term | D18: 0.12 | F18: PE Ratio with formula | H18: =(1-Growth_Rate_Short_Term/ROE_Short_Term)/(COE-Growth_Rate_Short_Term) -> 8.961412364
C19: COE | D19: 0.1136921648 | F19: Market to Book Ratio | H19: =H20/D23 -> 1.075369484 | J19: G/ROE = 1-Dividend pay out ratio
C20: Growth Rate Short Term | D20: =E20/100 -> 0.03 | E20: 3 | F20: Value of share | H20: =NPV(D19,E37:KR37) -> 7.527586385 | J20: Dividend pay out ratio = 1-G/ROE
C21: Growth Rate Long Term | D21: 0.03 | F21: Value Share with k-g | H21: =E37/(COE-Growth_Rate_Short_Term) -> 7.527586386
C22: Short Term Years | D22: 1 | F22: Value per share | H22: =E36*(1-Growth_Rate_Short_Term/ROE_Short_Term)/(COE-Growth_Rate_Short_Term) -> 7.527586386 | J22: Value = Dividend/(k-g) | M22: k=Cost of equity
C23: BV per share | D23: 7 | J23: Value = Earning*Payout ratio/(k-g)
J24: Value = Earning*(1-g/ROE)/(k-g)
C25: Actual PE Ratio | D25: 14 | E25: Difference | F25: =D25-H17 -> 5.038587637 | J25: PE ratio = (1-g/ROE)/(k-g)
C28: Period | D28: 0 | E28: 1 | F28: 2 | G28: 3 | H28: 4 | I28: 5 | J28: 6 | K28: 7 | L28: 8 | M28: 9 | N28: 10 | O28: 11 | P28: 12 | Q28: 13 | R28: 14 | S28: 15 | T28: 16 | U28: 17 | V28: 18 | W28: 19 | X28: 20 | Y28: 21 | Z28: 22 | AA28: 23 | AB28: 24 | AC28: 25 | AD28: 26 | AE28: 27 | AF28: 28 | AG28: 29 | AH28: 30 | AI28: 31 | AJ28: 32 | AK28: 33 | AL28: 34 | AM28: 35 | AN28: 36 | AO28: 37 | AP28: 38 | AQ28: 39 | AR28: 40 | AS28: 41 | AT28: 42 | AU28: 43 | AV28: 44 | AW28: 45 | AX28: 46 | AY28: 47 | AZ28: 48 | BA28: 49 | BB28: 50 | BC28: 51 | BD28: 52 | BE28: 53 | BF28: 54 | BG28: 55 | BH28: 56 | BI28: 57 | BJ28: 58 | BK28: 59 | BL28: 60 | BM28: 61 | BN28: 62 | BO28: 63 | BP28: 64 | BQ28: 65 | BR28: 66 | BS28: 67 | BT28: 68 | BU28: 69 | BV28: 70 | BW28: 71 | BX28: 72 | BY28: 73 | BZ28: 74 | CA28: 75 | CB28: 76 | CC28: 77 | CD28: 78 | CE28: 79 | CF28: 80 | CG28: 81 | CH28: 82 | CI28: 83 | CJ28: 84 | CK28: 85 | CL28: 86 | CM28: 87 | CN28: 88 | CO28: 89 | CP28: 90 | CQ28: 91 | CR28: 92 | CS28: 93 | CT28: 94 | CU28: 95 | CV28: 96 | CW28: 97 | CX28: 98 | CY28: 99 | CZ28: 100 | DA28: 101 | DB28: 102 | DC28: 103 | DD28: 104 | DE28: 105 | DF28: 106 | DG28: 107 | DH28: 108 | DI28: 109 | DJ28: 110 | DK28: 111 | DL28: 112 | DM28: 113 | DN28: 114 | DO28: 115 | DP28: 116 | DQ28: 117 | DR28: 118 | DS28: 119 | DT28: 120 | DU28: 121 | DV28: 122 | DW28: 123 | DX28: 124 | DY28: 125 | DZ28: 126 | EA28: 127 | EB28: 128 | EC28: 129 | ED28: 130 | EE28: 131 | EF28: 132 | EG28: 133 | EH28: 134 | EI28: 135 | EJ28: 136 | EK28: 137 | EL28: 138 | EM28: 139 | EN28: 140 | EO28: 141 | EP28: 142 | EQ28: 143 | ER28: 144 | ES28: 145 | ET28: 146 | EU28: 147 | EV28: 148 | EW28: 149 | EX28: 150 | EY28: 151 | EZ28: 152 | FA28: 153 | FB28: 154 | FC28: 155 | FD28: 156 | FE28: 157 | FF28: 158 | FG28: 159 | FH28: 160 | FI28: 161 | FJ28: 162 | FK28: 163 | FL28: 164 | FM28: 165 | FN28: 166 | FO28: 167 | FP28: 168 | FQ28: 169 | FR28: 170 | FS28: 171 | FT28: 172 | FU28: 173 | FV28: 174 | FW28: 175 | FX28: 176 | FY28: 177 | FZ28: 178 | GA28: 179 | GB28: 180 | GC28: 181 | GD28: 182 | GE28: 183 | GF28: 184 | GG28: 185 | GH28: 186 | GI28: 187 | GJ28: 188 | GK28: 189 | GL28: 190 | GM28: 191 | GN28: 192 | GO28: 193 | GP28: 194 | GQ28: 195 | GR28: 196 | GS28: 197 | GT28: 198 | GU28: 199 | GV28: 200 | GW28: 201 | GX28: 202 | GY28: 203 | GZ28: 204 | HA28: 205 | HB28: 206 | HC28: 207 | HD28: 208 | HE28: 209 | HF28: 210 | HG28: 211 | HH28: 212 | HI28: 213 | HJ28: 214 | HK28: 215 | HL28: 216 | HM28: 217 | HN28: 218 | HO28: 219 | HP28: 220 | HQ28: 221 | HR28: 222 | HS28: 223 | HT28: 224 | HU28: 225 | HV28: 226 | HW28: 227 | HX28: 228 | HY28: 229 | HZ28: 230 | IA28: 231 | IB28: 232 | IC28: 233 | ID28: 234 | IE28: 235 | IF28: 236 | IG28: 237 | IH28: 238 | II28: 239 | IJ28: 240 | IK28: 241 | IL28: 242 | IM28: 243 | IN28: 244 | IO28: 245 | IP28: 246 | IQ28: 247 | IR28: 248 | IS28: 249 | IT28: 250 | IU28: 251 | IV28: 252 | IW28: 253 | IX28: 254 | IY28: 255 | IZ28: 256 | JA28: 257 | JB28: 258 | JC28: 259 | JD28: 260 | JE28: 261 | JF28: 262 | JG28: 263 | JH28: 264 | JI28: 265 | JJ28: 266 | JK28: 267 | JL28: 268 | JM28: 269 | JN28: 270 | JO28: 271 | JP28: 272 | JQ28: 273 | JR28: 274 | JS28: 275 | JT28: 276 | JU28: 277 | JV28: 278 | JW28: 279 | JX28: 280 | JY28: 281 | JZ28: 282 | KA28: 283 | KB28: 284 | KC28: 285 | KD28: 286 | KE28: 287 | KF28: 288 | KG28: 289 | KH28: 290 | KI28: 291 | KJ28: 292 | KK28: 293 | KL28: 294 | KM28: 295 | KN28: 296 | KO28: 297 | KP28: 298 | KQ28: 299 | KR28: 300
C29: Short Term Period | E29: =E28<=$D$22 -> TRUE | F29: =F28<=$D$22 -> FALSE | G29: FALSE | H29: FALSE | I29: FALSE | J29: FALSE | K29: FALSE | L29: FALSE | M29: FALSE | N29: FALSE | O29: FALSE | P29: FALSE | Q29: FALSE | R29: FALSE | S29: FALSE | T29: FALSE | U29: FALSE | V29: FALSE | W29: FALSE | X29: FALSE | Y29: FALSE | Z29: FALSE | AA29: FALSE | AB29: FALSE | AC29: FALSE | AD29: FALSE | AE29: FALSE | AF29: FALSE | AG29: FALSE | AH29: FALSE | AI29: FALSE | AJ29: FALSE | AK29: FALSE | AL29: FALSE | AM29: FALSE | AN29: FALSE | AO29: FALSE | AP29: FALSE | AQ29: FALSE | AR29: FALSE | AS29: FALSE | AT29: FALSE | AU29: FALSE | AV29: FALSE | AW29: FALSE | AX29: FALSE | AY29: FALSE | AZ29: FALSE | BA29: FALSE | BB29: FALSE | BC29: FALSE | BD29: FALSE | BE29: FALSE | BF29: FALSE | BG29: FALSE | BH29: FALSE | BI29: FALSE | BJ29: FALSE | BK29: FALSE | BL29: FALSE | BM29: FALSE | BN29: FALSE | BO29: FALSE | BP29: FALSE | BQ29: FALSE | BR29: =BR28<=$D$22 -> FALSE | BS29: FALSE | BT29: FALSE | BU29: FALSE | BV29: FALSE | BW29: FALSE | BX29: FALSE | BY29: FALSE | BZ29: FALSE | CA29: FALSE | CB29: FALSE | CC29: FALSE | CD29: FALSE | CE29: FALSE | CF29: FALSE | CG29: FALSE | CH29: FALSE | CI29: FALSE | CJ29: FALSE | CK29: FALSE | CL29: FALSE | CM29: FALSE | CN29: FALSE | CO29: FALSE | CP29: FALSE | CQ29: FALSE | CR29: FALSE | CS29: FALSE | CT29: FALSE | CU29: FALSE | CV29: FALSE | CW29: FALSE | CX29: FALSE | CY29: FALSE | CZ29: FALSE | DA29: FALSE | DB29: FALSE | DC29: FALSE | DD29: FALSE | DE29: FALSE | DF29: FALSE | DG29: FALSE | DH29: FALSE | DI29: FALSE | DJ29: FALSE | DK29: FALSE | DL29: FALSE | DM29: FALSE | DN29: FALSE | DO29: FALSE | DP29: FALSE | DQ29: FALSE | DR29: FALSE | DS29: FALSE | DT29: FALSE | DU29: FALSE | DV29: FALSE | DW29: FALSE | DX29: FALSE | DY29: FALSE | DZ29: FALSE | EA29: FALSE | EB29: FALSE | EC29: FALSE | ED29: =ED28<=$D$22 -> FALSE | EE29: FALSE | EF29: FALSE | EG29: FALSE | EH29: FALSE | EI29: FALSE | EJ29: FALSE | EK29: FALSE | EL29: FALSE | EM29: FALSE | EN29: FALSE | EO29: FALSE | EP29: FALSE | EQ29: FALSE | ER29: FALSE | ES29: FALSE | ET29: FALSE | EU29: FALSE | EV29: FALSE | EW29: FALSE | EX29: FALSE | EY29: FALSE | EZ29: FALSE | FA29: FALSE | FB29: FALSE | FC29: FALSE | FD29: FALSE | FE29: FALSE | FF29: FALSE | FG29: FALSE | FH29: FALSE | FI29: FALSE | FJ29: FALSE | FK29: FALSE | FL29: FALSE | FM29: FALSE | FN29: FALSE | FO29: FALSE | FP29: FALSE | FQ29: FALSE | FR29: FALSE | FS29: FALSE | FT29: FALSE | FU29: FALSE | FV29: FALSE | FW29: FALSE | FX29: FALSE | FY29: FALSE | FZ29: FALSE | GA29: FALSE | GB29: FALSE | GC29: FALSE | GD29: FALSE | GE29: FALSE | GF29: FALSE | GG29: FALSE | GH29: FALSE | GI29: FALSE | GJ29: FALSE | GK29: FALSE | GL29: FALSE | GM29: FALSE | GN29: FALSE | GO29: FALSE | GP29: =GP28<=$D$22 -> FALSE | GQ29: FALSE | GR29: FALSE | GS29: FALSE | GT29: FALSE | GU29: FALSE | GV29: FALSE | GW29: FALSE | GX29: FALSE | GY29: FALSE | GZ29: FALSE | HA29: FALSE | HB29: FALSE | HC29: FALSE | HD29: FALSE | HE29: FALSE | HF29: FALSE | HG29: FALSE | HH29: FALSE | HI29: FALSE | HJ29: FALSE | HK29: FALSE | HL29: FALSE | HM29: FALSE | HN29: FALSE | HO29: FALSE | HP29: FALSE | HQ29: FALSE | HR29: FALSE | HS29: FALSE | HT29: FALSE | HU29: FALSE | HV29: FALSE | HW29: FALSE | HX29: FALSE | HY29: FALSE | HZ29: FALSE | IA29: FALSE | IB29: FALSE | IC29: FALSE | ID29: FALSE | IE29: FALSE | IF29: FALSE | IG29: FALSE | IH29: FALSE | II29: FALSE | IJ29: FALSE | IK29: FALSE | IL29: FALSE | IM29: FALSE | IN29: FALSE | IO29: FALSE | IP29: FALSE | IQ29: FALSE | IR29: FALSE | IS29: FALSE | IT29: FALSE | IU29: FALSE | IV29: FALSE | IW29: FALSE | IX29: FALSE | IY29: FALSE | IZ29: FALSE | JA29: FALSE | JB29: =JB28<=$D$22 -> FALSE | JC29: FALSE | JD29: FALSE | JE29: FALSE | JF29: FALSE | JG29: FALSE | JH29: FALSE | JI29: FALSE | JJ29: FALSE | JK29: FALSE | JL29: FALSE | JM29: FALSE | JN29: FALSE | JO29: FALSE | JP29: FALSE | JQ29: FALSE | JR29: FALSE | JS29: FALSE | JT29: FALSE | JU29: FALSE | JV29: FALSE | JW29: FALSE | JX29: FALSE | JY29: FALSE | JZ29: FALSE | KA29: FALSE | KB29: FALSE | KC29: FALSE | KD29: FALSE | KE29: FALSE | KF29: FALSE | KG29: FALSE | KH29: FALSE | KI29: FALSE | KJ29: FALSE | KK29: FALSE | KL29: FALSE | KM29: FALSE | KN29: FALSE | KO29: FALSE | KP29: FALSE | KQ29: FALSE | KR29: FALSE
C30: Long Term Period | E30: =E28>$D$22 -> FALSE | F30: =F28>$D$22 -> TRUE | G30: TRUE | H30: TRUE | I30: TRUE | J30: TRUE | K30: TRUE | L30: TRUE | M30: TRUE | N30: TRUE | O30: TRUE | P30: TRUE | Q30: TRUE | R30: TRUE | S30: TRUE | T30: TRUE | U30: TRUE | V30: TRUE | W30: TRUE | X30: TRUE | Y30: TRUE | Z30: TRUE | AA30: TRUE | AB30: TRUE | AC30: TRUE | AD30: TRUE | AE30: TRUE | AF30: TRUE | AG30: TRUE | AH30: TRUE | AI30: TRUE | AJ30: TRUE | AK30: TRUE | AL30: TRUE | AM30: TRUE | AN30: TRUE | AO30: TRUE | AP30: TRUE | AQ30: TRUE | AR30: TRUE | AS30: TRUE | AT30: TRUE | AU30: TRUE | AV30: TRUE | AW30: TRUE | AX30: TRUE | AY30: TRUE | AZ30: TRUE | BA30: TRUE | BB30: TRUE | BC30: TRUE | BD30: TRUE | BE30: TRUE | BF30: TRUE | BG30: TRUE | BH30: TRUE | BI30: TRUE | BJ30: TRUE | BK30: TRUE | BL30: TRUE | BM30: TRUE | BN30: TRUE | BO30: TRUE | BP30: TRUE | BQ30: TRUE | BR30: =BR28>$D$22 -> TRUE | BS30: TRUE | BT30: TRUE | BU30: TRUE | BV30: TRUE | BW30: TRUE | BX30: TRUE | BY30: TRUE | BZ30: TRUE | CA30: TRUE | CB30: TRUE | CC30: TRUE | CD30: TRUE | CE30: TRUE | CF30: TRUE | CG30: TRUE | CH30: TRUE | CI30: TRUE | CJ30: TRUE | CK30: TRUE | CL30: TRUE | CM30: TRUE | CN30: TRUE | CO30: TRUE | CP30: TRUE | CQ30: TRUE | CR30: TRUE | CS30: TRUE | CT30: TRUE | CU30: TRUE | CV30: TRUE | CW30: TRUE | CX30: TRUE | CY30: TRUE | CZ30: TRUE | DA30: TRUE | DB30: TRUE | DC30: TRUE | DD30: TRUE | DE30: TRUE | DF30: TRUE | DG30: TRUE | DH30: TRUE | DI30: TRUE | DJ30: TRUE | DK30: TRUE | DL30: TRUE | DM30: TRUE | DN30: TRUE | DO30: TRUE | DP30: TRUE | DQ30: TRUE | DR30: TRUE | DS30: TRUE | DT30: TRUE | DU30: TRUE | DV30: TRUE | DW30: TRUE | DX30: TRUE | DY30: TRUE | DZ30: TRUE | EA30: TRUE | EB30: TRUE | EC30: TRUE | ED30: =ED28>$D$22 -> TRUE | EE30: TRUE | EF30: TRUE | EG30: TRUE | EH30: TRUE | EI30: TRUE | EJ30: TRUE | EK30: TRUE | EL30: TRUE | EM30: TRUE | EN30: TRUE | EO30: TRUE | EP30: TRUE | EQ30: TRUE | ER30: TRUE | ES30: TRUE | ET30: TRUE | EU30: TRUE | EV30: TRUE | EW30: TRUE | EX30: TRUE | EY30: TRUE | EZ30: TRUE | FA30: TRUE | FB30: TRUE | FC30: TRUE | FD30: TRUE | FE30: TRUE | FF30: TRUE | FG30: TRUE | FH30: TRUE | FI30: TRUE | FJ30: TRUE | FK30: TRUE | FL30: TRUE | FM30: TRUE | FN30: TRUE | FO30: TRUE | FP30: TRUE | FQ30: TRUE | FR30: TRUE | FS30: TRUE | FT30: TRUE | FU30: TRUE | FV30: TRUE | FW30: TRUE | FX30: TRUE | FY30: TRUE | FZ30: TRUE | GA30: TRUE | GB30: TRUE | GC30: TRUE | GD30: TRUE | GE30: TRUE | GF30: TRUE | GG30: TRUE | GH30: TRUE | GI30: TRUE | GJ30: TRUE | GK30: TRUE | GL30: TRUE | GM30: TRUE | GN30: TRUE | GO30: TRUE | GP30: =GP28>$D$22 -> TRUE | GQ30: TRUE | GR30: TRUE | GS30: TRUE | GT30: TRUE | GU30: TRUE | GV30: TRUE | GW30: TRUE | GX30: TRUE | GY30: TRUE | GZ30: TRUE | HA30: TRUE | HB30: TRUE | HC30: TRUE | HD30: TRUE | HE30: TRUE | HF30: TRUE | HG30: TRUE | HH30: TRUE | HI30: TRUE | HJ30: TRUE | HK30: TRUE | HL30: TRUE | HM30: TRUE | HN30: TRUE | HO30: TRUE | HP30: TRUE | HQ30: TRUE | HR30: TRUE | HS30: TRUE | HT30: TRUE | HU30: TRUE | HV30: TRUE | HW30: TRUE | HX30: TRUE | HY30: TRUE | HZ30: TRUE | IA30: TRUE | IB30: TRUE | IC30: TRUE | ID30: TRUE | IE30: TRUE | IF30: TRUE | IG30: TRUE | IH30: TRUE | II30: TRUE | IJ30: TRUE | IK30: TRUE | IL30: TRUE | IM30: TRUE | IN30: TRUE | IO30: TRUE | IP30: TRUE | IQ30: TRUE | IR30: TRUE | IS30: TRUE | IT30: TRUE | IU30: TRUE | IV30: TRUE | IW30: TRUE | IX30: TRUE | IY30: TRUE | IZ30: TRUE | JA30: TRUE | JB30: =JB28>$D$22 -> TRUE | JC30: TRUE | JD30: TRUE | JE30: TRUE | JF30: TRUE | JG30: TRUE | JH30: TRUE | JI30: TRUE | JJ30: TRUE | JK30: TRUE | JL30: TRUE | JM30: TRUE | JN30: TRUE | JO30: TRUE | JP30: TRUE | JQ30: TRUE | JR30: TRUE | JS30: TRUE | JT30: TRUE | JU30: TRUE | JV30: TRUE | JW30: TRUE | JX30: TRUE | JY30: TRUE | JZ30: TRUE | KA30: TRUE | KB30: TRUE | KC30: TRUE | KD30: TRUE | KE30: TRUE | KF30: TRUE | KG30: TRUE | KH30: TRUE | KI30: TRUE | KJ30: TRUE | KK30: TRUE | KL30: TRUE | KM30: TRUE | KN30: TRUE | KO30: TRUE | KP30: TRUE | KQ30: TRUE | KR30: TRUE
C31: ROE | E31: =E29*ROE_Short_Term+E30*ROE_Long_Term -> 0.12 | F31: 0.12 | G31: 0.12 | H31: 0.12 | I31: 0.12 | J31: 0.12 | K31: 0.12 | L31: 0.12 | M31: 0.12 | N31: 0.12 | O31: 0.12 | P31: 0.12 | Q31: 0.12 | R31: 0.12 | S31: 0.12 | T31: 0.12 | U31: 0.12 | V31: 0.12 | W31: 0.12 | X31: 0.12 | Y31: 0.12 | Z31: 0.12 | AA31: 0.12 | AB31: 0.12 | AC31: 0.12 | AD31: 0.12 | AE31: 0.12 | AF31: 0.12 | AG31: 0.12 | AH31: 0.12 | AI31: 0.12 | AJ31: 0.12 | AK31: 0.12 | AL31: 0.12 | AM31: 0.12 | AN31: 0.12 | AO31: 0.12 | AP31: 0.12 | AQ31: 0.12 | AR31: 0.12 | AS31: 0.12 | AT31: 0.12 | AU31: 0.12 | AV31: 0.12 | AW31: 0.12 | AX31: 0.12 | AY31: 0.12 | AZ31: 0.12 | BA31: 0.12 | BB31: 0.12 | BC31: 0.12 | BD31: 0.12 | BE31: 0.12 | BF31: 0.12 | BG31: 0.12 | BH31: 0.12 | BI31: 0.12 | BJ31: 0.12 | BK31: 0.12 | BL31: 0.12 | BM31: 0.12 | BN31: 0.12 | BO31: 0.12 | BP31: 0.12 | BQ31: =BQ29*ROE_Short_Term+BQ30*ROE_Long_Term -> 0.12 | BR31: 0.12 | BS31: 0.12 | BT31: 0.12 | BU31: 0.12 | BV31: 0.12 | BW31: 0.12 | BX31: 0.12 | BY31: 0.12 | BZ31: 0.12 | CA31: 0.12 | CB31: 0.12 | CC31: 0.12 | CD31: 0.12 | CE31: 0.12 | CF31: 0.12 | CG31: 0.12 | CH31: 0.12 | CI31: 0.12 | CJ31: 0.12 | CK31: 0.12 | CL31: 0.12 | CM31: 0.12 | CN31: 0.12 | CO31: 0.12 | CP31: 0.12 | CQ31: 0.12 | CR31: 0.12 | CS31: 0.12 | CT31: 0.12 | CU31: 0.12 | CV31: 0.12 | CW31: 0.12 | CX31: 0.12 | CY31: 0.12 | CZ31: 0.12 | DA31: 0.12 | DB31: 0.12 | DC31: 0.12 | DD31: 0.12 | DE31: 0.12 | DF31: 0.12 | DG31: 0.12 | DH31: 0.12 | DI31: 0.12 | DJ31: 0.12 | DK31: 0.12 | DL31: 0.12 | DM31: 0.12 | DN31: 0.12 | DO31: 0.12 | DP31: 0.12 | DQ31: 0.12 | DR31: 0.12 | DS31: 0.12 | DT31: 0.12 | DU31: 0.12 | DV31: 0.12 | DW31: 0.12 | DX31: 0.12 | DY31: 0.12 | DZ31: 0.12 | EA31: 0.12 | EB31: 0.12 | EC31: =EC29*ROE_Short_Term+EC30*ROE_Long_Term -> 0.12 | ED31: 0.12 | EE31: 0.12 | EF31: 0.12 | EG31: 0.12 | EH31: 0.12 | EI31: 0.12 | EJ31: 0.12 | EK31: 0.12 | EL31: 0.12 | EM31: 0.12 | EN31: 0.12 | EO31: 0.12 | EP31: 0.12 | EQ31: 0.12 | ER31: 0.12 | ES31: 0.12 | ET31: 0.12 | EU31: 0.12 | EV31: 0.12 | EW31: 0.12 | EX31: 0.12 | EY31: 0.12 | EZ31: 0.12 | FA31: 0.12 | FB31: 0.12 | FC31: 0.12 | FD31: 0.12 | FE31: 0.12 | FF31: 0.12 | FG31: 0.12 | FH31: 0.12 | FI31: 0.12 | FJ31: 0.12 | FK31: 0.12 | FL31: 0.12 | FM31: 0.12 | FN31: 0.12 | FO31: 0.12 | FP31: 0.12 | FQ31: 0.12 | FR31: 0.12 | FS31: 0.12 | FT31: 0.12 | FU31: 0.12 | FV31: 0.12 | FW31: 0.12 | FX31: 0.12 | FY31: 0.12 | FZ31: 0.12 | GA31: 0.12 | GB31: 0.12 | GC31: 0.12 | GD31: 0.12 | GE31: 0.12 | GF31: 0.12 | GG31: 0.12 | GH31: 0.12 | GI31: 0.12 | GJ31: 0.12 | GK31: 0.12 | GL31: 0.12 | GM31: 0.12 | GN31: 0.12 | GO31: =GO29*ROE_Short_Term+GO30*ROE_Long_Term -> 0.12 | GP31: 0.12 | GQ31: 0.12 | GR31: 0.12 | GS31: 0.12 | GT31: 0.12 | GU31: 0.12 | GV31: 0.12 | GW31: 0.12 | GX31: 0.12 | GY31: 0.12 | GZ31: 0.12 | HA31: 0.12 | HB31: 0.12 | HC31: 0.12 | HD31: 0.12 | HE31: 0.12 | HF31: 0.12 | HG31: 0.12 | HH31: 0.12 | HI31: 0.12 | HJ31: 0.12 | HK31: 0.12 | HL31: 0.12 | HM31: 0.12 | HN31: 0.12 | HO31: 0.12 | HP31: 0.12 | HQ31: 0.12 | HR31: 0.12 | HS31: 0.12 | HT31: 0.12 | HU31: 0.12 | HV31: 0.12 | HW31: 0.12 | HX31: 0.12 | HY31: 0.12 | HZ31: 0.12 | IA31: 0.12 | IB31: 0.12 | IC31: 0.12 | ID31: 0.12 | IE31: 0.12 | IF31: 0.12 | IG31: 0.12 | IH31: 0.12 | II31: 0.12 | IJ31: 0.12 | IK31: 0.12 | IL31: 0.12 | IM31: 0.12 | IN31: 0.12 | IO31: 0.12 | IP31: 0.12 | IQ31: 0.12 | IR31: 0.12 | IS31: 0.12 | IT31: 0.12 | IU31: 0.12 | IV31: 0.12 | IW31: 0.12 | IX31: 0.12 | IY31: 0.12 | IZ31: 0.12 | JA31: =JA29*ROE_Short_Term+JA30*ROE_Long_Term -> 0.12 | JB31: 0.12 | JC31: 0.12 | JD31: 0.12 | JE31: 0.12 | JF31: 0.12 | JG31: 0.12 | JH31: 0.12 | JI31: 0.12 | JJ31: 0.12 | JK31: 0.12 | JL31: 0.12 | JM31: 0.12 | JN31: 0.12 | JO31: 0.12 | JP31: 0.12 | JQ31: 0.12 | JR31: 0.12 | JS31: 0.12 | JT31: 0.12 | JU31: 0.12 | JV31: 0.12 | JW31: 0.12 | JX31: 0.12 | JY31: 0.12 | JZ31: 0.12 | KA31: 0.12 | KB31: 0.12 | KC31: 0.12 | KD31: 0.12 | KE31: 0.12 | KF31: 0.12 | KG31: 0.12 | KH31: 0.12 | KI31: 0.12 | KJ31: 0.12 | KK31: 0.12 | KL31: 0.12 | KM31: 0.12 | KN31: 0.12 | KO31: 0.12 | KP31: 0.12 | KQ31: 0.12 | KR31: 0.12
C32: Growth Rate | E32: =E29*Growth_Rate_Short_Term+E30*Growth_Rate_Long_Term -> 0.03 | F32: 0.03 | G32: 0.03 | H32: 0.03 | I32: 0.03 | J32: 0.03 | K32: 0.03 | L32: 0.03 | M32: 0.03 | N32: 0.03 | O32: 0.03 | P32: 0.03 | Q32: 0.03 | R32: 0.03 | S32: 0.03 | T32: 0.03 | U32: 0.03 | V32: 0.03 | W32: 0.03 | X32: 0.03 | Y32: 0.03 | Z32: 0.03 | AA32: 0.03 | AB32: 0.03 | AC32: 0.03 | AD32: 0.03 | AE32: 0.03 | AF32: 0.03 | AG32: 0.03 | AH32: 0.03 | AI32: 0.03 | AJ32: 0.03 | AK32: 0.03 | AL32: 0.03 | AM32: 0.03 | AN32: 0.03 | AO32: 0.03 | AP32: 0.03 | AQ32: 0.03 | AR32: 0.03 | AS32: 0.03 | AT32: 0.03 | AU32: 0.03 | AV32: 0.03 | AW32: 0.03 | AX32: 0.03 | AY32: 0.03 | AZ32: 0.03 | BA32: 0.03 | BB32: 0.03 | BC32: 0.03 | BD32: 0.03 | BE32: 0.03 | BF32: 0.03 | BG32: 0.03 | BH32: 0.03 | BI32: 0.03 | BJ32: 0.03 | BK32: 0.03 | BL32: 0.03 | BM32: 0.03 | BN32: 0.03 | BO32: 0.03 | BP32: 0.03 | BQ32: =BQ29*Growth_Rate_Short_Term+BQ30*Growth_Rate_Long_Term -> 0.03 | BR32: 0.03 | BS32: 0.03 | BT32: 0.03 | BU32: 0.03 | BV32: 0.03 | BW32: 0.03 | BX32: 0.03 | BY32: 0.03 | BZ32: 0.03 | CA32: 0.03 | CB32: 0.03 | CC32: 0.03 | CD32: 0.03 | CE32: 0.03 | CF32: 0.03 | CG32: 0.03 | CH32: 0.03 | CI32: 0.03 | CJ32: 0.03 | CK32: 0.03 | CL32: 0.03 | CM32: 0.03 | CN32: 0.03 | CO32: 0.03 | CP32: 0.03 | CQ32: 0.03 | CR32: 0.03 | CS32: 0.03 | CT32: 0.03 | CU32: 0.03 | CV32: 0.03 | CW32: 0.03 | CX32: 0.03 | CY32: 0.03 | CZ32: 0.03 | DA32: 0.03 | DB32: 0.03 | DC32: 0.03 | DD32: 0.03 | DE32: 0.03 | DF32: 0.03 | DG32: 0.03 | DH32: 0.03 | DI32: 0.03 | DJ32: 0.03 | DK32: 0.03 | DL32: 0.03 | DM32: 0.03 | DN32: 0.03 | DO32: 0.03 | DP32: 0.03 | DQ32: 0.03 | DR32: 0.03 | DS32: 0.03 | DT32: 0.03 | DU32: 0.03 | DV32: 0.03 | DW32: 0.03 | DX32: 0.03 | DY32: 0.03 | DZ32: 0.03 | EA32: 0.03 | EB32: 0.03 | EC32: =EC29*Growth_Rate_Short_Term+EC30*Growth_Rate_Long_Term -> 0.03 | ED32: 0.03 | EE32: 0.03 | EF32: 0.03 | EG32: 0.03 | EH32: 0.03 | EI32: 0.03 | EJ32: 0.03 | EK32: 0.03 | EL32: 0.03 | EM32: 0.03 | EN32: 0.03 | EO32: 0.03 | EP32: 0.03 | EQ32: 0.03 | ER32: 0.03 | ES32: 0.03 | ET32: 0.03 | EU32: 0.03 | EV32: 0.03 | EW32: 0.03 | EX32: 0.03 | EY32: 0.03 | EZ32: 0.03 | FA32: 0.03 | FB32: 0.03 | FC32: 0.03 | FD32: 0.03 | FE32: 0.03 | FF32: 0.03 | FG32: 0.03 | FH32: 0.03 | FI32: 0.03 | FJ32: 0.03 | FK32: 0.03 | FL32: 0.03 | FM32: 0.03 | FN32: 0.03 | FO32: 0.03 | FP32: 0.03 | FQ32: 0.03 | FR32: 0.03 | FS32: 0.03 | FT32: 0.03 | FU32: 0.03 | FV32: 0.03 | FW32: 0.03 | FX32: 0.03 | FY32: 0.03 | FZ32: 0.03 | GA32: 0.03 | GB32: 0.03 | GC32: 0.03 | GD32: 0.03 | GE32: 0.03 | GF32: 0.03 | GG32: 0.03 | GH32: 0.03 | GI32: 0.03 | GJ32: 0.03 | GK32: 0.03 | GL32: 0.03 | GM32: 0.03 | GN32: 0.03 | GO32: =GO29*Growth_Rate_Short_Term+GO30*Growth_Rate_Long_Term -> 0.03 | GP32: 0.03 | GQ32: 0.03 | GR32: 0.03 | GS32: 0.03 | GT32: 0.03 | GU32: 0.03 | GV32: 0.03 | GW32: 0.03 | GX32: 0.03 | GY32: 0.03 | GZ32: 0.03 | HA32: 0.03 | HB32: 0.03 | HC32: 0.03 | HD32: 0.03 | HE32: 0.03 | HF32: 0.03 | HG32: 0.03 | HH32: 0.03 | HI32: 0.03 | HJ32: 0.03 | HK32: 0.03 | HL32: 0.03 | HM32: 0.03 | HN32: 0.03 | HO32: 0.03 | HP32: 0.03 | HQ32: 0.03 | HR32: 0.03 | HS32: 0.03 | HT32: 0.03 | HU32: 0.03 | HV32: 0.03 | HW32: 0.03 | HX32: 0.03 | HY32: 0.03 | HZ32: 0.03 | IA32: 0.03 | IB32: 0.03 | IC32: 0.03 | ID32: 0.03 | IE32: 0.03 | IF32: 0.03 | IG32: 0.03 | IH32: 0.03 | II32: 0.03 | IJ32: 0.03 | IK32: 0.03 | IL32: 0.03 | IM32: 0.03 | IN32: 0.03 | IO32: 0.03 | IP32: 0.03 | IQ32: 0.03 | IR32: 0.03 | IS32: 0.03 | IT32: 0.03 | IU32: 0.03 | IV32: 0.03 | IW32: 0.03 | IX32: 0.03 | IY32: 0.03 | IZ32: 0.03 | JA32: =JA29*Growth_Rate_Short_Term+JA30*Growth_Rate_Long_Term -> 0.03 | JB32: 0.03 | JC32: 0.03 | JD32: 0.03 | JE32: 0.03 | JF32: 0.03 | JG32: 0.03 | JH32: 0.03 | JI32: 0.03 | JJ32: 0.03 | JK32: 0.03 | JL32: 0.03 | JM32: 0.03 | JN32: 0.03 | JO32: 0.03 | JP32: 0.03 | JQ32: 0.03 | JR32: 0.03 | JS32: 0.03 | JT32: 0.03 | JU32: 0.03 | JV32: 0.03 | JW32: 0.03 | JX32: 0.03 | JY32: 0.03 | JZ32: 0.03 | KA32: 0.03 | KB32: 0.03 | KC32: 0.03 | KD32: 0.03 | KE32: 0.03 | KF32: 0.03 | KG32: 0.03 | KH32: 0.03 | KI32: 0.03 | KJ32: 0.03 | KK32: 0.03 | KL32: 0.03 | KM32: 0.03 | KN32: 0.03 | KO32: 0.03 | KP32: 0.03 | KQ32: 0.03 | KR32: 0.03
C33: Dividend pay out ratio | E33: =1-E32/E31 -> 0.75 | F33: =1-F32/F31 -> 0.75 | G33: =1-G32/G31 -> 0.75 | H33: 0.75 | I33: 0.75 | J33: 0.75 | K33: 0.75 | L33: 0.75 | M33: 0.75 | N33: 0.75 | O33: 0.75 | P33: 0.75 | Q33: 0.75 | R33: 0.75 | S33: 0.75 | T33: 0.75 | U33: 0.75 | V33: 0.75 | W33: 0.75 | X33: 0.75 | Y33: 0.75 | Z33: 0.75 | AA33: 0.75 | AB33: 0.75 | AC33: 0.75 | AD33: 0.75 | AE33: 0.75 | AF33: 0.75 | AG33: 0.75 | AH33: 0.75 | AI33: 0.75 | AJ33: 0.75 | AK33: 0.75 | AL33: 0.75 | AM33: 0.75 | AN33: 0.75 | AO33: 0.75 | AP33: 0.75 | AQ33: 0.75 | AR33: 0.75 | AS33: 0.75 | AT33: 0.75 | AU33: 0.75 | AV33: 0.75 | AW33: 0.75 | AX33: 0.75 | AY33: 0.75 | AZ33: 0.75 | BA33: 0.75 | BB33: 0.75 | BC33: 0.75 | BD33: 0.75 | BE33: 0.75 | BF33: 0.75 | BG33: 0.75 | BH33: 0.75 | BI33: 0.75 | BJ33: 0.75 | BK33: 0.75 | BL33: 0.75 | BM33: 0.75 | BN33: 0.75 | BO33: 0.75 | BP33: 0.75 | BQ33: 0.75 | BR33: =1-BR32/BR31 -> 0.75 | BS33: 0.75 | BT33: 0.75 | BU33: 0.75 | BV33: 0.75 | BW33: 0.75 | BX33: 0.75 | BY33: 0.75 | BZ33: 0.75 | CA33: 0.75 | CB33: 0.75 | CC33: 0.75 | CD33: 0.75 | CE33: 0.75 | CF33: 0.75 | CG33: 0.75 | CH33: 0.75 | CI33: 0.75 | CJ33: 0.75 | CK33: 0.75 | CL33: 0.75 | CM33: 0.75 | CN33: 0.75 | CO33: 0.75 | CP33: 0.75 | CQ33: 0.75 | CR33: 0.75 | CS33: 0.75 | CT33: 0.75 | CU33: 0.75 | CV33: 0.75 | CW33: 0.75 | CX33: 0.75 | CY33: 0.75 | CZ33: 0.75 | DA33: 0.75 | DB33: 0.75 | DC33: 0.75 | DD33: 0.75 | DE33: 0.75 | DF33: 0.75 | DG33: 0.75 | DH33: 0.75 | DI33: 0.75 | DJ33: 0.75 | DK33: 0.75 | DL33: 0.75 | DM33: 0.75 | DN33: 0.75 | DO33: 0.75 | DP33: 0.75 | DQ33: 0.75 | DR33: 0.75 | DS33: 0.75 | DT33: 0.75 | DU33: 0.75 | DV33: 0.75 | DW33: 0.75 | DX33: 0.75 | DY33: 0.75 | DZ33: 0.75 | EA33: 0.75 | EB33: 0.75 | EC33: 0.75 | ED33: =1-ED32/ED31 -> 0.75 | EE33: 0.75 | EF33: 0.75 | EG33: 0.75 | EH33: 0.75 | EI33: 0.75 | EJ33: 0.75 | EK33: 0.75 | EL33: 0.75 | EM33: 0.75 | EN33: 0.75 | EO33: 0.75 | EP33: 0.75 | EQ33: 0.75 | ER33: 0.75 | ES33: 0.75 | ET33: 0.75 | EU33: 0.75 | EV33: 0.75 | EW33: 0.75 | EX33: 0.75 | EY33: 0.75 | EZ33: 0.75 | FA33: 0.75 | FB33: 0.75 | FC33: 0.75 | FD33: 0.75 | FE33: 0.75 | FF33: 0.75 | FG33: 0.75 | FH33: 0.75 | FI33: 0.75 | FJ33: 0.75 | FK33: 0.75 | FL33: 0.75 | FM33: 0.75 | FN33: 0.75 | FO33: 0.75 | FP33: 0.75 | FQ33: 0.75 | FR33: 0.75 | FS33: 0.75 | FT33: 0.75 | FU33: 0.75 | FV33: 0.75 | FW33: 0.75 | FX33: 0.75 | FY33: 0.75 | FZ33: 0.75 | GA33: 0.75 | GB33: 0.75 | GC33: 0.75 | GD33: 0.75 | GE33: 0.75 | GF33: 0.75 | GG33: 0.75 | GH33: 0.75 | GI33: 0.75 | GJ33: 0.75 | GK33: 0.75 | GL33: 0.75 | GM33: 0.75 | GN33: 0.75 | GO33: 0.75 | GP33: =1-GP32/GP31 -> 0.75 | GQ33: 0.75 | GR33: 0.75 | GS33: 0.75 | GT33: 0.75 | GU33: 0.75 | GV33: 0.75 | GW33: 0.75 | GX33: 0.75 | GY33: 0.75 | GZ33: 0.75 | HA33: 0.75 | HB33: 0.75 | HC33: 0.75 | HD33: 0.75 | HE33: 0.75 | HF33: 0.75 | HG33: 0.75 | HH33: 0.75 | HI33: 0.75 | HJ33: 0.75 | HK33: 0.75 | HL33: 0.75 | HM33: 0.75 | HN33: 0.75 | HO33: 0.75 | HP33: 0.75 | HQ33: 0.75 | HR33: 0.75 | HS33: 0.75 | HT33: 0.75 | HU33: 0.75 | HV33: 0.75 | HW33: 0.75 | HX33: 0.75 | HY33: 0.75 | HZ33: 0.75 | IA33: 0.75 | IB33: 0.75 | IC33: 0.75 | ID33: 0.75 | IE33: 0.75 | IF33: 0.75 | IG33: 0.75 | IH33: 0.75 | II33: 0.75 | IJ33: 0.75 | IK33: 0.75 | IL33: 0.75 | IM33: 0.75 | IN33: 0.75 | IO33: 0.75 | IP33: 0.75 | IQ33: 0.75 | IR33: 0.75 | IS33: 0.75 | IT33: 0.75 | IU33: 0.75 | IV33: 0.75 | IW33: 0.75 | IX33: 0.75 | IY33: 0.75 | IZ33: 0.75 | JA33: 0.75 | JB33: =1-JB32/JB31 -> 0.75 | JC33: 0.75 | JD33: 0.75 | JE33: 0.75 | JF33: 0.75 | JG33: 0.75 | JH33: 0.75 | JI33: 0.75 | JJ33: 0.75 | JK33: 0.75 | JL33: 0.75 | JM33: 0.75 | JN33: 0.75 | JO33: 0.75 | JP33: 0.75 | JQ33: 0.75 | JR33: 0.75 | JS33: 0.75 | JT33: 0.75 | JU33: 0.75 | JV33: 0.75 | JW33: 0.75 | JX33: 0.75 | JY33: 0.75 | JZ33: 0.75 | KA33: 0.75 | KB33: 0.75 | KC33: 0.75 | KD33: 0.75 | KE33: 0.75 | KF33: 0.75 | KG33: 0.75 | KH33: 0.75 | KI33: 0.75 | KJ33: 0.75 | KK33: 0.75 | KL33: 0.75 | KM33: 0.75 | KN33: 0.75 | KO33: 0.75 | KP33: 0.75 | KQ33: 0.75 | KR33: 0.75
C35: Opening BV per share | E35: =D38 -> 7 | F35: =E38 -> 7.21 | G35: 7.4263 | H35: 7.649089 | I35: 7.87856167 | J35: 8.11491852 | K35: 8.358366076 | L35: 8.609117058 | M35: 8.86739057 | N35: 9.133412287 | O35: 9.407414655 | P35: 9.689637095 | Q35: 9.980326208 | R35: 10.27973599 | S35: 10.58812807 | T35: 10.90577192 | U35: 11.23294507 | V35: 11.56993343 | W35: 11.91703143 | X35: 12.27454237 | Y35: 12.64277864 | Z35: 13.022062 | AA35: 13.41272386 | AB35: 13.81510558 | AC35: 14.22955875 | AD35: 14.65644551 | AE35: 15.09613887 | AF35: 15.54902304 | AG35: 16.01549373 | AH35: 16.49595854 | AI35: 16.9908373 | AJ35: 17.50056242 | AK35: 18.02557929 | AL35: 18.56634667 | AM35: 19.12333707 | AN35: 19.69703718 | AO35: 20.2879483 | AP35: 20.89658674 | AQ35: 21.52348435 | AR35: 22.16918888 | AS35: 22.83426454 | AT35: 23.51929248 | AU35: 24.22487125 | AV35: 24.95161739 | AW35: 25.70016591 | AX35: 26.47117089 | AY35: 27.26530602 | AZ35: 28.0832652 | BA35: 28.92576315 | BB35: 29.79353605 | BC35: 30.68734213 | BD35: 31.60796239 | BE35: 32.55620127 | BF35: 33.5328873 | BG35: 34.53887392 | BH35: 35.57504014 | BI35: 36.64229135 | BJ35: 37.74156009 | BK35: 38.87380689 | BL35: 40.0400211 | BM35: 41.24122173 | BN35: 42.47845838 | BO35: 43.75281213 | BP35: 45.0653965 | BQ35: 46.41735839 | BR35: =BQ38 -> 47.80987914 | BS35: 49.24417552 | BT35: 50.72150078 | BU35: 52.24314581 | BV35: 53.81044018 | BW35: 55.42475338 | BX35: 57.08749599 | BY35: 58.80012087 | BZ35: 60.56412449 | CA35: 62.38104823 | CB35: 64.25247967 | CC35: 66.18005406 | CD35: 68.16545569 | CE35: 70.21041936 | CF35: 72.31673194 | CG35: 74.4862339 | CH35: 76.72082091 | CI35: 79.02244554 | CJ35: 81.39311891 | CK35: 83.83491247 | CL35: 86.34995985 | CM35: 88.94045864 | CN35: 91.6086724 | CO35: 94.35693257 | CP35: 97.18764055 | CQ35: 100.1032698 | CR35: 103.1063679 | CS35: 106.1995589 | CT35: 109.3855457 | CU35: 112.667112 | CV35: 116.0471254 | CW35: 119.5285392 | CX35: 123.1143953 | CY35: 126.8078272 | CZ35: 130.612062 | DA35: 134.5304239 | DB35: 138.5663366 | DC35: 142.7233267 | DD35: 147.0050265 | DE35: 151.4151773 | DF35: 155.9576326 | DG35: 160.6363616 | DH35: 165.4554524 | DI35: 170.419116 | DJ35: 175.5316895 | DK35: 180.7976402 | DL35: 186.2215694 | DM35: 191.8082164 | DN35: 197.5624629 | DO35: 203.4893368 | DP35: 209.5940169 | DQ35: 215.8818374 | DR35: 222.3582926 | DS35: 229.0290413 | DT35: 235.8999126 | DU35: 242.9769099 | DV35: 250.2662172 | DW35: 257.7742038 | DX35: 265.5074299 | DY35: 273.4726528 | DZ35: 281.6768324 | EA35: 290.1271373 | EB35: 298.8309514 | EC35: 307.79588 | ED35: =EC38 -> 317.0297564 | EE35: 326.5406491 | EF35: 336.3368686 | EG35: 346.4269746 | EH35: 356.8197839 | EI35: 367.5243774 | EJ35: 378.5501087 | EK35: 389.9066119 | EL35: 401.6038103 | EM35: 413.6519246 | EN35: 426.0614824 | EO35: 438.8433268 | EP35: 452.0086266 | EQ35: 465.5688854 | ER35: 479.535952 | ES35: 493.9220306 | ET35: 508.7396915 | EU35: 524.0018822 | EV35: 539.7219387 | EW35: 555.9135968 | EX35: 572.5910047 | EY35: 589.7687349 | EZ35: 607.4617969 | FA35: 625.6856508 | FB35: 644.4562204 | FC35: 663.789907 | FD35: 683.7036042 | FE35: 704.2147123 | FF35: 725.3411537 | FG35: 747.1013883 | FH35: 769.5144299 | FI35: 792.5998628 | FJ35: 816.3778587 | FK35: 840.8691945 | FL35: 866.0952703 | FM35: 892.0781284 | FN35: 918.8404723 | FO35: 946.4056864 | FP35: 974.797857 | FQ35: 1004.041793 | FR35: 1034.163047 | FS35: 1065.187938 | FT35: 1097.143576 | FU35: 1130.057883 | FV35: 1163.95962 | FW35: 1198.878408 | FX35: 1234.844761 | FY35: 1271.890104 | FZ35: 1310.046807 | GA35: 1349.348211 | GB35: 1389.828657 | GC35: 1431.523517 | GD35: 1474.469222 | GE35: 1518.703299 | GF35: 1564.264398 | GG35: 1611.19233 | GH35: 1659.5281 | GI35: 1709.313943 | GJ35: 1760.593361 | GK35: 1813.411162 | GL35: 1867.813497 | GM35: 1923.847902 | GN35: 1981.563339 | GO35: 2041.010239 | GP35: =GO38 -> 2102.240546 | GQ35: 2165.307763 | GR35: 2230.266995 | GS35: 2297.175005 | GT35: 2366.090255 | GU35: 2437.072963 | GV35: 2510.185152 | GW35: 2585.490707 | GX35: 2663.055428 | GY35: 2742.947091 | GZ35: 2825.235503 | HA35: 2909.992568 | HB35: 2997.292345 | HC35: 3087.211116 | HD35: 3179.827449 | HE35: 3275.222273 | HF35: 3373.478941 | HG35: 3474.683309 | HH35: 3578.923808 | HI35: 3686.291523 | HJ35: 3796.880268 | HK35: 3910.786676 | HL35: 4028.110277 | HM35: 4148.953585 | HN35: 4273.422193 | HO35: 4401.624858 | HP35: 4533.673604 | HQ35: 4669.683812 | HR35: 4809.774327 | HS35: 4954.067556 | HT35: 5102.689583 | HU35: 5255.77027 | HV35: 5413.443379 | HW35: 5575.84668 | HX35: 5743.12208 | HY35: 5915.415743 | HZ35: 6092.878215 | IA35: 6275.664562 | IB35: 6463.934498 | IC35: 6657.852533 | ID35: 6857.588109 | IE35: 7063.315753 | IF35: 7275.215225 | IG35: 7493.471682 | IH35: 7718.275832 | II35: 7949.824107 | IJ35: 8188.318831 | IK35: 8433.968395 | IL35: 8686.987447 | IM35: 8947.597071 | IN35: 9216.024983 | IO35: 9492.505732 | IP35: 9777.280904 | IQ35: 10070.59933 | IR35: 10372.71731 | IS35: 10683.89883 | IT35: 11004.4158 | IU35: 11334.54827 | IV35: 11674.58472 | IW35: 12024.82226 | IX35: 12385.56693 | IY35: 12757.13393 | IZ35: 13139.84795 | JA35: 13534.04339 | JB35: =JA38 -> 13940.06469 | JC35: 14358.26663 | JD35: 14789.01463 | JE35: 15232.68507 | JF35: 15689.66562 | JG35: 16160.35559 | JH35: 16645.16626 | JI35: 17144.52125 | JJ35: 17658.85689 | JK35: 18188.62259 | JL35: 18734.28127 | JM35: 19296.30971 | JN35: 19875.199 | JO35: 20471.45497 | JP35: 21085.59862 | JQ35: 21718.16658 | JR35: 22369.71157 | JS35: 23040.80292 | JT35: 23732.02701 | JU35: 24443.98782 | JV35: 25177.30745 | JW35: 25932.62668 | JX35: 26710.60548 | JY35: 27511.92364 | JZ35: 28337.28135 | KA35: 29187.39979 | KB35: 30063.02179 | KC35: 30964.91244 | KD35: 31893.85981 | KE35: 32850.67561 | KF35: 33836.19588 | KG35: 34851.28175 | KH35: 35896.8202 | KI35: 36973.72481 | KJ35: 38082.93655 | KK35: 39225.42465 | KL35: 40402.18739 | KM35: 41614.25301 | KN35: 42862.6806 | KO35: 44148.56102 | KP35: 45473.01785 | KQ35: 46837.20839 | KR35: 48242.32464
C36: Net income | E36: =E35*E31 -> 0.84 | F36: =F35*F31 -> 0.8652 | G36: 0.891156 | H36: 0.91789068 | I36: 0.9454274004 | J36: 0.9737902224 | K36: 1.003003929 | L36: 1.033094047 | M36: 1.064086868 | N36: 1.096009474 | O36: 1.128889759 | P36: 1.162756451 | Q36: 1.197639145 | R36: 1.233568319 | S36: 1.270575369 | T36: 1.30869263 | U36: 1.347953409 | V36: 1.388392011 | W36: 1.430043771 | X36: 1.472945085 | Y36: 1.517133437 | Z36: 1.56264744 | AA36: 1.609526863 | AB36: 1.657812669 | AC36: 1.707547049 | AD36: 1.758773461 | AE36: 1.811536665 | AF36: 1.865882765 | AG36: 1.921859248 | AH36: 1.979515025 | AI36: 2.038900476 | AJ36: 2.10006749 | AK36: 2.163069515 | AL36: 2.2279616 | AM36: 2.294800448 | AN36: 2.363644462 | AO36: 2.434553796 | AP36: 2.507590409 | AQ36: 2.582818122 | AR36: 2.660302665 | AS36: 2.740111745 | AT36: 2.822315098 | AU36: 2.906984551 | AV36: 2.994194087 | AW36: 3.08401991 | AX36: 3.176540507 | AY36: 3.271836722 | AZ36: 3.369991824 | BA36: 3.471091579 | BB36: 3.575224326 | BC36: 3.682481056 | BD36: 3.792955487 | BE36: 3.906744152 | BF36: 4.023946477 | BG36: 4.144664871 | BH36: 4.269004817 | BI36: 4.397074961 | BJ36: 4.52898721 | BK36: 4.664856827 | BL36: 4.804802531 | BM36: 4.948946607 | BN36: 5.097415006 | BO36: 5.250337456 | BP36: 5.407847579 | BQ36: 5.570083007 | BR36: =BR35*BR31 -> 5.737185497 | BS36: 5.909301062 | BT36: 6.086580094 | BU36: 6.269177497 | BV36: 6.457252822 | BW36: 6.650970406 | BX36: 6.850499518 | BY36: 7.056014504 | BZ36: 7.267694939 | CA36: 7.485725787 | CB36: 7.710297561 | CC36: 7.941606488 | CD36: 8.179854682 | CE36: 8.425250323 | CF36: 8.678007832 | CG36: 8.938348067 | CH36: 9.206498509 | CI36: 9.482693465 | CJ36: 9.767174269 | CK36: 10.0601895 | CL36: 10.36199518 | CM36: 10.67285504 | CN36: 10.99304069 | CO36: 11.32283191 | CP36: 11.66251687 | CQ36: 12.01239237 | CR36: 12.37276414 | CS36: 12.74394707 | CT36: 13.12626548 | CU36: 13.52005344 | CV36: 13.92565505 | CW36: 14.3434247 | CX36: 14.77372744 | CY36: 15.21693926 | CZ36: 15.67344744 | DA36: 16.14365086 | DB36: 16.62796039 | DC36: 17.1267992 | DD36: 17.64060318 | DE36: 18.16982127 | DF36: 18.71491591 | DG36: 19.27636339 | DH36: 19.85465429 | DI36: 20.45029392 | DJ36: 21.06380274 | DK36: 21.69571682 | DL36: 22.34658832 | DM36: 23.01698597 | DN36: 23.70749555 | DO36: 24.41872042 | DP36: 25.15128203 | DQ36: 25.90582049 | DR36: 26.68299511 | DS36: 27.48348496 | DT36: 28.30798951 | DU36: 29.15722919 | DV36: 30.03194607 | DW36: 30.93290445 | DX36: 31.86089159 | DY36: 32.81671833 | DZ36: 33.80121988 | EA36: 34.81525648 | EB36: 35.85971417 | EC36: 36.9355056 | ED36: =ED35*ED31 -> 38.04357077 | EE36: 39.18487789 | EF36: 40.36042423 | EG36: 41.57123695 | EH36: 42.81837406 | EI36: 44.10292528 | EJ36: 45.42601304 | EK36: 46.78879343 | EL36: 48.19245724 | EM36: 49.63823095 | EN36: 51.12737788 | EO36: 52.66119922 | EP36: 54.2410352 | EQ36: 55.86826625 | ER36: 57.54431424 | ES36: 59.27064367 | ET36: 61.04876298 | EU36: 62.88022587 | EV36: 64.76663264 | EW36: 66.70963162 | EX36: 68.71092057 | EY36: 70.77224819 | EZ36: 72.89541563 | FA36: 75.0822781 | FB36: 77.33474644 | FC36: 79.65478884 | FD36: 82.0444325 | FE36: 84.50576548 | FF36: 87.04093844 | FG36: 89.65216659 | FH36: 92.34173159 | FI36: 95.11198354 | FJ36: 97.96534305 | FK36: 100.9043033 | FL36: 103.9314324 | FM36: 107.0493754 | FN36: 110.2608567 | FO36: 113.5686824 | FP36: 116.9757428 | FQ36: 120.4850151 | FR36: 124.0995656 | FS36: 127.8225526 | FT36: 131.6572291 | FU36: 135.606946 | FV36: 139.6751544 | FW36: 143.865409 | FX36: 148.1813713 | FY36: 152.6268124 | FZ36: 157.2056168 | GA36: 161.9217853 | GB36: 166.7794389 | GC36: 171.782822 | GD36: 176.9363067 | GE36: 182.2443959 | GF36: 187.7117278 | GG36: 193.3430796 | GH36: 199.143372 | GI36: 205.1176731 | GJ36: 211.2712033 | GK36: 217.6093394 | GL36: 224.1376196 | GM36: 230.8617482 | GN36: 237.7876007 | GO36: 244.9212287 | GP36: =GP35*GP31 -> 252.2688655 | GQ36: 259.8369315 | GR36: 267.6320394 | GS36: 275.6610006 | GT36: 283.9308306 | GU36: 292.4487556 | GV36: 301.2222182 | GW36: 310.2588848 | GX36: 319.5666513 | GY36: 329.1536509 | GZ36: 339.0282604 | HA36: 349.1991082 | HB36: 359.6750814 | HC36: 370.4653339 | HD36: 381.5792939 | HE36: 393.0266727 | HF36: 404.8174729 | HG36: 416.9619971 | HH36: 429.470857 | HI36: 442.3549827 | HJ36: 455.6256322 | HK36: 469.2944012 | HL36: 483.3732332 | HM36: 497.8744302 | HN36: 512.8106631 | HO36: 528.194983 | HP36: 544.0408325 | HQ36: 560.3620575 | HR36: 577.1729192 | HS36: 594.4881068 | HT36: 612.32275 | HU36: 630.6924325 | HV36: 649.6132054 | HW36: 669.1016016 | HX36: 689.1746496 | HY36: 709.8498891 | HZ36: 731.1453858 | IA36: 753.0797474 | IB36: 775.6721398 | IC36: 798.942304 | ID36: 822.9105731 | IE36: 847.5978903 | IF36: 873.025827 | IG36: 899.2166018 | IH36: 926.1930999 | II36: 953.9788929 | IJ36: 982.5982597 | IK36: 1012.076207 | IL36: 1042.438494 | IM36: 1073.711648 | IN36: 1105.922998 | IO36: 1139.100688 | IP36: 1173.273709 | IQ36: 1208.47192 | IR36: 1244.726077 | IS36: 1282.06786 | IT36: 1320.529895 | IU36: 1360.145792 | IV36: 1400.950166 | IW36: 1442.978671 | IX36: 1486.268031 | IY36: 1530.856072 | IZ36: 1576.781754 | JA36: 1624.085207 | JB36: =JB35*JB31 -> 1672.807763 | JC36: 1722.991996 | JD36: 1774.681756 | JE36: 1827.922209 | JF36: 1882.759875 | JG36: 1939.242671 | JH36: 1997.419951 | JI36: 2057.34255 | JJ36: 2119.062826 | JK36: 2182.634711 | JL36: 2248.113752 | JM36: 2315.557165 | JN36: 2385.02388 | JO36: 2456.574596 | JP36: 2530.271834 | JQ36: 2606.179989 | JR36: 2684.365389 | JS36: 2764.896351 | JT36: 2847.843241 | JU36: 2933.278538 | JV36: 3021.276895 | JW36: 3111.915201 | JX36: 3205.272657 | JY36: 3301.430837 | JZ36: 3400.473762 | KA36: 3502.487975 | KB36: 3607.562614 | KC36: 3715.789493 | KD36: 3827.263178 | KE36: 3942.081073 | KF36: 4060.343505 | KG36: 4182.15381 | KH36: 4307.618425 | KI36: 4436.846977 | KJ36: 4569.952387 | KK36: 4707.050958 | KL36: 4848.262487 | KM36: 4993.710362 | KN36: 5143.521672 | KO36: 5297.827323 | KP36: 5456.762142 | KQ36: 5620.465007 | KR36: 5789.078957
C37: Less Dividend | E37: =E36*E33 -> 0.63 | F37: =F36*F33 -> 0.6489 | G37: 0.668367 | H37: 0.68841801 | I37: 0.7090705503 | J37: 0.7303426668 | K37: 0.7522529468 | L37: 0.7748205352 | M37: 0.7980651513 | N37: 0.8220071058 | O37: 0.846667319 | P37: 0.8720673386 | Q37: 0.8982293587 | R37: 0.9251762395 | S37: 0.9529315267 | T37: 0.9815194725 | U37: 1.010965057 | V37: 1.041294008 | W37: 1.072532829 | X37: 1.104708813 | Y37: 1.137850078 | Z37: 1.17198558 | AA37: 1.207145148 | AB37: 1.243359502 | AC37: 1.280660287 | AD37: 1.319080096 | AE37: 1.358652499 | AF37: 1.399412074 | AG37: 1.441394436 | AH37: 1.484636269 | AI37: 1.529175357 | AJ37: 1.575050618 | AK37: 1.622302136 | AL37: 1.6709712 | AM37: 1.721100336 | AN37: 1.772733346 | AO37: 1.825915347 | AP37: 1.880692807 | AQ37: 1.937113591 | AR37: 1.995226999 | AS37: 2.055083809 | AT37: 2.116736323 | AU37: 2.180238413 | AV37: 2.245645565 | AW37: 2.313014932 | AX37: 2.38240538 | AY37: 2.453877542 | AZ37: 2.527493868 | BA37: 2.603318684 | BB37: 2.681418244 | BC37: 2.761860792 | BD37: 2.844716616 | BE37: 2.930058114 | BF37: 3.017959857 | BG37: 3.108498653 | BH37: 3.201753613 | BI37: 3.297806221 | BJ37: 3.396740408 | BK37: 3.49864262 | BL37: 3.603601899 | BM37: 3.711709956 | BN37: 3.823061254 | BO37: 3.937753092 | BP37: 4.055885685 | BQ37: 4.177562255 | BR37: =BR36*BR33 -> 4.302889123 | BS37: 4.431975796 | BT37: 4.56493507 | BU37: 4.701883122 | BV37: 4.842939616 | BW37: 4.988227805 | BX37: 5.137874639 | BY37: 5.292010878 | BZ37: 5.450771204 | CA37: 5.61429434 | CB37: 5.782723171 | CC37: 5.956204866 | CD37: 6.134891012 | CE37: 6.318937742 | CF37: 6.508505874 | CG37: 6.703761051 | CH37: 6.904873882 | CI37: 7.112020099 | CJ37: 7.325380701 | CK37: 7.545142123 | CL37: 7.771496386 | CM37: 8.004641278 | CN37: 8.244780516 | CO37: 8.492123932 | CP37: 8.74688765 | CQ37: 9.009294279 | CR37: 9.279573107 | CS37: 9.557960301 | CT37: 9.84469911 | CU37: 10.14004008 | CV37: 10.44424129 | CW37: 10.75756852 | CX37: 11.08029558 | CY37: 11.41270445 | CZ37: 11.75508558 | DA37: 12.10773815 | DB37: 12.47097029 | DC37: 12.8450994 | DD37: 13.23045238 | DE37: 13.62736595 | DF37: 14.03618693 | DG37: 14.45727254 | DH37: 14.89099072 | DI37: 15.33772044 | DJ37: 15.79785205 | DK37: 16.27178761 | DL37: 16.75994124 | DM37: 17.26273948 | DN37: 17.78062166 | DO37: 18.31404031 | DP37: 18.86346152 | DQ37: 19.42936537 | DR37: 20.01224633 | DS37: 20.61261372 | DT37: 21.23099213 | DU37: 21.8679219 | DV37: 22.52395955 | DW37: 23.19967834 | DX37: 23.89566869 | DY37: 24.61253875 | DZ37: 25.35091491 | EA37: 26.11144236 | EB37: 26.89478563 | EC37: 27.7016292 | ED37: =ED36*ED33 -> 28.53267808 | EE37: 29.38865842 | EF37: 30.27031817 | EG37: 31.17842772 | EH37: 32.11378055 | EI37: 33.07719396 | EJ37: 34.06950978 | EK37: 35.09159508 | EL37: 36.14434293 | EM37: 37.22867322 | EN37: 38.34553341 | EO37: 39.49589941 | EP37: 40.6807764 | EQ37: 41.90119969 | ER37: 43.15823568 | ES37: 44.45298275 | ET37: 45.78657223 | EU37: 47.1601694 | EV37: 48.57497448 | EW37: 50.03222372 | EX37: 51.53319043 | EY37: 53.07918614 | EZ37: 54.67156172 | FA37: 56.31170858 | FB37: 58.00105983 | FC37: 59.74109163 | FD37: 61.53332438 | FE37: 63.37932411 | FF37: 65.28070383 | FG37: 67.23912495 | FH37: 69.25629869 | FI37: 71.33398766 | FJ37: 73.47400729 | FK37: 75.6782275 | FL37: 77.94857433 | FM37: 80.28703156 | FN37: 82.69564251 | FO37: 85.17651178 | FP37: 87.73180713 | FQ37: 90.36376135 | FR37: 93.07467419 | FS37: 95.86691441 | FT37: 98.74292185 | FU37: 101.7052095 | FV37: 104.7563658 | FW37: 107.8990568 | FX37: 111.1360285 | FY37: 114.4701093 | FZ37: 117.9042126 | GA37: 121.441339 | GB37: 125.0845791 | GC37: 128.8371165 | GD37: 132.70223 | GE37: 136.6832969 | GF37: 140.7837958 | GG37: 145.0073097 | GH37: 149.357529 | GI37: 153.8382549 | GJ37: 158.4534025 | GK37: 163.2070046 | GL37: 168.1032147 | GM37: 173.1463112 | GN37: 178.3407005 | GO37: 183.6909215 | GP37: =GP36*GP33 -> 189.2016492 | GQ37: 194.8776986 | GR37: 200.7240296 | GS37: 206.7457505 | GT37: 212.948123 | GU37: 219.3365667 | GV37: 225.9166637 | GW37: 232.6941636 | GX37: 239.6749885 | GY37: 246.8652381 | GZ37: 254.2711953 | HA37: 261.8993312 | HB37: 269.7563111 | HC37: 277.8490004 | HD37: 286.1844704 | HE37: 294.7700045 | HF37: 303.6131047 | HG37: 312.7214978 | HH37: 322.1031428 | HI37: 331.766237 | HJ37: 341.7192241 | HK37: 351.9708009 | HL37: 362.5299249 | HM37: 373.4058226 | HN37: 384.6079973 | HO37: 396.1462372 | HP37: 408.0306244 | HQ37: 420.2715431 | HR37: 432.8796894 | HS37: 445.8660801 | HT37: 459.2420625 | HU37: 473.0193243 | HV37: 487.2099041 | HW37: 501.8262012 | HX37: 516.8809872 | HY37: 532.3874169 | HZ37: 548.3590394 | IA37: 564.8098105 | IB37: 581.7541049 | IC37: 599.206728 | ID37: 617.1829298 | IE37: 635.6984177 | IF37: 654.7693703 | IG37: 674.4124514 | IH37: 694.6448249 | II37: 715.4841697 | IJ37: 736.9486948 | IK37: 759.0571556 | IL37: 781.8288703 | IM37: 805.2837364 | IN37: 829.4422485 | IO37: 854.3255159 | IP37: 879.9552814 | IQ37: 906.3539398 | IR37: 933.544558 | IS37: 961.5508948 | IT37: 990.3974216 | IU37: 1020.109344 | IV37: 1050.712625 | IW37: 1082.234003 | IX37: 1114.701023 | IY37: 1148.142054 | IZ37: 1182.586316 | JA37: 1218.063905 | JB37: =JB36*JB33 -> 1254.605822 | JC37: 1292.243997 | JD37: 1331.011317 | JE37: 1370.941656 | JF37: 1412.069906 | JG37: 1454.432003 | JH37: 1498.064963 | JI37: 1543.006912 | JJ37: 1589.29712 | JK37: 1636.976033 | JL37: 1686.085314 | JM37: 1736.667874 | JN37: 1788.76791 | JO37: 1842.430947 | JP37: 1897.703876 | JQ37: 1954.634992 | JR37: 2013.274042 | JS37: 2073.672263 | JT37: 2135.882431 | JU37: 2199.958904 | JV37: 2265.957671 | JW37: 2333.936401 | JX37: 2403.954493 | JY37: 2476.073128 | JZ37: 2550.355322 | KA37: 2626.865981 | KB37: 2705.671961 | KC37: 2786.84212 | KD37: 2870.447383 | KE37: 2956.560805 | KF37: 3045.257629 | KG37: 3136.615358 | KH37: 3230.713818 | KI37: 3327.635233 | KJ37: 3427.46429 | KK37: 3530.288219 | KL37: 3636.196865 | KM37: 3745.282771 | KN37: 3857.641254 | KO37: 3973.370492 | KP37: 4092.571607 | KQ37: 4215.348755 | KR37: 4341.809218
C38: Closing balance | D38: =D23 -> 7 | E38: =E35+E36-E37 -> 7.21 | F38: =F35+F36-F37 -> 7.4263 | G38: 7.649089 | H38: 7.87856167 | I38: 8.11491852 | J38: 8.358366076 | K38: 8.609117058 | L38: 8.86739057 | M38: 9.133412287 | N38: 9.407414655 | O38: 9.689637095 | P38: 9.980326208 | Q38: 10.27973599 | R38: 10.58812807 | S38: 10.90577192 | T38: 11.23294507 | U38: 11.56993343 | V38: 11.91703143 | W38: 12.27454237 | X38: 12.64277864 | Y38: 13.022062 | Z38: 13.41272386 | AA38: 13.81510558 | AB38: 14.22955875 | AC38: 14.65644551 | AD38: 15.09613887 | AE38: 15.54902304 | AF38: 16.01549373 | AG38: 16.49595854 | AH38: 16.9908373 | AI38: 17.50056242 | AJ38: 18.02557929 | AK38: 18.56634667 | AL38: 19.12333707 | AM38: 19.69703718 | AN38: 20.2879483 | AO38: 20.89658674 | AP38: 21.52348435 | AQ38: 22.16918888 | AR38: 22.83426454 | AS38: 23.51929248 | AT38: 24.22487125 | AU38: 24.95161739 | AV38: 25.70016591 | AW38: 26.47117089 | AX38: 27.26530602 | AY38: 28.0832652 | AZ38: 28.92576315 | BA38: 29.79353605 | BB38: 30.68734213 | BC38: 31.60796239 | BD38: 32.55620127 | BE38: 33.5328873 | BF38: 34.53887392 | BG38: 35.57504014 | BH38: 36.64229135 | BI38: 37.74156009 | BJ38: 38.87380689 | BK38: 40.0400211 | BL38: 41.24122173 | BM38: 42.47845838 | BN38: 43.75281213 | BO38: 45.0653965 | BP38: 46.41735839 | BQ38: 47.80987914 | BR38: =BR35+BR36-BR37 -> 49.24417552 | BS38: 50.72150078 | BT38: 52.24314581 | BU38: 53.81044018 | BV38: 55.42475338 | BW38: 57.08749599 | BX38: 58.80012087 | BY38: 60.56412449 | BZ38: 62.38104823 | CA38: 64.25247967 | CB38: 66.18005406 | CC38: 68.16545569 | CD38: 70.21041936 | CE38: 72.31673194 | CF38: 74.4862339 | CG38: 76.72082091 | CH38: 79.02244554 | CI38: 81.39311891 | CJ38: 83.83491247 | CK38: 86.34995985 | CL38: 88.94045864 | CM38: 91.6086724 | CN38: 94.35693257 | CO38: 97.18764055 | CP38: 100.1032698 | CQ38: 103.1063679 | CR38: 106.1995589 | CS38: 109.3855457 | CT38: 112.667112 | CU38: 116.0471254 | CV38: 119.5285392 | CW38: 123.1143953 | CX38: 126.8078272 | CY38: 130.612062 | CZ38: 134.5304239 | DA38: 138.5663366 | DB38: 142.7233267 | DC38: 147.0050265 | DD38: 151.4151773 | DE38: 155.9576326 | DF38: 160.6363616 | DG38: 165.4554524 | DH38: 170.419116 | DI38: 175.5316895 | DJ38: 180.7976402 | DK38: 186.2215694 | DL38: 191.8082164 | DM38: 197.5624629 | DN38: 203.4893368 | DO38: 209.5940169 | DP38: 215.8818374 | DQ38: 222.3582926 | DR38: 229.0290413 | DS38: 235.8999126 | DT38: 242.9769099 | DU38: 250.2662172 | DV38: 257.7742038 | DW38: 265.5074299 | DX38: 273.4726528 | DY38: 281.6768324 | DZ38: 290.1271373 | EA38: 298.8309514 | EB38: 307.79588 | EC38: 317.0297564 | ED38: =ED35+ED36-ED37 -> 326.5406491 | EE38: 336.3368686 | EF38: 346.4269746 | EG38: 356.8197839 | EH38: 367.5243774 | EI38: 378.5501087 | EJ38: 389.9066119 | EK38: 401.6038103 | EL38: 413.6519246 | EM38: 426.0614824 | EN38: 438.8433268 | EO38: 452.0086266 | EP38: 465.5688854 | EQ38: 479.535952 | ER38: 493.9220306 | ES38: 508.7396915 | ET38: 524.0018822 | EU38: 539.7219387 | EV38: 555.9135968 | EW38: 572.5910047 | EX38: 589.7687349 | EY38: 607.4617969 | EZ38: 625.6856508 | FA38: 644.4562204 | FB38: 663.789907 | FC38: 683.7036042 | FD38: 704.2147123 | FE38: 725.3411537 | FF38: 747.1013883 | FG38: 769.5144299 | FH38: 792.5998628 | FI38: 816.3778587 | FJ38: 840.8691945 | FK38: 866.0952703 | FL38: 892.0781284 | FM38: 918.8404723 | FN38: 946.4056864 | FO38: 974.797857 | FP38: 1004.041793 | FQ38: 1034.163047 | FR38: 1065.187938 | FS38: 1097.143576 | FT38: 1130.057883 | FU38: 1163.95962 | FV38: 1198.878408 | FW38: 1234.844761 | FX38: 1271.890104 | FY38: 1310.046807 | FZ38: 1349.348211 | GA38: 1389.828657 | GB38: 1431.523517 | GC38: 1474.469222 | GD38: 1518.703299 | GE38: 1564.264398 | GF38: 1611.19233 | GG38: 1659.5281 | GH38: 1709.313943 | GI38: 1760.593361 | GJ38: 1813.411162 | GK38: 1867.813497 | GL38: 1923.847902 | GM38: 1981.563339 | GN38: 2041.010239 | GO38: 2102.240546 | GP38: =GP35+GP36-GP37 -> 2165.307763 | GQ38: 2230.266995 | GR38: 2297.175005 | GS38: 2366.090255 | GT38: 2437.072963 | GU38: 2510.185152 | GV38: 2585.490707 | GW38: 2663.055428 | GX38: 2742.947091 | GY38: 2825.235503 | GZ38: 2909.992568 | HA38: 2997.292345 | HB38: 3087.211116 | HC38: 3179.827449 | HD38: 3275.222273 | HE38: 3373.478941 | HF38: 3474.683309 | HG38: 3578.923808 | HH38: 3686.291523 | HI38: 3796.880268 | HJ38: 3910.786676 | HK38: 4028.110277 | HL38: 4148.953585 | HM38: 4273.422193 | HN38: 4401.624858 | HO38: 4533.673604 | HP38: 4669.683812 | HQ38: 4809.774327 | HR38: 4954.067556 | HS38: 5102.689583 | HT38: 5255.77027 | HU38: 5413.443379 | HV38: 5575.84668 | HW38: 5743.12208 | HX38: 5915.415743 | HY38: 6092.878215 | HZ38: 6275.664562 | IA38: 6463.934498 | IB38: 6657.852533 | IC38: 6857.588109 | ID38: 7063.315753 | IE38: 7275.215225 | IF38: 7493.471682 | IG38: 7718.275832 | IH38: 7949.824107 | II38: 8188.318831 | IJ38: 8433.968395 | IK38: 8686.987447 | IL38: 8947.597071 | IM38: 9216.024983 | IN38: 9492.505732 | IO38: 9777.280904 | IP38: 10070.59933 | IQ38: 10372.71731 | IR38: 10683.89883 | IS38: 11004.4158 | IT38: 11334.54827 | IU38: 11674.58472 | IV38: 12024.82226 | IW38: 12385.56693 | IX38: 12757.13393 | IY38: 13139.84795 | IZ38: 13534.04339 | JA38: 13940.06469 | JB38: =JB35+JB36-JB37 -> 14358.26663 | JC38: 14789.01463 | JD38: 15232.68507 | JE38: 15689.66562 | JF38: 16160.35559 | JG38: 16645.16626 | JH38: 17144.52125 | JI38: 17658.85689 | JJ38: 18188.62259 | JK38: 18734.28127 | JL38: 19296.30971 | JM38: 19875.199 | JN38: 20471.45497 | JO38: 21085.59862 | JP38: 21718.16658 | JQ38: 22369.71157 | JR38: 23040.80292 | JS38: 23732.02701 | JT38: 24443.98782 | JU38: 25177.30745 | JV38: 25932.62668 | JW38: 26710.60548 | JX38: 27511.92364 | JY38: 28337.28135 | JZ38: 29187.39979 | KA38: 30063.02179 | KB38: 30964.91244 | KC38: 31893.85981 | KD38: 32850.67561 | KE38: 33836.19588 | KF38: 34851.28175 | KG38: 35896.8202 | KH38: 36973.72481 | KI38: 38082.93655 | KJ38: 39225.42465 | KK38: 40402.18739 | KL38: 41614.25301 | KM38: 42862.6806 | KN38: 44148.56102 | KO38: 45473.01785 | KP38: 46837.20839 | KQ38: 48242.32464 | KR38: 49689.59438
C40: Growth rate in earning | F40: =F36/E36-1 -> 0.03 | G40: =G36/F36-1 -> 0.03 | H40: 0.03 | I40: 0.03 | J40: 0.03 | K40: 0.03 | L40: 0.03 | M40: 0.03 | N40: 0.03 | O40: 0.03 | P40: 0.03 | Q40: 0.03 | R40: 0.03 | S40: 0.03 | T40: 0.03 | U40: 0.03 | V40: 0.03 | W40: 0.03 | X40: 0.03 | Y40: 0.03 | Z40: 0.03 | AA40: 0.03 | AB40: 0.03 | AC40: 0.03 | AD40: 0.03 | AE40: 0.03 | AF40: 0.03 | AG40: 0.03 | AH40: 0.03 | AI40: 0.03 | AJ40: 0.03 | AK40: 0.03 | AL40: 0.03 | AM40: 0.03 | AN40: 0.03 | AO40: 0.03 | AP40: 0.03 | AQ40: 0.03 | AR40: 0.03 | AS40: 0.03 | AT40: 0.03 | AU40: 0.03 | AV40: 0.03 | AW40: 0.03 | AX40: 0.03 | AY40: 0.03 | AZ40: 0.03 | BA40: 0.03 | BB40: 0.03 | BC40: 0.03 | BD40: 0.03 | BE40: 0.03 | BF40: 0.03 | BG40: 0.03 | BH40: 0.03 | BI40: 0.03 | BJ40: 0.03 | BK40: 0.03 | BL40: 0.03 | BM40: 0.03 | BN40: 0.03 | BO40: 0.03 | BP40: 0.03 | BQ40: 0.03 | BR40: 0.03 | BS40: =BS36/BR36-1 -> 0.03 | BT40: 0.03 | BU40: 0.03 | BV40: 0.03 | BW40: 0.03 | BX40: 0.03 | BY40: 0.03 | BZ40: 0.03 | CA40: 0.03 | CB40: 0.03 | CC40: 0.03 | CD40: 0.03 | CE40: 0.03 | CF40: 0.03 | CG40: 0.03 | CH40: 0.03 | CI40: 0.03 | CJ40: 0.03 | CK40: 0.03 | CL40: 0.03 | CM40: 0.03 | CN40: 0.03 | CO40: 0.03 | CP40: 0.03 | CQ40: 0.03 | CR40: 0.03 | CS40: 0.03 | CT40: 0.03 | CU40: 0.03 | CV40: 0.03 | CW40: 0.03 | CX40: 0.03 | CY40: 0.03 | CZ40: 0.03 | DA40: 0.03 | DB40: 0.03 | DC40: 0.03 | DD40: 0.03 | DE40: 0.03 | DF40: 0.03 | DG40: 0.03 | DH40: 0.03 | DI40: 0.03 | DJ40: 0.03 | DK40: 0.03 | DL40: 0.03 | DM40: 0.03 | DN40: 0.03 | DO40: 0.03 | DP40: 0.03 | DQ40: 0.03 | DR40: 0.03 | DS40: 0.03 | DT40: 0.03 | DU40: 0.03 | DV40: 0.03 | DW40: 0.03 | DX40: 0.03 | DY40: 0.03 | DZ40: 0.03 | EA40: 0.03 | EB40: 0.03 | EC40: 0.03 | ED40: 0.03 | EE40: =EE36/ED36-1 -> 0.03 | EF40: 0.03 | EG40: 0.03 | EH40: 0.03 | EI40: 0.03 | EJ40: 0.03 | EK40: 0.03 | EL40: 0.03 | EM40: 0.03 | EN40: 0.03 | EO40: 0.03 | EP40: 0.03 | EQ40: 0.03 | ER40: 0.03 | ES40: 0.03 | ET40: 0.03 | EU40: 0.03 | EV40: 0.03 | EW40: 0.03 | EX40: 0.03 | EY40: 0.03 | EZ40: 0.03 | FA40: 0.03 | FB40: 0.03 | FC40: 0.03 | FD40: 0.03 | FE40: 0.03 | FF40: 0.03 | FG40: 0.03 | FH40: 0.03 | FI40: 0.03 | FJ40: 0.03 | FK40: 0.03 | FL40: 0.03 | FM40: 0.03 | FN40: 0.03 | FO40: 0.03 | FP40: 0.03 | FQ40: 0.03 | FR40: 0.03 | FS40: 0.03 | FT40: 0.03 | FU40: 0.03 | FV40: 0.03 | FW40: 0.03 | FX40: 0.03 | FY40: 0.03 | FZ40: 0.03 | GA40: 0.03 | GB40: 0.03 | GC40: 0.03 | GD40: 0.03 | GE40: 0.03 | GF40: 0.03 | GG40: 0.03 | GH40: 0.03 | GI40: 0.03 | GJ40: 0.03 | GK40: 0.03 | GL40: 0.03 | GM40: 0.03 | GN40: 0.03 | GO40: 0.03 | GP40: 0.03 | GQ40: =GQ36/GP36-1 -> 0.03 | GR40: 0.03 | GS40: 0.03 | GT40: 0.03 | GU40: 0.03 | GV40: 0.03 | GW40: 0.03 | GX40: 0.03 | GY40: 0.03 | GZ40: 0.03 | HA40: 0.03 | HB40: 0.03 | HC40: 0.03 | HD40: 0.03 | HE40: 0.03 | HF40: 0.03 | HG40: 0.03 | HH40: 0.03 | HI40: 0.03 | HJ40: 0.03 | HK40: 0.03 | HL40: 0.03 | HM40: 0.03 | HN40: 0.03 | HO40: 0.03 | HP40: 0.03 | HQ40: 0.03 | HR40: 0.03 | HS40: 0.03 | HT40: 0.03 | HU40: 0.03 | HV40: 0.03 | HW40: 0.03 | HX40: 0.03 | HY40: 0.03 | HZ40: 0.03 | IA40: 0.03 | IB40: 0.03 | IC40: 0.03 | ID40: 0.03 | IE40: 0.03 | IF40: 0.03 | IG40: 0.03 | IH40: 0.03 | II40: 0.03 | IJ40: 0.03 | IK40: 0.03 | IL40: 0.03 | IM40: 0.03 | IN40: 0.03 | IO40: 0.03 | IP40: 0.03 | IQ40: 0.03 | IR40: 0.03 | IS40: 0.03 | IT40: 0.03 | IU40: 0.03 | IV40: 0.03 | IW40: 0.03 | IX40: 0.03 | IY40: 0.03 | IZ40: 0.03 | JA40: 0.03 | JB40: 0.03 | JC40: =JC36/JB36-1 -> 0.03 | JD40: 0.03 | JE40: 0.03 | JF40: 0.03 | JG40: 0.03 | JH40: 0.03 | JI40: 0.03 | JJ40: 0.03 | JK40: 0.03 | JL40: 0.03 | JM40: 0.03 | JN40: 0.03 | JO40: 0.03 | JP40: 0.03 | JQ40: 0.03 | JR40: 0.03 | JS40: 0.03 | JT40: 0.03 | JU40: 0.03 | JV40: 0.03 | JW40: 0.03 | JX40: 0.03 | JY40: 0.03 | JZ40: 0.03 | KA40: 0.03 | KB40: 0.03 | KC40: 0.03 | KD40: 0.03 | KE40: 0.03 | KF40: 0.03 | KG40: 0.03 | KH40: 0.03 | KI40: 0.03 | KJ40: 0.03 | KK40: 0.03 | KL40: 0.03 | KM40: 0.03 | KN40: 0.03 | KO40: 0.03 | KP40: 0.03 | KQ40: 0.03 | KR40: 0.03
D42: 2 Way data Table | I42: Growth Rate
F43: =H17 -> 8.961412363 | G43: 0 | H43: 0.01 | I43: 0.02 | J43: 0.03 | K43: 0.04 | L43: 0.05
B44: Current PE Ratio | D44: 14 | F44: 0.07 | G44: 18.45774614 | H44: 18.55509619 | I44: 18.65244623 | J44: 18.74979628 | K44: 18.84714633 | L44: 18.94449637
F45: 0.08 | G45: 14.8148051 | H45: 14.8765334 | I45: 14.9382617 | J45: 14.99999 | K45: 15.06171829 | L45: 15.12344659
E46: COE | F46: 0.09 | G46: 12.38532059 | H46: 12.42354689 | I46: 12.46177318 | J46: 12.49999948 | K46: 12.53822577 | L46: 12.57645206
F47: 0.1 | G47: 10.64935062 | H47: 10.67099564 | I47: 10.69264066 | J47: 10.71428569 | K47: 10.73593071 | L47: 10.75757573
F48: 0.11 | G48: 9.346846845 | H48: 9.35623123 | I48: 9.365615614 | J48: 9.374999998 | K48: 9.384384383 | L48: 9.393768767
F49: 0.12 | G49: 8.333333333 | H49: 8.333333333 | I49: 8.333333333 | J49: 8.333333333 | K49: 8.333333333 | L49: 8.333333333
D51: 1 Way table | G51: PE Ratio | H51: Market to BOOK ratio
G52: =H17 -> 8.961412363 | H52: =ROUND(H19,2) -> 1.08
F53: 0.07 | G53: 14.72105391 | H53: 1.03
F54: 0.08 | G54: 12.99316145 | H54: 1.04
E55: ROE | F55: 0.09 | G55: 11.64924509 | H55: 1.05
F56: 0.1 | G56: 10.574112 | H56: 1.06
F57: 0.11 | G57: 9.694457652 | H57: 1.07
F58: 0.12 | G58: 8.961412363 | H58: 1.08
A60: Exapmple of High Growth Rate
C62: Growth rate
C63: Population Growth | D63: 0.02
C64: Productivity Growth | D64: 0.005
C65: GDP | D65: 100 | E65: =D65*($D$63+1)*(1+$D$64) -> 102.51 | F65: =E65*($D$63+1)*(1+$D$64) -> 105.083001 | G65: 107.7205843 | H65: 110.424371 | I65: 113.1960227 | J65: 116.0372429 | K65: 118.9497777 | L65: 121.9354171 | M65: 124.9959961 | N65: 128.1333956 | O65: 131.3495438 | P65: 134.6464173 | Q65: 138.0260424 | R65: 141.4904961 | S65: 145.0419075 | T65: 148.6824594 | U65: 152.4143891 | V65: 156.2399903 | W65: 160.1616141 | X65: 164.1816706 | Y65: 168.3026305 | Z65: 172.5270265 | AA65: 176.8574549 | AB65: 181.296577 | AC65: 185.8471211 | AD65: 190.5118838 | AE65: 195.2937321 | AF65: 200.1956048 | AG65: 205.2205145 | AH65: 210.3715494 | AI65: 215.6518753 | AJ65: 221.0647374 | AK65: 226.6134623 | AL65: 232.3014602 | AM65: 238.1322268 | AN65: 244.1093457 | AO65: 250.2364903 | AP65: 256.5174262 | AQ65: 262.9560136 | AR65: 269.5562095 | AS65: 276.3220704 | AT65: 283.2577544 | AU65: 290.367524 | AV65: 297.6557488 | AW65: 305.1269081 | AX65: 312.7855935 | AY65: 320.6365119 | AZ65: 328.6844884 | BA65: 336.934469 | BB65: 345.3915242 | BC65: 354.0608515 | BD65: 362.9477788 | BE65: 372.0577681 | BF65: 381.3964181 | BG65: 390.9694682 | BH65: 400.7828018 | BI65: 410.8424501 | BJ65: 421.1545956 | BK65: 431.725576 | BL65: 442.5618879 | BM65: 453.6701913 | BN65: 465.0573131 | BO65: 476.7302517 | BP65: 488.696181 | BQ65: 500.9624552 | BR65: =BQ65*($D$63+1)*(1+$D$64) -> 513.5366128 | BS65: 526.4263818 | BT65: 539.6396839 | BU65: 553.18464 | BV65: 567.0695745 | BW65: 581.3030208 | BX65: 595.8937266 | BY65: 610.8506591 | BZ65: 626.1830107 | CA65: 641.9002043 | CB65: 658.0118994 | CC65: 674.5279981 | CD65: 691.4586508 | CE65: 708.8142629 | CF65: 726.6055009 | CG65: 744.843299 | CH65: 763.5388658 | CI65: 782.7036914 | CJ65: 802.349554 | CK65: 822.4885278 | CL65: 843.1329899 | CM65: 864.2956279 | CN65: 885.9894482 | CO65: 908.2277833 | CP65: 931.0243007 | CQ65: 954.3930106 | CR65: 978.3482752 | CS65: 1002.904817 | CT65: 1028.077728 | CU65: 1053.882479 | CV65: 1080.334929 | CW65: 1107.451336 | CX65: 1135.248364 | CY65: 1163.743098 | CZ65: 1192.95305 | DA65: 1222.896171 | DB65: 1253.590865 | DC65: 1285.055996 | DD65: 1317.310902 | DE65: 1350.375405 | DF65: 1384.269828 | DG65: 1419.015001 | DH65: 1454.632277 | DI65: 1491.143547 | DJ65: 1528.57125 | DK65: 1566.938389 | DL65: 1606.268542 | DM65: 1646.585883 | DN65: 1687.915188 | DO65: 1730.28186 | DP65: 1773.711934 | DQ65: 1818.232104 | DR65: 1863.86973 | DS65: 1910.65286 | DT65: 1958.610247 | DU65: 2007.771364 | DV65: 2058.166425 | DW65: 2109.826402 | DX65: 2162.783045 | DY65: 2217.068899 | DZ65: 2272.717329 | EA65: 2329.762534 | EB65: 2388.239573 | EC65: 2448.184387 | ED65: =EC65*($D$63+1)*(1+$D$64) -> 2509.633815 | EE65: 2572.625623 | EF65: 2637.198527 | EG65: 2703.39221 | EH65: 2771.247354 | EI65: 2840.805663 | EJ65: 2912.109885 | EK65: 2985.203843 | EL65: 3060.132459 | EM65: 3136.941784 | EN65: 3215.679023 | EO65: 3296.392566 | EP65: 3379.13202 | EQ65: 3463.948233 | ER65: 3550.893334 | ES65: 3640.020757 | ET65: 3731.385278 | EU65: 3825.043048 | EV65: 3921.051629 | EW65: 4019.470025 | EX65: 4120.358722 | EY65: 4223.779726 | EZ65: 4329.796597 | FA65: 4438.474492 | FB65: 4549.880202 | FC65: 4664.082195 | FD65: 4781.150658 | FE65: 4901.157539 | FF65: 5024.176594 | FG65: 5150.283426 | FH65: 5279.55554 | FI65: 5412.072384 | FJ65: 5547.915401 | FK65: 5687.168078 | FL65: 5829.915996 | FM65: 5976.246888 | FN65: 6126.250685 | FO65: 6280.019577 | FP65: 6437.648068 | FQ65: 6599.233035 | FR65: 6764.873784 | FS65: 6934.672116 | FT65: 7108.732386 | FU65: 7287.161569 | FV65: 7470.069324 | FW65: 7657.568064 | FX65: 7849.773023 | FY65: 8046.802326 | FZ65: 8248.777064 | GA65: 8455.821368 | GB65: 8668.062485 | GC65: 8885.630853 | GD65: 9108.660187 | GE65: 9337.287558 | GF65: 9571.653476 | GG65: 9811.901978 | GH65: 10058.18072 | GI65: 10310.64105 | GJ65: 10569.43814 | GK65: 10834.73104 | GL65: 11106.68279 | GM65: 11385.46053 | GN65: 11671.23559 | GO65: 11964.1836 | GP65: =GO65*($D$63+1)*(1+$D$64) -> 12264.48461 | GQ65: 12572.32317 | GR65: 12887.88849 | GS65: 13211.37449 | GT65: 13542.97999 | GU65: 13882.90878 | GV65: 14231.36979 | GW65: 14588.57718 | GX65: 14954.75046 | GY65: 15330.1147 | GZ65: 15714.90058 | HA65: 16109.34458 | HB65: 16513.68913 | HC65: 16928.18273 | HD65: 17353.08012 | HE65: 17788.64243 | HF65: 18235.13735 | HG65: 18692.8393 | HH65: 19162.02957 | HI65: 19642.99651 | HJ65: 20136.03572 | HK65: 20641.45022 | HL65: 21159.55062 | HM65: 21690.65534 | HN65: 22235.09079 | HO65: 22793.19156 | HP65: 23365.30067 | HQ65: 23951.76972 | HR65: 24552.95914 | HS65: 25169.23841 | HT65: 25800.9863 | HU65: 26448.59105 | HV65: 27112.45069 | HW65: 27792.9732 | HX65: 28490.57683 | HY65: 29205.69031 | HZ65: 29938.75313 | IA65: 30690.21584 | IB65: 31460.54026 | IC65: 32250.19982 | ID65: 33059.67983 | IE65: 33889.4778 | IF65: 34740.10369 | IG65: 35612.08029 | IH65: 36505.94351 | II65: 37422.24269 | IJ65: 38361.54098 | IK65: 39324.41566 | IL65: 40311.45849 | IM65: 41323.2761 | IN65: 42360.49033 | IO65: 43423.73864 | IP65: 44513.67448 | IQ65: 45630.96771 | IR65: 46776.305 | IS65: 47950.39025 | IT65: 49153.94505 | IU65: 50387.70907 | IV65: 51652.44056 | IW65: 52948.91682 | IX65: 54277.93463 | IY65: 55640.31079 | IZ65: 57036.8826 | JA65: 58468.50835 | JB65: =JA65*($D$63+1)*(1+$D$64) -> 59936.06791 | JC65: 61440.46321 | JD65: 62982.61884 | JE65: 64563.48257 | JF65: 66184.02598 | JG65: 67845.24504 | JH65: 69548.16069 | JI65: 71293.81952 | JJ65: 73083.29439 | JK65: 74917.68508 | JL65: 76798.11897 | JM65: 78725.75176 | JN65: 80701.76813 | JO65: 82727.38251 | JP65: 84803.83981 | JQ65: 86932.41619 | JR65: 89114.41984 | JS65: 91351.19178 | JT65: 93644.10669 | JU65: 95994.57377 | JV65: 98404.03757 | JW65: 100873.9789 | JX65: 103405.9158 | JY65: 106001.4043 | JZ65: 108662.0395 | KA65: 111389.4567 | KB65: 114185.3321 | KC65: 117051.3839 | KD65: 119989.3736 | KE65: 123001.1069 | KF65: 126088.4347 | KG65: 129253.2544 | KH65: 132497.5111 | KI65: 135823.1986 | KJ65: 139232.3609 | KK65: 142727.0932 | KL65: 146309.5432 | KM65: 149981.9127 | KN65: 153746.4588 | KO65: 157605.4949 | KP65: 161561.3928 | KQ65: 165616.5838 | KR65: 169773.56
C66: APPLE | D66: 0.01
C67: APPLE Growth Rate | D67: 0.3
C68: APPLE revenue | D68: =D65*D66 -> 1 | E68: =D68*(1+$D$67) -> 1.3 | F68: =E68*(1+$D$67) -> 1.69 | G68: 2.197 | H68: 2.8561 | I68: 3.71293 | J68: 4.826809 | K68: 6.2748517 | L68: 8.15730721 | M68: 10.60449937 | N68: 13.78584918 | O68: 17.92160394 | P68: 23.29808512 | Q68: 30.28751066 | R68: 39.37376386 | S68: 51.18589301 | T68: 66.54166092 | U68: 86.50415919 | V68: 112.455407 | W68: 146.192029 | X68: 190.0496377 | Y68: 247.0645291 | Z68: 321.1838878 | AA68: 417.5390541 | AB68: 542.8007704 | AC68: 705.6410015 | AD68: 917.3333019 | AE68: 1192.533293 | AF68: 1550.29328 | AG68: 2015.381264 | AH68: 2619.995644 | AI68: 3405.994337 | AJ68: 4427.792638 | AK68: 5756.130429 | AL68: 7482.969558 | AM68: 9727.860425 | AN68: 12646.21855 | AO68: 16440.08412 | AP68: 21372.10935 | AQ68: 27783.74216 | AR68: 36118.86481 | AS68: 46954.52425 | AT68: 61040.88153 | AU68: 79353.14598 | AV68: 103159.0898 | AW68: 134106.8167 | AX68: 174338.8617 | AY68: 226640.5202 | AZ68: 294632.6763 | BA68: 383022.4792 | BB68: 497929.223 | BC68: 647307.9899 | BD68: 841500.3868 | BE68: 1093950.503 | BF68: 1422135.654 | BG68: 1848776.35 | BH68: 2403409.255 | BI68: 3124432.031 | BJ68: 4061761.641 | BK68: 5280290.133 | BL68: 6864377.173 | BM68: 8923690.325 | BN68: 11600797.42 | BO68: 15081036.65 | BP68: 19605347.64 | BQ68: 25486951.94 | BR68: =BQ68*(1+$D$67) -> 33133037.52 | BS68: 43072948.77 | BT68: 55994833.4 | BU68: 72793283.42 | BV68: 94631268.45 | BW68: 123020649 | BX68: 159926843.7 | BY68: 207904896.8 | BZ68: 270276365.8 | CA68: 351359275.6 | CB68: 456767058.2 | CC68: 593797175.7 | CD68: 771936328.4 | CE68: 1003517227 | CF68: 1304572395 | CG68: 1695944114 | CH68: 2204727348 | CI68: 2866145552 | CJ68: 3725989218 | CK68: 4843785983 | CL68: 6296921778 | CM68: 8185998311 | CN68: 1.06417978e+10 | CO68: 1.383433715e+10 | CP68: 1.798463829e+10 | CQ68: 2.338002978e+10 | CR68: 3.039403871e+10 | CS68: 3.951225032e+10 | CT68: 5.136592542e+10 | CU68: 6.677570304e+10 | CV68: 8.680841395e+10 | CW68: 1.128509381e+11 | CX68: 1.467062196e+11 | CY68: 1.907180855e+11 | CZ68: 2.479335111e+11 | DA68: 3.223135644e+11 | DB68: 4.190076338e+11 | DC68: 5.447099239e+11 | DD68: 7.08122901e+11 | DE68: 9.205597714e+11 | DF68: 1.196727703e+12 | DG68: 1.555746014e+12 | DH68: 2.022469818e+12 | DI68: 2.629210763e+12 | DJ68: 3.417973992e+12 | DK68: 4.443366189e+12 | DL68: 5.776376046e+12 | DM68: 7.50928886e+12 | DN68: 9.762075518e+12 | DO68: 1.269069817e+13 | DP68: 1.649790763e+13 | DQ68: 2.144727991e+13 | DR68: 2.788146389e+13 | DS68: 3.624590305e+13 | DT68: 4.711967397e+13 | DU68: 6.125557616e+13 | DV68: 7.963224901e+13 | DW68: 1.035219237e+14 | DX68: 1.345785008e+14 | DY68: 1.749520511e+14 | DZ68: 2.274376664e+14 | EA68: 2.956689663e+14 | EB68: 3.843696562e+14 | EC68: 4.996805531e+14 | ED68: =EC68*(1+$D$67) -> 6.49584719e+14 | EE68: 8.444601347e+14 | EF68: 1.097798175e+15 | EG68: 1.427137628e+15 | EH68: 1.855278916e+15 | EI68: 2.411862591e+15 | EJ68: 3135421367873381 | EK68: 4.076047778e+15 | EL68: 5298862111706014 | EM68: 6888520745217818 | EN68: 8955076968783164 | EO68: 1.164160006e+16 | EP68: 1.513408008e+16 | EQ68: 1.96743041e+16 | ER68: 2.557659533e+16 | ES68: 3.324957393e+16 | ET68: 4.322444611e+16 | EU68: 5.619177994e+16 | EV68: 7.304931392e+16 | EW68: 9.49641081e+16 | EX68: 1.234533405e+17 | EY68: 1.604893427e+17 | EZ68: 2.086361455e+17 | FA68: 2.712269891e+17 | FB68: 3.525950859e+17 | FC68: 4.583736117e+17 | FD68: 5.958856952e+17 | FE68: 7.746514037e+17 | FF68: 1.007046825e+18 | FG68: 1.309160872e+18 | FH68: 1.701909134e+18 | FI68: 2.212481874e+18 | FJ68: 2.876226436e+18 | FK68: 3.739094367e+18 | FL68: 4.860822677e+18 | FM68: 6.319069481e+18 | FN68: 8.214790325e+18 | FO68: 1.067922742e+19 | FP68: 1.388299565e+19 | FQ68: 1.804789434e+19 | FR68: 2.346226265e+19 | FS68: 3.050094144e+19 | FT68: 3.965122387e+19 | FU68: 5.154659103e+19 | FV68: 6.701056835e+19 | FW68: 8.711373885e+19 | FX68: 1.132478605e+20 | FY68: 1.472222187e+20 | FZ68: 1.913888843e+20 | GA68: 2.488055495e+20 | GB68: 3.234472144e+20 | GC68: 4.204813787e+20 | GD68: 5.466257923e+20 | GE68: 7.1061353e+20 | GF68: 9.23797589e+20 | GG68: 1.200936866e+21 | GH68: 1.561217925e+21 | GI68: 2.029583303e+21 | GJ68: 2.638458294e+21 | GK68: 3.429995782e+21 | GL68: 4.458994517e+21 | GM68: 5.796692872e+21 | GN68: 7.535700733e+21 | GO68: 9.796410953e+21 | GP68: =GO68*(1+$D$67) -> 1.273533424e+22 | GQ68: 1.655593451e+22 | GR68: 2.152271486e+22 | GS68: 2.797952932e+22 | GT68: 3.637338812e+22 | GU68: 4.728540456e+22 | GV68: 6.147102592e+22 | GW68: 7.99123337e+22 | GX68: 1.038860338e+23 | GY68: 1.35051844e+23 | GZ68: 1.755673971e+23 | HA68: 2.282376163e+23 | HB68: 2.967089012e+23 | HC68: 3.857215715e+23 | HD68: 5.01438043e+23 | HE68: 6.518694559e+23 | HF68: 8.474302926e+23 | HG68: 1.10165938e+24 | HH68: 1.432157195e+24 | HI68: 1.861804353e+24 | HJ68: 2.420345659e+24 | HK68: 3.146449356e+24 | HL68: 4.090384163e+24 | HM68: 5.317499412e+24 | HN68: 6.912749236e+24 | HO68: 8.986574007e+24 | HP68: 1.168254621e+25 | HQ68: 1.518731007e+25 | HR68: 1.974350309e+25 | HS68: 2.566655402e+25 | HT68: 3.336652023e+25 | HU68: 4.33764763e+25 | HV68: 5.638941918e+25 | HW68: 7.330624494e+25 | HX68: 9.529811842e+25 | HY68: 1.238875539e+26 | HZ68: 1.610538201e+26 | IA68: 2.093699662e+26 | IB68: 2.72180956e+26 | IC68: 3.538352428e+26 | ID68: 4.599858157e+26 | IE68: 5.979815604e+26 | IF68: 7.773760285e+26 | IG68: 1.010588837e+27 | IH68: 1.313765488e+27 | II68: 1.707895135e+27 | IJ68: 2.220263675e+27 | IK68: 2.886342778e+27 | IL68: 3.752245611e+27 | IM68: 4.877919294e+27 | IN68: 6.341295082e+27 | IO68: 8.243683607e+27 | IP68: 1.071678869e+28 | IQ68: 1.39318253e+28 | IR68: 1.811137288e+28 | IS68: 2.354478475e+28 | IT68: 3.060822017e+28 | IU68: 3.979068623e+28 | IV68: 5.172789209e+28 | IW68: 6.724625972e+28 | IX68: 8.742013764e+28 | IY68: 1.136461789e+29 | IZ68: 1.477400326e+29 | JA68: 1.920620424e+29 | JB68: =JA68*(1+$D$67) -> 2.496806551e+29 | JC68: 3.245848516e+29 | JD68: 4.219603071e+29 | JE68: 5.485483993e+29 | JF68: 7.131129191e+29 | JG68: 9.270467948e+29 | JH68: 1.205160833e+30 | JI68: 1.566709083e+30 | JJ68: 2.036721808e+30 | JK68: 2.647738351e+30 | JL68: 3.442059856e+30 | JM68: 4.474677813e+30 | JN68: 5.817081156e+30 | JO68: 7.562205503e+30 | JP68: 9.830867154e+30 | JQ68: 1.27801273e+31 | JR68: 1.661416549e+31 | JS68: 2.159841514e+31 | JT68: 2.807793968e+31 | JU68: 3.650132158e+31 | JV68: 4.745171806e+31 | JW68: 6.168723347e+31 | JX68: 8.019340352e+31 | JY68: 1.042514246e+32 | JZ68: 1.355268519e+32 | KA68: 1.761849075e+32 | KB68: 2.290403798e+32 | KC68: 2.977524937e+32 | KD68: 3.870782418e+32 | KE68: 5.032017144e+32 | KF68: 6.541622287e+32 | KG68: 8.504108973e+32 | KH68: 1.105534167e+33 | KI68: 1.437194416e+33 | KJ68: 1.868352741e+33 | KK68: 2.428858564e+33 | KL68: 3.157516133e+33 | KM68: 4.104770973e+33 | KN68: 5.336202265e+33 | KO68: 6.937062944e+33 | KP68: 9.018181827e+33 | KQ68: 1.172363638e+34 | KR68: 1.524072729e+34
C69: APPLE %GDP | D69: =D68/D65 -> 0.01 | E69: =E68/E65 -> 0.01268168959 | F69: 0.01608252509 | G69: 0.0203953591 | H69: 0.02586476132 | I69: 0.03280088745 | J69: 0.04159706729 | K69: 0.05275210953 | L69: 0.06689858783 | M69: 0.0848387125 | N69: 0.1075898217 | O69: 0.1364420722 | P69: 0.1730316007 | Q69: 0.219433305 | R69: 0.278278506 | S69: 0.3529041633 | T69: 0.4475421054 | U69: 0.567559006 | V69: 0.7197607138 | W69: 0.9127781953 | X69: 1.157556974 | Y69: 1.467977823 | Z69: 1.861643907 | AA69: 2.360879016 | AB69: 2.993993485 | AC69: 3.796889601 | AD69: 4.815097533 | AE69: 6.106357227 | AF69: 7.743892688 | AG69: 9.82056433 | AH69: 12.45413484 | AI69: 15.79394722 | AJ69: 20.02939361 | AK69: 25.40065525 | AL69: 32.21232253 | AM69: 40.85066753 | AN69: 51.80554852 | AO69: 65.69818854 | AP69: 83.31640338 | AQ69: 105.6592766 | AR69: 133.9938148 | AS69: 169.9267966 | AT69: 215.4958888 | AU69: 273.285197 | AV69: 346.5718038 | AW69: 439.5116037 | AX69: 557.3749729 | AY69: 706.8456393 | AZ69: 896.3996986 | BA69: 1136.786273 | BB69: 1441.637064 | BC69: 1828.239375 | BD69: 2318.516426 | BE69: 2940.270562 | BF69: 3728.759858 | BG69: 4728.697508 | BH69: 5996.787397 | BI69: 7604.939631 | BJ69: 9644.348377 | BK69: 12230.66324 | BL69: 15510.54747 | BM69: 19669.99484 | BN69: 24944.87689 | BO69: 31634.31856 | BP69: 40117.66084 | BQ69: =BQ68/BQ65 -> 50875.97219 | BR69: 64519.3287 | BS69: 81821.40992 | BT69: 103763.3722 | BU69: 131589.4878 | BV69: 166877.7037 | BW69: 211629.1239 | BX69: 268381.4857 | BY69: 340353.0694 | BZ69: 431625.1978 | CA69: 547373.6778 | CB69: 694162.3072 | CC69: 880315.0906 | CD69: 1116388.272 | CE69: 1415768.953 | CF69: 1795434.24 | CG69: 2276913.971 | CH69: 2887511.62 | CI69: 3661852.606 | CJ69: 4643847.808 | CK69: 5889183.641 | CL69: 7468479.888 | CM69: 9471294.366 | CN69: 12011201.52 | CO69: 15232232.93 | CP69: 19317044.97 | CQ69: 24497276.82 | CR69: 31066686.05 | CS69: 39397806.91 | CT69: 49963075.77 | CU69: 63361621.8 | CV69: 80353241.97 | CW69: 101901487.2 | CX69: 129228303 | CY69: 163883322.5 | CZ69: 207831742.5 | DA69: 263565764.6 | DB69: 334245921.3 | DC69: 423880302.1 | DD69: 537551841.5 | DE69: 681706559.4 | DF69: 864519097.8 | DG69: 1096356284 | DH69: 1390365008 | DI69: 1763217745 | DJ69: 2236058012 | DK69: 2835699362 | DL69: 3596145909 | DM69: 4560520614 | DN69: 5783510680 | DO69: 7334468719 | DP69: 9301345561 | DQ69: 1.179567772e+10 | DR69: 1.495891233e+10 | DS69: 1.897042828e+10 | DT69: 2.405770829e+10 | DU69: 3.050923888e+10 | DV69: 3.869086972e+10 | DW69: 4.906655998e+10 | DX69: 6.22246883e+10 | DY69: 7.891141819e+10 | DZ69: 1.000730111e+11 | EA69: 1.269094863e+11 | EB69: 1.609426711e+11 | EC69: =EC68/EC65 -> 2.041024997e+11 | ED69: 2.588364546e+11 | EE69: 3.282483572e+11 | EF69: 4.162743775e+11 | EG69: 5.279062441e+11 | EH69: 6.694743121e+11 | EI69: 8.490065415e+11 | EJ69: 1.076683742e+12 | EK69: 1.3654169e+12 | EL69: 1.731579329e+12 | EM69: 2.195935156e+12 | EN69: 2.784816801e+12 | EO69: 3.531618224e+12 | EP69: 4.478688607e+12 | EQ69: 5.679733869e+12 | ER69: 7.202862188e+12 | ES69: 9.134446244e+12 | ET69: 1.158402119e+13 | EU69: 1.469049609e+13 | EV69: 1.863003113e+13 | EW69: 2.362602719e+13 | EX69: 2.996179431e+13 | EY69: 3.799661751e+13 | EZ69: 4.818613087e+13 | FA69: 6.110815543e+13 | FB69: 7.749546587e+13 | FC69: 9.827734429e+13 | FD69: 1.246322774e+14 | FE69: 1.580547855e+14 | FF69: 2.004401728e+14 | FG69: 2.541920054e+14 | FH69: 3.223584109e+14 | FI69: 4.088049304e+14 | FJ69: 5.18433723e+14 | FK69: 6.574615549e+14 | FL69: 8.337723357e+14 | FM69: 1057364195167393 | FN69: 1.340916451e+15 | FO69: 1.70050862e+15 | FP69: 2.156532246e+15 | FQ69: 2734847254004896 | FR69: 3468248395479821 | FS69: 4.398324958e+15 | FT69: 5577819183486108 | FU69: 7073617148114273 | FV69: 8970541695979472 | FW69: 1.137616253e+16 | FX69: 1.442689619e+16 | FY69: 1.829574192e+16 | FZ69: 2.320209199e+16 | GA69: 2.942417285e+16 | GB69: 3.731482266e+16 | GC69: 4.732149981e+16 | GD69: 6.001165716e+16 | GE69: 7.610492079e+16 | GF69: 9.651389818e+16 | GG69: 1.223959298e+17 | GH69: 1.552187189e+17 | GI69: 1.968435612e+17 | GJ69: 2.496308941e+17 | GK69: 3.165741511e+17 | GL69: 4.014695117e+17 | GM69: 5.091311728e+17 | GN69: 6.456643495e+17 | GO69: =GO68/GO65 -> 8.18811486e+17 | GP69: 1.03839131e+18 | GQ69: 1.316855627e+18 | GR69: 1.669995429e+18 | GS69: 2.117836365e+18 | GT69: 2.685774339e+18 | GU69: 3.406015648e+18 | GV69: 4.319403319e+18 | GW69: 5.477733211e+18 | GX69: 6.946691225e+18 | GY69: 8.80957818e+18 | GZ69: 1.117203359e+19 | HA69: 1.416802621e+19 | HB69: 1.796745105e+19 | HC69: 2.27857637e+19 | HD69: 2.889619823e+19 | HE69: 3.664526164e+19 | HF69: 4.647238331e+19 | HG69: 5.893483397e+19 | HH69: 7.473932705e+19 | HI69: 9.478209459e+19 | HJ69: 1.201997102e+20 | HK69: 1.524335414e+20 | HL69: 1.933114856e+20 | HM69: 2.451516254e+20 | HN69: 3.108936816e+20 | HO69: 3.942657166e+20 | HP69: 4.999955435e+20 | HQ69: 6.34078828e+20 | HR69: 8.041190873e+20 | HS69: 1.019758866e+21 | HT69: 1.29322654e+21 | HU69: 1.640029755e+21 | HV69: 2.079834827e+21 | HW69: 2.637581967e+21 | HX69: 3.344899578e+21 | HY69: 4.241897817e+21 | HZ69: 5.379443139e+21 | IA69: 6.822042806e+21 | IB69: 8.651502924e+21 | IC69: 1.097156746e+22 | ID69: 1.391380128e+22 | IE69: 1.764505089e+22 | IF69: 2.237690582e+22 | IG69: 2.837769737e+22 | IH69: 3.598771493e+22 | II69: 4.563850298e+22 | IJ69: 5.787733283e+22 | IK69: 7.339823693e+22 | IL69: 9.308136573e+22 | IM69: 1.180428987e+23 | IN69: 1.4969834e+23 | IO69: 1.89842788e+23 | IP69: 2.407527308e+23 | IQ69: 3.0531514e+23 | IR69: 3.871911834e+23 | IS69: 4.9102384e+23 | IT69: 6.227011921e+23 | IU69: 7.896903226e+23 | IV69: 1.001460754e+24 | IW69: 1.270021443e+24 | IX69: 1.610601771e+24 | IY69: 2.042515171e+24 | IZ69: 2.590254339e+24 | JA69: =JA68/JA65 -> 3.284880149e+24 | JB69: 4.165783039e+24 | JC69: 5.28291674e+24 | JD69: 6.699631024e+24 | JE69: 8.496264102e+24 | JF69: 1.07746984e+25 | JG69: 1.366413806e+25 | JH69: 1.732843574e+25 | JI69: 2.197538431e+25 | JJ69: 2.786850025e+25 | JK69: 3.534196696e+25 | JL69: 4.481958545e+25 | JM69: 5.683880703e+25 | JN69: 7.208121075e+25 | JO69: 9.141115401e+25 | JP69: 1.15924788e+26 | JQ69: 1.470122178e+26 | JR69: 1.864363312e+26 | JS69: 2.364327681e+26 | JT69: 2.998366974e+26 | JU69: 3.802435924e+26 | JV69: 4.822131208e+26 | JW69: 6.115277115e+26 | JX69: 7.755204614e+26 | JY69: 9.834909763e+26 | JZ69: 1.247232728e+27 | KA69: 1.58170183e+27 | KB69: 2.005865164e+27 | KC69: 2.543775937e+27 | KD69: 3.225937682e+27 | KE69: 4.091034032e+27 | KF69: 5.18812237e+27 | KG69: 6.579415746e+27 | KH69: 8.343810818e+27 | KI69: 1.058136188e+28 | KJ69: 1.341895468e+28 | KK69: 1.701750179e+28 | KL69: 2.158106753e+28 | KM69: 2.736843995e+28 | KN69: 3.470780601e+28 | KO69: 4.401536222e+28 | KP69: 5.581891609e+28 | KQ69: 7.078781671e+28 | KR69: 8.977091184e+28
E70: Years
C71: % of Economy | D71: 1 | E71: =MATCH(D71,$D$69:$KR$69) -> 20
D72: 0.5 | E72: =MATCH(D72,$D$69:$KR$69) -> 17
D73: 0.25 | E73: 14
C75: ROIC
C76: WACC | G76: EV/EBITDA
C77: Growth in Capital investment
A80: Demonstration of Stable Working Capital and Gordon Formula
C81: Revenues | D81: 100
C82: Growth Rate | D82: 0.2 | F82: NPV Cash Flow | H82: =NPV(D85,D99:KR99) -> 680.3000921
C83: Terminal Growth Rate | D83: 0.02 | F83: NPV Cash Flow w/ TV | H83: =NPV(D85,106:106) -> 680.300118
C84: Margin | D84: 0.25 | F84: NPV without Adjustment | H84: =NPV(D85,E110:KR110) -> 519.2043896
C85: WACC | D85: 0.08 | I85: Stable WC = (Rev x Terminal Growth x WC/Rev) /(1+g)
C86: Account Rec. To Revenue | D86: 0.5
C87: Terminal Period | D87: 5
C88: Period | D88: 1 | E88: 2 | F88: 3 | G88: 4 | H88: 5 | I88: 6 | J88: 7 | K88: 8 | L88: 9 | M88: 10 | N88: 11 | O88: 12 | P88: 13 | Q88: 14 | R88: 15 | S88: 16 | T88: 17 | U88: 18 | V88: 19 | W88: 20 | X88: 21 | Y88: 22 | Z88: 23 | AA88: 24 | AB88: 25 | AC88: 26 | AD88: 27 | AE88: 28 | AF88: 29 | AG88: 30 | AH88: 31 | AI88: 32 | AJ88: 33 | AK88: 34 | AL88: 35 | AM88: 36 | AN88: 37 | AO88: 38 | AP88: 39 | AQ88: 40 | AR88: 41 | AS88: 42 | AT88: 43 | AU88: 44 | AV88: 45 | AW88: 46 | AX88: 47 | AY88: 48 | AZ88: 49 | BA88: 50 | BB88: 51 | BC88: 52 | BD88: 53 | BE88: 54 | BF88: 55 | BG88: 56 | BH88: 57 | BI88: 58 | BJ88: 59 | BK88: 60 | BL88: 61 | BM88: 62 | BN88: 63 | BO88: 64 | BP88: 65 | BQ88: 66 | BR88: 67 | BS88: 68 | BT88: 69 | BU88: 70 | BV88: 71 | BW88: 72 | BX88: 73 | BY88: 74 | BZ88: 75 | CA88: 76 | CB88: 77 | CC88: 78 | CD88: 79 | CE88: 80 | CF88: 81 | CG88: 82 | CH88: 83 | CI88: 84 | CJ88: 85 | CK88: 86 | CL88: 87 | CM88: 88 | CN88: 89 | CO88: 90 | CP88: 91 | CQ88: 92 | CR88: 93 | CS88: 94 | CT88: 95 | CU88: 96 | CV88: 97 | CW88: 98 | CX88: 99 | CY88: 100 | CZ88: 101 | DA88: 102 | DB88: 103 | DC88: 104 | DD88: 105 | DE88: 106 | DF88: 107 | DG88: 108 | DH88: 109 | DI88: 110 | DJ88: 111 | DK88: 112 | DL88: 113 | DM88: 114 | DN88: 115 | DO88: 116 | DP88: 117 | DQ88: 118 | DR88: 119 | DS88: 120 | DT88: 121 | DU88: 122 | DV88: 123 | DW88: 124 | DX88: 125 | DY88: 126 | DZ88: 127 | EA88: 128 | EB88: 129 | EC88: 130 | ED88: 131 | EE88: 132 | EF88: 133 | EG88: 134 | EH88: 135 | EI88: 136 | EJ88: 137 | EK88: 138 | EL88: 139 | EM88: 140 | EN88: 141 | EO88: 142 | EP88: 143 | EQ88: 144 | ER88: 145 | ES88: 146 | ET88: 147 | EU88: 148 | EV88: 149 | EW88: 150 | EX88: 151 | EY88: 152 | EZ88: 153 | FA88: 154 | FB88: 155 | FC88: 156 | FD88: 157 | FE88: 158 | FF88: 159 | FG88: 160 | FH88: 161 | FI88: 162 | FJ88: 163 | FK88: 164 | FL88: 165 | FM88: 166 | FN88: 167 | FO88: 168 | FP88: 169 | FQ88: 170 | FR88: 171 | FS88: 172 | FT88: 173 | FU88: 174 | FV88: 175 | FW88: 176 | FX88: 177 | FY88: 178 | FZ88: 179 | GA88: 180 | GB88: 181 | GC88: 182 | GD88: 183 | GE88: 184 | GF88: 185 | GG88: 186 | GH88: 187 | GI88: 188 | GJ88: 189 | GK88: 190 | GL88: 191 | GM88: 192 | GN88: 193 | GO88: 194 | GP88: 195 | GQ88: 196 | GR88: 197 | GS88: 198 | GT88: 199 | GU88: 200 | GV88: 201 | GW88: 202 | GX88: 203 | GY88: 204 | GZ88: 205 | HA88: 206 | HB88: 207 | HC88: 208 | HD88: 209 | HE88: 210 | HF88: 211 | HG88: 212 | HH88: 213 | HI88: 214 | HJ88: 215 | HK88: 216 | HL88: 217 | HM88: 218 | HN88: 219 | HO88: 220 | HP88: 221 | HQ88: 222 | HR88: 223 | HS88: 224 | HT88: 225 | HU88: 226 | HV88: 227 | HW88: 228 | HX88: 229 | HY88: 230 | HZ88: 231 | IA88: 232 | IB88: 233 | IC88: 234 | ID88: 235 | IE88: 236 | IF88: 237 | IG88: 238 | IH88: 239 | II88: 240 | IJ88: 241 | IK88: 242 | IL88: 243 | IM88: 244 | IN88: 245 | IO88: 246 | IP88: 247 | IQ88: 248 | IR88: 249 | IS88: 250 | IT88: 251 | IU88: 252 | IV88: 253 | IW88: 254 | IX88: 255 | IY88: 256 | IZ88: 257 | JA88: 258 | JB88: 259 | JC88: 260 | JD88: 261 | JE88: 262 | JF88: 263 | JG88: 264 | JH88: 265 | JI88: 266 | JJ88: 267 | JK88: 268 | JL88: 269 | JM88: 270 | JN88: 271 | JO88: 272 | JP88: 273 | JQ88: 274 | JR88: 275 | JS88: 276 | JT88: 277 | JU88: 278 | JV88: 279 | JW88: 280 | JX88: 281 | JY88: 282 | JZ88: 283 | KA88: 284 | KB88: 285 | KC88: 286 | KD88: 287 | KE88: 288 | KF88: 289 | KG88: 290 | KH88: 291 | KI88: 292 | KJ88: 293 | KK88: 294 | KL88: 295 | KM88: 296 | KN88: 297 | KO88: 298 | KP88: 299 | KQ88: 300 | KR88: 301
C89: Short Term Period | D89: =D88<=$D$87 -> TRUE | E89: =E88<=$D$87 -> TRUE | F89: =F88<=$D$87 -> TRUE | G89: TRUE | H89: TRUE | I89: FALSE | J89: FALSE | K89: FALSE | L89: FALSE | M89: FALSE | N89: FALSE | O89: FALSE | P89: FALSE | Q89: FALSE | R89: FALSE | S89: FALSE | T89: FALSE | U89: FALSE | V89: FALSE | W89: FALSE | X89: FALSE | Y89: FALSE | Z89: FALSE | AA89: FALSE | AB89: FALSE | AC89: FALSE | AD89: FALSE | AE89: FALSE | AF89: FALSE | AG89: FALSE | AH89: FALSE | AI89: FALSE | AJ89: FALSE | AK89: FALSE | AL89: FALSE | AM89: FALSE | AN89: FALSE | AO89: FALSE | AP89: FALSE | AQ89: FALSE | AR89: FALSE | AS89: FALSE | AT89: FALSE | AU89: FALSE | AV89: FALSE | AW89: FALSE | AX89: FALSE | AY89: FALSE | AZ89: FALSE | BA89: FALSE | BB89: FALSE | BC89: FALSE | BD89: FALSE | BE89: FALSE | BF89: FALSE | BG89: FALSE | BH89: FALSE | BI89: FALSE | BJ89: FALSE | BK89: FALSE | BL89: FALSE | BM89: FALSE | BN89: FALSE | BO89: FALSE | BP89: FALSE | BQ89: FALSE | BR89: =BR88<=$D$87 -> FALSE | BS89: FALSE | BT89: FALSE | BU89: FALSE | BV89: FALSE | BW89: FALSE | BX89: FALSE | BY89: FALSE | BZ89: FALSE | CA89: FALSE | CB89: FALSE | CC89: FALSE | CD89: FALSE | CE89: FALSE | CF89: FALSE | CG89: FALSE | CH89: FALSE | CI89: FALSE | CJ89: FALSE | CK89: FALSE | CL89: FALSE | CM89: FALSE | CN89: FALSE | CO89: FALSE | CP89: FALSE | CQ89: FALSE | CR89: FALSE | CS89: FALSE | CT89: FALSE | CU89: FALSE | CV89: FALSE | CW89: FALSE | CX89: FALSE | CY89: FALSE | CZ89: FALSE | DA89: FALSE | DB89: FALSE | DC89: FALSE | DD89: FALSE | DE89: FALSE | DF89: FALSE | DG89: FALSE | DH89: FALSE | DI89: FALSE | DJ89: FALSE | DK89: FALSE | DL89: FALSE | DM89: FALSE | DN89: FALSE | DO89: FALSE | DP89: FALSE | DQ89: FALSE | DR89: FALSE | DS89: FALSE | DT89: FALSE | DU89: FALSE | DV89: FALSE | DW89: FALSE | DX89: FALSE | DY89: FALSE | DZ89: FALSE | EA89: FALSE | EB89: FALSE | EC89: FALSE | ED89: =ED88<=$D$87 -> FALSE | EE89: FALSE | EF89: FALSE | EG89: FALSE | EH89: FALSE | EI89: FALSE | EJ89: FALSE | EK89: FALSE | EL89: FALSE | EM89: FALSE | EN89: FALSE | EO89: FALSE | EP89: FALSE | EQ89: FALSE | ER89: FALSE | ES89: FALSE | ET89: FALSE | EU89: FALSE | EV89: FALSE | EW89: FALSE | EX89: FALSE | EY89: FALSE | EZ89: FALSE | FA89: FALSE | FB89: FALSE | FC89: FALSE | FD89: FALSE | FE89: FALSE | FF89: FALSE | FG89: FALSE | FH89: FALSE | FI89: FALSE | FJ89: FALSE | FK89: FALSE | FL89: FALSE | FM89: FALSE | FN89: FALSE | FO89: FALSE | FP89: FALSE | FQ89: FALSE | FR89: FALSE | FS89: FALSE | FT89: FALSE | FU89: FALSE | FV89: FALSE | FW89: FALSE | FX89: FALSE | FY89: FALSE | FZ89: FALSE | GA89: FALSE | GB89: FALSE | GC89: FALSE | GD89: FALSE | GE89: FALSE | GF89: FALSE | GG89: FALSE | GH89: FALSE | GI89: FALSE | GJ89: FALSE | GK89: FALSE | GL89: FALSE | GM89: FALSE | GN89: FALSE | GO89: FALSE | GP89: =GP88<=$D$87 -> FALSE | GQ89: FALSE | GR89: FALSE | GS89: FALSE | GT89: FALSE | GU89: FALSE | GV89: FALSE | GW89: FALSE | GX89: FALSE | GY89: FALSE | GZ89: FALSE | HA89: FALSE | HB89: FALSE | HC89: FALSE | HD89: FALSE | HE89: FALSE | HF89: FALSE | HG89: FALSE | HH89: FALSE | HI89: FALSE | HJ89: FALSE | HK89: FALSE | HL89: FALSE | HM89: FALSE | HN89: FALSE | HO89: FALSE | HP89: FALSE | HQ89: FALSE | HR89: FALSE | HS89: FALSE | HT89: FALSE | HU89: FALSE | HV89: FALSE | HW89: FALSE | HX89: FALSE | HY89: FALSE | HZ89: FALSE | IA89: FALSE | IB89: FALSE | IC89: FALSE | ID89: FALSE | IE89: FALSE | IF89: FALSE | IG89: FALSE | IH89: FALSE | II89: FALSE | IJ89: FALSE | IK89: FALSE | IL89: FALSE | IM89: FALSE | IN89: FALSE | IO89: FALSE | IP89: FALSE | IQ89: FALSE | IR89: FALSE | IS89: FALSE | IT89: FALSE | IU89: FALSE | IV89: FALSE | IW89: FALSE | IX89: FALSE | IY89: FALSE | IZ89: FALSE | JA89: FALSE | JB89: =JB88<=$D$87 -> FALSE | JC89: FALSE | JD89: FALSE | JE89: FALSE | JF89: FALSE | JG89: FALSE | JH89: FALSE | JI89: FALSE | JJ89: FALSE | JK89: FALSE | JL89: FALSE | JM89: FALSE | JN89: FALSE | JO89: FALSE | JP89: FALSE | JQ89: FALSE | JR89: FALSE | JS89: FALSE | JT89: FALSE | JU89: FALSE | JV89: FALSE | JW89: FALSE | JX89: FALSE | JY89: FALSE | JZ89: FALSE | KA89: FALSE | KB89: FALSE | KC89: FALSE | KD89: FALSE | KE89: FALSE | KF89: FALSE | KG89: FALSE | KH89: FALSE | KI89: FALSE | KJ89: FALSE | KK89: FALSE | KL89: FALSE | KM89: FALSE | KN89: FALSE | KO89: FALSE | KP89: FALSE | KQ89: FALSE | KR89: FALSE
C90: Long Term Period | D90: =D88>$D$87 -> FALSE | E90: =E88>$D$87 -> FALSE | F90: =F88>$D$87 -> FALSE | G90: FALSE | H90: FALSE | I90: TRUE | J90: TRUE | K90: TRUE | L90: TRUE | M90: TRUE | N90: TRUE | O90: TRUE | P90: TRUE | Q90: TRUE | R90: TRUE | S90: TRUE | T90: TRUE | U90: TRUE | V90: TRUE | W90: TRUE | X90: TRUE | Y90: TRUE | Z90: TRUE | AA90: TRUE | AB90: TRUE | AC90: TRUE | AD90: TRUE | AE90: TRUE | AF90: TRUE | AG90: TRUE | AH90: TRUE | AI90: TRUE | AJ90: TRUE | AK90: TRUE | AL90: TRUE | AM90: TRUE | AN90: TRUE | AO90: TRUE | AP90: TRUE | AQ90: TRUE | AR90: TRUE | AS90: TRUE | AT90: TRUE | AU90: TRUE | AV90: TRUE | AW90: TRUE | AX90: TRUE | AY90: TRUE | AZ90: TRUE | BA90: TRUE | BB90: TRUE | BC90: TRUE | BD90: TRUE | BE90: TRUE | BF90: TRUE | BG90: TRUE | BH90: TRUE | BI90: TRUE | BJ90: TRUE | BK90: TRUE | BL90: TRUE | BM90: TRUE | BN90: TRUE | BO90: TRUE | BP90: TRUE | BQ90: TRUE | BR90: =BR88>$D$87 -> TRUE | BS90: TRUE | BT90: TRUE | BU90: TRUE | BV90: TRUE | BW90: TRUE | BX90: TRUE | BY90: TRUE | BZ90: TRUE | CA90: TRUE | CB90: TRUE | CC90: TRUE | CD90: TRUE | CE90: TRUE | CF90: TRUE | CG90: TRUE | CH90: TRUE | CI90: TRUE | CJ90: TRUE | CK90: TRUE | CL90: TRUE | CM90: TRUE | CN90: TRUE | CO90: TRUE | CP90: TRUE | CQ90: TRUE | CR90: TRUE | CS90: TRUE | CT90: TRUE | CU90: TRUE | CV90: TRUE | CW90: TRUE | CX90: TRUE | CY90: TRUE | CZ90: TRUE | DA90: TRUE | DB90: TRUE | DC90: TRUE | DD90: TRUE | DE90: TRUE | DF90: TRUE | DG90: TRUE | DH90: TRUE | DI90: TRUE | DJ90: TRUE | DK90: TRUE | DL90: TRUE | DM90: TRUE | DN90: TRUE | DO90: TRUE | DP90: TRUE | DQ90: TRUE | DR90: TRUE | DS90: TRUE | DT90: TRUE | DU90: TRUE | DV90: TRUE | DW90: TRUE | DX90: TRUE | DY90: TRUE | DZ90: TRUE | EA90: TRUE | EB90: TRUE | EC90: TRUE | ED90: =ED88>$D$87 -> TRUE | EE90: TRUE | EF90: TRUE | EG90: TRUE | EH90: TRUE | EI90: TRUE | EJ90: TRUE | EK90: TRUE | EL90: TRUE | EM90: TRUE | EN90: TRUE | EO90: TRUE | EP90: TRUE | EQ90: TRUE | ER90: TRUE | ES90: TRUE | ET90: TRUE | EU90: TRUE | EV90: TRUE | EW90: TRUE | EX90: TRUE | EY90: TRUE | EZ90: TRUE | FA90: TRUE | FB90: TRUE | FC90: TRUE | FD90: TRUE | FE90: TRUE | FF90: TRUE | FG90: TRUE | FH90: TRUE | FI90: TRUE | FJ90: TRUE | FK90: TRUE | FL90: TRUE | FM90: TRUE | FN90: TRUE | FO90: TRUE | FP90: TRUE | FQ90: TRUE | FR90: TRUE | FS90: TRUE | FT90: TRUE | FU90: TRUE | FV90: TRUE | FW90: TRUE | FX90: TRUE | FY90: TRUE | FZ90: TRUE | GA90: TRUE | GB90: TRUE | GC90: TRUE | GD90: TRUE | GE90: TRUE | GF90: TRUE | GG90: TRUE | GH90: TRUE | GI90: TRUE | GJ90: TRUE | GK90: TRUE | GL90: TRUE | GM90: TRUE | GN90: TRUE | GO90: TRUE | GP90: =GP88>$D$87 -> TRUE | GQ90: TRUE | GR90: TRUE | GS90: TRUE | GT90: TRUE | GU90: TRUE | GV90: TRUE | GW90: TRUE | GX90: TRUE | GY90: TRUE | GZ90: TRUE | HA90: TRUE | HB90: TRUE | HC90: TRUE | HD90: TRUE | HE90: TRUE | HF90: TRUE | HG90: TRUE | HH90: TRUE | HI90: TRUE | HJ90: TRUE | HK90: TRUE | HL90: TRUE | HM90: TRUE | HN90: TRUE | HO90: TRUE | HP90: TRUE | HQ90: TRUE | HR90: TRUE | HS90: TRUE | HT90: TRUE | HU90: TRUE | HV90: TRUE | HW90: TRUE | HX90: TRUE | HY90: TRUE | HZ90: TRUE | IA90: TRUE | IB90: TRUE | IC90: TRUE | ID90: TRUE | IE90: TRUE | IF90: TRUE | IG90: TRUE | IH90: TRUE | II90: TRUE | IJ90: TRUE | IK90: TRUE | IL90: TRUE | IM90: TRUE | IN90: TRUE | IO90: TRUE | IP90: TRUE | IQ90: TRUE | IR90: TRUE | IS90: TRUE | IT90: TRUE | IU90: TRUE | IV90: TRUE | IW90: TRUE | IX90: TRUE | IY90: TRUE | IZ90: TRUE | JA90: TRUE | JB90: =JB88>$D$87 -> TRUE | JC90: TRUE | JD90: TRUE | JE90: TRUE | JF90: TRUE | JG90: TRUE | JH90: TRUE | JI90: TRUE | JJ90: TRUE | JK90: TRUE | JL90: TRUE | JM90: TRUE | JN90: TRUE | JO90: TRUE | JP90: TRUE | JQ90: TRUE | JR90: TRUE | JS90: TRUE | JT90: TRUE | JU90: TRUE | JV90: TRUE | JW90: TRUE | JX90: TRUE | JY90: TRUE | JZ90: TRUE | KA90: TRUE | KB90: TRUE | KC90: TRUE | KD90: TRUE | KE90: TRUE | KF90: TRUE | KG90: TRUE | KH90: TRUE | KI90: TRUE | KJ90: TRUE | KK90: TRUE | KL90: TRUE | KM90: TRUE | KN90: TRUE | KO90: TRUE | KP90: TRUE | KQ90: TRUE | KR90: TRUE
C91: Terminal Period | D91: =D88=$D$87 -> FALSE | E91: =E88=$D$87 -> FALSE | F91: =F88=$D$87 -> FALSE | G91: FALSE | H91: TRUE | I91: FALSE | J91: FALSE | K91: FALSE | L91: FALSE | M91: FALSE | N91: FALSE | O91: FALSE | P91: FALSE | Q91: FALSE | R91: FALSE | S91: FALSE | T91: FALSE | U91: FALSE | V91: FALSE | W91: FALSE | X91: FALSE | Y91: FALSE | Z91: FALSE | AA91: FALSE | AB91: FALSE | AC91: FALSE | AD91: FALSE | AE91: FALSE | AF91: FALSE | AG91: FALSE | AH91: FALSE | AI91: FALSE | AJ91: FALSE | AK91: FALSE | AL91: FALSE | AM91: FALSE | AN91: FALSE | AO91: FALSE | AP91: FALSE | AQ91: FALSE | AR91: FALSE | AS91: FALSE | AT91: FALSE | AU91: FALSE | AV91: FALSE | AW91: FALSE | AX91: FALSE | AY91: FALSE | AZ91: FALSE | BA91: FALSE | BB91: FALSE | BC91: FALSE | BD91: FALSE | BE91: FALSE | BF91: FALSE | BG91: FALSE | BH91: FALSE | BI91: FALSE | BJ91: FALSE | BK91: FALSE | BL91: FALSE | BM91: FALSE | BN91: FALSE | BO91: FALSE | BP91: FALSE | BQ91: FALSE | BR91: =BR88=$D$87 -> FALSE | BS91: FALSE | BT91: FALSE | BU91: FALSE | BV91: FALSE | BW91: FALSE | BX91: FALSE | BY91: FALSE | BZ91: FALSE | CA91: FALSE | CB91: FALSE | CC91: FALSE | CD91: FALSE | CE91: FALSE | CF91: FALSE | CG91: FALSE | CH91: FALSE | CI91: FALSE | CJ91: FALSE | CK91: FALSE | CL91: FALSE | CM91: FALSE | CN91: FALSE | CO91: FALSE | CP91: FALSE | CQ91: FALSE | CR91: FALSE | CS91: FALSE | CT91: FALSE | CU91: FALSE | CV91: FALSE | CW91: FALSE | CX91: FALSE | CY91: FALSE | CZ91: FALSE | DA91: FALSE | DB91: FALSE | DC91: FALSE | DD91: FALSE | DE91: FALSE | DF91: FALSE | DG91: FALSE | DH91: FALSE | DI91: FALSE | DJ91: FALSE | DK91: FALSE | DL91: FALSE | DM91: FALSE | DN91: FALSE | DO91: FALSE | DP91: FALSE | DQ91: FALSE | DR91: FALSE | DS91: FALSE | DT91: FALSE | DU91: FALSE | DV91: FALSE | DW91: FALSE | DX91: FALSE | DY91: FALSE | DZ91: FALSE | EA91: FALSE | EB91: FALSE | EC91: FALSE | ED91: =ED88=$D$87 -> FALSE | EE91: FALSE | EF91: FALSE | EG91: FALSE | EH91: FALSE | EI91: FALSE | EJ91: FALSE | EK91: FALSE | EL91: FALSE | EM91: FALSE | EN91: FALSE | EO91: FALSE | EP91: FALSE | EQ91: FALSE | ER91: FALSE | ES91: FALSE | ET91: FALSE | EU91: FALSE | EV91: FALSE | EW91: FALSE | EX91: FALSE | EY91: FALSE | EZ91: FALSE | FA91: FALSE | FB91: FALSE | FC91: FALSE | FD91: FALSE | FE91: FALSE | FF91: FALSE | FG91: FALSE | FH91: FALSE | FI91: FALSE | FJ91: FALSE | FK91: FALSE | FL91: FALSE | FM91: FALSE | FN91: FALSE | FO91: FALSE | FP91: FALSE | FQ91: FALSE | FR91: FALSE | FS91: FALSE | FT91: FALSE | FU91: FALSE | FV91: FALSE | FW91: FALSE | FX91: FALSE | FY91: FALSE | FZ91: FALSE | GA91: FALSE | GB91: FALSE | GC91: FALSE | GD91: FALSE | GE91: FALSE | GF91: FALSE | GG91: FALSE | GH91: FALSE | GI91: FALSE | GJ91: FALSE | GK91: FALSE | GL91: FALSE | GM91: FALSE | GN91: FALSE | GO91: FALSE | GP91: =GP88=$D$87 -> FALSE | GQ91: FALSE | GR91: FALSE | GS91: FALSE | GT91: FALSE | GU91: FALSE | GV91: FALSE | GW91: FALSE | GX91: FALSE | GY91: FALSE | GZ91: FALSE | HA91: FALSE | HB91: FALSE | HC91: FALSE | HD91: FALSE | HE91: FALSE | HF91: FALSE | HG91: FALSE | HH91: FALSE | HI91: FALSE | HJ91: FALSE | HK91: FALSE | HL91: FALSE | HM91: FALSE | HN91: FALSE | HO91: FALSE | HP91: FALSE | HQ91: FALSE | HR91: FALSE | HS91: FALSE | HT91: FALSE | HU91: FALSE | HV91: FALSE | HW91: FALSE | HX91: FALSE | HY91: FALSE | HZ91: FALSE | IA91: FALSE | IB91: FALSE | IC91: FALSE | ID91: FALSE | IE91: FALSE | IF91: FALSE | IG91: FALSE | IH91: FALSE | II91: FALSE | IJ91: FALSE | IK91: FALSE | IL91: FALSE | IM91: FALSE | IN91: FALSE | IO91: FALSE | IP91: FALSE | IQ91: FALSE | IR91: FALSE | IS91: FALSE | IT91: FALSE | IU91: FALSE | IV91: FALSE | IW91: FALSE | IX91: FALSE | IY91: FALSE | IZ91: FALSE | JA91: FALSE | JB91: =JB88=$D$87 -> FALSE | JC91: FALSE | JD91: FALSE | JE91: FALSE | JF91: FALSE | JG91: FALSE | JH91: FALSE | JI91: FALSE | JJ91: FALSE | JK91: FALSE | JL91: FALSE | JM91: FALSE | JN91: FALSE | JO91: FALSE | JP91: FALSE | JQ91: FALSE | JR91: FALSE | JS91: FALSE | JT91: FALSE | JU91: FALSE | JV91: FALSE | JW91: FALSE | JX91: FALSE | JY91: FALSE | JZ91: FALSE | KA91: FALSE | KB91: FALSE | KC91: FALSE | KD91: FALSE | KE91: FALSE | KF91: FALSE | KG91: FALSE | KH91: FALSE | KI91: FALSE | KJ91: FALSE | KK91: FALSE | KL91: FALSE | KM91: FALSE | KN91: FALSE | KO91: FALSE | KP91: FALSE | KQ91: FALSE | KR91: FALSE
C93: Growth Rate | D93: =D89*$D$82+D90*$D$83 -> 0.2 | E93: =E89*$D$82+E90*$D$83 -> 0.2 | F93: =F89*$D$82+F90*$D$83 -> 0.2 | G93: 0.2 | H93: 0.2 | I93: 0.02 | J93: 0.02 | K93: 0.02 | L93: 0.02 | M93: 0.02 | N93: 0.02 | O93: 0.02 | P93: 0.02 | Q93: 0.02 | R93: 0.02 | S93: 0.02 | T93: 0.02 | U93: 0.02 | V93: 0.02 | W93: 0.02 | X93: 0.02 | Y93: 0.02 | Z93: 0.02 | AA93: 0.02 | AB93: 0.02 | AC93: 0.02 | AD93: 0.02 | AE93: 0.02 | AF93: 0.02 | AG93: 0.02 | AH93: 0.02 | AI93: 0.02 | AJ93: 0.02 | AK93: 0.02 | AL93: 0.02 | AM93: 0.02 | AN93: 0.02 | AO93: 0.02 | AP93: 0.02 | AQ93: 0.02 | AR93: 0.02 | AS93: 0.02 | AT93: 0.02 | AU93: 0.02 | AV93: 0.02 | AW93: 0.02 | AX93: 0.02 | AY93: 0.02 | AZ93: 0.02 | BA93: 0.02 | BB93: 0.02 | BC93: 0.02 | BD93: 0.02 | BE93: 0.02 | BF93: 0.02 | BG93: 0.02 | BH93: 0.02 | BI93: 0.02 | BJ93: 0.02 | BK93: 0.02 | BL93: 0.02 | BM93: 0.02 | BN93: 0.02 | BO93: 0.02 | BP93: 0.02 | BQ93: 0.02 | BR93: =BR89*$D$82+BR90*$D$83 -> 0.02 | BS93: 0.02 | BT93: 0.02 | BU93: 0.02 | BV93: 0.02 | BW93: 0.02 | BX93: 0.02 | BY93: 0.02 | BZ93: 0.02 | CA93: 0.02 | CB93: 0.02 | CC93: 0.02 | CD93: 0.02 | CE93: 0.02 | CF93: 0.02 | CG93: 0.02 | CH93: 0.02 | CI93: 0.02 | CJ93: 0.02 | CK93: 0.02 | CL93: 0.02 | CM93: 0.02 | CN93: 0.02 | CO93: 0.02 | CP93: 0.02 | CQ93: 0.02 | CR93: 0.02 | CS93: 0.02 | CT93: 0.02 | CU93: 0.02 | CV93: 0.02 | CW93: 0.02 | CX93: 0.02 | CY93: 0.02 | CZ93: 0.02 | DA93: 0.02 | DB93: 0.02 | DC93: 0.02 | DD93: 0.02 | DE93: 0.02 | DF93: 0.02 | DG93: 0.02 | DH93: 0.02 | DI93: 0.02 | DJ93: 0.02 | DK93: 0.02 | DL93: 0.02 | DM93: 0.02 | DN93: 0.02 | DO93: 0.02 | DP93: 0.02 | DQ93: 0.02 | DR93: 0.02 | DS93: 0.02 | DT93: 0.02 | DU93: 0.02 | DV93: 0.02 | DW93: 0.02 | DX93: 0.02 | DY93: 0.02 | DZ93: 0.02 | EA93: 0.02 | EB93: 0.02 | EC93: 0.02 | ED93: =ED89*$D$82+ED90*$D$83 -> 0.02 | EE93: 0.02 | EF93: 0.02 | EG93: 0.02 | EH93: 0.02 | EI93: 0.02 | EJ93: 0.02 | EK93: 0.02 | EL93: 0.02 | EM93: 0.02 | EN93: 0.02 | EO93: 0.02 | EP93: 0.02 | EQ93: 0.02 | ER93: 0.02 | ES93: 0.02 | ET93: 0.02 | EU93: 0.02 | EV93: 0.02 | EW93: 0.02 | EX93: 0.02 | EY93: 0.02 | EZ93: 0.02 | FA93: 0.02 | FB93: 0.02 | FC93: 0.02 | FD93: 0.02 | FE93: 0.02 | FF93: 0.02 | FG93: 0.02 | FH93: 0.02 | FI93: 0.02 | FJ93: 0.02 | FK93: 0.02 | FL93: 0.02 | FM93: 0.02 | FN93: 0.02 | FO93: 0.02 | FP93: 0.02 | FQ93: 0.02 | FR93: 0.02 | FS93: 0.02 | FT93: 0.02 | FU93: 0.02 | FV93: 0.02 | FW93: 0.02 | FX93: 0.02 | FY93: 0.02 | FZ93: 0.02 | GA93: 0.02 | GB93: 0.02 | GC93: 0.02 | GD93: 0.02 | GE93: 0.02 | GF93: 0.02 | GG93: 0.02 | GH93: 0.02 | GI93: 0.02 | GJ93: 0.02 | GK93: 0.02 | GL93: 0.02 | GM93: 0.02 | GN93: 0.02 | GO93: 0.02 | GP93: =GP89*$D$82+GP90*$D$83 -> 0.02 | GQ93: 0.02 | GR93: 0.02 | GS93: 0.02 | GT93: 0.02 | GU93: 0.02 | GV93: 0.02 | GW93: 0.02 | GX93: 0.02 | GY93: 0.02 | GZ93: 0.02 | HA93: 0.02 | HB93: 0.02 | HC93: 0.02 | HD93: 0.02 | HE93: 0.02 | HF93: 0.02 | HG93: 0.02 | HH93: 0.02 | HI93: 0.02 | HJ93: 0.02 | HK93: 0.02 | HL93: 0.02 | HM93: 0.02 | HN93: 0.02 | HO93: 0.02 | HP93: 0.02 | HQ93: 0.02 | HR93: 0.02 | HS93: 0.02 | HT93: 0.02 | HU93: 0.02 | HV93: 0.02 | HW93: 0.02 | HX93: 0.02 | HY93: 0.02 | HZ93: 0.02 | IA93: 0.02 | IB93: 0.02 | IC93: 0.02 | ID93: 0.02 | IE93: 0.02 | IF93: 0.02 | IG93: 0.02 | IH93: 0.02 | II93: 0.02 | IJ93: 0.02 | IK93: 0.02 | IL93: 0.02 | IM93: 0.02 | IN93: 0.02 | IO93: 0.02 | IP93: 0.02 | IQ93: 0.02 | IR93: 0.02 | IS93: 0.02 | IT93: 0.02 | IU93: 0.02 | IV93: 0.02 | IW93: 0.02 | IX93: 0.02 | IY93: 0.02 | IZ93: 0.02 | JA93: 0.02 | JB93: =JB89*$D$82+JB90*$D$83 -> 0.02 | JC93: 0.02 | JD93: 0.02 | JE93: 0.02 | JF93: 0.02 | JG93: 0.02 | JH93: 0.02 | JI93: 0.02 | JJ93: 0.02 | JK93: 0.02 | JL93: 0.02 | JM93: 0.02 | JN93: 0.02 | JO93: 0.02 | JP93: 0.02 | JQ93: 0.02 | JR93: 0.02 | JS93: 0.02 | JT93: 0.02 | JU93: 0.02 | JV93: 0.02 | JW93: 0.02 | JX93: 0.02 | JY93: 0.02 | JZ93: 0.02 | KA93: 0.02 | KB93: 0.02 | KC93: 0.02 | KD93: 0.02 | KE93: 0.02 | KF93: 0.02 | KG93: 0.02 | KH93: 0.02 | KI93: 0.02 | KJ93: 0.02 | KK93: 0.02 | KL93: 0.02 | KM93: 0.02 | KN93: 0.02 | KO93: 0.02 | KP93: 0.02 | KQ93: 0.02 | KR93: 0.02
C94: Revenues | D94: =D81 -> 100 | E94: =D94*(1+E93) -> 120 | F94: =E94*(1+F93) -> 144 | G94: 172.8 | H94: 207.36 | I94: 211.5072 | J94: 215.737344 | K94: 220.0520909 | L94: 224.4531327 | M94: 228.9421954 | N94: 233.5210393 | O94: 238.19146 | P94: 242.9552892 | Q94: 247.814395 | R94: 252.7706829 | S94: 257.8260966 | T94: 262.9826185 | U94: 268.2422709 | V94: 273.6071163 | W94: 279.0792586 | X94: 284.6608438 | Y94: 290.3540607 | Z94: 296.1611419 | AA94: 302.0843647 | AB94: 308.126052 | AC94: 314.2885731 | AD94: 320.5743445 | AE94: 326.9858314 | AF94: 333.5255481 | AG94: 340.196059 | AH94: 346.9999802 | AI94: 353.9399798 | AJ94: 361.0187794 | AK94: 368.239155 | AL94: 375.6039381 | AM94: 383.1160168 | AN94: 390.7783372 | AO94: 398.5939039 | AP94: 406.565782 | AQ94: 414.6970976 | AR94: 422.9910396 | AS94: 431.4508604 | AT94: 440.0798776 | AU94: 448.8814751 | AV94: 457.8591046 | AW94: 467.0162867 | AX94: 476.3566125 | AY94: 485.8837447 | AZ94: 495.6014196 | BA94: 505.513448 | BB94: 515.623717 | BC94: 525.9361913 | BD94: 536.4549151 | BE94: 547.1840134 | BF94: 558.1276937 | BG94: 569.2902476 | BH94: 580.6760525 | BI94: 592.2895736 | BJ94: 604.1353651 | BK94: 616.2180724 | BL94: 628.5424338 | BM94: 641.1132825 | BN94: 653.9355481 | BO94: 667.0142591 | BP94: 680.3545443 | BQ94: 693.9616352 | BR94: =BQ94*(1+BR93) -> 707.8408679 | BS94: 721.9976852 | BT94: 736.4376389 | BU94: 751.1663917 | BV94: 766.1897195 | BW94: 781.5135139 | BX94: 797.1437842 | BY94: 813.0866599 | BZ94: 829.3483931 | CA94: 845.935361 | CB94: 862.8540682 | CC94: 880.1111495 | CD94: 897.7133725 | CE94: 915.66764 | CF94: 933.9809928 | CG94: 952.6606126 | CH94: 971.7138249 | CI94: 991.1481014 | CJ94: 1010.971063 | CK94: 1031.190485 | CL94: 1051.814294 | CM94: 1072.85058 | CN94: 1094.307592 | CO94: 1116.193744 | CP94: 1138.517619 | CQ94: 1161.287971 | CR94: 1184.51373 | CS94: 1208.204005 | CT94: 1232.368085 | CU94: 1257.015447 | CV94: 1282.155756 | CW94: 1307.798871 | CX94: 1333.954848 | CY94: 1360.633945 | CZ94: 1387.846624 | DA94: 1415.603557 | DB94: 1443.915628 | DC94: 1472.79394 | DD94: 1502.249819 | DE94: 1532.294815 | DF94: 1562.940712 | DG94: 1594.199526 | DH94: 1626.083517 | DI94: 1658.605187 | DJ94: 1691.777291 | DK94: 1725.612836 | DL94: 1760.125093 | DM94: 1795.327595 | DN94: 1831.234147 | DO94: 1867.85883 | DP94: 1905.216006 | DQ94: 1943.320327 | DR94: 1982.186733 | DS94: 2021.830468 | DT94: 2062.267077 | DU94: 2103.512419 | DV94: 2145.582667 | DW94: 2188.49432 | DX94: 2232.264207 | DY94: 2276.909491 | DZ94: 2322.447681 | EA94: 2368.896634 | EB94: 2416.274567 | EC94: 2464.600058 | ED94: =EC94*(1+ED93) -> 2513.89206 | EE94: 2564.169901 | EF94: 2615.453299 | EG94: 2667.762365 | EH94: 2721.117612 | EI94: 2775.539964 | EJ94: 2831.050764 | EK94: 2887.671779 | EL94: 2945.425214 | EM94: 3004.333719 | EN94: 3064.420393 | EO94: 3125.708801 | EP94: 3188.222977 | EQ94: 3251.987436 | ER94: 3317.027185 | ES94: 3383.367729 | ET94: 3451.035083 | EU94: 3520.055785 | EV94: 3590.456901 | EW94: 3662.266039 | EX94: 3735.51136 | EY94: 3810.221587 | EZ94: 3886.426019 | FA94: 3964.154539 | FB94: 4043.43763 | FC94: 4124.306382 | FD94: 4206.79251 | FE94: 4290.92836 | FF94: 4376.746927 | FG94: 4464.281866 | FH94: 4553.567503 | FI94: 4644.638853 | FJ94: 4737.53163 | FK94: 4832.282263 | FL94: 4928.927908 | FM94: 5027.506466 | FN94: 5128.056596 | FO94: 5230.617728 | FP94: 5335.230082 | FQ94: 5441.934684 | FR94: 5550.773377 | FS94: 5661.788845 | FT94: 5775.024622 | FU94: 5890.525114 | FV94: 6008.335617 | FW94: 6128.502329 | FX94: 6251.072376 | FY94: 6376.093823 | FZ94: 6503.6157 | GA94: 6633.688014 | GB94: 6766.361774 | GC94: 6901.689009 | GD94: 7039.722789 | GE94: 7180.517245 | GF94: 7324.12759 | GG94: 7470.610142 | GH94: 7620.022345 | GI94: 7772.422792 | GJ94: 7927.871248 | GK94: 8086.428673 | GL94: 8248.157246 | GM94: 8413.120391 | GN94: 8581.382799 | GO94: 8753.010455 | GP94: =GO94*(1+GP93) -> 8928.070664 | GQ94: 9106.632077 | GR94: 9288.764719 | GS94: 9474.540013 | GT94: 9664.030813 | GU94: 9857.311429 | GV94: 10054.45766 | GW94: 10255.54681 | GX94: 10460.65775 | GY94: 10669.8709 | GZ94: 10883.26832 | HA94: 11100.93369 | HB94: 11322.95236 | HC94: 11549.41141 | HD94: 11780.39964 | HE94: 12016.00763 | HF94: 12256.32778 | HG94: 12501.45434 | HH94: 12751.48342 | HI94: 13006.51309 | HJ94: 13266.64335 | HK94: 13531.97622 | HL94: 13802.61575 | HM94: 14078.66806 | HN94: 14360.24142 | HO94: 14647.44625 | HP94: 14940.39517 | HQ94: 15239.20308 | HR94: 15543.98714 | HS94: 15854.86688 | HT94: 16171.96422 | HU94: 16495.4035 | HV94: 16825.31158 | HW94: 17161.81781 | HX94: 17505.05416 | HY94: 17855.15525 | HZ94: 18212.25835 | IA94: 18576.50352 | IB94: 18948.03359 | IC94: 19326.99426 | ID94: 19713.53415 | IE94: 20107.80483 | IF94: 20509.96092 | IG94: 20920.16014 | IH94: 21338.56335 | II94: 21765.33461 | IJ94: 22200.64131 | IK94: 22644.65413 | IL94: 23097.54721 | IM94: 23559.49816 | IN94: 24030.68812 | IO94: 24511.30188 | IP94: 25001.52792 | IQ94: 25501.55848 | IR94: 26011.58965 | IS94: 26531.82144 | IT94: 27062.45787 | IU94: 27603.70703 | IV94: 28155.78117 | IW94: 28718.89679 | IX94: 29293.27473 | IY94: 29879.14022 | IZ94: 30476.72303 | JA94: 31086.25749 | JB94: =JA94*(1+JB93) -> 31707.98264 | JC94: 32342.14229 | JD94: 32988.98514 | JE94: 33648.76484 | JF94: 34321.74014 | JG94: 35008.17494 | JH94: 35708.33844 | JI94: 36422.50521 | JJ94: 37150.95531 | JK94: 37893.97442 | JL94: 38651.8539 | JM94: 39424.89098 | JN94: 40213.3888 | JO94: 41017.65658 | JP94: 41838.00971 | JQ94: 42674.7699 | JR94: 43528.2653 | JS94: 44398.83061 | JT94: 45286.80722 | JU94: 46192.54337 | JV94: 47116.39423 | JW94: 48058.72212 | JX94: 49019.89656 | JY94: 50000.29449 | JZ94: 51000.30038 | KA94: 52020.30639 | KB94: 53060.71252 | KC94: 54121.92677 | KD94: 55204.3653 | KE94: 56308.45261 | KF94: 57434.62166 | KG94: 58583.31409 | KH94: 59754.98037 | KI94: 60950.07998 | KJ94: 62169.08158 | KK94: 63412.46321 | KL94: 64680.71248 | KM94: 65974.32673 | KN94: 67293.81326 | KO94: 68639.68953 | KP94: 70012.48332 | KQ94: 71412.73298 | KR94: 72840.98764
C95: Margin | D95: =$D$84 -> 0.25 | E95: =$D$84 -> 0.25 | F95: =$D$84 -> 0.25 | G95: 0.25 | H95: 0.25 | I95: 0.25 | J95: 0.25 | K95: 0.25 | L95: 0.25 | M95: 0.25 | N95: 0.25 | O95: 0.25 | P95: 0.25 | Q95: 0.25 | R95: 0.25 | S95: 0.25 | T95: 0.25 | U95: 0.25 | V95: 0.25 | W95: 0.25 | X95: 0.25 | Y95: 0.25 | Z95: 0.25 | AA95: 0.25 | AB95: 0.25 | AC95: 0.25 | AD95: 0.25 | AE95: 0.25 | AF95: 0.25 | AG95: 0.25 | AH95: 0.25 | AI95: 0.25 | AJ95: 0.25 | AK95: 0.25 | AL95: 0.25 | AM95: 0.25 | AN95: 0.25 | AO95: 0.25 | AP95: 0.25 | AQ95: 0.25 | AR95: 0.25 | AS95: 0.25 | AT95: 0.25 | AU95: 0.25 | AV95: 0.25 | AW95: 0.25 | AX95: 0.25 | AY95: 0.25 | AZ95: 0.25 | BA95: 0.25 | BB95: 0.25 | BC95: 0.25 | BD95: 0.25 | BE95: 0.25 | BF95: 0.25 | BG95: 0.25 | BH95: 0.25 | BI95: 0.25 | BJ95: 0.25 | BK95: 0.25 | BL95: 0.25 | BM95: 0.25 | BN95: 0.25 | BO95: 0.25 | BP95: 0.25 | BQ95: 0.25 | BR95: =$D$84 -> 0.25 | BS95: 0.25 | BT95: 0.25 | BU95: 0.25 | BV95: 0.25 | BW95: 0.25 | BX95: 0.25 | BY95: 0.25 | BZ95: 0.25 | CA95: 0.25 | CB95: 0.25 | CC95: 0.25 | CD95: 0.25 | CE95: 0.25 | CF95: 0.25 | CG95: 0.25 | CH95: 0.25 | CI95: 0.25 | CJ95: 0.25 | CK95: 0.25 | CL95: 0.25 | CM95: 0.25 | CN95: 0.25 | CO95: 0.25 | CP95: 0.25 | CQ95: 0.25 | CR95: 0.25 | CS95: 0.25 | CT95: 0.25 | CU95: 0.25 | CV95: 0.25 | CW95: 0.25 | CX95: 0.25 | CY95: 0.25 | CZ95: 0.25 | DA95: 0.25 | DB95: 0.25 | DC95: 0.25 | DD95: 0.25 | DE95: 0.25 | DF95: 0.25 | DG95: 0.25 | DH95: 0.25 | DI95: 0.25 | DJ95: 0.25 | DK95: 0.25 | DL95: 0.25 | DM95: 0.25 | DN95: 0.25 | DO95: 0.25 | DP95: 0.25 | DQ95: 0.25 | DR95: 0.25 | DS95: 0.25 | DT95: 0.25 | DU95: 0.25 | DV95: 0.25 | DW95: 0.25 | DX95: 0.25 | DY95: 0.25 | DZ95: 0.25 | EA95: 0.25 | EB95: 0.25 | EC95: 0.25 | ED95: =$D$84 -> 0.25 | EE95: 0.25 | EF95: 0.25 | EG95: 0.25 | EH95: 0.25 | EI95: 0.25 | EJ95: 0.25 | EK95: 0.25 | EL95: 0.25 | EM95: 0.25 | EN95: 0.25 | EO95: 0.25 | EP95: 0.25 | EQ95: 0.25 | ER95: 0.25 | ES95: 0.25 | ET95: 0.25 | EU95: 0.25 | EV95: 0.25 | EW95: 0.25 | EX95: 0.25 | EY95: 0.25 | EZ95: 0.25 | FA95: 0.25 | FB95: 0.25 | FC95: 0.25 | FD95: 0.25 | FE95: 0.25 | FF95: 0.25 | FG95: 0.25 | FH95: 0.25 | FI95: 0.25 | FJ95: 0.25 | FK95: 0.25 | FL95: 0.25 | FM95: 0.25 | FN95: 0.25 | FO95: 0.25 | FP95: 0.25 | FQ95: 0.25 | FR95: 0.25 | FS95: 0.25 | FT95: 0.25 | FU95: 0.25 | FV95: 0.25 | FW95: 0.25 | FX95: 0.25 | FY95: 0.25 | FZ95: 0.25 | GA95: 0.25 | GB95: 0.25 | GC95: 0.25 | GD95: 0.25 | GE95: 0.25 | GF95: 0.25 | GG95: 0.25 | GH95: 0.25 | GI95: 0.25 | GJ95: 0.25 | GK95: 0.25 | GL95: 0.25 | GM95: 0.25 | GN95: 0.25 | GO95: 0.25 | GP95: =$D$84 -> 0.25 | GQ95: 0.25 | GR95: 0.25 | GS95: 0.25 | GT95: 0.25 | GU95: 0.25 | GV95: 0.25 | GW95: 0.25 | GX95: 0.25 | GY95: 0.25 | GZ95: 0.25 | HA95: 0.25 | HB95: 0.25 | HC95: 0.25 | HD95: 0.25 | HE95: 0.25 | HF95: 0.25 | HG95: 0.25 | HH95: 0.25 | HI95: 0.25 | HJ95: 0.25 | HK95: 0.25 | HL95: 0.25 | HM95: 0.25 | HN95: 0.25 | HO95: 0.25 | HP95: 0.25 | HQ95: 0.25 | HR95: 0.25 | HS95: 0.25 | HT95: 0.25 | HU95: 0.25 | HV95: 0.25 | HW95: 0.25 | HX95: 0.25 | HY95: 0.25 | HZ95: 0.25 | IA95: 0.25 | IB95: 0.25 | IC95: 0.25 | ID95: 0.25 | IE95: 0.25 | IF95: 0.25 | IG95: 0.25 | IH95: 0.25 | II95: 0.25 | IJ95: 0.25 | IK95: 0.25 | IL95: 0.25 | IM95: 0.25 | IN95: 0.25 | IO95: 0.25 | IP95: 0.25 | IQ95: 0.25 | IR95: 0.25 | IS95: 0.25 | IT95: 0.25 | IU95: 0.25 | IV95: 0.25 | IW95: 0.25 | IX95: 0.25 | IY95: 0.25 | IZ95: 0.25 | JA95: 0.25 | JB95: =$D$84 -> 0.25 | JC95: 0.25 | JD95: 0.25 | JE95: 0.25 | JF95: 0.25 | JG95: 0.25 | JH95: 0.25 | JI95: 0.25 | JJ95: 0.25 | JK95: 0.25 | JL95: 0.25 | JM95: 0.25 | JN95: 0.25 | JO95: 0.25 | JP95: 0.25 | JQ95: 0.25 | JR95: 0.25 | JS95: 0.25 | JT95: 0.25 | JU95: 0.25 | JV95: 0.25 | JW95: 0.25 | JX95: 0.25 | JY95: 0.25 | JZ95: 0.25 | KA95: 0.25 | KB95: 0.25 | KC95: 0.25 | KD95: 0.25 | KE95: 0.25 | KF95: 0.25 | KG95: 0.25 | KH95: 0.25 | KI95: 0.25 | KJ95: 0.25 | KK95: 0.25 | KL95: 0.25 | KM95: 0.25 | KN95: 0.25 | KO95: 0.25 | KP95: 0.25 | KQ95: 0.25 | KR95: 0.25
C96: Cost of Good Sold | D96: =D94*(1-D95) -> 75 | E96: =E94*(1-E95) -> 90 | F96: =F94*(1-F95) -> 108 | G96: 129.6 | H96: 155.52 | I96: 158.6304 | J96: 161.803008 | K96: 165.0390682 | L96: 168.3398495 | M96: 171.7066465 | N96: 175.1407794 | O96: 178.643595 | P96: 182.2164669 | Q96: 185.8607963 | R96: 189.5780122 | S96: 193.3695724 | T96: 197.2369639 | U96: 201.1817032 | V96: 205.2053372 | W96: 209.309444 | X96: 213.4956329 | Y96: 217.7655455 | Z96: 222.1208564 | AA96: 226.5632736 | AB96: 231.094539 | AC96: 235.7164298 | AD96: 240.4307584 | AE96: 245.2393736 | AF96: 250.144161 | AG96: 255.1470443 | AH96: 260.2499851 | AI96: 265.4549848 | AJ96: 270.7640845 | AK96: 276.1793662 | AL96: 281.7029536 | AM96: 287.3370126 | AN96: 293.0837529 | AO96: 298.9454279 | AP96: 304.9243365 | AQ96: 311.0228232 | AR96: 317.2432797 | AS96: 323.5881453 | AT96: 330.0599082 | AU96: 336.6611064 | AV96: 343.3943285 | AW96: 350.2622151 | AX96: 357.2674594 | AY96: 364.4128085 | AZ96: 371.7010647 | BA96: 379.135086 | BB96: 386.7177877 | BC96: 394.4521435 | BD96: 402.3411864 | BE96: 410.3880101 | BF96: 418.5957703 | BG96: 426.9676857 | BH96: 435.5070394 | BI96: 444.2171802 | BJ96: 453.1015238 | BK96: 462.1635543 | BL96: 471.4068254 | BM96: 480.8349619 | BN96: 490.4516611 | BO96: 500.2606943 | BP96: 510.2659082 | BQ96: 520.4712264 | BR96: =BR94*(1-BR95) -> 530.8806509 | BS96: 541.4982639 | BT96: 552.3282292 | BU96: 563.3747938 | BV96: 574.6422897 | BW96: 586.1351354 | BX96: 597.8578382 | BY96: 609.8149949 | BZ96: 622.0112948 | CA96: 634.4515207 | CB96: 647.1405511 | CC96: 660.0833622 | CD96: 673.2850294 | CE96: 686.75073 | CF96: 700.4857446 | CG96: 714.4954595 | CH96: 728.7853687 | CI96: 743.361076 | CJ96: 758.2282976 | CK96: 773.3928635 | CL96: 788.8607208 | CM96: 804.6379352 | CN96: 820.7306939 | CO96: 837.1453078 | CP96: 853.8882139 | CQ96: 870.9659782 | CR96: 888.3852978 | CS96: 906.1530037 | CT96: 924.2760638 | CU96: 942.7615851 | CV96: 961.6168168 | CW96: 980.8491531 | CX96: 1000.466136 | CY96: 1020.475459 | CZ96: 1040.884968 | DA96: 1061.702667 | DB96: 1082.936721 | DC96: 1104.595455 | DD96: 1126.687364 | DE96: 1149.221112 | DF96: 1172.205534 | DG96: 1195.649645 | DH96: 1219.562637 | DI96: 1243.95389 | DJ96: 1268.832968 | DK96: 1294.209627 | DL96: 1320.09382 | DM96: 1346.495696 | DN96: 1373.42561 | DO96: 1400.894122 | DP96: 1428.912005 | DQ96: 1457.490245 | DR96: 1486.64005 | DS96: 1516.372851 | DT96: 1546.700308 | DU96: 1577.634314 | DV96: 1609.187 | DW96: 1641.37074 | DX96: 1674.198155 | DY96: 1707.682118 | DZ96: 1741.835761 | EA96: 1776.672476 | EB96: 1812.205925 | EC96: 1848.450044 | ED96: =ED94*(1-ED95) -> 1885.419045 | EE96: 1923.127426 | EF96: 1961.589974 | EG96: 2000.821774 | EH96: 2040.838209 | EI96: 2081.654973 | EJ96: 2123.288073 | EK96: 2165.753834 | EL96: 2209.068911 | EM96: 2253.250289 | EN96: 2298.315295 | EO96: 2344.281601 | EP96: 2391.167233 | EQ96: 2438.990577 | ER96: 2487.770389 | ES96: 2537.525797 | ET96: 2588.276313 | EU96: 2640.041839 | EV96: 2692.842676 | EW96: 2746.699529 | EX96: 2801.63352 | EY96: 2857.66619 | EZ96: 2914.819514 | FA96: 2973.115904 | FB96: 3032.578222 | FC96: 3093.229787 | FD96: 3155.094382 | FE96: 3218.19627 | FF96: 3282.560196 | FG96: 3348.211399 | FH96: 3415.175627 | FI96: 3483.47914 | FJ96: 3553.148723 | FK96: 3624.211697 | FL96: 3696.695931 | FM96: 3770.62985 | FN96: 3846.042447 | FO96: 3922.963296 | FP96: 4001.422562 | FQ96: 4081.451013 | FR96: 4163.080033 | FS96: 4246.341634 | FT96: 4331.268466 | FU96: 4417.893836 | FV96: 4506.251713 | FW96: 4596.376747 | FX96: 4688.304282 | FY96: 4782.070367 | FZ96: 4877.711775 | GA96: 4975.26601 | GB96: 5074.77133 | GC96: 5176.266757 | GD96: 5279.792092 | GE96: 5385.387934 | GF96: 5493.095693 | GG96: 5602.957606 | GH96: 5715.016759 | GI96: 5829.317094 | GJ96: 5945.903436 | GK96: 6064.821504 | GL96: 6186.117934 | GM96: 6309.840293 | GN96: 6436.037099 | GO96: 6564.757841 | GP96: =GP94*(1-GP95) -> 6696.052998 | GQ96: 6829.974058 | GR96: 6966.573539 | GS96: 7105.90501 | GT96: 7248.02311 | GU96: 7392.983572 | GV96: 7540.843244 | GW96: 7691.660108 | GX96: 7845.493311 | GY96: 8002.403177 | GZ96: 8162.45124 | HA96: 8325.700265 | HB96: 8492.21427 | HC96: 8662.058556 | HD96: 8835.299727 | HE96: 9012.005722 | HF96: 9192.245836 | HG96: 9376.090753 | HH96: 9563.612568 | HI96: 9754.884819 | HJ96: 9949.982515 | HK96: 10148.98217 | HL96: 10351.96181 | HM96: 10559.00105 | HN96: 10770.18107 | HO96: 10985.58469 | HP96: 11205.29638 | HQ96: 11429.40231 | HR96: 11657.99036 | HS96: 11891.15016 | HT96: 12128.97317 | HU96: 12371.55263 | HV96: 12618.98368 | HW96: 12871.36335 | HX96: 13128.79062 | HY96: 13391.36643 | HZ96: 13659.19376 | IA96: 13932.37764 | IB96: 14211.02519 | IC96: 14495.24569 | ID96: 14785.15061 | IE96: 15080.85362 | IF96: 15382.47069 | IG96: 15690.12011 | IH96: 16003.92251 | II96: 16324.00096 | IJ96: 16650.48098 | IK96: 16983.4906 | IL96: 17323.16041 | IM96: 17669.62362 | IN96: 18023.01609 | IO96: 18383.47641 | IP96: 18751.14594 | IQ96: 19126.16886 | IR96: 19508.69224 | IS96: 19898.86608 | IT96: 20296.8434 | IU96: 20702.78027 | IV96: 21116.83588 | IW96: 21539.17259 | IX96: 21969.95605 | IY96: 22409.35517 | IZ96: 22857.54227 | JA96: 23314.69312 | JB96: =JB94*(1-JB95) -> 23780.98698 | JC96: 24256.60672 | JD96: 24741.73885 | JE96: 25236.57363 | JF96: 25741.3051 | JG96: 26256.1312 | JH96: 26781.25383 | JI96: 27316.8789 | JJ96: 27863.21648 | JK96: 28420.48081 | JL96: 28988.89043 | JM96: 29568.66824 | JN96: 30160.0416 | JO96: 30763.24243 | JP96: 31378.50728 | JQ96: 32006.07743 | JR96: 32646.19898 | JS96: 33299.12296 | JT96: 33965.10542 | JU96: 34644.40752 | JV96: 35337.29567 | JW96: 36044.04159 | JX96: 36764.92242 | JY96: 37500.22087 | JZ96: 38250.22529 | KA96: 39015.22979 | KB96: 39795.53439 | KC96: 40591.44507 | KD96: 41403.27398 | KE96: 42231.33946 | KF96: 43075.96624 | KG96: 43937.48557 | KH96: 44816.23528 | KI96: 45712.55999 | KJ96: 46626.81119 | KK96: 47559.34741 | KL96: 48510.53436 | KM96: 49480.74505 | KN96: 50470.35995 | KO96: 51479.76715 | KP96: 52509.36249 | KQ96: 53559.54974 | KR96: 54630.74073
C97: Level Account Receivables | D97: =D94*$D$86 -> 50 | E97: =E94*$D$86 -> 60 | F97: 72 | G97: 86.4 | H97: 103.68 | I97: 105.7536 | J97: 107.868672 | K97: 110.0260454 | L97: 112.2265663 | M97: 114.4710977 | N97: 116.7605196 | O97: 119.09573 | P97: 121.4776446 | Q97: 123.9071975 | R97: 126.3853415 | S97: 128.9130483 | T97: 131.4913093 | U97: 134.1211354 | V97: 136.8035582 | W97: 139.5396293 | X97: 142.3304219 | Y97: 145.1770303 | Z97: 148.0805709 | AA97: 151.0421824 | AB97: 154.063026 | AC97: 157.1442865 | AD97: 160.2871723 | AE97: 163.4929157 | AF97: 166.762774 | AG97: 170.0980295 | AH97: 173.4999901 | AI97: 176.9699899 | AJ97: 180.5093897 | AK97: 184.1195775 | AL97: 187.801969 | AM97: 191.5580084 | AN97: 195.3891686 | AO97: 199.296952 | AP97: 203.282891 | AQ97: 207.3485488 | AR97: 211.4955198 | AS97: 215.7254302 | AT97: 220.0399388 | AU97: 224.4407376 | AV97: 228.9295523 | AW97: 233.5081434 | AX97: 238.1783062 | AY97: 242.9418724 | AZ97: 247.8007098 | BA97: 252.756724 | BB97: 257.8118585 | BC97: 262.9680957 | BD97: 268.2274576 | BE97: 273.5920067 | BF97: 279.0638469 | BG97: 284.6451238 | BH97: 290.3380263 | BI97: 296.1447868 | BJ97: 302.0676825 | BK97: 308.1090362 | BL97: 314.2712169 | BM97: 320.5566412 | BN97: 326.9677741 | BO97: 333.5071295 | BP97: 340.1772721 | BQ97: =BQ94*$D$86 -> 346.9808176 | BR97: 353.9204339 | BS97: 360.9988426 | BT97: 368.2188195 | BU97: 375.5831959 | BV97: 383.0948598 | BW97: 390.756757 | BX97: 398.5718921 | BY97: 406.5433299 | BZ97: 414.6741965 | CA97: 422.9676805 | CB97: 431.4270341 | CC97: 440.0555748 | CD97: 448.8566863 | CE97: 457.83382 | CF97: 466.9904964 | CG97: 476.3303063 | CH97: 485.8569124 | CI97: 495.5740507 | CJ97: 505.4855317 | CK97: 515.5952423 | CL97: 525.9071472 | CM97: 536.4252901 | CN97: 547.1537959 | CO97: 558.0968718 | CP97: 569.2588093 | CQ97: 580.6439855 | CR97: 592.2568652 | CS97: 604.1020025 | CT97: 616.1840425 | CU97: 628.5077234 | CV97: 641.0778779 | CW97: 653.8994354 | CX97: 666.9774241 | CY97: 680.3169726 | CZ97: 693.9233121 | DA97: 707.8017783 | DB97: 721.9578139 | DC97: 736.3969701 | DD97: 751.1249095 | DE97: 766.1474077 | DF97: 781.4703559 | DG97: 797.099763 | DH97: 813.0417583 | DI97: 829.3025934 | DJ97: 845.8886453 | DK97: 862.8064182 | DL97: 880.0625466 | DM97: 897.6637975 | DN97: 915.6170734 | DO97: 933.9294149 | DP97: 952.6080032 | DQ97: 971.6601633 | DR97: 991.0933665 | DS97: 1010.915234 | DT97: 1031.133539 | DU97: 1051.756209 | DV97: 1072.791334 | DW97: 1094.24716 | DX97: 1116.132103 | DY97: 1138.454745 | DZ97: 1161.22384 | EA97: 1184.448317 | EB97: 1208.137284 | EC97: =EC94*$D$86 -> 1232.300029 | ED97: 1256.94603 | EE97: 1282.08495 | EF97: 1307.726649 | EG97: 1333.881182 | EH97: 1360.558806 | EI97: 1387.769982 | EJ97: 1415.525382 | EK97: 1443.835889 | EL97: 1472.712607 | EM97: 1502.166859 | EN97: 1532.210197 | EO97: 1562.8544 | EP97: 1594.111488 | EQ97: 1625.993718 | ER97: 1658.513593 | ES97: 1691.683864 | ET97: 1725.517542 | EU97: 1760.027893 | EV97: 1795.22845 | EW97: 1831.133019 | EX97: 1867.75568 | EY97: 1905.110793 | EZ97: 1943.213009 | FA97: 1982.077269 | FB97: 2021.718815 | FC97: 2062.153191 | FD97: 2103.396255 | FE97: 2145.46418 | FF97: 2188.373464 | FG97: 2232.140933 | FH97: 2276.783752 | FI97: 2322.319427 | FJ97: 2368.765815 | FK97: 2416.141131 | FL97: 2464.463954 | FM97: 2513.753233 | FN97: 2564.028298 | FO97: 2615.308864 | FP97: 2667.615041 | FQ97: 2720.967342 | FR97: 2775.386689 | FS97: 2830.894423 | FT97: 2887.512311 | FU97: 2945.262557 | FV97: 3004.167808 | FW97: 3064.251165 | FX97: 3125.536188 | FY97: 3188.046912 | FZ97: 3251.80785 | GA97: 3316.844007 | GB97: 3383.180887 | GC97: 3450.844505 | GD97: 3519.861395 | GE97: 3590.258623 | GF97: 3662.063795 | GG97: 3735.305071 | GH97: 3810.011172 | GI97: 3886.211396 | GJ97: 3963.935624 | GK97: 4043.214336 | GL97: 4124.078623 | GM97: 4206.560195 | GN97: 4290.691399 | GO97: =GO94*$D$86 -> 4376.505227 | GP97: 4464.035332 | GQ97: 4553.316039 | GR97: 4644.382359 | GS97: 4737.270006 | GT97: 4832.015407 | GU97: 4928.655715 | GV97: 5027.228829 | GW97: 5127.773406 | GX97: 5230.328874 | GY97: 5334.935451 | GZ97: 5441.63416 | HA97: 5550.466843 | HB97: 5661.47618 | HC97: 5774.705704 | HD97: 5890.199818 | HE97: 6008.003814 | HF97: 6128.163891 | HG97: 6250.727168 | HH97: 6375.741712 | HI97: 6503.256546 | HJ97: 6633.321677 | HK97: 6765.988111 | HL97: 6901.307873 | HM97: 7039.33403 | HN97: 7180.120711 | HO97: 7323.723125 | HP97: 7470.197587 | HQ97: 7619.601539 | HR97: 7771.99357 | HS97: 7927.433441 | HT97: 8085.98211 | HU97: 8247.701752 | HV97: 8412.655788 | HW97: 8580.908903 | HX97: 8752.527081 | HY97: 8927.577623 | HZ97: 9106.129175 | IA97: 9288.251759 | IB97: 9474.016794 | IC97: 9663.49713 | ID97: 9856.767073 | IE97: 10053.90241 | IF97: 10254.98046 | IG97: 10460.08007 | IH97: 10669.28167 | II97: 10882.66731 | IJ97: 11100.32065 | IK97: 11322.32707 | IL97: 11548.77361 | IM97: 11779.74908 | IN97: 12015.34406 | IO97: 12255.65094 | IP97: 12500.76396 | IQ97: 12750.77924 | IR97: 13005.79482 | IS97: 13265.91072 | IT97: 13531.22894 | IU97: 13801.85351 | IV97: 14077.89058 | IW97: 14359.4484 | IX97: 14646.63736 | IY97: 14939.57011 | IZ97: 15238.36151 | JA97: =JA94*$D$86 -> 15543.12874 | JB97: 15853.99132 | JC97: 16171.07115 | JD97: 16494.49257 | JE97: 16824.38242 | JF97: 17160.87007 | JG97: 17504.08747 | JH97: 17854.16922 | JI97: 18211.2526 | JJ97: 18575.47766 | JK97: 18946.98721 | JL97: 19325.92695 | JM97: 19712.44549 | JN97: 20106.6944 | JO97: 20508.82829 | JP97: 20919.00486 | JQ97: 21337.38495 | JR97: 21764.13265 | JS97: 22199.4153 | JT97: 22643.40361 | JU97: 23096.27168 | JV97: 23558.19712 | JW97: 24029.36106 | JX97: 24509.94828 | JY97: 25000.14725 | JZ97: 25500.15019 | KA97: 26010.15319 | KB97: 26530.35626 | KC97: 27060.96338 | KD97: 27602.18265 | KE97: 28154.2263 | KF97: 28717.31083 | KG97: 29291.65705 | KH97: 29877.49019 | KI97: 30475.03999 | KJ97: 31084.54079 | KK97: 31706.23161 | KL97: 32340.35624 | KM97: 32987.16336 | KN97: 33646.90663 | KO97: 34319.84476 | KP97: 35006.24166 | KQ97: 35706.36649 | KR97: 36420.49382
C98: Change Account Receiv. | E98: =E97-D97 -> 10 | F98: =F97-E97 -> 12 | G98: 14.4 | H98: 17.28 | I98: 2.0736 | J98: 2.115072 | K98: 2.15737344 | L98: 2.200520909 | M98: 2.244531327 | N98: 2.289421954 | O98: 2.335210393 | P98: 2.3819146 | Q98: 2.429552892 | R98: 2.47814395 | S98: 2.527706829 | T98: 2.578260966 | U98: 2.629826185 | V98: 2.682422709 | W98: 2.736071163 | X98: 2.790792586 | Y98: 2.846608438 | Z98: 2.903540607 | AA98: 2.961611419 | AB98: 3.020843647 | AC98: 3.08126052 | AD98: 3.142885731 | AE98: 3.205743445 | AF98: 3.269858314 | AG98: 3.335255481 | AH98: 3.40196059 | AI98: 3.469999802 | AJ98: 3.539399798 | AK98: 3.610187794 | AL98: 3.68239155 | AM98: 3.756039381 | AN98: 3.831160168 | AO98: 3.907783372 | AP98: 3.985939039 | AQ98: 4.06565782 | AR98: 4.146970976 | AS98: 4.229910396 | AT98: 4.314508604 | AU98: 4.400798776 | AV98: 4.488814751 | AW98: 4.578591046 | AX98: 4.670162867 | AY98: 4.763566125 | AZ98: 4.858837447 | BA98: 4.956014196 | BB98: 5.05513448 | BC98: 5.15623717 | BD98: 5.259361913 | BE98: 5.364549151 | BF98: 5.471840134 | BG98: 5.581276937 | BH98: 5.692902476 | BI98: 5.806760525 | BJ98: 5.922895736 | BK98: 6.041353651 | BL98: 6.162180724 | BM98: 6.285424338 | BN98: 6.411132825 | BO98: 6.539355481 | BP98: 6.670142591 | BQ98: 6.803545443 | BR98: =BR97-BQ97 -> 6.939616352 | BS98: 7.078408679 | BT98: 7.219976852 | BU98: 7.364376389 | BV98: 7.511663917 | BW98: 7.661897195 | BX98: 7.815135139 | BY98: 7.971437842 | BZ98: 8.130866599 | CA98: 8.293483931 | CB98: 8.45935361 | CC98: 8.628540682 | CD98: 8.801111495 | CE98: 8.977133725 | CF98: 9.1566764 | CG98: 9.339809928 | CH98: 9.526606126 | CI98: 9.717138249 | CJ98: 9.911481014 | CK98: 10.10971063 | CL98: 10.31190485 | CM98: 10.51814294 | CN98: 10.7285058 | CO98: 10.94307592 | CP98: 11.16193744 | CQ98: 11.38517619 | CR98: 11.61287971 | CS98: 11.8451373 | CT98: 12.08204005 | CU98: 12.32368085 | CV98: 12.57015447 | CW98: 12.82155756 | CX98: 13.07798871 | CY98: 13.33954848 | CZ98: 13.60633945 | DA98: 13.87846624 | DB98: 14.15603557 | DC98: 14.43915628 | DD98: 14.7279394 | DE98: 15.02249819 | DF98: 15.32294815 | DG98: 15.62940712 | DH98: 15.94199526 | DI98: 16.26083517 | DJ98: 16.58605187 | DK98: 16.91777291 | DL98: 17.25612836 | DM98: 17.60125093 | DN98: 17.95327595 | DO98: 18.31234147 | DP98: 18.6785883 | DQ98: 19.05216006 | DR98: 19.43320327 | DS98: 19.82186733 | DT98: 20.21830468 | DU98: 20.62267077 | DV98: 21.03512419 | DW98: 21.45582667 | DX98: 21.8849432 | DY98: 22.32264207 | DZ98: 22.76909491 | EA98: 23.22447681 | EB98: 23.68896634 | EC98: 24.16274567 | ED98: =ED97-EC97 -> 24.64600058 | EE98: 25.1389206 | EF98: 25.64169901 | EG98: 26.15453299 | EH98: 26.67762365 | EI98: 27.21117612 | EJ98: 27.75539964 | EK98: 28.31050764 | EL98: 28.87671779 | EM98: 29.45425214 | EN98: 30.04333719 | EO98: 30.64420393 | EP98: 31.25708801 | EQ98: 31.88222977 | ER98: 32.51987436 | ES98: 33.17027185 | ET98: 33.83367729 | EU98: 34.51035083 | EV98: 35.20055785 | EW98: 35.90456901 | EX98: 36.62266039 | EY98: 37.3551136 | EZ98: 38.10221587 | FA98: 38.86426019 | FB98: 39.64154539 | FC98: 40.4343763 | FD98: 41.24306382 | FE98: 42.0679251 | FF98: 42.9092836 | FG98: 43.76746927 | FH98: 44.64281866 | FI98: 45.53567503 | FJ98: 46.44638853 | FK98: 47.3753163 | FL98: 48.32282263 | FM98: 49.28927908 | FN98: 50.27506466 | FO98: 51.28056596 | FP98: 52.30617728 | FQ98: 53.35230082 | FR98: 54.41934684 | FS98: 55.50773377 | FT98: 56.61788845 | FU98: 57.75024622 | FV98: 58.90525114 | FW98: 60.08335617 | FX98: 61.28502329 | FY98: 62.51072376 | FZ98: 63.76093823 | GA98: 65.036157 | GB98: 66.33688014 | GC98: 67.66361774 | GD98: 69.01689009 | GE98: 70.39722789 | GF98: 71.80517245 | GG98: 73.2412759 | GH98: 74.70610142 | GI98: 76.20022345 | GJ98: 77.72422792 | GK98: 79.27871248 | GL98: 80.86428673 | GM98: 82.48157246 | GN98: 84.13120391 | GO98: 85.81382799 | GP98: =GP97-GO97 -> 87.53010455 | GQ98: 89.28070664 | GR98: 91.06632077 | GS98: 92.88764719 | GT98: 94.74540013 | GU98: 96.64030813 | GV98: 98.57311429 | GW98: 100.5445766 | GX98: 102.5554681 | GY98: 104.6065775 | GZ98: 106.698709 | HA98: 108.8326832 | HB98: 111.0093369 | HC98: 113.2295236 | HD98: 115.4941141 | HE98: 117.8039964 | HF98: 120.1600763 | HG98: 122.5632778 | HH98: 125.0145434 | HI98: 127.5148342 | HJ98: 130.0651309 | HK98: 132.6664335 | HL98: 135.3197622 | HM98: 138.0261575 | HN98: 140.7866806 | HO98: 143.6024142 | HP98: 146.4744625 | HQ98: 149.4039517 | HR98: 152.3920308 | HS98: 155.4398714 | HT98: 158.5486688 | HU98: 161.7196422 | HV98: 164.954035 | HW98: 168.2531158 | HX98: 171.6181781 | HY98: 175.0505416 | HZ98: 178.5515525 | IA98: 182.1225835 | IB98: 185.7650352 | IC98: 189.4803359 | ID98: 193.2699426 | IE98: 197.1353415 | IF98: 201.0780483 | IG98: 205.0996092 | IH98: 209.2016014 | II98: 213.3856335 | IJ98: 217.6533461 | IK98: 222.0064131 | IL98: 226.4465413 | IM98: 230.9754721 | IN98: 235.5949816 | IO98: 240.3068812 | IP98: 245.1130188 | IQ98: 250.0152792 | IR98: 255.0155848 | IS98: 260.1158965 | IT98: 265.3182144 | IU98: 270.6245787 | IV98: 276.0370703 | IW98: 281.5578117 | IX98: 287.1889679 | IY98: 292.9327473 | IZ98: 298.7914022 | JA98: 304.7672303 | JB98: =JB97-JA97 -> 310.8625749 | JC98: 317.0798264 | JD98: 323.4214229 | JE98: 329.8898514 | JF98: 336.4876484 | JG98: 343.2174014 | JH98: 350.0817494 | JI98: 357.0833844 | JJ98: 364.2250521 | JK98: 371.5095531 | JL98: 378.9397442 | JM98: 386.518539 | JN98: 394.2489098 | JO98: 402.133888 | JP98: 410.1765658 | JQ98: 418.3800971 | JR98: 426.747699 | JS98: 435.282653 | JT98: 443.9883061 | JU98: 452.8680722 | JV98: 461.9254337 | JW98: 471.1639423 | JX98: 480.5872212 | JY98: 490.1989656 | JZ98: 500.0029449 | KA98: 510.0030038 | KB98: 520.2030639 | KC98: 530.6071252 | KD98: 541.2192677 | KE98: 552.043653 | KF98: 563.0845261 | KG98: 574.3462166 | KH98: 585.8331409 | KI98: 597.5498037 | KJ98: 609.5007998 | KK98: 621.6908158 | KL98: 634.1246321 | KM98: 646.8071248 | KN98: 659.7432673 | KO98: 672.9381326 | KP98: 686.3968953 | KQ98: 700.1248332 | KR98: 714.1273298
C99: Free Cash Flow | D99: =D94-D96-D98 -> 25 | E99: =E94-E96-E98 -> 20 | F99: 24 | G99: 28.8 | H99: 34.56 | I99: 50.8032 | J99: 51.819264 | K99: 52.85564928 | L99: 53.91276227 | M99: 54.99101751 | N99: 56.09083786 | O99: 57.21265462 | P99: 58.35690771 | Q99: 59.52404586 | R99: 60.71452678 | S99: 61.92881732 | T99: 63.16739366 | U99: 64.43074154 | V99: 65.71935637 | W99: 67.0337435 | X99: 68.37441837 | Y99: 69.74190673 | Z99: 71.13674487 | AA99: 72.55947976 | AB99: 74.01066936 | AC99: 75.49088275 | AD99: 77.0007004 | AE99: 78.54071441 | AF99: 80.1115287 | AG99: 81.71375927 | AH99: 83.34803446 | AI99: 85.01499515 | AJ99: 86.71529505 | AK99: 88.44960095 | AL99: 90.21859297 | AM99: 92.02296483 | AN99: 93.86342413 | AO99: 95.74069261 | AP99: 97.65550646 | AQ99: 99.60861659 | AR99: 101.6007889 | AS99: 103.6328047 | AT99: 105.7054608 | AU99: 107.81957 | AV99: 109.9759614 | AW99: 112.1754806 | AX99: 114.4189903 | AY99: 116.7073701 | AZ99: 119.0415175 | BA99: 121.4223478 | BB99: 123.8507948 | BC99: 126.3278107 | BD99: 128.8543669 | BE99: 131.4314542 | BF99: 134.0600833 | BG99: 136.741285 | BH99: 139.4761107 | BI99: 142.2656329 | BJ99: 145.1109455 | BK99: 148.0131644 | BL99: 150.9734277 | BM99: 153.9928963 | BN99: 157.0727542 | BO99: 160.2142093 | BP99: 163.4184935 | BQ99: =BQ94-BQ96-BQ98 -> 166.6868633 | BR99: 170.0206006 | BS99: 173.4210126 | BT99: 176.8894329 | BU99: 180.4272215 | BV99: 184.035766 | BW99: 187.7164813 | BX99: 191.4708109 | BY99: 195.3002271 | BZ99: 199.2062317 | CA99: 203.1903563 | CB99: 207.2541634 | CC99: 211.3992467 | CD99: 215.6272316 | CE99: 219.9397763 | CF99: 224.3385718 | CG99: 228.8253432 | CH99: 233.4018501 | CI99: 238.0698871 | CJ99: 242.8312848 | CK99: 247.6879105 | CL99: 252.6416687 | CM99: 257.6945021 | CN99: 262.8483922 | CO99: 268.10536 | CP99: 273.4674672 | CQ99: 278.9368166 | CR99: 284.5155529 | CS99: 290.2058639 | CT99: 296.0099812 | CU99: 301.9301808 | CV99: 307.9687845 | CW99: 314.1281601 | CX99: 320.4107234 | CY99: 326.8189378 | CZ99: 333.3553166 | DA99: 340.0224229 | DB99: 346.8228714 | DC99: 353.7593288 | DD99: 360.8345154 | DE99: 368.0512057 | DF99: 375.4122298 | DG99: 382.9204744 | DH99: 390.5788839 | DI99: 398.3904615 | DJ99: 406.3582708 | DK99: 414.4854362 | DL99: 422.7751449 | DM99: 431.2306478 | DN99: 439.8552608 | DO99: 448.652366 | DP99: 457.6254133 | DQ99: 466.7779216 | DR99: 476.11348 | DS99: 485.6357496 | DT99: 495.3484646 | DU99: 505.2554339 | DV99: 515.3605426 | DW99: 525.6677534 | DX99: 536.1811085 | DY99: 546.9047307 | DZ99: 557.8428253 | EA99: 568.9996818 | EB99: 580.3796754 | EC99: =EC94-EC96-EC98 -> 591.9872689 | ED99: 603.8270143 | EE99: 615.9035546 | EF99: 628.2216257 | EG99: 640.7860582 | EH99: 653.6017794 | EI99: 666.6738149 | EJ99: 680.0072912 | EK99: 693.6074371 | EL99: 707.4795858 | EM99: 721.6291775 | EN99: 736.0617611 | EO99: 750.7829963 | EP99: 765.7986562 | EQ99: 781.1146293 | ER99: 796.7369219 | ES99: 812.6716604 | ET99: 828.9250936 | EU99: 845.5035955 | EV99: 862.4136674 | EW99: 879.6619407 | EX99: 897.2551795 | EY99: 915.2002831 | EZ99: 933.5042888 | FA99: 952.1743745 | FB99: 971.217862 | FC99: 990.6422193 | FD99: 1010.455064 | FE99: 1030.664165 | FF99: 1051.277448 | FG99: 1072.302997 | FH99: 1093.749057 | FI99: 1115.624038 | FJ99: 1137.936519 | FK99: 1160.695249 | FL99: 1183.909154 | FM99: 1207.587338 | FN99: 1231.739084 | FO99: 1256.373866 | FP99: 1281.501343 | FQ99: 1307.13137 | FR99: 1333.273998 | FS99: 1359.939477 | FT99: 1387.138267 | FU99: 1414.881032 | FV99: 1443.178653 | FW99: 1472.042226 | FX99: 1501.483071 | FY99: 1531.512732 | FZ99: 1562.142987 | GA99: 1593.385846 | GB99: 1625.253563 | GC99: 1657.758635 | GD99: 1690.913807 | GE99: 1724.732083 | GF99: 1759.226725 | GG99: 1794.41126 | GH99: 1830.299485 | GI99: 1866.905474 | GJ99: 1904.243584 | GK99: 1942.328456 | GL99: 1981.175025 | GM99: 2020.798525 | GN99: 2061.214496 | GO99: =GO94-GO96-GO98 -> 2102.438786 | GP99: 2144.487561 | GQ99: 2187.377313 | GR99: 2231.124859 | GS99: 2275.747356 | GT99: 2321.262303 | GU99: 2367.687549 | GV99: 2415.0413 | GW99: 2463.342126 | GX99: 2512.608969 | GY99: 2562.861148 | GZ99: 2614.118371 | HA99: 2666.400739 | HB99: 2719.728753 | HC99: 2774.123328 | HD99: 2829.605795 | HE99: 2886.197911 | HF99: 2943.921869 | HG99: 3002.800306 | HH99: 3062.856313 | HI99: 3124.113439 | HJ99: 3186.595708 | HK99: 3250.327622 | HL99: 3315.334174 | HM99: 3381.640858 | HN99: 3449.273675 | HO99: 3518.259148 | HP99: 3588.624331 | HQ99: 3660.396818 | HR99: 3733.604754 | HS99: 3808.276849 | HT99: 3884.442386 | HU99: 3962.131234 | HV99: 4041.373859 | HW99: 4122.201336 | HX99: 4204.645363 | HY99: 4288.73827 | HZ99: 4374.513035 | IA99: 4462.003296 | IB99: 4551.243362 | IC99: 4642.268229 | ID99: 4735.113594 | IE99: 4829.815866 | IF99: 4926.412183 | IG99: 5024.940427 | IH99: 5125.439235 | II99: 5227.94802 | IJ99: 5332.50698 | IK99: 5439.15712 | IL99: 5547.940262 | IM99: 5658.899067 | IN99: 5772.077049 | IO99: 5887.51859 | IP99: 6005.268962 | IQ99: 6125.374341 | IR99: 6247.881828 | IS99: 6372.839464 | IT99: 6500.296253 | IU99: 6630.302178 | IV99: 6762.908222 | IW99: 6898.166386 | IX99: 7036.129714 | IY99: 7176.852308 | IZ99: 7320.389355 | JA99: =JA94-JA96-JA98 -> 7466.797142 | JB99: 7616.133085 | JC99: 7768.455746 | JD99: 7923.824861 | JE99: 8082.301358 | JF99: 8243.947386 | JG99: 8408.826333 | JH99: 8577.00286 | JI99: 8748.542917 | JJ99: 8923.513776 | JK99: 9101.984051 | JL99: 9284.023732 | JM99: 9469.704207 | JN99: 9659.098291 | JO99: 9852.280257 | JP99: 10049.32586 | JQ99: 10250.31238 | JR99: 10455.31863 | JS99: 10664.425 | JT99: 10877.7135 | JU99: 11095.26777 | JV99: 11317.17312 | JW99: 11543.51659 | JX99: 11774.38692 | JY99: 12009.87466 | JZ99: 12250.07215 | KA99: 12495.07359 | KB99: 12744.97507 | KC99: 12999.87457 | KD99: 13259.87206 | KE99: 13525.0695 | KF99: 13795.57089 | KG99: 14071.48231 | KH99: 14352.91195 | KI99: 14639.97019 | KJ99: 14932.7696 | KK99: 15231.42499 | KL99: 15536.05349 | KM99: 15846.77456 | KN99: 16163.71005 | KO99: 16486.98425 | KP99: 16816.72393 | KQ99: 17153.05841 | KR99: 17496.11958
C101: PV Cash Flow - Explicit | D101: =D99*D89 -> 25 | E101: =E99*E89 -> 20 | F101: 24 | G101: 28.8 | H101: 34.56 | I101: 0 | J101: 0 | K101: 0 | L101: 0 | M101: 0 | N101: 0 | O101: 0 | P101: 0 | Q101: 0 | R101: 0 | S101: 0 | T101: 0 | U101: 0 | V101: 0 | W101: 0 | X101: 0 | Y101: 0 | Z101: 0 | AA101: 0 | AB101: 0 | AC101: 0 | AD101: 0 | AE101: 0 | AF101: 0 | AG101: 0 | AH101: 0 | AI101: 0 | AJ101: 0 | AK101: 0 | AL101: 0 | AM101: 0 | AN101: 0 | AO101: 0 | AP101: 0 | AQ101: 0 | AR101: 0 | AS101: 0 | AT101: 0 | AU101: 0 | AV101: 0 | AW101: 0 | AX101: 0 | AY101: 0 | AZ101: 0 | BA101: 0 | BB101: 0 | BC101: 0 | BD101: 0 | BE101: 0 | BF101: 0 | BG101: 0 | BH101: 0 | BI101: 0 | BJ101: 0 | BK101: 0 | BL101: 0 | BM101: 0 | BN101: 0 | BO101: 0 | BP101: 0 | BQ101: =BQ99*BQ89 -> 0 | BR101: 0 | BS101: 0 | BT101: 0 | BU101: 0 | BV101: 0 | BW101: 0 | BX101: 0 | BY101: 0 | BZ101: 0 | CA101: 0 | CB101: 0 | CC101: 0 | CD101: 0 | CE101: 0 | CF101: 0 | CG101: 0 | CH101: 0 | CI101: 0 | CJ101: 0 | CK101: 0 | CL101: 0 | CM101: 0 | CN101: 0 | CO101: 0 | CP101: 0 | CQ101: 0 | CR101: 0 | CS101: 0 | CT101: 0 | CU101: 0 | CV101: 0 | CW101: 0 | CX101: 0 | CY101: 0 | CZ101: 0 | DA101: 0 | DB101: 0 | DC101: 0 | DD101: 0 | DE101: 0 | DF101: 0 | DG101: 0 | DH101: 0 | DI101: 0 | DJ101: 0 | DK101: 0 | DL101: 0 | DM101: 0 | DN101: 0 | DO101: 0 | DP101: 0 | DQ101: 0 | DR101: 0 | DS101: 0 | DT101: 0 | DU101: 0 | DV101: 0 | DW101: 0 | DX101: 0 | DY101: 0 | DZ101: 0 | EA101: 0 | EB101: 0 | EC101: =EC99*EC89 -> 0 | ED101: 0 | EE101: 0 | EF101: 0 | EG101: 0 | EH101: 0 | EI101: 0 | EJ101: 0 | EK101: 0 | EL101: 0 | EM101: 0 | EN101: 0 | EO101: 0 | EP101: 0 | EQ101: 0 | ER101: 0 | ES101: 0 | ET101: 0 | EU101: 0 | EV101: 0 | EW101: 0 | EX101: 0 | EY101: 0 | EZ101: 0 | FA101: 0 | FB101: 0 | FC101: 0 | FD101: 0 | FE101: 0 | FF101: 0 | FG101: 0 | FH101: 0 | FI101: 0 | FJ101: 0 | FK101: 0 | FL101: 0 | FM101: 0 | FN101: 0 | FO101: 0 | FP101: 0 | FQ101: 0 | FR101: 0 | FS101: 0 | FT101: 0 | FU101: 0 | FV101: 0 | FW101: 0 | FX101: 0 | FY101: 0 | FZ101: 0 | GA101: 0 | GB101: 0 | GC101: 0 | GD101: 0 | GE101: 0 | GF101: 0 | GG101: 0 | GH101: 0 | GI101: 0 | GJ101: 0 | GK101: 0 | GL101: 0 | GM101: 0 | GN101: 0 | GO101: =GO99*GO89 -> 0 | GP101: 0 | GQ101: 0 | GR101: 0 | GS101: 0 | GT101: 0 | GU101: 0 | GV101: 0 | GW101: 0 | GX101: 0 | GY101: 0 | GZ101: 0 | HA101: 0 | HB101: 0 | HC101: 0 | HD101: 0 | HE101: 0 | HF101: 0 | HG101: 0 | HH101: 0 | HI101: 0 | HJ101: 0 | HK101: 0 | HL101: 0 | HM101: 0 | HN101: 0 | HO101: 0 | HP101: 0 | HQ101: 0 | HR101: 0 | HS101: 0 | HT101: 0 | HU101: 0 | HV101: 0 | HW101: 0 | HX101: 0 | HY101: 0 | HZ101: 0 | IA101: 0 | IB101: 0 | IC101: 0 | ID101: 0 | IE101: 0 | IF101: 0 | IG101: 0 | IH101: 0 | II101: 0 | IJ101: 0 | IK101: 0 | IL101: 0 | IM101: 0 | IN101: 0 | IO101: 0 | IP101: 0 | IQ101: 0 | IR101: 0 | IS101: 0 | IT101: 0 | IU101: 0 | IV101: 0 | IW101: 0 | IX101: 0 | IY101: 0 | IZ101: 0 | JA101: =JA99*JA89 -> 0 | JB101: 0 | JC101: 0 | JD101: 0 | JE101: 0 | JF101: 0 | JG101: 0 | JH101: 0 | JI101: 0 | JJ101: 0 | JK101: 0 | JL101: 0 | JM101: 0 | JN101: 0 | JO101: 0 | JP101: 0 | JQ101: 0 | JR101: 0 | JS101: 0 | JT101: 0 | JU101: 0 | JV101: 0 | JW101: 0 | JX101: 0 | JY101: 0 | JZ101: 0 | KA101: 0 | KB101: 0 | KC101: 0 | KD101: 0 | KE101: 0 | KF101: 0 | KG101: 0 | KH101: 0 | KI101: 0 | KJ101: 0 | KK101: 0 | KL101: 0 | KM101: 0 | KN101: 0 | KO101: 0 | KP101: 0 | KQ101: 0 | KR101: 0
C103: Normalized Working Cap. Ch | E103: =IF(E91,E94*$D$83*$D$86,E98)/(1+$D$83) -> 9.803921569 | F103: =IF(F91,F94*$D$83*$D$86,F98)/(1+$D$83) -> 11.76470588 | G103: 14.11764706 | H103: 2.032941176 | I103: 2.032941176 | J103: 2.0736 | K103: 2.115072 | L103: 2.15737344 | M103: 2.200520909 | N103: 2.244531327 | O103: 2.289421954 | P103: 2.335210393 | Q103: 2.3819146 | R103: 2.429552892 | S103: 2.47814395 | T103: 2.527706829 | U103: 2.578260966 | V103: 2.629826185 | W103: 2.682422709 | X103: 2.736071163 | Y103: 2.790792586 | Z103: 2.846608438 | AA103: 2.903540607 | AB103: 2.961611419 | AC103: 3.020843647 | AD103: 3.08126052 | AE103: 3.142885731 | AF103: 3.205743445 | AG103: 3.269858314 | AH103: 3.335255481 | AI103: 3.40196059 | AJ103: 3.469999802 | AK103: 3.539399798 | AL103: 3.610187794 | AM103: 3.68239155 | AN103: 3.756039381 | AO103: 3.831160168 | AP103: 3.907783372 | AQ103: 3.985939039 | AR103: 4.06565782 | AS103: 4.146970976 | AT103: 4.229910396 | AU103: 4.314508604 | AV103: 4.400798776 | AW103: 4.488814751 | AX103: 4.578591046 | AY103: 4.670162867 | AZ103: 4.763566125 | BA103: 4.858837447 | BB103: 4.956014196 | BC103: 5.05513448 | BD103: 5.15623717 | BE103: 5.259361913 | BF103: 5.364549151 | BG103: 5.471840134 | BH103: 5.581276937 | BI103: 5.692902476 | BJ103: 5.806760525 | BK103: 5.922895736 | BL103: 6.041353651 | BM103: 6.162180724 | BN103: 6.285424338 | BO103: 6.411132825 | BP103: 6.539355481 | BQ103: 6.670142591 | BR103: =IF(BR91,BR94*$D$83*$D$86,BR98)/(1+$D$83) -> 6.803545443 | BS103: 6.939616352 | BT103: 7.078408679 | BU103: 7.219976852 | BV103: 7.364376389 | BW103: 7.511663917 | BX103: 7.661897195 | BY103: 7.815135139 | BZ103: 7.971437842 | CA103: 8.130866599 | CB103: 8.293483931 | CC103: 8.45935361 | CD103: 8.628540682 | CE103: 8.801111495 | CF103: 8.977133725 | CG103: 9.1566764 | CH103: 9.339809928 | CI103: 9.526606126 | CJ103: 9.717138249 | CK103: 9.911481014 | CL103: 10.10971063 | CM103: 10.31190485 | CN103: 10.51814294 | CO103: 10.7285058 | CP103: 10.94307592 | CQ103: 11.16193744 | CR103: 11.38517619 | CS103: 11.61287971 | CT103: 11.8451373 | CU103: 12.08204005 | CV103: 12.32368085 | CW103: 12.57015447 | CX103: 12.82155756 | CY103: 13.07798871 | CZ103: 13.33954848 | DA103: 13.60633945 | DB103: 13.87846624 | DC103: 14.15603557 | DD103: 14.43915628 | DE103: 14.7279394 | DF103: 15.02249819 | DG103: 15.32294815 | DH103: 15.62940712 | DI103: 15.94199526 | DJ103: 16.26083517 | DK103: 16.58605187 | DL103: 16.91777291 | DM103: 17.25612836 | DN103: 17.60125093 | DO103: 17.95327595 | DP103: 18.31234147 | DQ103: 18.6785883 | DR103: 19.05216006 | DS103: 19.43320327 | DT103: 19.82186733 | DU103: 20.21830468 | DV103: 20.62267077 | DW103: 21.03512419 | DX103: 21.45582667 | DY103: 21.8849432 | DZ103: 22.32264207 | EA103: 22.76909491 | EB103: 23.22447681 | EC103: 23.68896634 | ED103: =IF(ED91,ED94*$D$83*$D$86,ED98)/(1+$D$83) -> 24.16274567 | EE103: 24.64600058 | EF103: 25.1389206 | EG103: 25.64169901 | EH103: 26.15453299 | EI103: 26.67762365 | EJ103: 27.21117612 | EK103: 27.75539964 | EL103: 28.31050764 | EM103: 28.87671779 | EN103: 29.45425214 | EO103: 30.04333719 | EP103: 30.64420393 | EQ103: 31.25708801 | ER103: 31.88222977 | ES103: 32.51987436 | ET103: 33.17027185 | EU103: 33.83367729 | EV103: 34.51035083 | EW103: 35.20055785 | EX103: 35.90456901 | EY103: 36.62266039 | EZ103: 37.3551136 | FA103: 38.10221587 | FB103: 38.86426019 | FC103: 39.64154539 | FD103: 40.4343763 | FE103: 41.24306382 | FF103: 42.0679251 | FG103: 42.9092836 | FH103: 43.76746927 | FI103: 44.64281866 | FJ103: 45.53567503 | FK103: 46.44638853 | FL103: 47.3753163 | FM103: 48.32282263 | FN103: 49.28927908 | FO103: 50.27506466 | FP103: 51.28056596 | FQ103: 52.30617728 | FR103: 53.35230082 | FS103: 54.41934684 | FT103: 55.50773377 | FU103: 56.61788845 | FV103: 57.75024622 | FW103: 58.90525114 | FX103: 60.08335617 | FY103: 61.28502329 | FZ103: 62.51072376 | GA103: 63.76093823 | GB103: 65.036157 | GC103: 66.33688014 | GD103: 67.66361774 | GE103: 69.01689009 | GF103: 70.39722789 | GG103: 71.80517245 | GH103: 73.2412759 | GI103: 74.70610142 | GJ103: 76.20022345 | GK103: 77.72422792 | GL103: 79.27871248 | GM103: 80.86428673 | GN103: 82.48157246 | GO103: 84.13120391 | GP103: =IF(GP91,GP94*$D$83*$D$86,GP98)/(1+$D$83) -> 85.81382799 | GQ103: 87.53010455 | GR103: 89.28070664 | GS103: 91.06632077 | GT103: 92.88764719 | GU103: 94.74540013 | GV103: 96.64030813 | GW103: 98.57311429 | GX103: 100.5445766 | GY103: 102.5554681 | GZ103: 104.6065775 | HA103: 106.698709 | HB103: 108.8326832 | HC103: 111.0093369 | HD103: 113.2295236 | HE103: 115.4941141 | HF103: 117.8039964 | HG103: 120.1600763 | HH103: 122.5632778 | HI103: 125.0145434 | HJ103: 127.5148342 | HK103: 130.0651309 | HL103: 132.6664335 | HM103: 135.3197622 | HN103: 138.0261575 | HO103: 140.7866806 | HP103: 143.6024142 | HQ103: 146.4744625 | HR103: 149.4039517 | HS103: 152.3920308 | HT103: 155.4398714 | HU103: 158.5486688 | HV103: 161.7196422 | HW103: 164.954035 | HX103: 168.2531158 | HY103: 171.6181781 | HZ103: 175.0505416 | IA103: 178.5515525 | IB103: 182.1225835 | IC103: 185.7650352 | ID103: 189.4803359 | IE103: 193.2699426 | IF103: 197.1353415 | IG103: 201.0780483 | IH103: 205.0996092 | II103: 209.2016014 | IJ103: 213.3856335 | IK103: 217.6533461 | IL103: 222.0064131 | IM103: 226.4465413 | IN103: 230.9754721 | IO103: 235.5949816 | IP103: 240.3068812 | IQ103: 245.1130188 | IR103: 250.0152792 | IS103: 255.0155848 | IT103: 260.1158965 | IU103: 265.3182144 | IV103: 270.6245787 | IW103: 276.0370703 | IX103: 281.5578117 | IY103: 287.1889679 | IZ103: 292.9327473 | JA103: 298.7914022 | JB103: =IF(JB91,JB94*$D$83*$D$86,JB98)/(1+$D$83) -> 304.7672303 | JC103: 310.8625749 | JD103: 317.0798264 | JE103: 323.4214229 | JF103: 329.8898514 | JG103: 336.4876484 | JH103: 343.2174014 | JI103: 350.0817494 | JJ103: 357.0833844 | JK103: 364.2250521 | JL103: 371.5095531 | JM103: 378.9397442 | JN103: 386.518539 | JO103: 394.2489098 | JP103: 402.133888 | JQ103: 410.1765658 | JR103: 418.3800971 | JS103: 426.747699 | JT103: 435.282653 | JU103: 443.9883061 | JV103: 452.8680722 | JW103: 461.9254337 | JX103: 471.1639423 | JY103: 480.5872212 | JZ103: 490.1989656 | KA103: 500.0029449 | KB103: 510.0030038 | KC103: 520.2030639 | KD103: 530.6071252 | KE103: 541.2192677 | KF103: 552.043653 | KG103: 563.0845261 | KH103: 574.3462166 | KI103: 585.8331409 | KJ103: 597.5498037 | KK103: 609.5007998 | KL103: 621.6908158 | KM103: 634.1246321 | KN103: 646.8071248 | KO103: 659.7432673 | KP103: 672.9381326 | KQ103: 686.3968953 | KR103: 700.1248332
C104: Normalized CF | E104: =E94-E96-E103 -> 20.19607843 | F104: =F94-F96-F103 -> 24.23529412 | G104: 29.08235294 | H104: 49.80705882 | I104: 50.84385882 | J104: 51.860736 | K104: 52.89795072 | L104: 53.95590973 | M104: 55.03502793 | N104: 56.13572849 | O104: 57.25844306 | P104: 58.40361192 | Q104: 59.57168416 | R104: 60.76311784 | S104: 61.9783802 | T104: 63.2179478 | U104: 64.48230676 | V104: 65.77195289 | W104: 67.08739195 | X104: 68.42913979 | Y104: 69.79772258 | Z104: 71.19367704 | AA104: 72.61755058 | AB104: 74.06990159 | AC104: 75.55129962 | AD104: 77.06232561 | AE104: 78.60357212 | AF104: 80.17564357 | AG104: 81.77915644 | AH104: 83.41473957 | AI104: 85.08303436 | AJ104: 86.78469505 | AK104: 88.52038895 | AL104: 90.29079673 | AM104: 92.09661266 | AN104: 93.93854491 | AO104: 95.81731581 | AP104: 97.73366213 | AQ104: 99.68833537 | AR104: 101.6821021 | AS104: 103.7157441 | AT104: 105.790059 | AU104: 107.9058602 | AV104: 110.0639774 | AW104: 112.2652569 | AX104: 114.5105621 | AY104: 116.8007733 | AZ104: 119.1367888 | BA104: 121.5195246 | BB104: 123.949915 | BC104: 126.4289133 | BD104: 128.9574916 | BE104: 131.5366414 | BF104: 134.1673743 | BG104: 136.8507218 | BH104: 139.5877362 | BI104: 142.3794909 | BJ104: 145.2270807 | BK104: 148.1316224 | BL104: 151.0942548 | BM104: 154.1161399 | BN104: 157.1984627 | BO104: 160.3424319 | BP104: 163.5492806 | BQ104: 166.8202662 | BR104: =BR94-BR96-BR103 -> 170.1566715 | BS104: 173.559805 | BT104: 177.0310011 | BU104: 180.5716211 | BV104: 184.1830535 | BW104: 187.8667146 | BX104: 191.6240489 | BY104: 195.4565298 | BZ104: 199.3656604 | CA104: 203.3529736 | CB104: 207.4200331 | CC104: 211.5684338 | CD104: 215.7998024 | CE104: 220.1157985 | CF104: 224.5181145 | CG104: 229.0084768 | CH104: 233.5886463 | CI104: 238.2604192 | CJ104: 243.0256276 | CK104: 247.8861402 | CL104: 252.843863 | CM104: 257.9007402 | CN104: 263.058755 | CO104: 268.3199301 | CP104: 273.6863287 | CQ104: 279.1600553 | CR104: 284.7432564 | CS104: 290.4381215 | CT104: 296.246884 | CU104: 302.1718216 | CV104: 308.2152581 | CW104: 314.3795632 | CX104: 320.6671545 | CY104: 327.0804976 | CZ104: 333.6221075 | DA104: 340.2945497 | DB104: 347.1004407 | DC104: 354.0424495 | DD104: 361.1232985 | DE104: 368.3457645 | DF104: 375.7126798 | DG104: 383.2269333 | DH104: 390.891472 | DI104: 398.7093015 | DJ104: 406.6834875 | DK104: 414.8171572 | DL104: 423.1135004 | DM104: 431.5757704 | DN104: 440.2072858 | DO104: 449.0114315 | DP104: 457.9916601 | DQ104: 467.1514933 | DR104: 476.4945232 | DS104: 486.0244137 | DT104: 495.7449019 | DU104: 505.6598 | DV104: 515.772996 | DW104: 526.0884559 | DX104: 536.610225 | DY104: 547.3424295 | DZ104: 558.2892781 | EA104: 569.4550637 | EB104: 580.8441649 | EC104: 592.4610482 | ED104: =ED94-ED96-ED103 -> 604.3102692 | EE104: 616.3964746 | EF104: 628.7244041 | EG104: 641.2988922 | EH104: 654.12487 | EI104: 667.2073674 | EJ104: 680.5515148 | EK104: 694.1625451 | EL104: 708.045796 | EM104: 722.2067119 | EN104: 736.6508461 | EO104: 751.383863 | EP104: 766.4115403 | EQ104: 781.7397711 | ER104: 797.3745665 | ES104: 813.3220579 | ET104: 829.588499 | EU104: 846.180269 | EV104: 863.1038744 | EW104: 880.3659519 | EX104: 897.9732709 | EY104: 915.9327363 | EZ104: 934.251391 | FA104: 952.9364189 | FB104: 971.9951472 | FC104: 991.4350502 | FD104: 1011.263751 | FE104: 1031.489026 | FF104: 1052.118807 | FG104: 1073.161183 | FH104: 1094.624407 | FI104: 1116.516895 | FJ104: 1138.847233 | FK104: 1161.624177 | FL104: 1184.856661 | FM104: 1208.553794 | FN104: 1232.72487 | FO104: 1257.379367 | FP104: 1282.526955 | FQ104: 1308.177494 | FR104: 1334.341044 | FS104: 1361.027864 | FT104: 1388.248422 | FU104: 1416.01339 | FV104: 1444.333658 | FW104: 1473.220331 | FX104: 1502.684738 | FY104: 1532.738432 | FZ104: 1563.393201 | GA104: 1594.661065 | GB104: 1626.554286 | GC104: 1659.085372 | GD104: 1692.26708 | GE104: 1726.112421 | GF104: 1760.63467 | GG104: 1795.847363 | GH104: 1831.76431 | GI104: 1868.399597 | GJ104: 1905.767588 | GK104: 1943.88294 | GL104: 1982.760599 | GM104: 2022.415811 | GN104: 2062.864127 | GO104: 2104.12141 | GP104: =GP94-GP96-GP103 -> 2146.203838 | GQ104: 2189.127915 | GR104: 2232.910473 | GS104: 2277.568682 | GT104: 2323.120056 | GU104: 2369.582457 | GV104: 2416.974106 | GW104: 2465.313589 | GX104: 2514.61986 | GY104: 2564.912257 | GZ104: 2616.210503 | HA104: 2668.534713 | HB104: 2721.905407 | HC104: 2776.343515 | HD104: 2831.870385 | HE104: 2888.507793 | HF104: 2946.277949 | HG104: 3005.203508 | HH104: 3065.307578 | HI104: 3126.61373 | HJ104: 3189.146004 | HK104: 3252.928924 | HL104: 3317.987503 | HM104: 3384.347253 | HN104: 3452.034198 | HO104: 3521.074882 | HP104: 3591.49638 | HQ104: 3663.326307 | HR104: 3736.592833 | HS104: 3811.32469 | HT104: 3887.551184 | HU104: 3965.302207 | HV104: 4044.608252 | HW104: 4125.500417 | HX104: 4208.010425 | HY104: 4292.170633 | HZ104: 4378.014046 | IA104: 4465.574327 | IB104: 4554.885814 | IC104: 4645.98353 | ID104: 4738.9032 | IE104: 4833.681264 | IF104: 4930.35489 | IG104: 5028.961987 | IH104: 5129.541227 | II104: 5232.132052 | IJ104: 5336.774693 | IK104: 5443.510187 | IL104: 5552.38039 | IM104: 5663.427998 | IN104: 5776.696558 | IO104: 5892.230489 | IP104: 6010.075099 | IQ104: 6130.276601 | IR104: 6252.882133 | IS104: 6377.939776 | IT104: 6505.498571 | IU104: 6635.608543 | IV104: 6768.320714 | IW104: 6903.687128 | IX104: 7041.76087 | IY104: 7182.596088 | IZ104: 7326.24801 | JA104: 7472.77297 | JB104: =JB94-JB96-JB103 -> 7622.228429 | JC104: 7774.672998 | JD104: 7930.166458 | JE104: 8088.769787 | JF104: 8250.545183 | JG104: 8415.556086 | JH104: 8583.867208 | JI104: 8755.544552 | JJ104: 8930.655443 | JK104: 9109.268552 | JL104: 9291.453923 | JM104: 9477.283002 | JN104: 9666.828662 | JO104: 9860.165235 | JP104: 10057.36854 | JQ104: 10258.51591 | JR104: 10463.68623 | JS104: 10672.95995 | JT104: 10886.41915 | JU104: 11104.14754 | JV104: 11326.23049 | JW104: 11552.7551 | JX104: 11783.8102 | JY104: 12019.4864 | JZ104: 12259.87613 | KA104: 12505.07365 | KB104: 12755.17513 | KC104: 13010.27863 | KD104: 13270.4842 | KE104: 13535.89388 | KF104: 13806.61176 | KG104: 14082.744 | KH104: 14364.39888 | KI104: 14651.68685 | KJ104: 14944.72059 | KK104: 15243.615 | KL104: 15548.4873 | KM104: 15859.45705 | KN104: 16176.64619 | KO104: 16500.17911 | KP104: 16830.1827 | KQ104: 17166.78635 | KR104: 17510.12208
C105: Terminal Value | D105: =D104*(1+$D$83)/($D$85-$D$83)*D91 -> 0 | E105: =E104*(1+$D$83)/($D$85-$D$83)*E91 -> 0 | F105: 0 | G105: 0 | H105: 846.72 | I105: 0 | J105: 0 | K105: 0 | L105: 0 | M105: 0 | N105: 0 | O105: 0 | P105: 0 | Q105: 0 | R105: 0 | S105: 0 | T105: 0 | U105: 0 | V105: 0 | W105: 0 | X105: 0 | Y105: 0 | Z105: 0 | AA105: 0 | AB105: 0 | AC105: 0 | AD105: 0 | AE105: 0 | AF105: 0 | AG105: 0 | AH105: 0 | AI105: 0 | AJ105: 0 | AK105: 0 | AL105: 0 | AM105: 0 | AN105: 0 | AO105: 0 | AP105: 0 | AQ105: 0 | AR105: 0 | AS105: 0 | AT105: 0 | AU105: 0 | AV105: 0 | AW105: 0 | AX105: 0 | AY105: 0 | AZ105: 0 | BA105: 0 | BB105: 0 | BC105: 0 | BD105: 0 | BE105: 0 | BF105: 0 | BG105: 0 | BH105: 0 | BI105: 0 | BJ105: 0 | BK105: 0 | BL105: 0 | BM105: 0 | BN105: 0 | BO105: 0 | BP105: 0 | BQ105: =BQ104*(1+$D$83)/($D$85-$D$83)*BQ91 -> 0 | BR105: 0 | BS105: 0 | BT105: 0 | BU105: 0 | BV105: 0 | BW105: 0 | BX105: 0 | BY105: 0 | BZ105: 0 | CA105: 0 | CB105: 0 | CC105: 0 | CD105: 0 | CE105: 0 | CF105: 0 | CG105: 0 | CH105: 0 | CI105: 0 | CJ105: 0 | CK105: 0 | CL105: 0 | CM105: 0 | CN105: 0 | CO105: 0 | CP105: 0 | CQ105: 0 | CR105: 0 | CS105: 0 | CT105: 0 | CU105: 0 | CV105: 0 | CW105: 0 | CX105: 0 | CY105: 0 | CZ105: 0 | DA105: 0 | DB105: 0 | DC105: 0 | DD105: 0 | DE105: 0 | DF105: 0 | DG105: 0 | DH105: 0 | DI105: 0 | DJ105: 0 | DK105: 0 | DL105: 0 | DM105: 0 | DN105: 0 | DO105: 0 | DP105: 0 | DQ105: 0 | DR105: 0 | DS105: 0 | DT105: 0 | DU105: 0 | DV105: 0 | DW105: 0 | DX105: 0 | DY105: 0 | DZ105: 0 | EA105: 0 | EB105: 0 | EC105: =EC104*(1+$D$83)/($D$85-$D$83)*EC91 -> 0 | ED105: 0 | EE105: 0 | EF105: 0 | EG105: 0 | EH105: 0 | EI105: 0 | EJ105: 0 | EK105: 0 | EL105: 0 | EM105: 0 | EN105: 0 | EO105: 0 | EP105: 0 | EQ105: 0 | ER105: 0 | ES105: 0 | ET105: 0 | EU105: 0 | EV105: 0 | EW105: 0 | EX105: 0 | EY105: 0 | EZ105: 0 | FA105: 0 | FB105: 0 | FC105: 0 | FD105: 0 | FE105: 0 | FF105: 0 | FG105: 0 | FH105: 0 | FI105: 0 | FJ105: 0 | FK105: 0 | FL105: 0 | FM105: 0 | FN105: 0 | FO105: 0 | FP105: 0 | FQ105: 0 | FR105: 0 | FS105: 0 | FT105: 0 | FU105: 0 | FV105: 0 | FW105: 0 | FX105: 0 | FY105: 0 | FZ105: 0 | GA105: 0 | GB105: 0 | GC105: 0 | GD105: 0 | GE105: 0 | GF105: 0 | GG105: 0 | GH105: 0 | GI105: 0 | GJ105: 0 | GK105: 0 | GL105: 0 | GM105: 0 | GN105: 0 | GO105: =GO104*(1+$D$83)/($D$85-$D$83)*GO91 -> 0 | GP105: 0 | GQ105: 0 | GR105: 0 | GS105: 0 | GT105: 0 | GU105: 0 | GV105: 0 | GW105: 0 | GX105: 0 | GY105: 0 | GZ105: 0 | HA105: 0 | HB105: 0 | HC105: 0 | HD105: 0 | HE105: 0 | HF105: 0 | HG105: 0 | HH105: 0 | HI105: 0 | HJ105: 0 | HK105: 0 | HL105: 0 | HM105: 0 | HN105: 0 | HO105: 0 | HP105: 0 | HQ105: 0 | HR105: 0 | HS105: 0 | HT105: 0 | HU105: 0 | HV105: 0 | HW105: 0 | HX105: 0 | HY105: 0 | HZ105: 0 | IA105: 0 | IB105: 0 | IC105: 0 | ID105: 0 | IE105: 0 | IF105: 0 | IG105: 0 | IH105: 0 | II105: 0 | IJ105: 0 | IK105: 0 | IL105: 0 | IM105: 0 | IN105: 0 | IO105: 0 | IP105: 0 | IQ105: 0 | IR105: 0 | IS105: 0 | IT105: 0 | IU105: 0 | IV105: 0 | IW105: 0 | IX105: 0 | IY105: 0 | IZ105: 0 | JA105: =JA104*(1+$D$83)/($D$85-$D$83)*JA91 -> 0 | JB105: 0 | JC105: 0 | JD105: 0 | JE105: 0 | JF105: 0 | JG105: 0 | JH105: 0 | JI105: 0 | JJ105: 0 | JK105: 0 | JL105: 0 | JM105: 0 | JN105: 0 | JO105: 0 | JP105: 0 | JQ105: 0 | JR105: 0 | JS105: 0 | JT105: 0 | JU105: 0 | JV105: 0 | JW105: 0 | JX105: 0 | JY105: 0 | JZ105: 0 | KA105: 0 | KB105: 0 | KC105: 0 | KD105: 0 | KE105: 0 | KF105: 0 | KG105: 0 | KH105: 0 | KI105: 0 | KJ105: 0 | KK105: 0 | KL105: 0 | KM105: 0 | KN105: 0 | KO105: 0 | KP105: 0 | KQ105: 0 | KR105: 0
C106: Total Cash Flow | D106: =D101+D105 -> 25 | E106: =E101+E105 -> 20 | F106: 24 | G106: 28.8 | H106: =H101+H105 -> 881.28 | I106: 0 | J106: 0 | K106: 0 | L106: 0 | M106: 0 | N106: 0 | O106: 0 | P106: 0 | Q106: 0 | R106: 0 | S106: 0 | T106: 0 | U106: 0 | V106: 0 | W106: 0 | X106: 0 | Y106: 0 | Z106: 0 | AA106: 0 | AB106: 0 | AC106: 0 | AD106: 0 | AE106: 0 | AF106: 0 | AG106: 0 | AH106: 0 | AI106: 0 | AJ106: 0 | AK106: 0 | AL106: 0 | AM106: 0 | AN106: 0 | AO106: 0 | AP106: 0 | AQ106: 0 | AR106: 0 | AS106: 0 | AT106: 0 | AU106: 0 | AV106: 0 | AW106: 0 | AX106: 0 | AY106: 0 | AZ106: 0 | BA106: 0 | BB106: 0 | BC106: 0 | BD106: 0 | BE106: 0 | BF106: 0 | BG106: 0 | BH106: 0 | BI106: 0 | BJ106: 0 | BK106: 0 | BL106: 0 | BM106: 0 | BN106: 0 | BO106: 0 | BP106: =BP101+BP105 -> 0 | BQ106: 0 | BR106: 0 | BS106: 0 | BT106: 0 | BU106: 0 | BV106: 0 | BW106: 0 | BX106: 0 | BY106: 0 | BZ106: 0 | CA106: 0 | CB106: 0 | CC106: 0 | CD106: 0 | CE106: 0 | CF106: 0 | CG106: 0 | CH106: 0 | CI106: 0 | CJ106: 0 | CK106: 0 | CL106: 0 | CM106: 0 | CN106: 0 | CO106: 0 | CP106: 0 | CQ106: 0 | CR106: 0 | CS106: 0 | CT106: 0 | CU106: 0 | CV106: 0 | CW106: 0 | CX106: 0 | CY106: 0 | CZ106: 0 | DA106: 0 | DB106: 0 | DC106: 0 | DD106: 0 | DE106: 0 | DF106: 0 | DG106: 0 | DH106: 0 | DI106: 0 | DJ106: 0 | DK106: 0 | DL106: 0 | DM106: 0 | DN106: 0 | DO106: 0 | DP106: 0 | DQ106: 0 | DR106: 0 | DS106: 0 | DT106: 0 | DU106: 0 | DV106: 0 | DW106: 0 | DX106: 0 | DY106: 0 | DZ106: 0 | EA106: 0 | EB106: =EB101+EB105 -> 0 | EC106: 0 | ED106: 0 | EE106: 0 | EF106: 0 | EG106: 0 | EH106: 0 | EI106: 0 | EJ106: 0 | EK106: 0 | EL106: 0 | EM106: 0 | EN106: 0 | EO106: 0 | EP106: 0 | EQ106: 0 | ER106: 0 | ES106: 0 | ET106: 0 | EU106: 0 | EV106: 0 | EW106: 0 | EX106: 0 | EY106: 0 | EZ106: 0 | FA106: 0 | FB106: 0 | FC106: 0 | FD106: 0 | FE106: 0 | FF106: 0 | FG106: 0 | FH106: 0 | FI106: 0 | FJ106: 0 | FK106: 0 | FL106: 0 | FM106: 0 | FN106: 0 | FO106: 0 | FP106: 0 | FQ106: 0 | FR106: 0 | FS106: 0 | FT106: 0 | FU106: 0 | FV106: 0 | FW106: 0 | FX106: 0 | FY106: 0 | FZ106: 0 | GA106: 0 | GB106: 0 | GC106: 0 | GD106: 0 | GE106: 0 | GF106: 0 | GG106: 0 | GH106: 0 | GI106: 0 | GJ106: 0 | GK106: 0 | GL106: 0 | GM106: 0 | GN106: =GN101+GN105 -> 0 | GO106: 0 | GP106: 0 | GQ106: 0 | GR106: 0 | GS106: 0 | GT106: 0 | GU106: 0 | GV106: 0 | GW106: 0 | GX106: 0 | GY106: 0 | GZ106: 0 | HA106: 0 | HB106: 0 | HC106: 0 | HD106: 0 | HE106: 0 | HF106: 0 | HG106: 0 | HH106: 0 | HI106: 0 | HJ106: 0 | HK106: 0 | HL106: 0 | HM106: 0 | HN106: 0 | HO106: 0 | HP106: 0 | HQ106: 0 | HR106: 0 | HS106: 0 | HT106: 0 | HU106: 0 | HV106: 0 | HW106: 0 | HX106: 0 | HY106: 0 | HZ106: 0 | IA106: 0 | IB106: 0 | IC106: 0 | ID106: 0 | IE106: 0 | IF106: 0 | IG106: 0 | IH106: 0 | II106: 0 | IJ106: 0 | IK106: 0 | IL106: 0 | IM106: 0 | IN106: 0 | IO106: 0 | IP106: 0 | IQ106: 0 | IR106: 0 | IS106: 0 | IT106: 0 | IU106: 0 | IV106: 0 | IW106: 0 | IX106: 0 | IY106: 0 | IZ106: =IZ101+IZ105 -> 0 | JA106: 0 | JB106: 0 | JC106: 0 | JD106: 0 | JE106: 0 | JF106: 0 | JG106: 0 | JH106: 0 | JI106: 0 | JJ106: 0 | JK106: 0 | JL106: 0 | JM106: 0 | JN106: 0 | JO106: 0 | JP106: 0 | JQ106: 0 | JR106: 0 | JS106: 0 | JT106: 0 | JU106: 0 | JV106: 0 | JW106: 0 | JX106: 0 | JY106: 0 | JZ106: 0 | KA106: 0 | KB106: 0 | KC106: 0 | KD106: 0 | KE106: 0 | KF106: 0 | KG106: 0 | KH106: 0 | KI106: 0 | KJ106: 0 | KK106: 0 | KL106: 0 | KM106: 0 | KN106: 0 | KO106: 0 | KP106: 0 | KQ106: 0 | KR106: 0
C109: Terminal Value without Normalisation | E109: =E99*(1+$D$83)/($D$85-$D$83)*E91 -> 0 | F109: =F99*(1+$D$83)/($D$85-$D$83)*F91 -> 0 | G109: 0 | H109: 587.52 | I109: 0 | J109: 0 | K109: 0 | L109: 0 | M109: 0 | N109: 0 | O109: 0 | P109: 0 | Q109: 0 | R109: 0 | S109: 0 | T109: 0 | U109: 0 | V109: 0 | W109: 0 | X109: 0 | Y109: 0 | Z109: 0 | AA109: 0 | AB109: 0 | AC109: 0 | AD109: 0 | AE109: 0 | AF109: 0 | AG109: 0 | AH109: 0 | AI109: 0 | AJ109: 0 | AK109: 0 | AL109: 0 | AM109: 0 | AN109: 0 | AO109: 0 | AP109: 0 | AQ109: 0 | AR109: 0 | AS109: 0 | AT109: 0 | AU109: 0 | AV109: 0 | AW109: 0 | AX109: 0 | AY109: 0 | AZ109: 0 | BA109: 0 | BB109: 0 | BC109: 0 | BD109: 0 | BE109: 0 | BF109: 0 | BG109: 0 | BH109: 0 | BI109: 0 | BJ109: 0 | BK109: 0 | BL109: 0 | BM109: 0 | BN109: 0 | BO109: 0 | BP109: 0 | BQ109: 0 | BR109: =BR99*(1+$D$83)/($D$85-$D$83)*BR91 -> 0 | BS109: 0 | BT109: 0 | BU109: 0 | BV109: 0 | BW109: 0 | BX109: 0 | BY109: 0 | BZ109: 0 | CA109: 0 | CB109: 0 | CC109: 0 | CD109: 0 | CE109: 0 | CF109: 0 | CG109: 0 | CH109: 0 | CI109: 0 | CJ109: 0 | CK109: 0 | CL109: 0 | CM109: 0 | CN109: 0 | CO109: 0 | CP109: 0 | CQ109: 0 | CR109: 0 | CS109: 0 | CT109: 0 | CU109: 0 | CV109: 0 | CW109: 0 | CX109: 0 | CY109: 0 | CZ109: 0 | DA109: 0 | DB109: 0 | DC109: 0 | DD109: 0 | DE109: 0 | DF109: 0 | DG109: 0 | DH109: 0 | DI109: 0 | DJ109: 0 | DK109: 0 | DL109: 0 | DM109: 0 | DN109: 0 | DO109: 0 | DP109: 0 | DQ109: 0 | DR109: 0 | DS109: 0 | DT109: 0 | DU109: 0 | DV109: 0 | DW109: 0 | DX109: 0 | DY109: 0 | DZ109: 0 | EA109: 0 | EB109: 0 | EC109: 0 | ED109: =ED99*(1+$D$83)/($D$85-$D$83)*ED91 -> 0 | EE109: 0 | EF109: 0 | EG109: 0 | EH109: 0 | EI109: 0 | EJ109: 0 | EK109: 0 | EL109: 0 | EM109: 0 | EN109: 0 | EO109: 0 | EP109: 0 | EQ109: 0 | ER109: 0 | ES109: 0 | ET109: 0 | EU109: 0 | EV109: 0 | EW109: 0 | EX109: 0 | EY109: 0 | EZ109: 0 | FA109: 0 | FB109: 0 | FC109: 0 | FD109: 0 | FE109: 0 | FF109: 0 | FG109: 0 | FH109: 0 | FI109: 0 | FJ109: 0 | FK109: 0 | FL109: 0 | FM109: 0 | FN109: 0 | FO109: 0 | FP109: 0 | FQ109: 0 | FR109: 0 | FS109: 0 | FT109: 0 | FU109: 0 | FV109: 0 | FW109: 0 | FX109: 0 | FY109: 0 | FZ109: 0 | GA109: 0 | GB109: 0 | GC109: 0 | GD109: 0 | GE109: 0 | GF109: 0 | GG109: 0 | GH109: 0 | GI109: 0 | GJ109: 0 | GK109: 0 | GL109: 0 | GM109: 0 | GN109: 0 | GO109: 0 | GP109: =GP99*(1+$D$83)/($D$85-$D$83)*GP91 -> 0 | GQ109: 0 | GR109: 0 | GS109: 0 | GT109: 0 | GU109: 0 | GV109: 0 | GW109: 0 | GX109: 0 | GY109: 0 | GZ109: 0 | HA109: 0 | HB109: 0 | HC109: 0 | HD109: 0 | HE109: 0 | HF109: 0 | HG109: 0 | HH109: 0 | HI109: 0 | HJ109: 0 | HK109: 0 | HL109: 0 | HM109: 0 | HN109: 0 | HO109: 0 | HP109: 0 | HQ109: 0 | HR109: 0 | HS109: 0 | HT109: 0 | HU109: 0 | HV109: 0 | HW109: 0 | HX109: 0 | HY109: 0 | HZ109: 0 | IA109: 0 | IB109: 0 | IC109: 0 | ID109: 0 | IE109: 0 | IF109: 0 | IG109: 0 | IH109: 0 | II109: 0 | IJ109: 0 | IK109: 0 | IL109: 0 | IM109: 0 | IN109: 0 | IO109: 0 | IP109: 0 | IQ109: 0 | IR109: 0 | IS109: 0 | IT109: 0 | IU109: 0 | IV109: 0 | IW109: 0 | IX109: 0 | IY109: 0 | IZ109: 0 | JA109: 0 | JB109: =JB99*(1+$D$83)/($D$85-$D$83)*JB91 -> 0 | JC109: 0 | JD109: 0 | JE109: 0 | JF109: 0 | JG109: 0 | JH109: 0 | JI109: 0 | JJ109: 0 | JK109: 0 | JL109: 0 | JM109: 0 | JN109: 0 | JO109: 0 | JP109: 0 | JQ109: 0 | JR109: 0 | JS109: 0 | JT109: 0 | JU109: 0 | JV109: 0 | JW109: 0 | JX109: 0 | JY109: 0 | JZ109: 0 | KA109: 0 | KB109: 0 | KC109: 0 | KD109: 0 | KE109: 0 | KF109: 0 | KG109: 0 | KH109: 0 | KI109: 0 | KJ109: 0 | KK109: 0 | KL109: 0 | KM109: 0 | KN109: 0 | KO109: 0 | KP109: 0 | KQ109: 0 | KR109: 0
C110: Total Cash Flow | E110: =E101+E109 -> 20 | F110: 24 | G110: 28.8 | H110: 622.08 | I110: 0 | J110: 0 | K110: 0 | L110: 0 | M110: 0 | N110: 0 | O110: 0 | P110: 0 | Q110: 0 | R110: 0 | S110: 0 | T110: 0 | U110: 0 | V110: 0 | W110: 0 | X110: 0 | Y110: 0 | Z110: 0 | AA110: 0 | AB110: 0 | AC110: 0 | AD110: 0 | AE110: 0 | AF110: 0 | AG110: 0 | AH110: 0 | AI110: 0 | AJ110: 0 | AK110: 0 | AL110: 0 | AM110: 0 | AN110: 0 | AO110: 0 | AP110: 0 | AQ110: 0 | AR110: 0 | AS110: 0 | AT110: 0 | AU110: 0 | AV110: 0 | AW110: 0 | AX110: 0 | AY110: 0 | AZ110: 0 | BA110: 0 | BB110: 0 | BC110: 0 | BD110: 0 | BE110: 0 | BF110: 0 | BG110: 0 | BH110: 0 | BI110: 0 | BJ110: 0 | BK110: 0 | BL110: 0 | BM110: 0 | BN110: 0 | BO110: 0 | BP110: 0 | BQ110: =BQ101+BQ109 -> 0 | BR110: 0 | BS110: 0 | BT110: 0 | BU110: 0 | BV110: 0 | BW110: 0 | BX110: 0 | BY110: 0 | BZ110: 0 | CA110: 0 | CB110: 0 | CC110: 0 | CD110: 0 | CE110: 0 | CF110: 0 | CG110: 0 | CH110: 0 | CI110: 0 | CJ110: 0 | CK110: 0 | CL110: 0 | CM110: 0 | CN110: 0 | CO110: 0 | CP110: 0 | CQ110: 0 | CR110: 0 | CS110: 0 | CT110: 0 | CU110: 0 | CV110: 0 | CW110: 0 | CX110: 0 | CY110: 0 | CZ110: 0 | DA110: 0 | DB110: 0 | DC110: 0 | DD110: 0 | DE110: 0 | DF110: 0 | DG110: 0 | DH110: 0 | DI110: 0 | DJ110: 0 | DK110: 0 | DL110: 0 | DM110: 0 | DN110: 0 | DO110: 0 | DP110: 0 | DQ110: 0 | DR110: 0 | DS110: 0 | DT110: 0 | DU110: 0 | DV110: 0 | DW110: 0 | DX110: 0 | DY110: 0 | DZ110: 0 | EA110: 0 | EB110: 0 | EC110: =EC101+EC109 -> 0 | ED110: 0 | EE110: 0 | EF110: 0 | EG110: 0 | EH110: 0 | EI110: 0 | EJ110: 0 | EK110: 0 | EL110: 0 | EM110: 0 | EN110: 0 | EO110: 0 | EP110: 0 | EQ110: 0 | ER110: 0 | ES110: 0 | ET110: 0 | EU110: 0 | EV110: 0 | EW110: 0 | EX110: 0 | EY110: 0 | EZ110: 0 | FA110: 0 | FB110: 0 | FC110: 0 | FD110: 0 | FE110: 0 | FF110: 0 | FG110: 0 | FH110: 0 | FI110: 0 | FJ110: 0 | FK110: 0 | FL110: 0 | FM110: 0 | FN110: 0 | FO110: 0 | FP110: 0 | FQ110: 0 | FR110: 0 | FS110: 0 | FT110: 0 | FU110: 0 | FV110: 0 | FW110: 0 | FX110: 0 | FY110: 0 | FZ110: 0 | GA110: 0 | GB110: 0 | GC110: 0 | GD110: 0 | GE110: 0 | GF110: 0 | GG110: 0 | GH110: 0 | GI110: 0 | GJ110: 0 | GK110: 0 | GL110: 0 | GM110: 0 | GN110: 0 | GO110: =GO101+GO109 -> 0 | GP110: 0 | GQ110: 0 | GR110: 0 | GS110: 0 | GT110: 0 | GU110: 0 | GV110: 0 | GW110: 0 | GX110: 0 | GY110: 0 | GZ110: 0 | HA110: 0 | HB110: 0 | HC110: 0 | HD110: 0 | HE110: 0 | HF110: 0 | HG110: 0 | HH110: 0 | HI110: 0 | HJ110: 0 | HK110: 0 | HL110: 0 | HM110: 0 | HN110: 0 | HO110: 0 | HP110: 0 | HQ110: 0 | HR110: 0 | HS110: 0 | HT110: 0 | HU110: 0 | HV110: 0 | HW110: 0 | HX110: 0 | HY110: 0 | HZ110: 0 | IA110: 0 | IB110: 0 | IC110: 0 | ID110: 0 | IE110: 0 | IF110: 0 | IG110: 0 | IH110: 0 | II110: 0 | IJ110: 0 | IK110: 0 | IL110: 0 | IM110: 0 | IN110: 0 | IO110: 0 | IP110: 0 | IQ110: 0 | IR110: 0 | IS110: 0 | IT110: 0 | IU110: 0 | IV110: 0 | IW110: 0 | IX110: 0 | IY110: 0 | IZ110: 0 | JA110: =JA101+JA109 -> 0 | JB110: 0 | JC110: 0 | JD110: 0 | JE110: 0 | JF110: 0 | JG110: 0 | JH110: 0 | JI110: 0 | JJ110: 0 | JK110: 0 | JL110: 0 | JM110: 0 | JN110: 0 | JO110: 0 | JP110: 0 | JQ110: 0 | JR110: 0 | JS110: 0 | JT110: 0 | JU110: 0 | JV110: 0 | JW110: 0 | JX110: 0 | JY110: 0 | JZ110: 0 | KA110: 0 | KB110: 0 | KC110: 0 | KD110: 0 | KE110: 0 | KF110: 0 | KG110: 0 | KH110: 0 | KI110: 0 | KJ110: 0 | KK110: 0 | KL110: 0 | KM110: 0 | KN110: 0 | KO110: 0 | KP110: 0 | KQ110: 0 | KR110: 0
A113: Depreciation analysis
C115: Growth rate | D115: =D149 -> 0.03
C116: Lifetime of the asset | D116: =D153 -> 30
C118: Depreciation on gross asset | D118: =1/D116 -> 0.03333333333
C119: Depreciation on net asset | D119: =INDEX(143:143,D120) -> 0.05489527589
C120: Column number | D120: =MATCH(D116,124:124,0) -> 34
C122: Ratio of capital expenditure on depreciation | D122: =INDEX(134:134,D120) -> 1.53057778
D124: 0 | E124: 1 | F124: 2 | G124: 3 | H124: 4 | I124: 5 | J124: 6 | K124: 7 | L124: 8 | M124: 9 | N124: 10 | O124: 11 | P124: 12 | Q124: 13 | R124: 14 | S124: 15 | T124: 16 | U124: 17 | V124: 18 | W124: 19 | X124: 20 | Y124: 21 | Z124: 22 | AA124: 23 | AB124: 24 | AC124: 25 | AD124: 26 | AE124: 27 | AF124: 28 | AG124: 29 | AH124: 30 | AI124: 31 | AJ124: 32 | AK124: 33 | AL124: 34 | AM124: 35 | AN124: 36 | AO124: 37 | AP124: 38 | AQ124: 39 | AR124: 40 | AS124: 41 | AT124: 42 | AU124: 43 | AV124: 44 | AW124: 45 | AX124: 46 | AY124: 47 | AZ124: 48 | BA124: 49 | BB124: 50 | BC124: 51 | BD124: 52 | BE124: 53 | BF124: 54 | BG124: 55 | BH124: 56 | BI124: 57 | BJ124: 58 | BK124: 59 | BL124: 60 | BM124: 61 | BN124: 62 | BO124: 63 | BP124: 64 | BQ124: 65 | BR124: 66 | BS124: 67 | BT124: 68 | BU124: 69 | BV124: 70 | BW124: 71 | BX124: 72 | BY124: 73 | BZ124: 74 | CA124: 75 | CB124: 76 | CC124: 77 | CD124: 78 | CE124: 79 | CF124: 80 | CG124: 81 | CH124: 82 | CI124: 83 | CJ124: 84 | CK124: 85 | CL124: 86 | CM124: 87 | CN124: 88 | CO124: 89 | CP124: 90 | CQ124: 91 | CR124: 92 | CS124: 93 | CT124: 94 | CU124: 95 | CV124: 96 | CW124: 97 | CX124: 98 | CY124: 99 | CZ124: 100 | DA124: 101 | DB124: 102 | DC124: 103 | DD124: 104 | DE124: 105 | DF124: 106 | DG124: 107 | DH124: 108 | DI124: 109 | DJ124: 110 | DK124: 111 | DL124: 112 | DM124: 113 | DN124: 114 | DO124: 115 | DP124: 116 | DQ124: 117 | DR124: 118 | DS124: 119 | DT124: 120 | DU124: 121 | DV124: 122 | DW124: 123 | DX124: 124 | DY124: 125 | DZ124: 126 | EA124: 127 | EB124: 128 | EC124: 129 | ED124: 130 | EE124: 131 | EF124: 132 | EG124: 133 | EH124: 134 | EI124: 135 | EJ124: 136 | EK124: 137 | EL124: 138 | EM124: 139 | EN124: 140 | EO124: 141 | EP124: 142 | EQ124: 143 | ER124: 144 | ES124: 145 | ET124: 146 | EU124: 147 | EV124: 148 | EW124: 149 | EX124: 150 | EY124: 151 | EZ124: 152 | FA124: 153 | FB124: 154 | FC124: 155 | FD124: 156 | FE124: 157 | FF124: 158 | FG124: 159 | FH124: 160 | FI124: 161 | FJ124: 162 | FK124: 163 | FL124: 164 | FM124: 165 | FN124: 166 | FO124: 167 | FP124: 168 | FQ124: 169 | FR124: 170 | FS124: 171 | FT124: 172 | FU124: 173 | FV124: 174 | FW124: 175 | FX124: 176 | FY124: 177 | FZ124: 178 | GA124: 179 | GB124: 180 | GC124: 181 | GD124: 182 | GE124: 183 | GF124: 184 | GG124: 185 | GH124: 186 | GI124: 187 | GJ124: 188 | GK124: 189 | GL124: 190 | GM124: 191 | GN124: 192 | GO124: 193 | GP124: 194 | GQ124: 195 | GR124: 196 | GS124: 197 | GT124: 198 | GU124: 199 | GV124: 200 | GW124: 201 | GX124: 202 | GY124: 203 | GZ124: 204 | HA124: 205 | HB124: 206 | HC124: 207 | HD124: 208 | HE124: 209 | HF124: 210 | HG124: 211 | HH124: 212 | HI124: 213 | HJ124: 214 | HK124: 215 | HL124: 216 | HM124: 217 | HN124: 218 | HO124: 219 | HP124: 220 | HQ124: 221 | HR124: 222 | HS124: 223 | HT124: 224 | HU124: 225 | HV124: 226 | HW124: 227 | HX124: 228 | HY124: 229 | HZ124: 230 | IA124: 231 | IB124: 232 | IC124: 233 | ID124: 234 | IE124: 235 | IF124: 236 | IG124: 237 | IH124: 238 | II124: 239 | IJ124: 240 | IK124: 241 | IL124: 242 | IM124: 243 | IN124: 244 | IO124: 245 | IP124: 246 | IQ124: 247 | IR124: 248 | IS124: 249 | IT124: 250 | IU124: 251 | IV124: 252 | IW124: 253 | IX124: 254 | IY124: 255 | IZ124: 256 | JA124: 257 | JB124: 258 | JC124: 259 | JD124: 260 | JE124: 261 | JF124: 262 | JG124: 263 | JH124: 264 | JI124: 265 | JJ124: 266 | JK124: 267 | JL124: 268 | JM124: 269 | JN124: 270 | JO124: 271 | JP124: 272 | JQ124: 273 | JR124: 274 | JS124: 275 | JT124: 276 | JU124: 277 | JV124: 278 | JW124: 279 | JX124: 280 | JY124: 281 | JZ124: 282 | KA124: 283 | KB124: 284 | KC124: 285 | KD124: 286 | KE124: 287 | KF124: 288 | KG124: 289 | KH124: 290 | KI124: 291 | KJ124: 292 | KK124: 293 | KL124: 294 | KM124: 295 | KN124: 296 | KO124: 297 | KP124: 298 | KQ124: 299 | KR124: 300
C125: Opening plant balance | E125: =D128 -> 100 | F125: =E128 -> 203 | G125: 309.09 | H125: 418.3627 | I125: 530.913581 | J125: 646.8409884 | K125: 766.2462181 | L125: 889.2336046 | M125: 1015.910613 | N125: 1146.387931 | O125: 1280.779569 | P125: 1419.202956 | Q125: 1561.779045 | R125: 1708.632416 | S125: 1859.891389 | T125: 2015.68813 | U125: 2176.158774 | V125: 2341.443537 | W125: 2511.686844 | X125: 2687.037449 | Y125: 2867.648572 | Z125: 3053.67803 | AA125: 3245.28837 | AB125: 3442.647022 | AC125: 3645.926432 | AD125: 3855.304225 | AE125: 4070.963352 | AF125: 4293.092252 | AG125: 4521.88502 | AH125: 4757.541571 | AI125: 4900.267818 | AJ125: 5047.275852 | AK125: 5198.694128 | AL125: 5354.654952 | AM125: 5515.2946 | AN125: 5680.753438 | AO125: 5851.176041 | AP125: 6026.711323 | AQ125: 6207.512662 | AR125: 6393.738042 | AS125: 6585.550183 | AT125: 6783.116689 | AU125: 6986.61019 | AV125: 7196.208495 | AW125: 7412.09475 | AX125: 7634.457593 | AY125: 7863.49132 | AZ125: 8099.39606 | BA125: 8342.377942 | BB125: 8592.64928 | BC125: 8850.428759 | BD125: 9115.941621 | BE125: 9389.41987 | BF125: 9671.102466 | BG125: 9961.23554 | BH125: 10260.07261 | BI125: 10567.87478 | BJ125: 10884.91103 | BK125: 11211.45836 | BL125: 11547.80211 | BM125: 11894.23617 | BN125: 12251.06326 | BO125: 12618.59516 | BP125: 12997.15301 | BQ125: 13387.0676 | BR125: =BQ128 -> 13788.67963 | BS125: 14202.34002 | BT125: 14628.41022 | BU125: 15067.26252 | BV125: 15519.2804 | BW125: 15984.85881 | BX125: 16464.40458 | BY125: 16958.33671 | BZ125: 17467.08682 | CA125: 17991.09942 | CB125: 18530.8324 | CC125: 19086.75737 | CD125: 19659.3601 | CE125: 20249.1409 | CF125: 20856.61513 | CG125: 21482.31358 | CH125: 22126.78299 | CI125: 22790.58648 | CJ125: 23474.30407 | CK125: 24178.53319 | CL125: 24903.88919 | CM125: 25651.00586 | CN125: 26420.53604 | CO125: 27213.15212 | CP125: 28029.54669 | CQ125: 28870.43309 | CR125: 29736.54608 | CS125: 30628.64246 | CT125: 31547.50173 | CU125: 32493.92679 | CV125: 33468.74459 | CW125: 34472.80693 | CX125: 35506.99114 | CY125: 36572.20087 | CZ125: 37669.3669 | DA125: 38799.4479 | DB125: 39963.43134 | DC125: 41162.33428 | DD125: 42397.20431 | DE125: 43669.12044 | DF125: 44979.19405 | DG125: 46328.56987 | DH125: 47718.42697 | DI125: 49149.97978 | DJ125: 50624.47917 | DK125: 52143.21355 | DL125: 53707.50995 | DM125: 55318.73525 | DN125: 56978.29731 | DO125: 58687.64623 | DP125: 60448.27561 | DQ125: 62261.72388 | DR125: 64129.5756 | DS125: 66053.46287 | DT125: 68035.06675 | DU125: 70076.11876 | DV125: 72178.40232 | DW125: 74343.75439 | DX125: 76574.06702 | DY125: 78871.28903 | DZ125: 81237.4277 | EA125: 83674.55053 | EB125: 86184.78705 | EC125: 88770.33066 | ED125: =EC128 -> 91433.44058 | EE125: 94176.4438 | EF125: 97001.73711 | EG125: 99911.78922 | EH125: 102909.1429 | EI125: 105996.4172 | EJ125: 109176.3097 | EK125: 112451.599 | EL125: 115825.147 | EM125: 119299.9014 | EN125: 122878.8984 | EO125: 126565.2654 | EP125: 130362.2233 | EQ125: 134273.09 | ER125: 138301.2827 | ES125: 142450.3212 | ET125: 146723.8308 | EU125: 151125.5458 | EV125: 155659.3121 | EW125: 160329.0915 | EX125: 165138.9643 | EY125: 170093.1332 | EZ125: 175195.9272 | FA125: 180451.805 | FB125: 185865.3591 | FC125: 191441.3199 | FD125: 197184.5595 | FE125: 203100.0963 | FF125: 209193.0992 | FG125: 215468.8922 | FH125: 221932.9589 | FI125: 228590.9477 | FJ125: 235448.6761 | FK125: 242512.1364 | FL125: 249787.5005 | FM125: 257281.1255 | FN125: 264999.5593 | FO125: 272949.5461 | FP125: 281138.0324 | FQ125: 289572.1734 | FR125: 298259.3386 | FS125: 307207.1188 | FT125: 316423.3323 | FU125: 325916.0323 | FV125: 335693.5133 | FW125: 345764.3187 | FX125: 356137.2482 | FY125: 366821.3657 | FZ125: 377826.0067 | GA125: 389160.7869 | GB125: 400835.6105 | GC125: 412860.6788 | GD125: 425246.4991 | GE125: 438003.8941 | GF125: 451144.0109 | GG125: 464678.3313 | GH125: 478618.6812 | GI125: 492977.2416 | GJ125: 507766.5589 | GK125: 522999.5557 | GL125: 538689.5423 | GM125: 554850.2286 | GN125: 571495.7355 | GO125: 588640.6075 | GP125: =GO128 -> 606299.8257 | GQ125: 624488.8205 | GR125: 643223.4851 | GS125: 662520.1897 | GT125: 682395.7954 | GU125: 702867.6692 | GV125: 723953.6993 | GW125: 745672.3103 | GX125: 768042.4796 | GY125: 791083.754 | GZ125: 814816.2666 | HA125: 839260.7546 | HB125: 864438.5773 | HC125: 890371.7346 | HD125: 917082.8866 | HE125: 944595.3732 | HF125: 972933.2344 | HG125: 1002121.231 | HH125: 1032184.868 | HI125: 1063150.414 | HJ125: 1095044.927 | HK125: 1127896.275 | HL125: 1161733.163 | HM125: 1196585.158 | HN125: 1232482.713 | HO125: 1269457.194 | HP125: 1307540.91 | HQ125: 1346767.137 | HR125: 1387170.151 | HS125: 1428785.256 | HT125: 1471648.813 | HU125: 1515798.278 | HV125: 1561272.226 | HW125: 1608110.393 | HX125: 1656353.705 | HY125: 1706044.316 | HZ125: 1757225.645 | IA125: 1809942.415 | IB125: 1864240.687 | IC125: 1920167.908 | ID125: 1977772.945 | IE125: 2037106.133 | IF125: 2098219.317 | IG125: 2161165.897 | IH125: 2226000.874 | II125: 2292780.9 | IJ125: 2361564.327 | IK125: 2432411.257 | IL125: 2505383.594 | IM125: 2580545.102 | IN125: 2657961.455 | IO125: 2737700.299 | IP125: 2819831.308 | IQ125: 2904426.247 | IR125: 2991559.035 | IS125: 3081305.806 | IT125: 3173744.98 | IU125: 3268957.329 | IV125: 3367026.049 | IW125: 3468036.83 | IX125: 3572077.935 | IY125: 3679240.273 | IZ125: 3789617.482 | JA125: 3903306.006 | JB125: =JA128 -> 4020405.186 | JC125: 4141017.342 | JD125: 4265247.862 | JE125: 4393205.298 | JF125: 4525001.457 | JG125: 4660751.501 | JH125: 4800574.046 | JI125: 4944591.267 | JJ125: 5092929.005 | JK125: 5245716.875 | JL125: 5403088.381 | JM125: 5565181.033 | JN125: 5732136.464 | JO125: 5904100.558 | JP125: 6081223.575 | JQ125: 6263660.282 | JR125: 6451570.09 | JS125: 6645117.193 | JT125: 6844470.709 | JU125: 7049804.83 | JV125: 7261298.975 | JW125: 7479137.944 | JX125: 7703512.082 | JY125: 7934617.445 | JZ125: 8172655.968 | KA125: 8417835.647 | KB125: 8670370.717 | KC125: 8930481.838 | KD125: 9198396.293 | KE125: 9474348.182 | KF125: 9758578.628 | KG125: 10051335.99 | KH125: 10352876.07 | KI125: 10663462.35 | KJ125: 10983366.22 | KK125: 11312867.2 | KL125: 11652253.22 | KM125: 12001820.82 | KN125: 12361875.44 | KO125: 12732731.71 | KP125: 13114713.66 | KQ125: 13508155.07 | KR125: 13913399.72
C126: Add capital expenditure | D126: 100 | E126: =D126*(1+$D$115) -> 103 | F126: =E126*(1+$D$115) -> 106.09 | G126: 109.2727 | H126: 112.550881 | I126: 115.9274074 | J126: 119.4052297 | K126: 122.9873865 | L126: 126.6770081 | M126: 130.4773184 | N126: 134.3916379 | O126: 138.4233871 | P126: 142.5760887 | Q126: 146.8533713 | R126: 151.2589725 | S126: 155.7967417 | T126: 160.4706439 | U126: 165.2847632 | V126: 170.2433061 | W126: 175.3506053 | X126: 180.6111235 | Y126: 186.0294572 | Z126: 191.6103409 | AA126: 197.3586511 | AB126: 203.2794106 | AC126: 209.377793 | AD126: 215.6591268 | AE126: 222.1289006 | AF126: 228.7927676 | AG126: 235.6565506 | AH126: 242.7262471 | AI126: 250.0080345 | AJ126: 257.5082756 | AK126: 265.2335238 | AL126: 273.1905296 | AM126: 281.3862454 | AN126: 289.8278328 | AO126: 298.5226678 | AP126: 307.4783478 | AQ126: 316.7026983 | AR126: 326.2037792 | AS126: 335.9898926 | AT126: 346.0695894 | AU126: 356.451677 | AV126: 367.1452273 | AW126: 378.1595842 | AX126: 389.5043717 | AY126: 401.1895028 | AZ126: 413.2251879 | BA126: 425.6219436 | BB126: 438.3906019 | BC126: 451.5423199 | BD126: 465.0885895 | BE126: 479.0412472 | BF126: 493.4124846 | BG126: 508.2148592 | BH126: 523.4613049 | BI126: 539.1651441 | BJ126: 555.3400984 | BK126: 572.0003014 | BL126: 589.1603104 | BM126: 606.8351197 | BN126: 625.0401733 | BO126: 643.7913785 | BP126: 663.1051199 | BQ126: 682.9982735 | BR126: =BQ126*(1+$D$115) -> 703.4882217 | BS126: 724.5928683 | BT126: 746.3306544 | BU126: 768.720574 | BV126: 791.7821912 | BW126: 815.5356569 | BX126: 840.0017267 | BY126: 865.2017785 | BZ126: 891.1578318 | CA126: 917.8925668 | CB126: 945.4293438 | CC126: 973.7922241 | CD126: 1003.005991 | CE126: 1033.096171 | CF126: 1064.089056 | CG126: 1096.011727 | CH126: 1128.892079 | CI126: 1162.758842 | CJ126: 1197.641607 | CK126: 1233.570855 | CL126: 1270.577981 | CM126: 1308.69532 | CN126: 1347.95618 | CO126: 1388.394865 | CP126: 1430.046711 | CQ126: 1472.948112 | CR126: 1517.136556 | CS126: 1562.650652 | CT126: 1609.530172 | CU126: 1657.816077 | CV126: 1707.550559 | CW126: 1758.777076 | CX126: 1811.540388 | CY126: 1865.8866 | CZ126: 1921.863198 | DA126: 1979.519094 | DB126: 2038.904667 | DC126: 2100.071807 | DD126: 2163.073961 | DE126: 2227.96618 | DF126: 2294.805165 | DG126: 2363.64932 | DH126: 2434.5588 | DI126: 2507.595564 | DJ126: 2582.823431 | DK126: 2660.308134 | DL126: 2740.117378 | DM126: 2822.320899 | DN126: 2906.990526 | DO126: 2994.200242 | DP126: 3084.026249 | DQ126: 3176.547037 | DR126: 3271.843448 | DS126: 3369.998751 | DT126: 3471.098714 | DU126: 3575.231675 | DV126: 3682.488625 | DW126: 3792.963284 | DX126: 3906.752182 | DY126: 4023.954748 | DZ126: 4144.67339 | EA126: 4269.013592 | EB126: 4397.084 | EC126: 4528.99652 | ED126: =EC126*(1+$D$115) -> 4664.866415 | EE126: 4804.812408 | EF126: 4948.95678 | EG126: 5097.425484 | EH126: 5250.348248 | EI126: 5407.858696 | EJ126: 5570.094456 | EK126: 5737.19729 | EL126: 5909.313209 | EM126: 6086.592605 | EN126: 6269.190383 | EO126: 6457.266095 | EP126: 6650.984078 | EQ126: 6850.5136 | ER126: 7056.029008 | ES126: 7267.709878 | ET126: 7485.741174 | EU126: 7710.31341 | EV126: 7941.622812 | EW126: 8179.871496 | EX126: 8425.267641 | EY126: 8678.02567 | EZ126: 8938.366441 | FA126: 9206.517434 | FB126: 9482.712957 | FC126: 9767.194346 | FD126: 10060.21018 | FE126: 10362.01648 | FF126: 10672.87698 | FG126: 10993.06328 | FH126: 11322.85518 | FI126: 11662.54084 | FJ126: 12012.41706 | FK126: 12372.78958 | FL126: 12743.97326 | FM126: 13126.29246 | FN126: 13520.08123 | FO126: 13925.68367 | FP126: 14343.45418 | FQ126: 14773.75781 | FR126: 15216.97054 | FS126: 15673.47966 | FT126: 16143.68405 | FU126: 16627.99457 | FV126: 17126.83441 | FW126: 17640.63944 | FX126: 18169.85862 | FY126: 18714.95438 | FZ126: 19276.40301 | GA126: 19854.6951 | GB126: 20450.33596 | GC126: 21063.84603 | GD126: 21695.76141 | GE126: 22346.63426 | GF126: 23017.03329 | GG126: 23707.54428 | GH126: 24418.77061 | GI126: 25151.33373 | GJ126: 25905.87374 | GK126: 26683.04995 | GL126: 27483.54145 | GM126: 28308.0477 | GN126: 29157.28913 | GO126: 30032.0078 | GP126: =GO126*(1+$D$115) -> 30932.96804 | GQ126: 31860.95708 | GR126: 32816.78579 | GS126: 33801.28936 | GT126: 34815.32804 | GU126: 35859.78789 | GV126: 36935.58152 | GW126: 38043.64897 | GX126: 39184.95844 | GY126: 40360.50719 | GZ126: 41571.3224 | HA126: 42818.46208 | HB126: 44103.01594 | HC126: 45426.10642 | HD126: 46788.88961 | HE126: 48192.5563 | HF126: 49638.33299 | HG126: 51127.48298 | HH126: 52661.30747 | HI126: 54241.14669 | HJ126: 55868.38109 | HK126: 57544.43252 | HL126: 59270.7655 | HM126: 61048.88846 | HN126: 62880.35512 | HO126: 64766.76577 | HP126: 66709.76875 | HQ126: 68711.06181 | HR126: 70772.39366 | HS126: 72895.56547 | HT126: 75082.43244 | HU126: 77334.90541 | HV126: 79654.95257 | HW126: 82044.60115 | HX126: 84505.93918 | HY126: 87041.11736 | HZ126: 89652.35088 | IA126: 92341.92141 | IB126: 95112.17905 | IC126: 97965.54442 | ID126: 100904.5108 | IE126: 103931.6461 | IF126: 107049.5955 | IG126: 110261.0833 | IH126: 113568.9158 | II126: 116975.9833 | IJ126: 120485.2628 | IK126: 124099.8207 | IL126: 127822.8153 | IM126: 131657.4998 | IN126: 135607.2247 | IO126: 139675.4415 | IP126: 143865.7047 | IQ126: 148181.6759 | IR126: 152627.1262 | IS126: 157205.9399 | IT126: 161922.1181 | IU126: 166779.7817 | IV126: 171783.1751 | IW126: 176936.6704 | IX126: 182244.7705 | IY126: 187712.1136 | IZ126: 193343.477 | JA126: 199143.7813 | JB126: =JA126*(1+$D$115) -> 205118.0948 | JC126: 211271.6376 | JD126: 217609.7867 | JE126: 224138.0803 | JF126: 230862.2228 | JG126: 237788.0894 | JH126: 244921.7321 | JI126: 252269.3841 | JJ126: 259837.4656 | JK126: 267632.5896 | JL126: 275661.5673 | JM126: 283931.4143 | JN126: 292449.3567 | JO126: 301222.8374 | JP126: 310259.5225 | JQ126: 319567.3082 | JR126: 329154.3275 | JS126: 339028.9573 | JT126: 349199.826 | JU126: 359675.8208 | JV126: 370466.0954 | JW126: 381580.0783 | JX126: 393027.4806 | JY126: 404818.305 | JZ126: 416962.8542 | KA126: 429471.7398 | KB126: 442355.892 | KC126: 455626.5688 | KD126: 469295.3658 | KE126: 483374.2268 | KF126: 497875.4536 | KG126: 512811.7172 | KH126: 528196.0687 | KI126: 544041.9508 | KJ126: 560363.2093 | KK126: 577174.1056 | KL126: 594489.3288 | KM126: 612324.0086 | KN126: 630693.7289 | KO126: 649614.5407 | KP126: 669102.977 | KQ126: 689176.0663 | KR126: 709851.3483
C127: Less Retirement | D127: =IF(D124>=$D$116,OFFSET(D126,0,-$D$116)) -> FALSE | E127: =IF(E124>=$D$116,OFFSET(E126,0,-$D$116)) -> FALSE | F127: FALSE | G127: FALSE | H127: FALSE | I127: FALSE | J127: FALSE | K127: FALSE | L127: FALSE | M127: FALSE | N127: FALSE | O127: FALSE | P127: FALSE | Q127: FALSE | R127: FALSE | S127: FALSE | T127: FALSE | U127: FALSE | V127: FALSE | W127: FALSE | X127: FALSE | Y127: FALSE | Z127: FALSE | AA127: FALSE | AB127: FALSE | AC127: FALSE | AD127: FALSE | AE127: FALSE | AF127: FALSE | AG127: FALSE | AH127: 100 | AI127: 103 | AJ127: 106.09 | AK127: 109.2727 | AL127: 112.550881 | AM127: 115.9274074 | AN127: 119.4052297 | AO127: 122.9873865 | AP127: 126.6770081 | AQ127: 130.4773184 | AR127: 134.3916379 | AS127: 138.4233871 | AT127: 142.5760887 | AU127: 146.8533713 | AV127: 151.2589725 | AW127: 155.7967417 | AX127: 160.4706439 | AY127: 165.2847632 | AZ127: 170.2433061 | BA127: 175.3506053 | BB127: 180.6111235 | BC127: 186.0294572 | BD127: 191.6103409 | BE127: 197.3586511 | BF127: 203.2794106 | BG127: 209.377793 | BH127: 215.6591268 | BI127: 222.1289006 | BJ127: 228.7927676 | BK127: 235.6565506 | BL127: 242.7262471 | BM127: 250.0080345 | BN127: 257.5082756 | BO127: 265.2335238 | BP127: 273.1905296 | BQ127: =IF(BQ124>=$D$116,OFFSET(BQ126,0,-$D$116)) -> 281.3862454 | BR127: 289.8278328 | BS127: 298.5226678 | BT127: 307.4783478 | BU127: 316.7026983 | BV127: 326.2037792 | BW127: 335.9898926 | BX127: 346.0695894 | BY127: 356.451677 | BZ127: 367.1452273 | CA127: 378.1595842 | CB127: 389.5043717 | CC127: 401.1895028 | CD127: 413.2251879 | CE127: 425.6219436 | CF127: 438.3906019 | CG127: 451.5423199 | CH127: 465.0885895 | CI127: 479.0412472 | CJ127: 493.4124846 | CK127: 508.2148592 | CL127: 523.4613049 | CM127: 539.1651441 | CN127: 555.3400984 | CO127: 572.0003014 | CP127: 589.1603104 | CQ127: 606.8351197 | CR127: 625.0401733 | CS127: 643.7913785 | CT127: 663.1051199 | CU127: 682.9982735 | CV127: 703.4882217 | CW127: 724.5928683 | CX127: 746.3306544 | CY127: 768.720574 | CZ127: 791.7821912 | DA127: 815.5356569 | DB127: 840.0017267 | DC127: 865.2017785 | DD127: 891.1578318 | DE127: 917.8925668 | DF127: 945.4293438 | DG127: 973.7922241 | DH127: 1003.005991 | DI127: 1033.096171 | DJ127: 1064.089056 | DK127: 1096.011727 | DL127: 1128.892079 | DM127: 1162.758842 | DN127: 1197.641607 | DO127: 1233.570855 | DP127: 1270.577981 | DQ127: 1308.69532 | DR127: 1347.95618 | DS127: 1388.394865 | DT127: 1430.046711 | DU127: 1472.948112 | DV127: 1517.136556 | DW127: 1562.650652 | DX127: 1609.530172 | DY127: 1657.816077 | DZ127: 1707.550559 | EA127: 1758.777076 | EB127: 1811.540388 | EC127: =IF(EC124>=$D$116,OFFSET(EC126,0,-$D$116)) -> 1865.8866 | ED127: 1921.863198 | EE127: 1979.519094 | EF127: 2038.904667 | EG127: 2100.071807 | EH127: 2163.073961 | EI127: 2227.96618 | EJ127: 2294.805165 | EK127: 2363.64932 | EL127: 2434.5588 | EM127: 2507.595564 | EN127: 2582.823431 | EO127: 2660.308134 | EP127: 2740.117378 | EQ127: 2822.320899 | ER127: 2906.990526 | ES127: 2994.200242 | ET127: 3084.026249 | EU127: 3176.547037 | EV127: 3271.843448 | EW127: 3369.998751 | EX127: 3471.098714 | EY127: 3575.231675 | EZ127: 3682.488625 | FA127: 3792.963284 | FB127: 3906.752182 | FC127: 4023.954748 | FD127: 4144.67339 | FE127: 4269.013592 | FF127: 4397.084 | FG127: 4528.99652 | FH127: 4664.866415 | FI127: 4804.812408 | FJ127: 4948.95678 | FK127: 5097.425484 | FL127: 5250.348248 | FM127: 5407.858696 | FN127: 5570.094456 | FO127: 5737.19729 | FP127: 5909.313209 | FQ127: 6086.592605 | FR127: 6269.190383 | FS127: 6457.266095 | FT127: 6650.984078 | FU127: 6850.5136 | FV127: 7056.029008 | FW127: 7267.709878 | FX127: 7485.741174 | FY127: 7710.31341 | FZ127: 7941.622812 | GA127: 8179.871496 | GB127: 8425.267641 | GC127: 8678.02567 | GD127: 8938.366441 | GE127: 9206.517434 | GF127: 9482.712957 | GG127: 9767.194346 | GH127: 10060.21018 | GI127: 10362.01648 | GJ127: 10672.87698 | GK127: 10993.06328 | GL127: 11322.85518 | GM127: 11662.54084 | GN127: 12012.41706 | GO127: =IF(GO124>=$D$116,OFFSET(GO126,0,-$D$116)) -> 12372.78958 | GP127: 12743.97326 | GQ127: 13126.29246 | GR127: 13520.08123 | GS127: 13925.68367 | GT127: 14343.45418 | GU127: 14773.75781 | GV127: 15216.97054 | GW127: 15673.47966 | GX127: 16143.68405 | GY127: 16627.99457 | GZ127: 17126.83441 | HA127: 17640.63944 | HB127: 18169.85862 | HC127: 18714.95438 | HD127: 19276.40301 | HE127: 19854.6951 | HF127: 20450.33596 | HG127: 21063.84603 | HH127: 21695.76141 | HI127: 22346.63426 | HJ127: 23017.03329 | HK127: 23707.54428 | HL127: 24418.77061 | HM127: 25151.33373 | HN127: 25905.87374 | HO127: 26683.04995 | HP127: 27483.54145 | HQ127: 28308.0477 | HR127: 29157.28913 | HS127: 30032.0078 | HT127: 30932.96804 | HU127: 31860.95708 | HV127: 32816.78579 | HW127: 33801.28936 | HX127: 34815.32804 | HY127: 35859.78789 | HZ127: 36935.58152 | IA127: 38043.64897 | IB127: 39184.95844 | IC127: 40360.50719 | ID127: 41571.3224 | IE127: 42818.46208 | IF127: 44103.01594 | IG127: 45426.10642 | IH127: 46788.88961 | II127: 48192.5563 | IJ127: 49638.33299 | IK127: 51127.48298 | IL127: 52661.30747 | IM127: 54241.14669 | IN127: 55868.38109 | IO127: 57544.43252 | IP127: 59270.7655 | IQ127: 61048.88846 | IR127: 62880.35512 | IS127: 64766.76577 | IT127: 66709.76875 | IU127: 68711.06181 | IV127: 70772.39366 | IW127: 72895.56547 | IX127: 75082.43244 | IY127: 77334.90541 | IZ127: 79654.95257 | JA127: =IF(JA124>=$D$116,OFFSET(JA126,0,-$D$116)) -> 82044.60115 | JB127: 84505.93918 | JC127: 87041.11736 | JD127: 89652.35088 | JE127: 92341.92141 | JF127: 95112.17905 | JG127: 97965.54442 | JH127: 100904.5108 | JI127: 103931.6461 | JJ127: 107049.5955 | JK127: 110261.0833 | JL127: 113568.9158 | JM127: 116975.9833 | JN127: 120485.2628 | JO127: 124099.8207 | JP127: 127822.8153 | JQ127: 131657.4998 | JR127: 135607.2247 | JS127: 139675.4415 | JT127: 143865.7047 | JU127: 148181.6759 | JV127: 152627.1262 | JW127: 157205.9399 | JX127: 161922.1181 | JY127: 166779.7817 | JZ127: 171783.1751 | KA127: 176936.6704 | KB127: 182244.7705 | KC127: 187712.1136 | KD127: 193343.477 | KE127: 199143.7813 | KF127: 205118.0948 | KG127: 211271.6376 | KH127: 217609.7867 | KI127: 224138.0803 | KJ127: 230862.2228 | KK127: 237788.0894 | KL127: 244921.7321 | KM127: 252269.3841 | KN127: 259837.4656 | KO127: 267632.5896 | KP127: 275661.5673 | KQ127: 283931.4143 | KR127: 292449.3567
C128: Closing balance | D128: =D125+D126-D127 -> 100 | E128: =E125+E126-E127 -> 203 | F128: 309.09 | G128: 418.3627 | H128: 530.913581 | I128: 646.8409884 | J128: 766.2462181 | K128: 889.2336046 | L128: 1015.910613 | M128: 1146.387931 | N128: 1280.779569 | O128: 1419.202956 | P128: 1561.779045 | Q128: 1708.632416 | R128: 1859.891389 | S128: 2015.68813 | T128: 2176.158774 | U128: 2341.443537 | V128: 2511.686844 | W128: 2687.037449 | X128: 2867.648572 | Y128: 3053.67803 | Z128: 3245.28837 | AA128: 3442.647022 | AB128: 3645.926432 | AC128: 3855.304225 | AD128: 4070.963352 | AE128: 4293.092252 | AF128: 4521.88502 | AG128: 4757.541571 | AH128: 4900.267818 | AI128: 5047.275852 | AJ128: 5198.694128 | AK128: 5354.654952 | AL128: 5515.2946 | AM128: 5680.753438 | AN128: 5851.176041 | AO128: 6026.711323 | AP128: 6207.512662 | AQ128: 6393.738042 | AR128: 6585.550183 | AS128: 6783.116689 | AT128: 6986.61019 | AU128: 7196.208495 | AV128: 7412.09475 | AW128: 7634.457593 | AX128: 7863.49132 | AY128: 8099.39606 | AZ128: 8342.377942 | BA128: 8592.64928 | BB128: 8850.428759 | BC128: 9115.941621 | BD128: 9389.41987 | BE128: 9671.102466 | BF128: 9961.23554 | BG128: 10260.07261 | BH128: 10567.87478 | BI128: 10884.91103 | BJ128: 11211.45836 | BK128: 11547.80211 | BL128: 11894.23617 | BM128: 12251.06326 | BN128: 12618.59516 | BO128: 12997.15301 | BP128: 13387.0676 | BQ128: =BQ125+BQ126-BQ127 -> 13788.67963 | BR128: 14202.34002 | BS128: 14628.41022 | BT128: 15067.26252 | BU128: 15519.2804 | BV128: 15984.85881 | BW128: 16464.40458 | BX128: 16958.33671 | BY128: 17467.08682 | BZ128: 17991.09942 | CA128: 18530.8324 | CB128: 19086.75737 | CC128: 19659.3601 | CD128: 20249.1409 | CE128: 20856.61513 | CF128: 21482.31358 | CG128: 22126.78299 | CH128: 22790.58648 | CI128: 23474.30407 | CJ128: 24178.53319 | CK128: 24903.88919 | CL128: 25651.00586 | CM128: 26420.53604 | CN128: 27213.15212 | CO128: 28029.54669 | CP128: 28870.43309 | CQ128: 29736.54608 | CR128: 30628.64246 | CS128: 31547.50173 | CT128: 32493.92679 | CU128: 33468.74459 | CV128: 34472.80693 | CW128: 35506.99114 | CX128: 36572.20087 | CY128: 37669.3669 | CZ128: 38799.4479 | DA128: 39963.43134 | DB128: 41162.33428 | DC128: 42397.20431 | DD128: 43669.12044 | DE128: 44979.19405 | DF128: 46328.56987 | DG128: 47718.42697 | DH128: 49149.97978 | DI128: 50624.47917 | DJ128: 52143.21355 | DK128: 53707.50995 | DL128: 55318.73525 | DM128: 56978.29731 | DN128: 58687.64623 | DO128: 60448.27561 | DP128: 62261.72388 | DQ128: 64129.5756 | DR128: 66053.46287 | DS128: 68035.06675 | DT128: 70076.11876 | DU128: 72178.40232 | DV128: 74343.75439 | DW128: 76574.06702 | DX128: 78871.28903 | DY128: 81237.4277 | DZ128: 83674.55053 | EA128: 86184.78705 | EB128: 88770.33066 | EC128: =EC125+EC126-EC127 -> 91433.44058 | ED128: 94176.4438 | EE128: 97001.73711 | EF128: 99911.78922 | EG128: 102909.1429 | EH128: 105996.4172 | EI128: 109176.3097 | EJ128: 112451.599 | EK128: 115825.147 | EL128: 119299.9014 | EM128: 122878.8984 | EN128: 126565.2654 | EO128: 130362.2233 | EP128: 134273.09 | EQ128: 138301.2827 | ER128: 142450.3212 | ES128: 146723.8308 | ET128: 151125.5458 | EU128: 155659.3121 | EV128: 160329.0915 | EW128: 165138.9643 | EX128: 170093.1332 | EY128: 175195.9272 | EZ128: 180451.805 | FA128: 185865.3591 | FB128: 191441.3199 | FC128: 197184.5595 | FD128: 203100.0963 | FE128: 209193.0992 | FF128: 215468.8922 | FG128: 221932.9589 | FH128: 228590.9477 | FI128: 235448.6761 | FJ128: 242512.1364 | FK128: 249787.5005 | FL128: 257281.1255 | FM128: 264999.5593 | FN128: 272949.5461 | FO128: 281138.0324 | FP128: 289572.1734 | FQ128: 298259.3386 | FR128: 307207.1188 | FS128: 316423.3323 | FT128: 325916.0323 | FU128: 335693.5133 | FV128: 345764.3187 | FW128: 356137.2482 | FX128: 366821.3657 | FY128: 377826.0067 | FZ128: 389160.7869 | GA128: 400835.6105 | GB128: 412860.6788 | GC128: 425246.4991 | GD128: 438003.8941 | GE128: 451144.0109 | GF128: 464678.3313 | GG128: 478618.6812 | GH128: 492977.2416 | GI128: 507766.5589 | GJ128: 522999.5557 | GK128: 538689.5423 | GL128: 554850.2286 | GM128: 571495.7355 | GN128: 588640.6075 | GO128: =GO125+GO126-GO127 -> 606299.8257 | GP128: 624488.8205 | GQ128: 643223.4851 | GR128: 662520.1897 | GS128: 682395.7954 | GT128: 702867.6692 | GU128: 723953.6993 | GV128: 745672.3103 | GW128: 768042.4796 | GX128: 791083.754 | GY128: 814816.2666 | GZ128: 839260.7546 | HA128: 864438.5773 | HB128: 890371.7346 | HC128: 917082.8866 | HD128: 944595.3732 | HE128: 972933.2344 | HF128: 1002121.231 | HG128: 1032184.868 | HH128: 1063150.414 | HI128: 1095044.927 | HJ128: 1127896.275 | HK128: 1161733.163 | HL128: 1196585.158 | HM128: 1232482.713 | HN128: 1269457.194 | HO128: 1307540.91 | HP128: 1346767.137 | HQ128: 1387170.151 | HR128: 1428785.256 | HS128: 1471648.813 | HT128: 1515798.278 | HU128: 1561272.226 | HV128: 1608110.393 | HW128: 1656353.705 | HX128: 1706044.316 | HY128: 1757225.645 | HZ128: 1809942.415 | IA128: 1864240.687 | IB128: 1920167.908 | IC128: 1977772.945 | ID128: 2037106.133 | IE128: 2098219.317 | IF128: 2161165.897 | IG128: 2226000.874 | IH128: 2292780.9 | II128: 2361564.327 | IJ128: 2432411.257 | IK128: 2505383.594 | IL128: 2580545.102 | IM128: 2657961.455 | IN128: 2737700.299 | IO128: 2819831.308 | IP128: 2904426.247 | IQ128: 2991559.035 | IR128: 3081305.806 | IS128: 3173744.98 | IT128: 3268957.329 | IU128: 3367026.049 | IV128: 3468036.83 | IW128: 3572077.935 | IX128: 3679240.273 | IY128: 3789617.482 | IZ128: 3903306.006 | JA128: =JA125+JA126-JA127 -> 4020405.186 | JB128: 4141017.342 | JC128: 4265247.862 | JD128: 4393205.298 | JE128: 4525001.457 | JF128: 4660751.501 | JG128: 4800574.046 | JH128: 4944591.267 | JI128: 5092929.005 | JJ128: 5245716.875 | JK128: 5403088.381 | JL128: 5565181.033 | JM128: 5732136.464 | JN128: 5904100.558 | JO128: 6081223.575 | JP128: 6263660.282 | JQ128: 6451570.09 | JR128: 6645117.193 | JS128: 6844470.709 | JT128: 7049804.83 | JU128: 7261298.975 | JV128: 7479137.944 | JW128: 7703512.082 | JX128: 7934617.445 | JY128: 8172655.968 | JZ128: 8417835.647 | KA128: 8670370.717 | KB128: 8930481.838 | KC128: 9198396.293 | KD128: 9474348.182 | KE128: 9758578.628 | KF128: 10051335.99 | KG128: 10352876.07 | KH128: 10663462.35 | KI128: 10983366.22 | KJ128: 11312867.2 | KK128: 11652253.22 | KL128: 12001820.82 | KM128: 12361875.44 | KN128: 12732731.71 | KO128: 13114713.66 | KP128: 13508155.07 | KQ128: 13913399.72 | KR128: 14330801.71
C130: Depreciation rate | D130: =$D$118 -> 0.03333333333 | E130: =$D$118 -> 0.03333333333 | F130: 0.03333333333 | G130: 0.03333333333 | H130: 0.03333333333 | I130: 0.03333333333 | J130: 0.03333333333 | K130: 0.03333333333 | L130: 0.03333333333 | M130: 0.03333333333 | N130: 0.03333333333 | O130: 0.03333333333 | P130: 0.03333333333 | Q130: 0.03333333333 | R130: 0.03333333333 | S130: 0.03333333333 | T130: 0.03333333333 | U130: 0.03333333333 | V130: 0.03333333333 | W130: 0.03333333333 | X130: 0.03333333333 | Y130: 0.03333333333 | Z130: 0.03333333333 | AA130: 0.03333333333 | AB130: 0.03333333333 | AC130: 0.03333333333 | AD130: 0.03333333333 | AE130: 0.03333333333 | AF130: 0.03333333333 | AG130: 0.03333333333 | AH130: 0.03333333333 | AI130: 0.03333333333 | AJ130: 0.03333333333 | AK130: 0.03333333333 | AL130: 0.03333333333 | AM130: 0.03333333333 | AN130: 0.03333333333 | AO130: 0.03333333333 | AP130: 0.03333333333 | AQ130: 0.03333333333 | AR130: 0.03333333333 | AS130: 0.03333333333 | AT130: 0.03333333333 | AU130: 0.03333333333 | AV130: 0.03333333333 | AW130: 0.03333333333 | AX130: 0.03333333333 | AY130: 0.03333333333 | AZ130: 0.03333333333 | BA130: 0.03333333333 | BB130: 0.03333333333 | BC130: 0.03333333333 | BD130: 0.03333333333 | BE130: 0.03333333333 | BF130: 0.03333333333 | BG130: 0.03333333333 | BH130: 0.03333333333 | BI130: 0.03333333333 | BJ130: 0.03333333333 | BK130: 0.03333333333 | BL130: 0.03333333333 | BM130: 0.03333333333 | BN130: 0.03333333333 | BO130: 0.03333333333 | BP130: 0.03333333333 | BQ130: =$D$118 -> 0.03333333333 | BR130: 0.03333333333 | BS130: 0.03333333333 | BT130: 0.03333333333 | BU130: 0.03333333333 | BV130: 0.03333333333 | BW130: 0.03333333333 | BX130: 0.03333333333 | BY130: 0.03333333333 | BZ130: 0.03333333333 | CA130: 0.03333333333 | CB130: 0.03333333333 | CC130: 0.03333333333 | CD130: 0.03333333333 | CE130: 0.03333333333 | CF130: 0.03333333333 | CG130: 0.03333333333 | CH130: 0.03333333333 | CI130: 0.03333333333 | CJ130: 0.03333333333 | CK130: 0.03333333333 | CL130: 0.03333333333 | CM130: 0.03333333333 | CN130: 0.03333333333 | CO130: 0.03333333333 | CP130: 0.03333333333 | CQ130: 0.03333333333 | CR130: 0.03333333333 | CS130: 0.03333333333 | CT130: 0.03333333333 | CU130: 0.03333333333 | CV130: 0.03333333333 | CW130: 0.03333333333 | CX130: 0.03333333333 | CY130: 0.03333333333 | CZ130: 0.03333333333 | DA130: 0.03333333333 | DB130: 0.03333333333 | DC130: 0.03333333333 | DD130: 0.03333333333 | DE130: 0.03333333333 | DF130: 0.03333333333 | DG130: 0.03333333333 | DH130: 0.03333333333 | DI130: 0.03333333333 | DJ130: 0.03333333333 | DK130: 0.03333333333 | DL130: 0.03333333333 | DM130: 0.03333333333 | DN130: 0.03333333333 | DO130: 0.03333333333 | DP130: 0.03333333333 | DQ130: 0.03333333333 | DR130: 0.03333333333 | DS130: 0.03333333333 | DT130: 0.03333333333 | DU130: 0.03333333333 | DV130: 0.03333333333 | DW130: 0.03333333333 | DX130: 0.03333333333 | DY130: 0.03333333333 | DZ130: 0.03333333333 | EA130: 0.03333333333 | EB130: 0.03333333333 | EC130: =$D$118 -> 0.03333333333 | ED130: 0.03333333333 | EE130: 0.03333333333 | EF130: 0.03333333333 | EG130: 0.03333333333 | EH130: 0.03333333333 | EI130: 0.03333333333 | EJ130: 0.03333333333 | EK130: 0.03333333333 | EL130: 0.03333333333 | EM130: 0.03333333333 | EN130: 0.03333333333 | EO130: 0.03333333333 | EP130: 0.03333333333 | EQ130: 0.03333333333 | ER130: 0.03333333333 | ES130: 0.03333333333 | ET130: 0.03333333333 | EU130: 0.03333333333 | EV130: 0.03333333333 | EW130: 0.03333333333 | EX130: 0.03333333333 | EY130: 0.03333333333 | EZ130: 0.03333333333 | FA130: 0.03333333333 | FB130: 0.03333333333 | FC130: 0.03333333333 | FD130: 0.03333333333 | FE130: 0.03333333333 | FF130: 0.03333333333 | FG130: 0.03333333333 | FH130: 0.03333333333 | FI130: 0.03333333333 | FJ130: 0.03333333333 | FK130: 0.03333333333 | FL130: 0.03333333333 | FM130: 0.03333333333 | FN130: 0.03333333333 | FO130: 0.03333333333 | FP130: 0.03333333333 | FQ130: 0.03333333333 | FR130: 0.03333333333 | FS130: 0.03333333333 | FT130: 0.03333333333 | FU130: 0.03333333333 | FV130: 0.03333333333 | FW130: 0.03333333333 | FX130: 0.03333333333 | FY130: 0.03333333333 | FZ130: 0.03333333333 | GA130: 0.03333333333 | GB130: 0.03333333333 | GC130: 0.03333333333 | GD130: 0.03333333333 | GE130: 0.03333333333 | GF130: 0.03333333333 | GG130: 0.03333333333 | GH130: 0.03333333333 | GI130: 0.03333333333 | GJ130: 0.03333333333 | GK130: 0.03333333333 | GL130: 0.03333333333 | GM130: 0.03333333333 | GN130: 0.03333333333 | GO130: =$D$118 -> 0.03333333333 | GP130: 0.03333333333 | GQ130: 0.03333333333 | GR130: 0.03333333333 | GS130: 0.03333333333 | GT130: 0.03333333333 | GU130: 0.03333333333 | GV130: 0.03333333333 | GW130: 0.03333333333 | GX130: 0.03333333333 | GY130: 0.03333333333 | GZ130: 0.03333333333 | HA130: 0.03333333333 | HB130: 0.03333333333 | HC130: 0.03333333333 | HD130: 0.03333333333 | HE130: 0.03333333333 | HF130: 0.03333333333 | HG130: 0.03333333333 | HH130: 0.03333333333 | HI130: 0.03333333333 | HJ130: 0.03333333333 | HK130: 0.03333333333 | HL130: 0.03333333333 | HM130: 0.03333333333 | HN130: 0.03333333333 | HO130: 0.03333333333 | HP130: 0.03333333333 | HQ130: 0.03333333333 | HR130: 0.03333333333 | HS130: 0.03333333333 | HT130: 0.03333333333 | HU130: 0.03333333333 | HV130: 0.03333333333 | HW130: 0.03333333333 | HX130: 0.03333333333 | HY130: 0.03333333333 | HZ130: 0.03333333333 | IA130: 0.03333333333 | IB130: 0.03333333333 | IC130: 0.03333333333 | ID130: 0.03333333333 | IE130: 0.03333333333 | IF130: 0.03333333333 | IG130: 0.03333333333 | IH130: 0.03333333333 | II130: 0.03333333333 | IJ130: 0.03333333333 | IK130: 0.03333333333 | IL130: 0.03333333333 | IM130: 0.03333333333 | IN130: 0.03333333333 | IO130: 0.03333333333 | IP130: 0.03333333333 | IQ130: 0.03333333333 | IR130: 0.03333333333 | IS130: 0.03333333333 | IT130: 0.03333333333 | IU130: 0.03333333333 | IV130: 0.03333333333 | IW130: 0.03333333333 | IX130: 0.03333333333 | IY130: 0.03333333333 | IZ130: 0.03333333333 | JA130: =$D$118 -> 0.03333333333 | JB130: 0.03333333333 | JC130: 0.03333333333 | JD130: 0.03333333333 | JE130: 0.03333333333 | JF130: 0.03333333333 | JG130: 0.03333333333 | JH130: 0.03333333333 | JI130: 0.03333333333 | JJ130: 0.03333333333 | JK130: 0.03333333333 | JL130: 0.03333333333 | JM130: 0.03333333333 | JN130: 0.03333333333 | JO130: 0.03333333333 | JP130: 0.03333333333 | JQ130: 0.03333333333 | JR130: 0.03333333333 | JS130: 0.03333333333 | JT130: 0.03333333333 | JU130: 0.03333333333 | JV130: 0.03333333333 | JW130: 0.03333333333 | JX130: 0.03333333333 | JY130: 0.03333333333 | JZ130: 0.03333333333 | KA130: 0.03333333333 | KB130: 0.03333333333 | KC130: 0.03333333333 | KD130: 0.03333333333 | KE130: 0.03333333333 | KF130: 0.03333333333 | KG130: 0.03333333333 | KH130: 0.03333333333 | KI130: 0.03333333333 | KJ130: 0.03333333333 | KK130: 0.03333333333 | KL130: 0.03333333333 | KM130: 0.03333333333 | KN130: 0.03333333333 | KO130: 0.03333333333 | KP130: 0.03333333333 | KQ130: 0.03333333333 | KR130: 0.03333333333
C132: Depeciation expense | D132: =D130*D125 -> 0 | E132: =E130*E125 -> 3.333333333 | F132: 6.766666667 | G132: 10.303 | H132: 13.94542333 | I132: 17.69711937 | J132: 21.56136628 | K132: 25.5415406 | L132: 29.64112015 | M132: 33.86368709 | N132: 38.21293104 | O132: 42.6926523 | P132: 47.30676521 | Q132: 52.05930149 | R132: 56.95441387 | S132: 61.99637962 | T132: 67.18960434 | U132: 72.53862581 | V132: 78.04811792 | W132: 83.72289479 | X132: 89.56791496 | Y132: 95.58828575 | Z132: 101.7892677 | AA132: 108.176279 | AB132: 114.7549007 | AC132: 121.5308811 | AD132: 128.5101408 | AE132: 135.6987784 | AF132: 143.1030751 | AG132: 150.7295007 | AH132: 158.584719 | AI132: 163.3422606 | AJ132: 168.2425284 | AK132: 173.2898043 | AL132: 178.4884984 | AM132: 183.8431533 | AN132: 189.3584479 | AO132: 195.0392014 | AP132: 200.8903774 | AQ132: 206.9170887 | AR132: 213.1246014 | AS132: 219.5183394 | AT132: 226.1038896 | AU132: 232.8870063 | AV132: 239.8736165 | AW132: 247.069825 | AX132: 254.4819198 | AY132: 262.1163773 | AZ132: 269.9798687 | BA132: 278.0792647 | BB132: 286.4216427 | BC132: 295.014292 | BD132: 303.8647207 | BE132: 312.9806623 | BF132: 322.3700822 | BG132: 332.0411847 | BH132: 342.0024202 | BI132: 352.2624928 | BJ132: 362.8303676 | BK132: 373.7152786 | BL132: 384.926737 | BM132: 396.4745391 | BN132: 408.3687753 | BO132: 420.6198385 | BP132: 433.2384337 | BQ132: =BQ130*BQ125 -> 446.2355867 | BR132: 459.6226543 | BS132: 473.4113339 | BT132: 487.6136739 | BU132: 502.2420842 | BV132: 517.3093467 | BW132: 532.8286271 | BX132: 548.8134859 | BY132: 565.2778905 | BZ132: 582.2362272 | CA132: 599.703314 | CB132: 617.6944134 | CC132: 636.2252458 | CD132: 655.3120032 | CE132: 674.9713633 | CF132: 695.2205042 | CG132: 716.0771193 | CH132: 737.5594329 | CI132: 759.6862159 | CJ132: 782.4768024 | CK132: 805.9511064 | CL132: 830.1296396 | CM132: 855.0335288 | CN132: 880.6845347 | CO132: 907.1050707 | CP132: 934.3182228 | CQ132: 962.3477695 | CR132: 991.2182026 | CS132: 1020.954749 | CT132: 1051.583391 | CU132: 1083.130893 | CV132: 1115.62482 | CW132: 1149.093564 | CX132: 1183.566371 | CY132: 1219.073362 | CZ132: 1255.645563 | DA132: 1293.31493 | DB132: 1332.114378 | DC132: 1372.077809 | DD132: 1413.240144 | DE132: 1455.637348 | DF132: 1499.306468 | DG132: 1544.285662 | DH132: 1590.614232 | DI132: 1638.332659 | DJ132: 1687.482639 | DK132: 1738.107118 | DL132: 1790.250332 | DM132: 1843.957842 | DN132: 1899.276577 | DO132: 1956.254874 | DP132: 2014.94252 | DQ132: 2075.390796 | DR132: 2137.65252 | DS132: 2201.782096 | DT132: 2267.835558 | DU132: 2335.870625 | DV132: 2405.946744 | DW132: 2478.125146 | DX132: 2552.468901 | DY132: 2629.042968 | DZ132: 2707.914257 | EA132: 2789.151684 | EB132: 2872.826235 | EC132: =EC130*EC125 -> 2959.011022 | ED132: 3047.781353 | EE132: 3139.214793 | EF132: 3233.391237 | EG132: 3330.392974 | EH132: 3430.304763 | EI132: 3533.213906 | EJ132: 3639.210323 | EK132: 3748.386633 | EL132: 3860.838232 | EM132: 3976.663379 | EN132: 4095.96328 | EO132: 4218.842179 | EP132: 4345.407444 | EQ132: 4475.769668 | ER132: 4610.042758 | ES132: 4748.34404 | ET132: 4890.794362 | EU132: 5037.518192 | EV132: 5188.643738 | EW132: 5344.30305 | EX132: 5504.632142 | EY132: 5669.771106 | EZ132: 5839.864239 | FA132: 6015.060166 | FB132: 6195.511971 | FC132: 6381.377331 | FD132: 6572.818651 | FE132: 6770.00321 | FF132: 6973.103306 | FG132: 7182.296406 | FH132: 7397.765298 | FI132: 7619.698257 | FJ132: 7848.289204 | FK132: 8083.73788 | FL132: 8326.250017 | FM132: 8576.037517 | FN132: 8833.318643 | FO132: 9098.318202 | FP132: 9371.267748 | FQ132: 9652.405781 | FR132: 9941.977954 | FS132: 10240.23729 | FT132: 10547.44441 | FU132: 10863.86774 | FV132: 11189.78378 | FW132: 11525.47729 | FX132: 11871.24161 | FY132: 12227.37886 | FZ132: 12594.20022 | GA132: 12972.02623 | GB132: 13361.18702 | GC132: 13762.02263 | GD132: 14174.8833 | GE132: 14600.1298 | GF132: 15038.1337 | GG132: 15489.27771 | GH132: 15953.95604 | GI132: 16432.57472 | GJ132: 16925.55196 | GK132: 17433.31852 | GL132: 17956.31808 | GM132: 18495.00762 | GN132: 19049.85785 | GO132: =GO130*GO125 -> 19621.35358 | GP132: 20209.99419 | GQ132: 20816.29402 | GR132: 21440.78284 | GS132: 22084.00632 | GT132: 22746.52651 | GU132: 23428.92231 | GV132: 24131.78998 | GW132: 24855.74368 | GX132: 25601.41599 | GY132: 26369.45847 | GZ132: 27160.54222 | HA132: 27975.35849 | HB132: 28814.61924 | HC132: 29679.05782 | HD132: 30569.42955 | HE132: 31486.51244 | HF132: 32431.10781 | HG132: 33404.04105 | HH132: 34406.16228 | HI132: 35438.34715 | HJ132: 36501.49756 | HK132: 37596.54249 | HL132: 38724.43876 | HM132: 39886.17193 | HN132: 41082.75708 | HO132: 42315.2398 | HP132: 43584.69699 | HQ132: 44892.2379 | HR132: 46239.00504 | HS132: 47626.17519 | HT132: 49054.96044 | HU132: 50526.60926 | HV132: 52042.40754 | HW132: 53603.67976 | HX132: 55211.79015 | HY132: 56868.14386 | HZ132: 58574.18817 | IA132: 60331.41382 | IB132: 62141.35623 | IC132: 64005.59692 | ID132: 65925.76483 | IE132: 67903.53777 | IF132: 69940.64391 | IG132: 72038.86322 | IH132: 74200.02912 | II132: 76426.03 | IJ132: 78718.81089 | IK132: 81080.37522 | IL132: 83512.78648 | IM132: 86018.17007 | IN132: 88598.71517 | IO132: 91256.67663 | IP132: 93994.37693 | IQ132: 96814.20824 | IR132: 99718.63448 | IS132: 102710.1935 | IT132: 105791.4993 | IU132: 108965.2443 | IV132: 112234.2016 | IW132: 115601.2277 | IX132: 119069.2645 | IY132: 122641.3424 | IZ132: 126320.5827 | JA132: =JA130*JA125 -> 130110.2002 | JB132: 134013.5062 | JC132: 138033.9114 | JD132: 142174.9287 | JE132: 146440.1766 | JF132: 150833.3819 | JG132: 155358.3834 | JH132: 160019.1349 | JI132: 164819.7089 | JJ132: 169764.3002 | JK132: 174857.2292 | JL132: 180102.946 | JM132: 185506.0344 | JN132: 191071.2155 | JO132: 196803.3519 | JP132: 202707.4525 | JQ132: 208788.6761 | JR132: 215052.3363 | JS132: 221503.9064 | JT132: 228149.0236 | JU132: 234993.4943 | JV132: 242043.2992 | JW132: 249304.5981 | JX132: 256783.7361 | JY132: 264487.2482 | JZ132: 272421.8656 | KA132: 280594.5216 | KB132: 289012.3572 | KC132: 297682.7279 | KD132: 306613.2098 | KE132: 315811.6061 | KF132: 325285.9543 | KG132: 335044.5329 | KH132: 345095.8689 | KI132: 355448.7449 | KJ132: 366112.2073 | KK132: 377095.5735 | KL132: 388408.4407 | KM132: 400060.6939 | KN132: 412062.5147 | KO132: 424424.3902 | KP132: 437157.1219 | KQ132: 450271.8355 | KR132: 463779.9906
C134: Ratio of CAPEX on depreciation | E134: =E126/E132 -> 30.9 | F134: =F126/F132 -> 15.67832512 | G134: 10.6059109 | H134: 8.070811356 | I134: 6.550637142 | J134: 5.537925014 | K134: 4.815190613 | L134: 4.273691665 | M134: 3.853015711 | N134: 3.516915198 | O134: 3.242323435 | P134: 3.013862564 | Q134: 2.820886319 | R134: 2.65579017 | S134: 2.512997414 | T134: 2.388325478 | U134: 2.278575881 | V134: 2.181260877 | W134: 2.094416417 | X134: 2.016471228 | Y134: 1.946153294 | Z134: 1.882421844 | AA134: 1.82441708 | AB134: 1.771422478 | AC134: 1.722836131 | AD134: 1.678148708 | AE134: 1.63692631 | AF134: 1.598797003 | AG134: 1.563440133 | AH134: 1.53057778 | AI134: 1.53057778 | AJ134: 1.53057778 | AK134: 1.53057778 | AL134: 1.53057778 | AM134: 1.53057778 | AN134: 1.53057778 | AO134: 1.53057778 | AP134: 1.53057778 | AQ134: 1.53057778 | AR134: 1.53057778 | AS134: 1.53057778 | AT134: 1.53057778 | AU134: 1.53057778 | AV134: 1.53057778 | AW134: 1.53057778 | AX134: 1.53057778 | AY134: 1.53057778 | AZ134: 1.53057778 | BA134: 1.53057778 | BB134: 1.53057778 | BC134: 1.53057778 | BD134: 1.53057778 | BE134: 1.53057778 | BF134: 1.53057778 | BG134: 1.53057778 | BH134: 1.53057778 | BI134: 1.53057778 | BJ134: 1.53057778 | BK134: 1.53057778 | BL134: 1.53057778 | BM134: 1.53057778 | BN134: 1.53057778 | BO134: 1.53057778 | BP134: 1.53057778 | BQ134: 1.53057778 | BR134: =BR126/BR132 -> 1.53057778 | BS134: 1.53057778 | BT134: 1.53057778 | BU134: 1.53057778 | BV134: 1.53057778 | BW134: 1.53057778 | BX134: 1.53057778 | BY134: 1.53057778 | BZ134: 1.53057778 | CA134: 1.53057778 | CB134: 1.53057778 | CC134: 1.53057778 | CD134: 1.53057778 | CE134: 1.53057778 | CF134: 1.53057778 | CG134: 1.53057778 | CH134: 1.53057778 | CI134: 1.53057778 | CJ134: 1.53057778 | CK134: 1.53057778 | CL134: 1.53057778 | CM134: 1.53057778 | CN134: 1.53057778 | CO134: 1.53057778 | CP134: 1.53057778 | CQ134: 1.53057778 | CR134: 1.53057778 | CS134: 1.53057778 | CT134: 1.53057778 | CU134: 1.53057778 | CV134: 1.53057778 | CW134: 1.53057778 | CX134: 1.53057778 | CY134: 1.53057778 | CZ134: 1.53057778 | DA134: 1.53057778 | DB134: 1.53057778 | DC134: 1.53057778 | DD134: 1.53057778 | DE134: 1.53057778 | DF134: 1.53057778 | DG134: 1.53057778 | DH134: 1.53057778 | DI134: 1.53057778 | DJ134: 1.53057778 | DK134: 1.53057778 | DL134: 1.53057778 | DM134: 1.53057778 | DN134: 1.53057778 | DO134: 1.53057778 | DP134: 1.53057778 | DQ134: 1.53057778 | DR134: 1.53057778 | DS134: 1.53057778 | DT134: 1.53057778 | DU134: 1.53057778 | DV134: 1.53057778 | DW134: 1.53057778 | DX134: 1.53057778 | DY134: 1.53057778 | DZ134: 1.53057778 | EA134: 1.53057778 | EB134: 1.53057778 | EC134: 1.53057778 | ED134: =ED126/ED132 -> 1.53057778 | EE134: 1.53057778 | EF134: 1.53057778 | EG134: 1.53057778 | EH134: 1.53057778 | EI134: 1.53057778 | EJ134: 1.53057778 | EK134: 1.53057778 | EL134: 1.53057778 | EM134: 1.53057778 | EN134: 1.53057778 | EO134: 1.53057778 | EP134: 1.53057778 | EQ134: 1.53057778 | ER134: 1.53057778 | ES134: 1.53057778 | ET134: 1.53057778 | EU134: 1.53057778 | EV134: 1.53057778 | EW134: 1.53057778 | EX134: 1.53057778 | EY134: 1.53057778 | EZ134: 1.53057778 | FA134: 1.53057778 | FB134: 1.53057778 | FC134: 1.53057778 | FD134: 1.53057778 | FE134: 1.53057778 | FF134: 1.53057778 | FG134: 1.53057778 | FH134: 1.53057778 | FI134: 1.53057778 | FJ134: 1.53057778 | FK134: 1.53057778 | FL134: 1.53057778 | FM134: 1.53057778 | FN134: 1.53057778 | FO134: 1.53057778 | FP134: 1.53057778 | FQ134: 1.53057778 | FR134: 1.53057778 | FS134: 1.53057778 | FT134: 1.53057778 | FU134: 1.53057778 | FV134: 1.53057778 | FW134: 1.53057778 | FX134: 1.53057778 | FY134: 1.53057778 | FZ134: 1.53057778 | GA134: 1.53057778 | GB134: 1.53057778 | GC134: 1.53057778 | GD134: 1.53057778 | GE134: 1.53057778 | GF134: 1.53057778 | GG134: 1.53057778 | GH134: 1.53057778 | GI134: 1.53057778 | GJ134: 1.53057778 | GK134: 1.53057778 | GL134: 1.53057778 | GM134: 1.53057778 | GN134: 1.53057778 | GO134: 1.53057778 | GP134: =GP126/GP132 -> 1.53057778 | GQ134: 1.53057778 | GR134: 1.53057778 | GS134: 1.53057778 | GT134: 1.53057778 | GU134: 1.53057778 | GV134: 1.53057778 | GW134: 1.53057778 | GX134: 1.53057778 | GY134: 1.53057778 | GZ134: 1.53057778 | HA134: 1.53057778 | HB134: 1.53057778 | HC134: 1.53057778 | HD134: 1.53057778 | HE134: 1.53057778 | HF134: 1.53057778 | HG134: 1.53057778 | HH134: 1.53057778 | HI134: 1.53057778 | HJ134: 1.53057778 | HK134: 1.53057778 | HL134: 1.53057778 | HM134: 1.53057778 | HN134: 1.53057778 | HO134: 1.53057778 | HP134: 1.53057778 | HQ134: 1.53057778 | HR134: 1.53057778 | HS134: 1.53057778 | HT134: 1.53057778 | HU134: 1.53057778 | HV134: 1.53057778 | HW134: 1.53057778 | HX134: 1.53057778 | HY134: 1.53057778 | HZ134: 1.53057778 | IA134: 1.53057778 | IB134: 1.53057778 | IC134: 1.53057778 | ID134: 1.53057778 | IE134: 1.53057778 | IF134: 1.53057778 | IG134: 1.53057778 | IH134: 1.53057778 | II134: 1.53057778 | IJ134: 1.53057778 | IK134: 1.53057778 | IL134: 1.53057778 | IM134: 1.53057778 | IN134: 1.53057778 | IO134: 1.53057778 | IP134: 1.53057778 | IQ134: 1.53057778 | IR134: 1.53057778 | IS134: 1.53057778 | IT134: 1.53057778 | IU134: 1.53057778 | IV134: 1.53057778 | IW134: 1.53057778 | IX134: 1.53057778 | IY134: 1.53057778 | IZ134: 1.53057778 | JA134: 1.53057778 | JB134: =JB126/JB132 -> 1.53057778 | JC134: 1.53057778 | JD134: 1.53057778 | JE134: 1.53057778 | JF134: 1.53057778 | JG134: 1.53057778 | JH134: 1.53057778 | JI134: 1.53057778 | JJ134: 1.53057778 | JK134: 1.53057778 | JL134: 1.53057778 | JM134: 1.53057778 | JN134: 1.53057778 | JO134: 1.53057778 | JP134: 1.53057778 | JQ134: 1.53057778 | JR134: 1.53057778 | JS134: 1.53057778 | JT134: 1.53057778 | JU134: 1.53057778 | JV134: 1.53057778 | JW134: 1.53057778 | JX134: 1.53057778 | JY134: 1.53057778 | JZ134: 1.53057778 | KA134: 1.53057778 | KB134: 1.53057778 | KC134: 1.53057778 | KD134: 1.53057778 | KE134: 1.53057778 | KF134: 1.53057778 | KG134: 1.53057778 | KH134: 1.53057778 | KI134: 1.53057778 | KJ134: 1.53057778 | KK134: 1.53057778 | KL134: 1.53057778 | KM134: 1.53057778 | KN134: 1.53057778 | KO134: 1.53057778 | KP134: 1.53057778 | KQ134: 1.53057778 | KR134: 1.53057778
C136: Accumulated depreciation
C137: Opening balance | E137: =D140 -> 0 | F137: =E140 -> 3.333333333 | G137: 10.1 | H137: 20.403 | I137: 34.34842333 | J137: 52.0455427 | K137: 73.60690898 | L137: 99.14844958 | M137: 128.7895697 | N137: 162.6532568 | O137: 200.8661879 | P137: 243.5588402 | Q137: 290.8656054 | R137: 342.9249069 | S137: 399.8793207 | T137: 461.8757004 | U137: 529.0653047 | V137: 601.6039305 | W137: 679.6520484 | X137: 763.3749432 | Y137: 852.9428582 | Z137: 948.5311439 | AA137: 1050.320412 | AB137: 1158.496691 | AC137: 1273.251591 | AD137: 1394.782472 | AE137: 1523.292613 | AF137: 1658.991392 | AG137: 1802.094467 | AH137: 1952.823967 | AI137: 2011.408686 | AJ137: 2071.750947 | AK137: 2133.903475 | AL137: 2197.92058 | AM137: 2263.858197 | AN137: 2331.773943 | AO137: 2401.727161 | AP137: 2473.778976 | AQ137: 2547.992345 | AR137: 2624.432116 | AS137: 2703.165079 | AT137: 2784.260032 | AU137: 2867.787833 | AV137: 2953.821467 | AW137: 3042.436112 | AX137: 3133.709195 | AY137: 3227.720471 | AZ137: 3324.552085 | BA137: 3424.288647 | BB137: 3527.017307 | BC137: 3632.827826 | BD137: 3741.812661 | BE137: 3854.067041 | BF137: 3969.689052 | BG137: 4088.779723 | BH137: 4211.443115 | BI137: 4337.786409 | BJ137: 4467.920001 | BK137: 4601.957601 | BL137: 4740.016329 | BM137: 4882.216819 | BN137: 5028.683323 | BO137: 5179.543823 | BP137: 5334.930138 | BQ137: 5494.978042 | BR137: =BQ140 -> 5659.827383 | BS137: 5829.622205 | BT137: 6004.510871 | BU137: 6184.646197 | BV137: 6370.185583 | BW137: 6561.29115 | BX137: 6758.129885 | BY137: 6960.873781 | BZ137: 7169.699995 | CA137: 7384.790994 | CB137: 7606.334724 | CC137: 7834.524766 | CD137: 8069.560509 | CE137: 8311.647324 | CF137: 8560.996744 | CG137: 8817.826646 | CH137: 9082.361446 | CI137: 9354.832289 | CJ137: 9635.477258 | CK137: 9924.541576 | CL137: 10222.27782 | CM137: 10528.94616 | CN137: 10844.81454 | CO137: 11170.15898 | CP137: 11505.26375 | CQ137: 11850.42166 | CR137: 12205.93431 | CS137: 12572.11234 | CT137: 12949.27571 | CU137: 13337.75398 | CV137: 13737.8866 | CW137: 14150.0232 | CX137: 14574.52389 | CY137: 15011.75961 | CZ137: 15462.1124 | DA137: 15925.97577 | DB137: 16403.75504 | DC137: 16895.8677 | DD137: 17402.74373 | DE137: 17924.82604 | DF137: 18462.57082 | DG137: 19016.44794 | DH137: 19586.94138 | DI137: 20174.54962 | DJ137: 20779.78611 | DK137: 21403.1797 | DL137: 22045.27509 | DM137: 22706.63334 | DN137: 23387.83234 | DO137: 24089.46731 | DP137: 24812.15133 | DQ137: 25556.51587 | DR137: 26323.21135 | DS137: 27112.90769 | DT137: 27926.29492 | DU137: 28764.08376 | DV137: 29627.00628 | DW137: 30515.81646 | DX137: 31431.29096 | DY137: 32374.22969 | DZ137: 33345.45658 | EA137: 34345.82028 | EB137: 35376.19488 | EC137: 36437.48073 | ED137: =EC140 -> 37530.60515 | EE137: 38656.52331 | EF137: 39816.21901 | EG137: 41010.70558 | EH137: 42241.02674 | EI137: 43508.25755 | EJ137: 44813.50527 | EK137: 46157.91043 | EL137: 47542.64774 | EM137: 48968.92718 | EN137: 50437.99499 | EO137: 51951.13484 | EP137: 53509.66889 | EQ137: 55114.95895 | ER137: 56768.40772 | ES137: 58471.45995 | ET137: 60225.60375 | EU137: 62032.37186 | EV137: 63893.34302 | EW137: 65810.14331 | EX137: 67784.44761 | EY137: 69817.98104 | EZ137: 71912.52047 | FA137: 74069.89608 | FB137: 76291.99297 | FC137: 78580.75275 | FD137: 80938.17534 | FE137: 83366.3206 | FF137: 85867.31022 | FG137: 88443.32952 | FH137: 91096.62941 | FI137: 93829.52829 | FJ137: 96644.41414 | FK137: 99543.74656 | FL137: 102530.059 | FM137: 105605.9607 | FN137: 108774.1395 | FO137: 112037.3637 | FP137: 115398.4846 | FQ137: 118860.4392 | FR137: 122426.2524 | FS137: 126099.0399 | FT137: 129882.0111 | FU137: 133778.4715 | FV137: 137791.8256 | FW137: 141925.5804 | FX137: 146183.3478 | FY137: 150568.8482 | FZ137: 155085.9137 | GA137: 159738.4911 | GB137: 164530.6458 | GC137: 169466.5652 | GD137: 174550.5621 | GE137: 179787.079 | GF137: 185180.6914 | GG137: 190736.1121 | GH137: 196458.1955 | GI137: 202351.9413 | GJ137: 208422.4996 | GK137: 214675.1746 | GL137: 221115.4298 | GM137: 227748.8927 | GN137: 234581.3595 | GO137: 241618.8003 | GP137: =GO140 -> 248867.3643 | GQ137: 256333.3852 | GR137: 264023.3868 | GS137: 271944.0884 | GT137: 280102.411 | GU137: 288505.4833 | GV137: 297160.6478 | GW137: 306075.4673 | GX137: 315257.7313 | GY137: 324715.4632 | GZ137: 334456.9271 | HA137: 344490.635 | HB137: 354825.354 | HC137: 365470.1146 | HD137: 376434.2181 | HE137: 387727.2446 | HF137: 399359.0619 | HG137: 411339.8338 | HH137: 423680.0288 | HI137: 436390.4297 | HJ137: 449482.1426 | HK137: 462966.6068 | HL137: 476855.6051 | HM137: 491161.2732 | HN137: 505896.1114 | HO137: 521072.9947 | HP137: 536705.1846 | HQ137: 552806.3401 | HR137: 569390.5303 | HS137: 586472.2462 | HT137: 604066.4136 | HU137: 622188.406 | HV137: 640854.0582 | HW137: 660079.68 | HX137: 679882.0704 | HY137: 700278.5325 | HZ137: 721286.8884 | IA137: 742925.4951 | IB137: 765213.2599 | IC137: 788169.6577 | ID137: 811814.7475 | IE137: 836169.1899 | IF137: 861254.2656 | IG137: 887091.8936 | IH137: 913704.6504 | II137: 941115.7899 | IJ137: 969349.2636 | IK137: 998429.7415 | IL137: 1028382.634 | IM137: 1059234.113 | IN137: 1091011.136 | IO137: 1123741.47 | IP137: 1157453.714 | IQ137: 1192177.326 | IR137: 1227942.646 | IS137: 1264780.925 | IT137: 1302724.353 | IU137: 1341806.083 | IV137: 1382060.266 | IW137: 1423522.074 | IX137: 1466227.736 | IY137: 1510214.568 | IZ137: 1555521.005 | JA137: 1602186.635 | JB137: =JA140 -> 1650252.234 | JC137: 1699759.801 | JD137: 1750752.595 | JE137: 1803275.173 | JF137: 1857373.428 | JG137: 1913094.631 | JH137: 1970487.47 | JI137: 2029602.094 | JJ137: 2090490.157 | JK137: 2153204.862 | JL137: 2217801.008 | JM137: 2284335.038 | JN137: 2352865.089 | JO137: 2423451.042 | JP137: 2496154.573 | JQ137: 2571039.21 | JR137: 2648170.386 | JS137: 2727615.498 | JT137: 2809443.963 | JU137: 2893727.282 | JV137: 2980539.1 | JW137: 3069955.273 | JX137: 3162053.931 | JY137: 3256915.549 | JZ137: 3354623.016 | KA137: 3455261.706 | KB137: 3558919.558 | KC137: 3665687.144 | KD137: 3775657.759 | KE137: 3888927.491 | KF137: 4005595.316 | KG137: 4125763.176 | KH137: 4249536.071 | KI137: 4377022.153 | KJ137: 4508332.818 | KK137: 4643582.802 | KL137: 4782890.286 | KM137: 4926376.995 | KN137: 5074168.305 | KO137: 5226393.354 | KP137: 5383185.154 | KQ137: 5544680.709 | KR137: 5711021.13
C138: Add: Depreciation expense | E138: =E132 -> 3.333333333 | F138: =F132 -> 6.766666667 | G138: 10.303 | H138: 13.94542333 | I138: 17.69711937 | J138: 21.56136628 | K138: 25.5415406 | L138: 29.64112015 | M138: 33.86368709 | N138: 38.21293104 | O138: 42.6926523 | P138: 47.30676521 | Q138: 52.05930149 | R138: 56.95441387 | S138: 61.99637962 | T138: 67.18960434 | U138: 72.53862581 | V138: 78.04811792 | W138: 83.72289479 | X138: 89.56791496 | Y138: 95.58828575 | Z138: 101.7892677 | AA138: 108.176279 | AB138: 114.7549007 | AC138: 121.5308811 | AD138: 128.5101408 | AE138: 135.6987784 | AF138: 143.1030751 | AG138: 150.7295007 | AH138: 158.584719 | AI138: 163.3422606 | AJ138: 168.2425284 | AK138: 173.2898043 | AL138: 178.4884984 | AM138: 183.8431533 | AN138: 189.3584479 | AO138: 195.0392014 | AP138: 200.8903774 | AQ138: 206.9170887 | AR138: 213.1246014 | AS138: 219.5183394 | AT138: 226.1038896 | AU138: 232.8870063 | AV138: 239.8736165 | AW138: 247.069825 | AX138: 254.4819198 | AY138: 262.1163773 | AZ138: 269.9798687 | BA138: 278.0792647 | BB138: 286.4216427 | BC138: 295.014292 | BD138: 303.8647207 | BE138: 312.9806623 | BF138: 322.3700822 | BG138: 332.0411847 | BH138: 342.0024202 | BI138: 352.2624928 | BJ138: 362.8303676 | BK138: 373.7152786 | BL138: 384.926737 | BM138: 396.4745391 | BN138: 408.3687753 | BO138: 420.6198385 | BP138: 433.2384337 | BQ138: 446.2355867 | BR138: =BR132 -> 459.6226543 | BS138: 473.4113339 | BT138: 487.6136739 | BU138: 502.2420842 | BV138: 517.3093467 | BW138: 532.8286271 | BX138: 548.8134859 | BY138: 565.2778905 | BZ138: 582.2362272 | CA138: 599.703314 | CB138: 617.6944134 | CC138: 636.2252458 | CD138: 655.3120032 | CE138: 674.9713633 | CF138: 695.2205042 | CG138: 716.0771193 | CH138: 737.5594329 | CI138: 759.6862159 | CJ138: 782.4768024 | CK138: 805.9511064 | CL138: 830.1296396 | CM138: 855.0335288 | CN138: 880.6845347 | CO138: 907.1050707 | CP138: 934.3182228 | CQ138: 962.3477695 | CR138: 991.2182026 | CS138: 1020.954749 | CT138: 1051.583391 | CU138: 1083.130893 | CV138: 1115.62482 | CW138: 1149.093564 | CX138: 1183.566371 | CY138: 1219.073362 | CZ138: 1255.645563 | DA138: 1293.31493 | DB138: 1332.114378 | DC138: 1372.077809 | DD138: 1413.240144 | DE138: 1455.637348 | DF138: 1499.306468 | DG138: 1544.285662 | DH138: 1590.614232 | DI138: 1638.332659 | DJ138: 1687.482639 | DK138: 1738.107118 | DL138: 1790.250332 | DM138: 1843.957842 | DN138: 1899.276577 | DO138: 1956.254874 | DP138: 2014.94252 | DQ138: 2075.390796 | DR138: 2137.65252 | DS138: 2201.782096 | DT138: 2267.835558 | DU138: 2335.870625 | DV138: 2405.946744 | DW138: 2478.125146 | DX138: 2552.468901 | DY138: 2629.042968 | DZ138: 2707.914257 | EA138: 2789.151684 | EB138: 2872.826235 | EC138: 2959.011022 | ED138: =ED132 -> 3047.781353 | EE138: 3139.214793 | EF138: 3233.391237 | EG138: 3330.392974 | EH138: 3430.304763 | EI138: 3533.213906 | EJ138: 3639.210323 | EK138: 3748.386633 | EL138: 3860.838232 | EM138: 3976.663379 | EN138: 4095.96328 | EO138: 4218.842179 | EP138: 4345.407444 | EQ138: 4475.769668 | ER138: 4610.042758 | ES138: 4748.34404 | ET138: 4890.794362 | EU138: 5037.518192 | EV138: 5188.643738 | EW138: 5344.30305 | EX138: 5504.632142 | EY138: 5669.771106 | EZ138: 5839.864239 | FA138: 6015.060166 | FB138: 6195.511971 | FC138: 6381.377331 | FD138: 6572.818651 | FE138: 6770.00321 | FF138: 6973.103306 | FG138: 7182.296406 | FH138: 7397.765298 | FI138: 7619.698257 | FJ138: 7848.289204 | FK138: 8083.73788 | FL138: 8326.250017 | FM138: 8576.037517 | FN138: 8833.318643 | FO138: 9098.318202 | FP138: 9371.267748 | FQ138: 9652.405781 | FR138: 9941.977954 | FS138: 10240.23729 | FT138: 10547.44441 | FU138: 10863.86774 | FV138: 11189.78378 | FW138: 11525.47729 | FX138: 11871.24161 | FY138: 12227.37886 | FZ138: 12594.20022 | GA138: 12972.02623 | GB138: 13361.18702 | GC138: 13762.02263 | GD138: 14174.8833 | GE138: 14600.1298 | GF138: 15038.1337 | GG138: 15489.27771 | GH138: 15953.95604 | GI138: 16432.57472 | GJ138: 16925.55196 | GK138: 17433.31852 | GL138: 17956.31808 | GM138: 18495.00762 | GN138: 19049.85785 | GO138: 19621.35358 | GP138: =GP132 -> 20209.99419 | GQ138: 20816.29402 | GR138: 21440.78284 | GS138: 22084.00632 | GT138: 22746.52651 | GU138: 23428.92231 | GV138: 24131.78998 | GW138: 24855.74368 | GX138: 25601.41599 | GY138: 26369.45847 | GZ138: 27160.54222 | HA138: 27975.35849 | HB138: 28814.61924 | HC138: 29679.05782 | HD138: 30569.42955 | HE138: 31486.51244 | HF138: 32431.10781 | HG138: 33404.04105 | HH138: 34406.16228 | HI138: 35438.34715 | HJ138: 36501.49756 | HK138: 37596.54249 | HL138: 38724.43876 | HM138: 39886.17193 | HN138: 41082.75708 | HO138: 42315.2398 | HP138: 43584.69699 | HQ138: 44892.2379 | HR138: 46239.00504 | HS138: 47626.17519 | HT138: 49054.96044 | HU138: 50526.60926 | HV138: 52042.40754 | HW138: 53603.67976 | HX138: 55211.79015 | HY138: 56868.14386 | HZ138: 58574.18817 | IA138: 60331.41382 | IB138: 62141.35623 | IC138: 64005.59692 | ID138: 65925.76483 | IE138: 67903.53777 | IF138: 69940.64391 | IG138: 72038.86322 | IH138: 74200.02912 | II138: 76426.03 | IJ138: 78718.81089 | IK138: 81080.37522 | IL138: 83512.78648 | IM138: 86018.17007 | IN138: 88598.71517 | IO138: 91256.67663 | IP138: 93994.37693 | IQ138: 96814.20824 | IR138: 99718.63448 | IS138: 102710.1935 | IT138: 105791.4993 | IU138: 108965.2443 | IV138: 112234.2016 | IW138: 115601.2277 | IX138: 119069.2645 | IY138: 122641.3424 | IZ138: 126320.5827 | JA138: 130110.2002 | JB138: =JB132 -> 134013.5062 | JC138: 138033.9114 | JD138: 142174.9287 | JE138: 146440.1766 | JF138: 150833.3819 | JG138: 155358.3834 | JH138: 160019.1349 | JI138: 164819.7089 | JJ138: 169764.3002 | JK138: 174857.2292 | JL138: 180102.946 | JM138: 185506.0344 | JN138: 191071.2155 | JO138: 196803.3519 | JP138: 202707.4525 | JQ138: 208788.6761 | JR138: 215052.3363 | JS138: 221503.9064 | JT138: 228149.0236 | JU138: 234993.4943 | JV138: 242043.2992 | JW138: 249304.5981 | JX138: 256783.7361 | JY138: 264487.2482 | JZ138: 272421.8656 | KA138: 280594.5216 | KB138: 289012.3572 | KC138: 297682.7279 | KD138: 306613.2098 | KE138: 315811.6061 | KF138: 325285.9543 | KG138: 335044.5329 | KH138: 345095.8689 | KI138: 355448.7449 | KJ138: 366112.2073 | KK138: 377095.5735 | KL138: 388408.4407 | KM138: 400060.6939 | KN138: 412062.5147 | KO138: 424424.3902 | KP138: 437157.1219 | KQ138: 450271.8355 | KR138: 463779.9906
C139: Less: Retirements | E139: =E127 -> FALSE | F139: =F127 -> FALSE | G139: FALSE | H139: FALSE | I139: FALSE | J139: FALSE | K139: FALSE | L139: FALSE | M139: FALSE | N139: FALSE | O139: FALSE | P139: FALSE | Q139: FALSE | R139: FALSE | S139: FALSE | T139: FALSE | U139: FALSE | V139: FALSE | W139: FALSE | X139: FALSE | Y139: FALSE | Z139: FALSE | AA139: FALSE | AB139: FALSE | AC139: FALSE | AD139: FALSE | AE139: FALSE | AF139: FALSE | AG139: FALSE | AH139: 100 | AI139: 103 | AJ139: 106.09 | AK139: 109.2727 | AL139: 112.550881 | AM139: 115.9274074 | AN139: 119.4052297 | AO139: 122.9873865 | AP139: 126.6770081 | AQ139: 130.4773184 | AR139: 134.3916379 | AS139: 138.4233871 | AT139: 142.5760887 | AU139: 146.8533713 | AV139: 151.2589725 | AW139: 155.7967417 | AX139: 160.4706439 | AY139: 165.2847632 | AZ139: 170.2433061 | BA139: 175.3506053 | BB139: 180.6111235 | BC139: 186.0294572 | BD139: 191.6103409 | BE139: 197.3586511 | BF139: 203.2794106 | BG139: 209.377793 | BH139: 215.6591268 | BI139: 222.1289006 | BJ139: 228.7927676 | BK139: 235.6565506 | BL139: 242.7262471 | BM139: 250.0080345 | BN139: 257.5082756 | BO139: 265.2335238 | BP139: 273.1905296 | BQ139: 281.3862454 | BR139: =BR127 -> 289.8278328 | BS139: 298.5226678 | BT139: 307.4783478 | BU139: 316.7026983 | BV139: 326.2037792 | BW139: 335.9898926 | BX139: 346.0695894 | BY139: 356.451677 | BZ139: 367.1452273 | CA139: 378.1595842 | CB139: 389.5043717 | CC139: 401.1895028 | CD139: 413.2251879 | CE139: 425.6219436 | CF139: 438.3906019 | CG139: 451.5423199 | CH139: 465.0885895 | CI139: 479.0412472 | CJ139: 493.4124846 | CK139: 508.2148592 | CL139: 523.4613049 | CM139: 539.1651441 | CN139: 555.3400984 | CO139: 572.0003014 | CP139: 589.1603104 | CQ139: 606.8351197 | CR139: 625.0401733 | CS139: 643.7913785 | CT139: 663.1051199 | CU139: 682.9982735 | CV139: 703.4882217 | CW139: 724.5928683 | CX139: 746.3306544 | CY139: 768.720574 | CZ139: 791.7821912 | DA139: 815.5356569 | DB139: 840.0017267 | DC139: 865.2017785 | DD139: 891.1578318 | DE139: 917.8925668 | DF139: 945.4293438 | DG139: 973.7922241 | DH139: 1003.005991 | DI139: 1033.096171 | DJ139: 1064.089056 | DK139: 1096.011727 | DL139: 1128.892079 | DM139: 1162.758842 | DN139: 1197.641607 | DO139: 1233.570855 | DP139: 1270.577981 | DQ139: 1308.69532 | DR139: 1347.95618 | DS139: 1388.394865 | DT139: 1430.046711 | DU139: 1472.948112 | DV139: 1517.136556 | DW139: 1562.650652 | DX139: 1609.530172 | DY139: 1657.816077 | DZ139: 1707.550559 | EA139: 1758.777076 | EB139: 1811.540388 | EC139: 1865.8866 | ED139: =ED127 -> 1921.863198 | EE139: 1979.519094 | EF139: 2038.904667 | EG139: 2100.071807 | EH139: 2163.073961 | EI139: 2227.96618 | EJ139: 2294.805165 | EK139: 2363.64932 | EL139: 2434.5588 | EM139: 2507.595564 | EN139: 2582.823431 | EO139: 2660.308134 | EP139: 2740.117378 | EQ139: 2822.320899 | ER139: 2906.990526 | ES139: 2994.200242 | ET139: 3084.026249 | EU139: 3176.547037 | EV139: 3271.843448 | EW139: 3369.998751 | EX139: 3471.098714 | EY139: 3575.231675 | EZ139: 3682.488625 | FA139: 3792.963284 | FB139: 3906.752182 | FC139: 4023.954748 | FD139: 4144.67339 | FE139: 4269.013592 | FF139: 4397.084 | FG139: 4528.99652 | FH139: 4664.866415 | FI139: 4804.812408 | FJ139: 4948.95678 | FK139: 5097.425484 | FL139: 5250.348248 | FM139: 5407.858696 | FN139: 5570.094456 | FO139: 5737.19729 | FP139: 5909.313209 | FQ139: 6086.592605 | FR139: 6269.190383 | FS139: 6457.266095 | FT139: 6650.984078 | FU139: 6850.5136 | FV139: 7056.029008 | FW139: 7267.709878 | FX139: 7485.741174 | FY139: 7710.31341 | FZ139: 7941.622812 | GA139: 8179.871496 | GB139: 8425.267641 | GC139: 8678.02567 | GD139: 8938.366441 | GE139: 9206.517434 | GF139: 9482.712957 | GG139: 9767.194346 | GH139: 10060.21018 | GI139: 10362.01648 | GJ139: 10672.87698 | GK139: 10993.06328 | GL139: 11322.85518 | GM139: 11662.54084 | GN139: 12012.41706 | GO139: 12372.78958 | GP139: =GP127 -> 12743.97326 | GQ139: 13126.29246 | GR139: 13520.08123 | GS139: 13925.68367 | GT139: 14343.45418 | GU139: 14773.75781 | GV139: 15216.97054 | GW139: 15673.47966 | GX139: 16143.68405 | GY139: 16627.99457 | GZ139: 17126.83441 | HA139: 17640.63944 | HB139: 18169.85862 | HC139: 18714.95438 | HD139: 19276.40301 | HE139: 19854.6951 | HF139: 20450.33596 | HG139: 21063.84603 | HH139: 21695.76141 | HI139: 22346.63426 | HJ139: 23017.03329 | HK139: 23707.54428 | HL139: 24418.77061 | HM139: 25151.33373 | HN139: 25905.87374 | HO139: 26683.04995 | HP139: 27483.54145 | HQ139: 28308.0477 | HR139: 29157.28913 | HS139: 30032.0078 | HT139: 30932.96804 | HU139: 31860.95708 | HV139: 32816.78579 | HW139: 33801.28936 | HX139: 34815.32804 | HY139: 35859.78789 | HZ139: 36935.58152 | IA139: 38043.64897 | IB139: 39184.95844 | IC139: 40360.50719 | ID139: 41571.3224 | IE139: 42818.46208 | IF139: 44103.01594 | IG139: 45426.10642 | IH139: 46788.88961 | II139: 48192.5563 | IJ139: 49638.33299 | IK139: 51127.48298 | IL139: 52661.30747 | IM139: 54241.14669 | IN139: 55868.38109 | IO139: 57544.43252 | IP139: 59270.7655 | IQ139: 61048.88846 | IR139: 62880.35512 | IS139: 64766.76577 | IT139: 66709.76875 | IU139: 68711.06181 | IV139: 70772.39366 | IW139: 72895.56547 | IX139: 75082.43244 | IY139: 77334.90541 | IZ139: 79654.95257 | JA139: 82044.60115 | JB139: =JB127 -> 84505.93918 | JC139: 87041.11736 | JD139: 89652.35088 | JE139: 92341.92141 | JF139: 95112.17905 | JG139: 97965.54442 | JH139: 100904.5108 | JI139: 103931.6461 | JJ139: 107049.5955 | JK139: 110261.0833 | JL139: 113568.9158 | JM139: 116975.9833 | JN139: 120485.2628 | JO139: 124099.8207 | JP139: 127822.8153 | JQ139: 131657.4998 | JR139: 135607.2247 | JS139: 139675.4415 | JT139: 143865.7047 | JU139: 148181.6759 | JV139: 152627.1262 | JW139: 157205.9399 | JX139: 161922.1181 | JY139: 166779.7817 | JZ139: 171783.1751 | KA139: 176936.6704 | KB139: 182244.7705 | KC139: 187712.1136 | KD139: 193343.477 | KE139: 199143.7813 | KF139: 205118.0948 | KG139: 211271.6376 | KH139: 217609.7867 | KI139: 224138.0803 | KJ139: 230862.2228 | KK139: 237788.0894 | KL139: 244921.7321 | KM139: 252269.3841 | KN139: 259837.4656 | KO139: 267632.5896 | KP139: 275661.5673 | KQ139: 283931.4143 | KR139: 292449.3567
C140: Closing balance | D140: 0 | E140: =E137+E138-E139 -> 3.333333333 | F140: =F137+F138-F139 -> 10.1 | G140: 20.403 | H140: 34.34842333 | I140: 52.0455427 | J140: 73.60690898 | K140: 99.14844958 | L140: 128.7895697 | M140: 162.6532568 | N140: 200.8661879 | O140: 243.5588402 | P140: 290.8656054 | Q140: 342.9249069 | R140: 399.8793207 | S140: 461.8757004 | T140: 529.0653047 | U140: 601.6039305 | V140: 679.6520484 | W140: 763.3749432 | X140: 852.9428582 | Y140: 948.5311439 | Z140: 1050.320412 | AA140: 1158.496691 | AB140: 1273.251591 | AC140: 1394.782472 | AD140: 1523.292613 | AE140: 1658.991392 | AF140: 1802.094467 | AG140: 1952.823967 | AH140: 2011.408686 | AI140: 2071.750947 | AJ140: 2133.903475 | AK140: 2197.92058 | AL140: 2263.858197 | AM140: 2331.773943 | AN140: 2401.727161 | AO140: 2473.778976 | AP140: 2547.992345 | AQ140: 2624.432116 | AR140: 2703.165079 | AS140: 2784.260032 | AT140: 2867.787833 | AU140: 2953.821467 | AV140: 3042.436112 | AW140: 3133.709195 | AX140: 3227.720471 | AY140: 3324.552085 | AZ140: 3424.288647 | BA140: 3527.017307 | BB140: 3632.827826 | BC140: 3741.812661 | BD140: 3854.067041 | BE140: 3969.689052 | BF140: 4088.779723 | BG140: 4211.443115 | BH140: 4337.786409 | BI140: 4467.920001 | BJ140: 4601.957601 | BK140: 4740.016329 | BL140: 4882.216819 | BM140: 5028.683323 | BN140: 5179.543823 | BO140: 5334.930138 | BP140: 5494.978042 | BQ140: 5659.827383 | BR140: =BR137+BR138-BR139 -> 5829.622205 | BS140: 6004.510871 | BT140: 6184.646197 | BU140: 6370.185583 | BV140: 6561.29115 | BW140: 6758.129885 | BX140: 6960.873781 | BY140: 7169.699995 | BZ140: 7384.790994 | CA140: 7606.334724 | CB140: 7834.524766 | CC140: 8069.560509 | CD140: 8311.647324 | CE140: 8560.996744 | CF140: 8817.826646 | CG140: 9082.361446 | CH140: 9354.832289 | CI140: 9635.477258 | CJ140: 9924.541576 | CK140: 10222.27782 | CL140: 10528.94616 | CM140: 10844.81454 | CN140: 11170.15898 | CO140: 11505.26375 | CP140: 11850.42166 | CQ140: 12205.93431 | CR140: 12572.11234 | CS140: 12949.27571 | CT140: 13337.75398 | CU140: 13737.8866 | CV140: 14150.0232 | CW140: 14574.52389 | CX140: 15011.75961 | CY140: 15462.1124 | CZ140: 15925.97577 | DA140: 16403.75504 | DB140: 16895.8677 | DC140: 17402.74373 | DD140: 17924.82604 | DE140: 18462.57082 | DF140: 19016.44794 | DG140: 19586.94138 | DH140: 20174.54962 | DI140: 20779.78611 | DJ140: 21403.1797 | DK140: 22045.27509 | DL140: 22706.63334 | DM140: 23387.83234 | DN140: 24089.46731 | DO140: 24812.15133 | DP140: 25556.51587 | DQ140: 26323.21135 | DR140: 27112.90769 | DS140: 27926.29492 | DT140: 28764.08376 | DU140: 29627.00628 | DV140: 30515.81646 | DW140: 31431.29096 | DX140: 32374.22969 | DY140: 33345.45658 | DZ140: 34345.82028 | EA140: 35376.19488 | EB140: 36437.48073 | EC140: 37530.60515 | ED140: =ED137+ED138-ED139 -> 38656.52331 | EE140: 39816.21901 | EF140: 41010.70558 | EG140: 42241.02674 | EH140: 43508.25755 | EI140: 44813.50527 | EJ140: 46157.91043 | EK140: 47542.64774 | EL140: 48968.92718 | EM140: 50437.99499 | EN140: 51951.13484 | EO140: 53509.66889 | EP140: 55114.95895 | EQ140: 56768.40772 | ER140: 58471.45995 | ES140: 60225.60375 | ET140: 62032.37186 | EU140: 63893.34302 | EV140: 65810.14331 | EW140: 67784.44761 | EX140: 69817.98104 | EY140: 71912.52047 | EZ140: 74069.89608 | FA140: 76291.99297 | FB140: 78580.75275 | FC140: 80938.17534 | FD140: 83366.3206 | FE140: 85867.31022 | FF140: 88443.32952 | FG140: 91096.62941 | FH140: 93829.52829 | FI140: 96644.41414 | FJ140: 99543.74656 | FK140: 102530.059 | FL140: 105605.9607 | FM140: 108774.1395 | FN140: 112037.3637 | FO140: 115398.4846 | FP140: 118860.4392 | FQ140: 122426.2524 | FR140: 126099.0399 | FS140: 129882.0111 | FT140: 133778.4715 | FU140: 137791.8256 | FV140: 141925.5804 | FW140: 146183.3478 | FX140: 150568.8482 | FY140: 155085.9137 | FZ140: 159738.4911 | GA140: 164530.6458 | GB140: 169466.5652 | GC140: 174550.5621 | GD140: 179787.079 | GE140: 185180.6914 | GF140: 190736.1121 | GG140: 196458.1955 | GH140: 202351.9413 | GI140: 208422.4996 | GJ140: 214675.1746 | GK140: 221115.4298 | GL140: 227748.8927 | GM140: 234581.3595 | GN140: 241618.8003 | GO140: 248867.3643 | GP140: =GP137+GP138-GP139 -> 256333.3852 | GQ140: 264023.3868 | GR140: 271944.0884 | GS140: 280102.411 | GT140: 288505.4833 | GU140: 297160.6478 | GV140: 306075.4673 | GW140: 315257.7313 | GX140: 324715.4632 | GY140: 334456.9271 | GZ140: 344490.635 | HA140: 354825.354 | HB140: 365470.1146 | HC140: 376434.2181 | HD140: 387727.2446 | HE140: 399359.0619 | HF140: 411339.8338 | HG140: 423680.0288 | HH140: 436390.4297 | HI140: 449482.1426 | HJ140: 462966.6068 | HK140: 476855.6051 | HL140: 491161.2732 | HM140: 505896.1114 | HN140: 521072.9947 | HO140: 536705.1846 | HP140: 552806.3401 | HQ140: 569390.5303 | HR140: 586472.2462 | HS140: 604066.4136 | HT140: 622188.406 | HU140: 640854.0582 | HV140: 660079.68 | HW140: 679882.0704 | HX140: 700278.5325 | HY140: 721286.8884 | HZ140: 742925.4951 | IA140: 765213.2599 | IB140: 788169.6577 | IC140: 811814.7475 | ID140: 836169.1899 | IE140: 861254.2656 | IF140: 887091.8936 | IG140: 913704.6504 | IH140: 941115.7899 | II140: 969349.2636 | IJ140: 998429.7415 | IK140: 1028382.634 | IL140: 1059234.113 | IM140: 1091011.136 | IN140: 1123741.47 | IO140: 1157453.714 | IP140: 1192177.326 | IQ140: 1227942.646 | IR140: 1264780.925 | IS140: 1302724.353 | IT140: 1341806.083 | IU140: 1382060.266 | IV140: 1423522.074 | IW140: 1466227.736 | IX140: 1510214.568 | IY140: 1555521.005 | IZ140: 1602186.635 | JA140: 1650252.234 | JB140: =JB137+JB138-JB139 -> 1699759.801 | JC140: 1750752.595 | JD140: 1803275.173 | JE140: 1857373.428 | JF140: 1913094.631 | JG140: 1970487.47 | JH140: 2029602.094 | JI140: 2090490.157 | JJ140: 2153204.862 | JK140: 2217801.008 | JL140: 2284335.038 | JM140: 2352865.089 | JN140: 2423451.042 | JO140: 2496154.573 | JP140: 2571039.21 | JQ140: 2648170.386 | JR140: 2727615.498 | JS140: 2809443.963 | JT140: 2893727.282 | JU140: 2980539.1 | JV140: 3069955.273 | JW140: 3162053.931 | JX140: 3256915.549 | JY140: 3354623.016 | JZ140: 3455261.706 | KA140: 3558919.558 | KB140: 3665687.144 | KC140: 3775657.759 | KD140: 3888927.491 | KE140: 4005595.316 | KF140: 4125763.176 | KG140: 4249536.071 | KH140: 4377022.153 | KI140: 4508332.818 | KJ140: 4643582.802 | KK140: 4782890.286 | KL140: 4926376.995 | KM140: 5074168.305 | KN140: 5226393.354 | KO140: 5383185.154 | KP140: 5544680.709 | KQ140: 5711021.13 | KR140: 5882351.764
C142: Net plant | D142: =D128-D140 -> 100 | E142: =E128-E140 -> 199.6666667 | F142: 298.99 | G142: 397.9597 | H142: 496.5651577 | I142: 594.7954457 | J142: 692.6393091 | K142: 790.085155 | L142: 887.121043 | M142: 983.7346743 | N142: 1079.913381 | O142: 1175.644116 | P142: 1270.913439 | Q142: 1365.707509 | R142: 1460.012068 | S142: 1553.81243 | T142: 1647.09347 | U142: 1739.839607 | V142: 1832.034795 | W142: 1923.662506 | X142: 2014.705714 | Y142: 2105.146886 | Z142: 2194.967959 | AA142: 2284.150331 | AB142: 2372.674841 | AC142: 2460.521753 | AD142: 2547.670739 | AE142: 2634.100861 | AF142: 2719.790553 | AG142: 2804.717603 | AH142: 2888.859131 | AI142: 2975.524905 | AJ142: 3064.790652 | AK142: 3156.734372 | AL142: 3251.436403 | AM142: 3348.979495 | AN142: 3449.44888 | AO142: 3552.932347 | AP142: 3659.520317 | AQ142: 3769.305926 | AR142: 3882.385104 | AS142: 3998.856657 | AT142: 4118.822357 | AU142: 4242.387028 | AV142: 4369.658639 | AW142: 4500.748398 | AX142: 4635.77085 | AY142: 4774.843975 | AZ142: 4918.089294 | BA142: 5065.631973 | BB142: 5217.600933 | BC142: 5374.128961 | BD142: 5535.352829 | BE142: 5701.413414 | BF142: 5872.455817 | BG142: 6048.629491 | BH142: 6230.088376 | BI142: 6416.991027 | BJ142: 6609.500758 | BK142: 6807.785781 | BL142: 7012.019354 | BM142: 7222.379935 | BN142: 7439.051333 | BO142: 7662.222873 | BP142: 7892.089559 | BQ142: =BQ128-BQ140 -> 8128.852246 | BR142: 8372.717813 | BS142: 8623.899347 | BT142: 8882.616328 | BU142: 9149.094818 | BV142: 9423.567662 | BW142: 9706.274692 | BX142: 9997.462933 | BY142: 10297.38682 | BZ142: 10606.30843 | CA142: 10924.49768 | CB142: 11252.23261 | CC142: 11589.79959 | CD142: 11937.49357 | CE142: 12295.61838 | CF142: 12664.48693 | CG142: 13044.42154 | CH142: 13435.75419 | CI142: 13838.82681 | CJ142: 14253.99162 | CK142: 14681.61137 | CL142: 15122.05971 | CM142: 15575.7215 | CN142: 16042.99314 | CO142: 16524.28294 | CP142: 17020.01143 | CQ142: 17530.61177 | CR142: 18056.53012 | CS142: 18598.22602 | CT142: 19156.17281 | CU142: 19730.85799 | CV142: 20322.78373 | CW142: 20932.46724 | CX142: 21560.44126 | CY142: 22207.2545 | CZ142: 22873.47213 | DA142: 23559.6763 | DB142: 24266.46658 | DC142: 24994.46058 | DD142: 25744.2944 | DE142: 26516.62323 | DF142: 27312.12193 | DG142: 28131.48559 | DH142: 28975.43015 | DI142: 29844.69306 | DJ142: 30740.03385 | DK142: 31662.23487 | DL142: 32612.10191 | DM142: 33590.46497 | DN142: 34598.17892 | DO142: 35636.12429 | DP142: 36705.20801 | DQ142: 37806.36425 | DR142: 38940.55518 | DS142: 40108.77184 | DT142: 41312.03499 | DU142: 42551.39604 | DV142: 43827.93792 | DW142: 45142.77606 | DX142: 46497.05934 | DY142: 47891.97112 | DZ142: 49328.73026 | EA142: 50808.59216 | EB142: 52332.84993 | EC142: =EC128-EC140 -> 53902.83543 | ED142: 55519.92049 | EE142: 57185.5181 | EF142: 58901.08365 | EG142: 60668.11616 | EH142: 62488.15964 | EI142: 64362.80443 | EJ142: 66293.68856 | EK142: 68282.49922 | EL142: 70330.9742 | EM142: 72440.90342 | EN142: 74614.13053 | EO142: 76852.55444 | EP142: 79158.13108 | EQ142: 81532.87501 | ER142: 83978.86126 | ES142: 86498.2271 | ET142: 89093.17391 | EU142: 91765.96913 | EV142: 94518.9482 | EW142: 97354.51665 | EX142: 100275.1521 | EY142: 103283.4067 | EZ142: 106381.9089 | FA142: 109573.3662 | FB142: 112860.5672 | FC142: 116246.3842 | FD142: 119733.7757 | FE142: 123325.789 | FF142: 127025.5626 | FG142: 130836.3295 | FH142: 134761.4194 | FI142: 138804.262 | FJ142: 142968.3899 | FK142: 147257.4415 | FL142: 151675.1648 | FM142: 156225.4197 | FN142: 160912.1823 | FO142: 165739.5478 | FP142: 170711.7342 | FQ142: 175833.0863 | FR142: 181108.0788 | FS142: 186541.3212 | FT142: 192137.5608 | FU142: 197901.6877 | FV142: 203838.7383 | FW142: 209953.9005 | FX142: 216252.5175 | FY142: 222740.093 | FZ142: 229422.2958 | GA142: 236304.9647 | GB142: 243394.1136 | GC142: 250695.937 | GD142: 258216.8151 | GE142: 265963.3196 | GF142: 273942.2192 | GG142: 282160.4857 | GH142: 290625.3003 | GI142: 299344.0593 | GJ142: 308324.3811 | GK142: 317574.1125 | GL142: 327101.3359 | GM142: 336914.376 | GN142: 347021.8073 | GO142: =GO128-GO140 -> 357432.4615 | GP142: 368155.4353 | GQ142: 379200.0984 | GR142: 390576.1013 | GS142: 402293.3844 | GT142: 414362.1859 | GU142: 426793.0515 | GV142: 439596.843 | GW142: 452784.7483 | GX142: 466368.2908 | GY142: 480359.3395 | GZ142: 494770.1197 | HA142: 509613.2233 | HB142: 524901.62 | HC142: 540648.6685 | HD142: 556868.1286 | HE142: 573574.1725 | HF142: 590781.3976 | HG142: 608504.8396 | HH142: 626759.9848 | HI142: 645562.7843 | HJ142: 664929.6678 | HK142: 684877.5579 | HL142: 705423.8846 | HM142: 726586.6011 | HN142: 748384.1992 | HO142: 770835.7251 | HP142: 793960.7969 | HQ142: 817779.6208 | HR142: 842313.0094 | HS142: 867582.3997 | HT142: 893609.8717 | HU142: 920418.1679 | HV142: 948030.7129 | HW142: 976471.6343 | HX142: 1005765.783 | HY142: 1035938.757 | HZ142: 1067016.92 | IA142: 1099027.427 | IB142: 1131998.25 | IC142: 1165958.197 | ID142: 1200936.943 | IE142: 1236965.052 | IF142: 1274074.003 | IG142: 1312296.223 | IH142: 1351665.11 | II142: 1392215.063 | IJ142: 1433981.515 | IK142: 1477000.961 | IL142: 1521310.989 | IM142: 1566950.319 | IN142: 1613958.829 | IO142: 1662377.594 | IP142: 1712248.921 | IQ142: 1763616.389 | IR142: 1816524.881 | IS142: 1871020.627 | IT142: 1927151.246 | IU142: 1984965.783 | IV142: 2044514.757 | IW142: 2105850.199 | IX142: 2169025.705 | IY142: 2234096.477 | IZ142: 2301119.371 | JA142: =JA128-JA140 -> 2370152.952 | JB142: 2441257.541 | JC142: 2514495.267 | JD142: 2589930.125 | JE142: 2667628.029 | JF142: 2747656.869 | JG142: 2830086.576 | JH142: 2914989.173 | JI142: 3002438.848 | JJ142: 3092512.013 | JK142: 3185287.374 | JL142: 3280845.995 | JM142: 3379271.375 | JN142: 3480649.516 | JO142: 3585069.002 | JP142: 3692621.072 | JQ142: 3803399.704 | JR142: 3917501.695 | JS142: 4035026.746 | JT142: 4156077.548 | JU142: 4280759.875 | JV142: 4409182.671 | JW142: 4541458.151 | JX142: 4677701.895 | JY142: 4818032.952 | JZ142: 4962573.941 | KA142: 5111451.159 | KB142: 5264794.694 | KC142: 5422738.535 | KD142: 5585420.691 | KE142: 5752983.312 | KF142: 5925572.811 | KG142: 6103339.995 | KH142: 6286440.195 | KI142: 6475033.401 | KJ142: 6669284.403 | KK142: 6869362.935 | KL142: 7075443.823 | KM142: 7287707.138 | KN142: 7506338.352 | KO142: 7731528.502 | KP142: 7963474.358 | KQ142: 8202378.588 | KR142: 8448449.946
